Workbook

Sheet 1
A1: 06 ИЮЛЯ 2017г.
A2: 07 ИЮЛЯ 2017г.
A3: 5 МАЯ 2017г.
A4: 06-07 ИЮЛЯ 2017г.
A5: г. Казань, Футбольно-легкоатлетический манеж
A6: t° +17 вл. 91%
A7: г. Казань, Футбольно-легкоатлетический манеж
A8: МУЖЧИНЫ 2001г.р. и старше
A10: ЦЕНТР СПОРТИВНОЙ ПОДГОТОВКИ РЕСПУБЛИКИ ТАТАРСТАН
A12: ЛИЧНО-КОМАНДНЫЙ ЧЕМПИОНАТ РЕСПУБЛИКИ ТАТАРСТАН ПО ЛЕГКОЙ АТЛЕТИКЕ
A14: МУЖЧИНЫ 2001г.р. и старше
A15: МУЖЧИНЫ 2001г.р. и старше
A16: МУЖЧИНЫ 2001г.р. и старше
A17: МУЖЧИНЫ 2001г.р. и старше
A18: МУЖЧИНЫ 2001г.р. и старше
A19: МУЖЧИНЫ 2001г.р. и старше
A21: дисквал п.п. 162.7 | C21: фальстарт

Sheet УЧАСТНИКИ
A1: № | B1: №№ | C1: ФАМИЛИЯ ИМЯ УЧАСТНИКА | D1: Годрожд | E1: ГОРОД | F1: ВИД | G1: Округ | H1: Разряд | I1: КОМАНДА | J1: ТРЕНЕР(ы) | K1: ВЕДОМСТВО
A2: 3574 | C2: БАБАЕВ ШАКИР | D2: 1998 | E2: КАЗАНЬ | H2: 2 | I2: Л | J2: БОРОВИК СГ | K2: ПГАФКСиТ
A3: 3573 | C3: МАТЮШКИН ДАНИЛ | D3: 1998 | E3: КАЗАНЬ | H3: 2 | I3: Л | J3: БОРОВИК СГ | K3: ПГАФКСиТ
A4: 3770 | C4: ТРОФИМОВ ЕВГЕНИЙ | D4: 2000 | E4: КАЗАНЬ | H4: 2 | I4: Л | J4: ТОЛСТЯКОВ БМ | K4: СДЮСШОР ЛА
A5: 3771 | C5: ЖУРИН МАКАР | D5: 2000 | E5: КАЗАНЬ | H5: КМС | I5: 3 | J5: ТОЛСТЯКОВ БМ | K5: СДЮСШОР ЛА
A6: 3760 | C6: ГАЙНУТДИНОВ АЗАТ | D6: 1999 | E6: КАЗАНЬ | H6: КМС | I6: Л | J6: КУТДУСОВ РХ | K6: СДЮСШОР ТАСМА
A7: 3751 | C7: ХОРЕВ АНТОН | D7: 1998 | E7: КАЗАНЬ | H7: 1 | I7: Л | J7: ЗАХАРЧУК ДГ, БАЛАЕВА ОС | K7: СДЮСШОР ЛА
A8: 3750 | C8: МАСЛОВ ВИКТОР | D8: 1998 | E8: КАЗАНЬ | H8: 1 | I8: Л | J8: ЗАХАРЧУК ДГ, БАЛАЕВА ОС | K8: СДЮСШОР ЛА
A9: 3749 | C9: ХАФИЗОВ РУСТЭМ | D9: 1996 | E9: КАЗАНЬ | H9: 1 | I9: Л | J9: ЗАХАРЧУК ДГ, БАЛАЕВА ОС | K9: ДЮСШ ОЛИМП
A10: 3748 | C10: ШОМАХОВ АНДРЕЙ | D10: 1996 | E10: КАЗАНЬ | H10: 1 | I10: Л | J10: ЗАХАРЧУК ДГ, БАЛАЕВА ОС | K10: КНИТУ-КХТИ
A11: 3747 | C11: СОКОЛОВ СЕРГЕЙ | D11: 1999 | E11: КАЗАНЬ | H11: 1 | I11: 3 | J11: ЗАХАРЧУК ДГ, БАЛАЕВА ОС | K11: СДЮСШОР ЛА
A12: 3746 | C12: ПАВЛОВ ПЕТР | D12: 1997 | E12: КАЗАНЬ | H12: 1 | I12: Л | J12: ЗАХАРЧУК ДГ, БАЛАЕВА ОС | K12: ДЮСШ ОЛИМП
A13: 3745 | C13: КАДЫКЕЕВ МАКСИМ | D13: 2001 | E13: КАЗАНЬ | H13: 3 | I13: Л | J13: ЗАХАРЧУК ДГ, БАЛАЕВА ОС, СОКРАТОВ ОС | K13: ДЮСШ ОЛИМП
A14: 3744 | C14: МИХАЙЛОВ ЕВГЕНИЙ | D14: 1996 | E14: КАЗАНЬ | H14: КМС | I14: Л | J14: ЗАХАРЧУК ДГ, БАЛАЕВА ОС | K14: ДЮСШ ОЛИМП
A15: 3743 | C15: ЗАХАРЧУК ДМИТРИЙ | D15: 1977 | E15: КАЗАНЬ | H15: МС | I15: Л | J15: ВАСИЛЬЕВ АВ, БАЛАЕВА ОС | K15: СДЮСШОР ЛА
A16: 3741 | C16: ЗОРИН АРТУР | D16: 1998 | E16: КАЗАНЬ | H16: 1 | I16: 3 | J16: ФАТЫХОВА ЕВ | K16: СДЮСШОР ЛА
A17: 3740 | C17: КУРОПАТКИН АЛЕКСЕЙ | D17: 1995 | E17: КАЗАНЬ | H17: 1 | I17: Л | J17: ФАЙЗУЛЛИНА ГП | K17: СДЮСШОР ЛА
A18: 3739 | C18: САФИУЛЛИН БУЛАТ | D18: 2000 | E18: КАЗАНЬ | H18: 3 | I18: Л | J18: ФАЙЗУЛЛИНА ГП | K18: СДЮСШОР ЛА
A19: 3738 | C19: КАСАТКИН АЛЕКСАНДР | D19: 2000 | E19: КАЗАНЬ | H19: 3 | I19: Л | J19: ФАЙЗУЛЛИНА ГП | K19: СДЮСШОР ЛА
A20: 3737 | C20: ЛЮЛИН МАКСИМ | D20: 2000 | E20: КАЗАНЬ | H20: 1 | I20: Л | J20: ФАЙЗУЛЛИНА ГП | K20: СДЮСШОР ЛА
A21: 3736 | C21: ГАЙНУТДИНОВ ДАМИР | D21: 2001 | E21: КАЗАНЬ | H21: 2 | I21: 3 | J21: ФАЙЗУЛЛИНА ГП | K21: СДЮСШОР ЛА
A22: 3735 | C22: ГУБАЙДУЛЛИН АРТЕМ | D22: 2001 | E22: КАЗАНЬ | H22: 3 | I22: Л | J22: ФАЙЗУЛЛИНА ГП | K22: СДЮСШОР ЛА
A23: 3734 | C23: КОНСТАНТИНОВ ОЛЕГ | D23: 2000 | E23: КАЗАНЬ | H23: 2 | I23: Л | J23: ФАЙЗУЛЛИНА ГП | K23: СДЮСШОР ЛА
A24: 3733 | C24: ГИРФАНОВ ИСЛАМ | D24: 2000 | E24: КАЗАНЬ | H24: 2 | I24: Л | J24: ФАЙЗУЛЛИНА ГП | K24: СДЮСШОР ЛА
A25: 3732 | C25: ШАГИЕВ ДИНАР | D25: 1999 | E25: КАЗАНЬ | H25: 2 | I25: Л | J25: ФАЙЗУЛЛИНА ГП | K25: СДЮСШОР ЛА
A26: 3731 | C26: ШАРИФУЛЛИН ИЛЬНАЗ | D26: 1994 | E26: КАЗАНЬ | H26: 1 | I26: Л | J26: ФАЙЗУЛЛИНА ГП | K26: СДЮСШОР ЛА
A27: 3830 | C27: КРИВОШЕЕВ ВЛАДИСЛАВ | D27: 1997 | E27: КАЗАНЬ | H27: КМС | I27: 3 | J27: ЯШИНЫ ЖЛ АН | K27: СДЮСШОР ЛА
A28: 3829 | C28: МОРОЗОВ ГЕОРГИЙ | D28: 1998 | E28: КАЗАНЬ | H28: КМС | I28: 3 | J28: ЯШИНЫ ЖЛ АН | K28: СДЮСШОР ЛА
A29: 3828 | C29: ЕРМАКОВ ДАНИЛ | D29: 2000 | E29: КАЗАНЬ | H29: КМС | I29: 1 | J29: ИЛЬИН ВГ, КУЧЕРГИНА НВ | K29: УОР
A30: 3827 | C30: ХУСАЕНОВ ФАЗЫЛ | D30: 2000 | E30: КАЗАНЬ | H30: 1 | I30: 1 | J30: ПАВЛОВ ВЛ | K30: СТРЕЛА
A31: 3826 | C31: ДЯТЛОВ КИРИЛЛ | D31: 1997 | E31: КАЗАНЬ | H31: КМС | I31: 1 | J31: ПАВЛОВ ВЛ, МИННЕХАНОВА РР | K31: СТРЕЛА
A32: 3825 | C32: ИМАНГУЛОВ РУСЛАН | D32: 1989 | E32: КАЗАНЬ | H32: КМС | I32: 1 | J32: ПАВЛОВ ИЛ | K32: СТРЕЛА
A33: 3824 | C33: ЛЕБЕДКИН ЭДГАРД | D33: 1999 | E33: КАЗАНЬ | H33: КМС | I33: 1 | J33: РЫНИНА ЕИ | K33: УОР
A34: 3823 | C34: ЮМАНОВ СЕМЕН | D34: 1998 | E34: КАЗАНЬ | H34: КМС | I34: 1 | J34: МАСТРОВ АВ | K34: ПГАФКСиТ
A35: 3822 | C35: КАШАПОВ РЕНАТ | D35: 1988 | E35: КАЗАНЬ | H35: МС | I35: 1 | J35: КАШАПОВ РИ | K35: -
A36: 3821 | C36: ПАВЛОВ СЕМЕН | D36: 1990 | E36: КАЗАНЬ | H36: КМС | I36: 1 | J36: ПАВЛОВ ВЛ | K36: СТРЕЛА
A37: 3820 | C37: ЕГОРОВ ГЕННАДИЙ | D37: 1997 | E37: КАЗАНЬ | H37: КМС | I37: 1 | J37: ПАВЛОВ ВЛ | K37: СТРЕЛА
A38: 3775 | C38: КОЛБЕНЕВ АЛЕКСАНДР | D38: 2003/ВК | E38: КАЗАНЬ | H38: 3 | I38: ВК | J38: ФАЙСХАНОВ РР | K38: КДЮСШ АВИАТОР
A39: 3774 | C39: ЕГОРОВ МАКСИМ | D39: 2003/ВК | E39: КАЗАНЬ | H39: 3 | I39: ВК | J39: ФАЙСХАНОВ РР | K39: КДЮСШ АВИАТОР
A40: 3773 | C40: ШАМГУЛЛИН АРСЕН | D40: 1984/ВК | E40: СОЧИ | H40: 1 | I40: ВК | J40: - | K40: -
A41: 3772 | C41: ХАЛЯПОВ ЭРНЕСТ | D41: 1998 | E41: КАЗАНЬ | H41: 1 | I41: Л | J41: - | K41: КДЮСШ АВИАТОР
A42: 3562 | C42: ГАЗИЗОВ АЛЬБЕРТ | D42: 1998 | E42: ЗЕЛЕНОДОЛЬСК | H42: - | I42: Л | J42: ГИБАДУЛЛИН РР, ПАВЛОВ ИЛ | K42: -
A43: 3866 | C43: ОСИПОВ ИВАН | D43: 1994 | E43: КАЗАНЬ | H43: КМС | I43: Л | J43: МОСТЯКОВ ДВ | K43: ДЮСШ ОЛИМП
A44: 3841 | C44: ЗИГАНШИН ДАМИР | D44: 1998 | E44: КАЗАНЬ | H44: 2 | I44: Л | J44: САФИУЛЛИНА ГГ | K44: КДЮСШ АВИАТОР
A45: 3840 | C45: ИСХАКОВ АСКАР | D45: 1998 | E45: КАЗАНЬ | H45: 2 | I45: Л | J45: САФИУЛЛИНА ГГ | K45: КДЮСШ АВИАТОР
A46: 3839 | C46: АКШАЕВ НИКИТА | D46: 2001 | E46: КАЗАНЬ | H46: 2 | I46: Л | J46: РЫНИНА ЕИ | K46: КДЮСШ АВИАТОР
A47: 3864 | C47: МУРАДЫМОВ БУЛАТ | D47: 2000 | E47: КАЗАНЬ | H47: 2 | I47: Л | J47: ЛАТЫПОВА НП | K47: СДЮСШОР ТАСМА
A48: 3863 | C48: ФЕДОТОВ МАКСИМ | D48: 1999 | E48: КАЗАНЬ | H48: - | I48: Л | J48: ЛАТЫПОВА НП | K48: СДЮСШОР ТАСМА
A49: 3862 | C49: ЛАТЫПОВ ИЛЬЯ | D49: 2000 | E49: КАЗАНЬ | H49: 2 | I49: Л | J49: ЛАТЫПОВА НП | K49: СДЮСШОР ТАСМА
A50: 3861 | C50: ТИМОФЕЕВ АРТЕМ | D50: 2000 | E50: КАЗАНЬ | H50: 1 | I50: Л | J50: ЛАТЫПОВА НП | K50: СДЮСШОР ТАСМА
A51: 3858 | C51: ДАУТОВ ТИМУР | D51: 1999 | E51: КАЗАНЬ | H51: 1 | I51: Л | J51: БОРОДОВИЦЫН СН | K51: КДЮСШ АВИАТОР
A52: 3857 | C52: ЛАНЦОВ ВЛАДИМИР | D52: 1988 | E52: КАЗАНЬ | H52: КМС | I52: Л | J52: БОРОДОВИЦЫН СН | K52: КДЮСШ АВИАТОР
A53: 3856 | C53: ХУЗИАХМЕТОВ АРТУР | D53: 1997 | E53: КАЗАНЬ | H53: 2 | I53: Л | J53: БОРОДОВИЦЫН СН | K53: КДЮСШ АВИАТОР
A54: 3855 | C54: ГАЙНЕТДИНОВ НИЯЗ | D54: 2000 | E54: КАЗАНЬ | H54: 1 | I54: Л | J54: БОРОДОВИЦЫН СН | K54: КДЮСШ АВИАТОР
A55: 3854 | C55: ДЕГТЯРЕВ ИВАН | D55: 1988 | E55: КАЗАНЬ | H55: КМС | I55: Л | J55: БОРОДОВИЦЫН СН, ХИСАМОВ ИН, ТУХБАТУЛЛИН Ф | K55: КДЮСШ АВИАТОР
A56: 3813 | C56: ЖУКОВ ПАВЕЛ | D56: 1997 | E56: КАЗАНЬ | H56: 1 | I56: Л | J56: МИНЕБАЕВ НК | K56: КФУ
A57: 3 | C57: ГАЛИМОВ САЛАВАТ | D57: 1998 | E57: КАЗАНЬ | H57: 1 | I57: Л | J57: ВОСТРИКОВА ИА | K57: СДЮСШОР ЛА
A58: 2 | C58: БРАЙНИН СЕРГЕЙ | D58: 1997 | E58: КАЗАНЬ | H58: КМС | I58: 3 | J58: ВОСТРИКОВА ИА | K58: СДЮСШОР ЛА
A59: 59 | C59: АБДУЛЛИН ГУСМАН | D59: 1958 | E59: КАЗАНЬ | H59: МС | I59: Л | J59: - | K59: КГАВМ
A60: 61 | C60: ШАГИДОВ РАДИФ | D60: 1995 | E60: КАЗАНЬ | H60: 2 | I60: Л | J60: АБДУЛЛИН ГХ | K60: КГАВМ
A61: 3883 | C61: УСТИМОВ ВЛАДИМИР | D61: 2002 | E61: ТЕТЮШИ | H61: 3 | I61: Л | J61: ГАБДРАХМАНОВ РР | K61: ДЮСШ
A62: 3882 | C62: РАЗИН АЛЕКСАНДР | D62: 1999 | E62: ТЕТЮШИ | H62: 2 | I62: Л | J62: ГАБДРАХМАНОВ РР | K62: ДЮСШ
A63: 3881 | C63: МУШАРАПОВ ДИНАР | D63: 1997 | E63: ТЕТЮШИ | H63: 3 | I63: Л | J63: ГАБДРАХМАНОВ РР | K63: ДЮСШ
A64: 3874 | C64: ТАХАУОВ АЗАТ | D64: 1996 | E64: НАБ.ЧЕЛНЫ | H64: КМС | I64: Л | J64: ПЕТРОВЫ ТН ВМ | K64: ЯР ЧАЛЛЫ
A65: 3873 | C65: ЛАЗАРЕВ ЮРИЙ | D65: 1996 | E65: НАБ.ЧЕЛНЫ | H65: КМС | I65: Л | J65: ПЕТРОВЫ ТН ВМ | K65: ЯР ЧАЛЛЫ
A66: 3872 | C66: ФАТЫХОВ ИЛЬНАЗ | D66: 1992 | E66: НАБ.ЧЕЛНЫ | H66: КМС | I66: Л | J66: ГАЛКИН-САМИТОВ АС | K66: ЯР ЧАЛЛЫ
A67: 3871 | C67: ГОЛОВИН ИГОРЬ | D67: 1990 | E67: НАБ.ЧЕЛНЫ | H67: МС | I67: Л | J67: ПАНИН ГН | K67: ЯР ЧАЛЛЫ
A68: 3870 | C68: ГИЛЯЗОВ АЙДАР | D68: 1987 | E68: НИЖНЕКАМСК | H68: МС | I68: Л | J68: ПЕРМЯКОВ ОА, БЫКОВ ВЕ | K68: НЕФТЕХИМИК
A69: 3853 | C69: АРАСЛАНОВ АРТЕМ | D69: 1994 | E69: КАЗАНЬ | H69: МС | I69: Л | J69: БОРОДОВИЦЫН СН, СЫРЦЕВ ВВ | K69: ПГАФКСиТ, КДЮСШ АВИАТОР
A70: 3817 | C70: АБЛЯЗОВ МАРАТ | D70: 1990 | E70: КАЗАНЬ | H70: МС | I70: Л | J70: БОРОДОВИЦЫН СН | K70: КДЮСШ АВИАТОР
A71: 3801 | C71: НЯТЮНОВ ЮЛИАН | D71: 1998 | E71: КАЗАНЬ | H71: 1 | I71: Л | J71: ПАВЛОВ ИЛ | K71: СТРЕЛА
A72: 3800 | C72: ЗАКУТАЕВ НИКИТА | D72: 2000 | E72: КАЗАНЬ | H72: 2 | I72: Л | J72: МАШИН ВП | K72: СТРЕЛА
A73: 3799 | C73: НИКОЛАВИН ДАНИИЛ | D73: 2000 | E73: КАЗАНЬ | H73: 2 | I73: Л | J73: МАШИН ВП | K73: СТРЕЛА
A74: 3798 | C74: КУЗЬМИЧЕВ ДАНИЭЛЬ | D74: 2000 | E74: КАЗАНЬ | H74: 2 | I74: Л | J74: МАШИН ВП | K74: СТРЕЛА
A75: 3797 | C75: ЗАКИРЗЯНОВ АЗАТ | D75: 2002ВК | E75: КАЗАНЬ | H75: 2 | I75: ВК | J75: ПАВЛОВ ИЛ, ЛЕБЕДЕВ ВИ | K75: СТРЕЛА
A76: 3796 | C76: МЕЛЬНИКОВ НИКИТА | D76: 1999 | E76: КАЗАНЬ | H76: 2 | I76: Л | J76: ПАВЛОВ ИЛ | K76: СТРЕЛА
A77: 3795 | C77: МАЛЬКОВ ДАНИЛ | D77: 2002ВК | E77: КАЗАНЬ | H77: 2 | I77: ВК | J77: ПАВЛОВ ИЛ, ЛЕБЕДЕВ ВИ | K77: СТРЕЛА
A78: 3794 | C78: БУРГАНОВ МАКСИМ | D78: 2002ВК | E78: КАЗАНЬ | H78: 2 | I78: ВК | J78: ЯШИНЫ ЖЛ АН | K78: СДЮСШОР ЛА
A79: 3793 | C79: БЛОХИН РОМАН | D79: 2001 | E79: КАЗАНЬ | H79: 1 | I79: 3 | J79: ЯШИНЫ ЖЛ АН | K79: СДЮСШОР ЛА
A80: 3792 | C80: ШУРЫГИН АРТЕМ | D80: 2000 | E80: КАЗАНЬ | H80: 1 | I80: Л | J80: ЯШИНЫ ЖЛ АН | K80: СДЮСШОР ЛА
A81: 3791 | C81: ИВАНОВ НИКИТА | D81: 2001 | E81: КАЗАНЬ | H81: 1 | I81: 3 | J81: ЯШИНЫ ЖЛ АН | K81: СДЮСШОР ЛА
A82: 3789 | C82: ЕВГРАФОВ СВЯТОСЛАВ | D82: 1991ВК | E82: ЧУВАШСКАЯ РЕСП | H82: КМС | I82: ВК | J82: ДРУГОВ Р | K82: МБУ, САШ
A83: 3788 | C83: СОРОКИН АЛЕКСАНДР | D83: 1995ВК | E83: ЧУВАШСКАЯ РЕСП | H83: КМС | I83: ВК | J83: ДРУГОВ Р | K83: МБУ, САШ
A84: 3787 | C84: ДОРМИДОНТОВ АЛЕКСАНДР | D84: 1996ВК | E84: ЧУВАШСКАЯ РЕСП | H84: КМС | I84: ВК | J84: ДРУГОВ Р | K84: МБУ, САШ
A85: 3786 | C85: БАЖАЙКИН МИХАИЛ | D85: 1996ВК | E85: ЧУВАШСКАЯ РЕСП | H85: КМС | I85: ВК | J85: ДРУГОВ Р | K85: МБУ, САШ
A86: 3785 | C86: ВОЛКОВ НИКИТА | D86: 1999ВК | E86: ЧУВАШСКАЯ РЕСП | H86: 1 | I86: ВК | J86: МАКСИМОВА ОА, ЕФИМОВ АА | K86: АУ СШОР 3
A87: 3784 | C87: ТРИБОЙ РОМАН | D87: 2001ВК | E87: ЧУВАШСКАЯ РЕСП | H87: 2 | I87: ВК | J87: МАКСИМОВА ОА | K87: АУ СШОР 3
A88: 3783 | C88: ДАНИЛОВ АЛЕКСАНДР | D88: 1993ВК | E88: ЧУВАШСКАЯ РЕСП | H88: КМС | I88: ВК | J88: ДАВАЛОВ ВН | K88: -
A89: 3779 | C89: ГОЛОВИН ДЕНИС | D89: 1990ВК | E89: МАРИЙ-ЭЛ | H89: КМС | I89: ВК | J89: - | K89: -
A90: 3571 | C90: МАХМУТШИН ИРЕК | D90: 1960 | E90: КАЗАНЬ | H90: КМС | I90: Л | J90: - | K90: -
A91: 3790 | C91: ТАГИРОВ АЙЗАТ | D91: 1997 | E91: КАЗАНЬ | H91: 2 | I91: Л | J91: САДРЕТДИНОВ ДФ, СВЕРИГИН РР | K91: КЭК
A92: 3570 | C92: СЕИДОВ ЭЛЬЧИН | D92: 1992 | E92: КАЗАНЬ | H92: 2 | I92: Л | J92: САДРЕТДИНОВ ДФ | K92: КГЭУ
A93: 3780 | C93: БИКИНЕЕВ РУСЛАН | D93: 1998 | E93: КАЗАНЬ | H93: 2 | I93: Л | J93: САДРЕТДИНОВ ДФ, СВЕРИГИН РР | K93: КЭК
A94: 3569 | C94: ГАРАФУТДИНОВ АЗАТ | D94: 1996 | E94: КАЗАНЬ | H94: 1 | I94: Л | J94: САДРЕТДИНОВ ДФ | K94: КНИТУ (КХТИ)
A95: 3568 | C95: ФРОЛОВ НИКИТА | D95: 2000ВК | E95: КАНАШ | H95: 2 | I95: ВК | J95: МИРОНОВ КД | K95: ДЮСШ
A96: 3567 | C96: СИДОРОВ ОЛЕГ | D96: 1990 | E96: КАЗАНЬ | H96: МС | I96: 3 | J96: ИЛЬИН ВГ | K96: СДЮСШОР ЛА
A97: 3563 | C97: СЕНЬКИН АНДРЕЙ | D97: 1992 | E97: КАЗАНЬ | H97: КМС | I97: Л | J97: - | K97: -
A98: 67 | C98: БИГАЕВ АРТУР | D98: 1984 | E98: КАЗАНЬ | H98: МС | I98: Л | J98: ПАНИН ГН | K98: ЯР ЧАЛЛЫ
A99: 63 | C99: ГОРДЕЕВ АЛЕКСАНДР | D99: 2000 | E99: КАЗАНЬ | H99: 1 | I99: 3 | J99: БАРЫШНИКОВЫ АС ЛН, ЮСУПОВА ОВ | K99: СДЮСШОР ЛА
A100: 62 | C100: ВАЗИЕВ РЕГИЛЬ | D100: 1991 | E100: КАЗАНЬ | H100: КМС | I100: 3 | J100: БАРЫШНИКОВЫ АС ЛН | K100: СДЮСШОР ЛА
A101: 32 | C101: ХАМИДУЛЛИН БУЛАТ | D101: 1997 | E101: КАЗАНЬ | H101: 1 | I101: Л | J101: ПОПОВЫ НИ ЮМ | K101: СДЮСШОР ТАСМА
A102: 31 | C102: ИВАНОВ ВЛАДИСЛАВ | D102: 1998 | E102: КАЗАНЬ | H102: КМС | I102: Л | J102: ПОПОВ НИ | K102: СДЮСШОР ТАСМА
A103: 29 | C103: ХИДИЯТОВ АЛМАЗ | D103: 1994 | E103: КАЗАНЬ | H103: 2 | I103: Л | J103: ПОПОВЫ НИ ЮМ | K103: СДЮСШОР ТАСМА
A104: 30 | C104: ПОПОВ НИКОЛАЙ | D104: 1988 | E104: КАЗАНЬ | H104: 1 | I104: Л | J104: ПОПОВА ЮМ | K104: СДЮСШОР ТАСМА
A105: 28 | C105: КАБИРОВ ФЕРДИНАНД | D105: 1994 | E105: КАЗАНЬ | H105: 1 | I105: Л | J105: ПОПОВЫ НИ ЮМ | K105: СДЮСШОР ТАСМА
A106: 18 | C106: ДЕГТЯРЕВ КОНСТАНТИН | D106: 2000 | E106: БАВЛЫ | H106: 1 | I106: 2 | J106: ТУХБАТУЛЛИНЫ ФФ ЭР | K106: ДЮСШ №1
A107: 17 | C107: ХВАТКОВ СЕРГЕЙ | D107: 1992 | E107: УЛЬЯНОВСК | H107: КМС | I107: ВК | J107: - | K107: -
A108: 16 | C108: ЗИЯНГИРОВ АЙДАР | D108: 1997 | E108: БАВЛЫ | H108: КМС | I108: 2 | J108: ФАХРИЕВ ММ | K108: ДЮСШ №1
A109: 15 | C109: ИБРАГИМОВ АЛЬФИС | D109: 1994 | E109: БАВЛЫ | H109: КМС | I109: 2 | J109: ТУХБАТУЛЛИНЫ ФФ ЭР | K109: ДЮСШ №1
A110: 14 | C110: ТУХБАТУЛЛИН ФАНИЛЬ | D110: 1974 | E110: БАВЛЫ | H110: КМС | I110: 2 | J110: ФАХРИЕВ ММ | K110: ДЮСШ №1
A111: 13 | C111: САДИКОВ НИЯЗ | D111: 1997 | E111: БАВЛЫ | H111: КМС | I111: 2 | J111: ФАХРИЕВ ММ | K111: ДЮСШ №1
A112: 12 | C112: ИЛЬИН ЕВГЕНИЙ | D112: 1993 | E112: БАВЛЫ | H112: КМС | I112: 2 | J112: ТУХБАТУЛЛИНЫ ФФ ЭР | K112: ДЮСШ №1
A113: 11 | C113: НИГМАТУЛЛИН БУЛАТ | D113: 1993 | E113: БАВЛЫ | H113: 2 | I113: 2 | J113: ТУХБАТУЛЛИНЫ ФФ ЭР | K113: ДЮСШ №2
A114: 68 | C114: ГАФУРОВ АКМАЛЬ | D114: 1996 | E114: КАЗАНЬ | H114: 2 | I114: Л | J114: ПЕТРОВ АВ | K114: ДЮСШ ОЛИМП
A115: 69 | C115: КРАЙНОВ ДЕНИС | D115: 1997 | E115: КАЗАНЬ | H115: 2 | I115: Л | J115: ПЕТРОВ АВ | K115: ДЮСШ ОЛИМП
A116: 70 | C116: АНТОНОВ МАКСИМ | D116: 1993 | E116: КАЗАНЬ | H116: 1 | I116: Л | J116: ПЕТРОВ АВ | K116: ДЮСШ ОЛИМП
A117: 33 | C117: КИСЕЛЕВ РОМАН | D117: 1984 | E117: ЗЕЛЕНОДОЛЬСК | H117: КМС | I117: Л | J117: - | K117: -
A118: 34 | C118: САФАРГАЛИЕВ ЛИНАР | D118: 1998 | E118: КАЗАНЬ | H118: 2 | I118: Л | J118: ПЕТРОВ АВ | K118: КНИТУ-КХТИ
A119: 51 | C119: ХАДИУЛЛИН ЮСУФ | D119: 2000 | E119: КАЗАНЬ | H119: 1 | I119: Л | J119: МИННЕХАНОВА РР | K119: СДЮСШОР ЛА
A120: 39 | C120: БАРЕЕВ ИЛЬДАР | D120: 1990 | E120: КАЗАНЬ | H120: 1 | I120: Л | J120: ШАШНИКОВ СЕ | K120: ДЮСШ ОЛИМП
A121: 41 | C121: МОРЯШОВ МАКСИМ | D121: 1999 | E121: КАЗАНЬ | H121: 1 | I121: Л | J121: ШАШНИКОВ СЕ | K121: ДЮСШ ОЛИМП
A122: 43 | C122: ЛЮСОВ ВАЛЕРИЙ | D122: 2002ВК | E122: КАЗАНЬ | H122: 2 | I122: ВК | J122: ШАШНИКОВ СЕ | K122: ДЮСШ ОЛИМП
A123: 73 | C123: ВАСИЛЬЕВ АЛЕКСАНДР | D123: 1999ВК | E123: ЧУВАШСКАЯ РЕСП | H123: МСМК | I123: ВК | J123: УГЛЕВ ИИ | K123: СШОР 1 им.В.ЕГОРОВОЙ
A124: 53 | C124: ЧАЛТАНОВ АЛЕКСАНДР | D124: 1999ВК | E124: ЧУВАШСКАЯ РЕСП | H124: 1 | I124: ВК | J124: УГЛЕВ ИИ | K124: СШОР 1 им.В.ЕГОРОВОЙ
A125: 54 | C125: РУСКОВ ЮРИЙ | D125: 2001ВК | E125: ЧУВАШСКАЯ РЕСП | H125: 3 | I125: ВК | J125: УГЛЕВ ИИ | K125: СШОР 1 им.В.ЕГОРОВОЙ
A126: 52 | C126: ТИМОФЕЕВ ОЛЕГ | D126: 1999ВК | E126: ЧУВАШСКАЯ РЕСП | H126: 1 | I126: ВК | J126: УГЛЕВ ИИ | K126: СШОР 1 им.В.ЕГОРОВОЙ
A127: 56 | C127: АЛЕКСАНДРОВ АЛЕКСЕЙ | D127: 1983ВК | E127: ЧУВАШСКАЯ РЕСП | H127: МСМК | I127: ВК | J127: УГЛЕВ ИИ | K127: СШОР 1 им.В.ЕГОРОВОЙ
A128: 36 | C128: СУНЕЙКИН АЛЕКСЕЙ | D128: 1984 | E128: КАЗАНЬ | H128: - | I128: - | J128: - | K128: -
A129: 35 | C129: ЗАРИПОВ РАВИЛЬ | D129: 1997 | E129: НАБ.ЧЕЛНЫ | H129: КМС | I129: Л | J129: ПЕРМИТИНЫ КВ ВА | K129: ЯР ЧАЛЛЫ
A130: 2000 | C130: ВАВИЛОВ АДЕЛЬ | D130: 2001 | E130: КАЗАНЬ | H130: КМС | I130: Л | J130: КУТДУСОВ РХ | K130: СДЮСШОР ТАСМА
A131: 40 | C131: КОНОНИХА ЕГОР | D131: 1998 | E131: КАЗАНЬ | H131: 2 | I131: Л | J131: ШАШНИКОВ СЕ | K131: ДЮСШ ОЛИМП
A132: 48 | C132: СИДОРКИН ВЕНИДИКТ | D132: 2002ВК | E132: ЧУВАШСКАЯ РЕСП | H132: - | I132: ВК | J132: - | K132: КОЗЛОВКА
A133: 47 | C133: МАКСИМОВ ДАНИЛ | D133: 2002ВК | E133: ЧУВАШСКАЯ РЕСП | H133: - | I133: ВК | J133: - | K133: КОЗЛОВКА
A134: 98 | C134: ИВАНУШКИН НИКОЛАЙ | D134: 1991ВК | E134: МАРИЙ-ЭЛ | H134: - | I134: - | J134: - | K134: -
A135: 83 | C135: ПАКИН ИВАН | D135: 1991 | E135: КАЗАНЬ | H135: ЗМС | I135: Л | J135: КАПУСТИНА Н | K135: ЦСП ГАУ
A136: 3000 | C136: ШАФИКОВ РАНЭЛЬ | D136: 2004ВК | E136: КАЗАНЬ | H136: - | I136: ВК | J136: ЗАХАРЧУК ДГ | K136: СДЮСШОР ЛА
A137: 71 | C137: ЗАЙНУЛОВ АЗАТ | D137: 1993 | E137: КАЗАНЬ | H137: 2 | I137: Л | J137: САДРЕТДИНОВ ДФ | K137: КНИТУ-КХТИ

Sheet 100М (hidden)
A1: =Name_2 -> ЦЕНТР СПОРТИВНОЙ ПОДГОТОВКИ РЕСПУБЛИКИ ТАТАРСТАН
A2: СТАРТОВЫЙ ПРОТОКОЛ
A3: =Name_4 -> ЛИЧНО-КОМАНДНЫЙ ЧЕМПИОНАТ РЕСПУБЛИКИ ТАТАРСТАН ПО ЛЕГКОЙ АТЛЕТИКЕ
A5: БЕГ 100 М | D5: 15,20 | H5: =d_1 -> 06 ИЮЛЯ 2017г.
H6: =d_5 -> г. Казань, Футбольно-легкоатлетический манеж
A7: № п/п | B7: Фамилия, имя участника | C7: Год рожд. | D7: ГОРОД | E7: КОМАНДА | F7: Номер участника | G7: Приход | H7: Результат | I7: Место | J7: Примеч.
B8: =Name_8 -> МУЖЧИНЫ 2001г.р. и старше
B9: 1 ЗАБЕГ
A10: 1
A11: 2 | B11: =VLOOKUP($F11,УЧАСТНИКИ!$A$1:$K$705,3,FALSE) -> ЗИГАНШИН ДАМИР | C11: =VLOOKUP($F11,УЧАСТНИКИ!$A$1:$K$705,4,FALSE) -> 1998 | D11: =VLOOKUP($F11,УЧАСТНИКИ!$A$1:$K$705,5,FALSE) -> КАЗАНЬ | E11: =VLOOKUP($F11,УЧАСТНИКИ!$A$1:$K$705,11,FALSE) -> КДЮСШ АВИАТОР | F11: 3841 | J11: =VLOOKUP($F11,УЧАСТНИКИ!$A$2:$K$231,9,FALSE) -> Л
A12: 3 | B12: =VLOOKUP($F12,УЧАСТНИКИ!$A$2:$K$705,3,FALSE) -> ГАЙНЕТДИНОВ НИЯЗ | C12: =VLOOKUP($F12,УЧАСТНИКИ!$A$2:$K$705,4,FALSE) -> 2000 | D12: =VLOOKUP($F12,УЧАСТНИКИ!$A$2:$K$705,5,FALSE) -> КАЗАНЬ | E12: =VLOOKUP($F12,УЧАСТНИКИ!$A$2:$K$705,11,FALSE) -> КДЮСШ АВИАТОР | F12: 3855 | J12: =VLOOKUP($F12,УЧАСТНИКИ!$A$2:$K$231,9,FALSE) -> Л
A13: 4 | B13: =VLOOKUP($F13,УЧАСТНИКИ!$A$2:$K$705,3,FALSE) -> ВАЗИЕВ РЕГИЛЬ | C13: =VLOOKUP($F13,УЧАСТНИКИ!$A$2:$K$705,4,FALSE) -> 1991 | D13: =VLOOKUP($F13,УЧАСТНИКИ!$A$2:$K$705,5,FALSE) -> КАЗАНЬ | E13: =VLOOKUP($F13,УЧАСТНИКИ!$A$2:$K$705,11,FALSE) -> СДЮСШОР ЛА | F13: 62 | J13: =VLOOKUP($F13,УЧАСТНИКИ!$A$2:$K$231,9,FALSE) -> 3
A14: 5 | B14: =VLOOKUP($F14,УЧАСТНИКИ!$A$2:$K$705,3,FALSE) -> КУЗЬМИЧЕВ ДАНИЭЛЬ | C14: =VLOOKUP($F14,УЧАСТНИКИ!$A$2:$K$705,4,FALSE) -> 2000 | D14: =VLOOKUP($F14,УЧАСТНИКИ!$A$2:$K$705,5,FALSE) -> КАЗАНЬ | E14: =VLOOKUP($F14,УЧАСТНИКИ!$A$2:$K$705,11,FALSE) -> СТРЕЛА | F14: 3798 | J14: =VLOOKUP($F14,УЧАСТНИКИ!$A$2:$K$231,9,FALSE) -> Л
A15: 6
B16: 2 ЗАБЕГ
A17: 1
A18: 2 | B18: =VLOOKUP($F18,УЧАСТНИКИ!$A$1:$K$705,3,FALSE) -> КОНСТАНТИНОВ ОЛЕГ | C18: =VLOOKUP($F18,УЧАСТНИКИ!$A$1:$K$705,4,FALSE) -> 2000 | D18: =VLOOKUP($F18,УЧАСТНИКИ!$A$1:$K$705,5,FALSE) -> КАЗАНЬ | E18: =VLOOKUP($F18,УЧАСТНИКИ!$A$1:$K$705,11,FALSE) -> СДЮСШОР ЛА | F18: 3734 | J18: =VLOOKUP($F18,УЧАСТНИКИ!$A$2:$K$231,9,FALSE) -> Л
A19: 3 | B19: =VLOOKUP($F19,УЧАСТНИКИ!$A$2:$K$705,3,FALSE) -> ХУЗИАХМЕТОВ АРТУР | C19: =VLOOKUP($F19,УЧАСТНИКИ!$A$2:$K$705,4,FALSE) -> 1997 | D19: =VLOOKUP($F19,УЧАСТНИКИ!$A$2:$K$705,5,FALSE) -> КАЗАНЬ | E19: =VLOOKUP($F19,УЧАСТНИКИ!$A$2:$K$705,11,FALSE) -> КДЮСШ АВИАТОР | F19: 3856 | J19: =VLOOKUP($F19,УЧАСТНИКИ!$A$2:$K$231,9,FALSE) -> Л
A20: 4 | B20: =VLOOKUP($F20,УЧАСТНИКИ!$A$2:$K$705,3,FALSE) -> ОСИПОВ ИВАН | C20: =VLOOKUP($F20,УЧАСТНИКИ!$A$2:$K$705,4,FALSE) -> 1994 | D20: =VLOOKUP($F20,УЧАСТНИКИ!$A$2:$K$705,5,FALSE) -> КАЗАНЬ | E20: =VLOOKUP($F20,УЧАСТНИКИ!$A$2:$K$705,11,FALSE) -> ДЮСШ ОЛИМП | F20: 3866 | J20: =VLOOKUP($F20,УЧАСТНИКИ!$A$2:$K$231,9,FALSE) -> Л
A21: 5 | B21: =VLOOKUP($F21,УЧАСТНИКИ!$A$2:$K$705,3,FALSE) -> НИКОЛАВИН ДАНИИЛ | C21: =VLOOKUP($F21,УЧАСТНИКИ!$A$2:$K$705,4,FALSE) -> 2000 | D21: =VLOOKUP($F21,УЧАСТНИКИ!$A$2:$K$705,5,FALSE) -> КАЗАНЬ | E21: =VLOOKUP($F21,УЧАСТНИКИ!$A$2:$K$705,11,FALSE) -> СТРЕЛА | F21: 3799 | J21: =VLOOKUP($F21,УЧАСТНИКИ!$A$2:$K$231,9,FALSE) -> Л
A22: 6 | B22: =VLOOKUP($F22,УЧАСТНИКИ!$A$2:$K$705,3,FALSE) -> СЕИДОВ ЭЛЬЧИН | C22: =VLOOKUP($F22,УЧАСТНИКИ!$A$2:$K$705,4,FALSE) -> 1992 | D22: =VLOOKUP($F22,УЧАСТНИКИ!$A$2:$K$705,5,FALSE) -> КАЗАНЬ | E22: =VLOOKUP($F22,УЧАСТНИКИ!$A$2:$K$705,11,FALSE) -> КГЭУ | F22: 3570 | J22: =VLOOKUP($F22,УЧАСТНИКИ!$A$2:$K$231,9,FALSE) -> Л
B23: 3 ЗАБЕГ
A24: 1
A25: 2 | B25: =VLOOKUP($F25,УЧАСТНИКИ!$A$1:$K$705,3,FALSE) -> ЕГОРОВ МАКСИМ | C25: =VLOOKUP($F25,УЧАСТНИКИ!$A$1:$K$705,4,FALSE) -> 2003/ВК | D25: =VLOOKUP($F25,УЧАСТНИКИ!$A$1:$K$705,5,FALSE) -> КАЗАНЬ | E25: =VLOOKUP($F25,УЧАСТНИКИ!$A$1:$K$705,11,FALSE) -> КДЮСШ АВИАТОР | F25: 3774 | J25: =VLOOKUP($F25,УЧАСТНИКИ!$A$2:$K$231,9,FALSE) -> ВК
A26: 3 | B26: =VLOOKUP($F26,УЧАСТНИКИ!$A$2:$K$705,3,FALSE) -> БАБАЕВ ШАКИР | C26: =VLOOKUP($F26,УЧАСТНИКИ!$A$2:$K$705,4,FALSE) -> 1998 | D26: =VLOOKUP($F26,УЧАСТНИКИ!$A$2:$K$705,5,FALSE) -> КАЗАНЬ | E26: =VLOOKUP($F26,УЧАСТНИКИ!$A$2:$K$705,11,FALSE) -> ПГАФКСиТ | F26: 3574 | J26: =VLOOKUP($F26,УЧАСТНИКИ!$A$2:$K$231,9,FALSE) -> Л
A27: 4 | B27: =VLOOKUP($F27,УЧАСТНИКИ!$A$2:$K$705,3,FALSE) -> ИСХАКОВ АСКАР | C27: =VLOOKUP($F27,УЧАСТНИКИ!$A$2:$K$705,4,FALSE) -> 1998 | D27: =VLOOKUP($F27,УЧАСТНИКИ!$A$2:$K$705,5,FALSE) -> КАЗАНЬ | E27: =VLOOKUP($F27,УЧАСТНИКИ!$A$2:$K$705,11,FALSE) -> КДЮСШ АВИАТОР | F27: 3840 | J27: =VLOOKUP($F27,УЧАСТНИКИ!$A$2:$K$231,9,FALSE) -> Л
A28: 5 | B28: =VLOOKUP($F28,УЧАСТНИКИ!$A$2:$K$705,3,FALSE) -> МАТЮШКИН ДАНИЛ | C28: =VLOOKUP($F28,УЧАСТНИКИ!$A$2:$K$705,4,FALSE) -> 1998 | D28: =VLOOKUP($F28,УЧАСТНИКИ!$A$2:$K$705,5,FALSE) -> КАЗАНЬ | E28: =VLOOKUP($F28,УЧАСТНИКИ!$A$2:$K$705,11,FALSE) -> ПГАФКСиТ | F28: 3573 | J28: =VLOOKUP($F28,УЧАСТНИКИ!$A$2:$K$231,9,FALSE) -> Л
A29: 6
B30: 4 ЗАБЕГ
A31: 1
A32: 2 | B32: =VLOOKUP($F32,УЧАСТНИКИ!$A$1:$K$705,3,FALSE) -> МУРАДЫМОВ БУЛАТ | C32: =VLOOKUP($F32,УЧАСТНИКИ!$A$1:$K$705,4,FALSE) -> 2000 | D32: =VLOOKUP($F32,УЧАСТНИКИ!$A$1:$K$705,5,FALSE) -> КАЗАНЬ | E32: =VLOOKUP($F32,УЧАСТНИКИ!$A$1:$K$705,11,FALSE) -> СДЮСШОР ТАСМА | F32: 3864 | J32: =VLOOKUP($F32,УЧАСТНИКИ!$A$2:$K$231,9,FALSE) -> Л
A33: 3 | B33: =VLOOKUP($F33,УЧАСТНИКИ!$A$2:$K$705,3,FALSE) -> ШАМГУЛЛИН АРСЕН | C33: =VLOOKUP($F33,УЧАСТНИКИ!$A$2:$K$705,4,FALSE) -> 1984/ВК | D33: =VLOOKUP($F33,УЧАСТНИКИ!$A$2:$K$705,5,FALSE) -> СОЧИ | E33: =VLOOKUP($F33,УЧАСТНИКИ!$A$2:$K$705,11,FALSE) -> - | F33: 3773 | J33: =VLOOKUP($F33,УЧАСТНИКИ!$A$2:$K$231,9,FALSE) -> ВК
A34: 4 | B34: =VLOOKUP($F34,УЧАСТНИКИ!$A$2:$K$705,3,FALSE) -> ФАТЫХОВ ИЛЬНАЗ | C34: =VLOOKUP($F34,УЧАСТНИКИ!$A$2:$K$705,4,FALSE) -> 1992 | D34: =VLOOKUP($F34,УЧАСТНИКИ!$A$2:$K$705,5,FALSE) -> НАБ.ЧЕЛНЫ | E34: =VLOOKUP($F34,УЧАСТНИКИ!$A$2:$K$705,11,FALSE) -> ЯР ЧАЛЛЫ | F34: 3872 | J34: =VLOOKUP($F34,УЧАСТНИКИ!$A$2:$K$231,9,FALSE) -> Л
A35: 5 | B35: =VLOOKUP($F35,УЧАСТНИКИ!$A$2:$K$705,3,FALSE) -> АБЛЯЗОВ МАРАТ | C35: =VLOOKUP($F35,УЧАСТНИКИ!$A$2:$K$705,4,FALSE) -> 1990 | D35: =VLOOKUP($F35,УЧАСТНИКИ!$A$2:$K$705,5,FALSE) -> КАЗАНЬ | E35: =VLOOKUP($F35,УЧАСТНИКИ!$A$2:$K$705,11,FALSE) -> КДЮСШ АВИАТОР | F35: 3817 | J35: =VLOOKUP($F35,УЧАСТНИКИ!$A$2:$K$231,9,FALSE) -> Л
A36: 6 | B36: =VLOOKUP($F36,УЧАСТНИКИ!$A$2:$K$705,3,FALSE) -> ВОЛКОВ НИКИТА | C36: =VLOOKUP($F36,УЧАСТНИКИ!$A$2:$K$705,4,FALSE) -> 1999ВК | D36: =VLOOKUP($F36,УЧАСТНИКИ!$A$2:$K$705,5,FALSE) -> ЧУВАШСКАЯ РЕСП | E36: =VLOOKUP($F36,УЧАСТНИКИ!$A$2:$K$705,11,FALSE) -> АУ СШОР 3 | F36: 3785 | J36: =VLOOKUP($F36,УЧАСТНИКИ!$A$2:$K$231,9,FALSE) -> ВК
B37: 5 ЗАБЕГ
A38: 1
A39: 2
A40: 3
A41: 4
A42: 5
A43: 6
B44: 6 ЗАБЕГ
A45: 1 | B45: =VLOOKUP($F45,УЧАСТНИКИ!$A$1:$K$705,3,FALSE) ->  | C45: =VLOOKUP($F45,УЧАСТНИКИ!$A$1:$K$705,4,FALSE) ->  | D45: =VLOOKUP($F45,УЧАСТНИКИ!$A$1:$K$705,5,FALSE) ->  | E45: =VLOOKUP($F45,УЧАСТНИКИ!$A$1:$K$705,11,FALSE) ->  | J45: =VLOOKUP($F45,УЧАСТНИКИ!$A$2:$K$231,9,FALSE) -> 
A46: 2 | B46: =VLOOKUP($F46,УЧАСТНИКИ!$A$2:$K$705,3,FALSE) ->  | C46: =VLOOKUP($F46,УЧАСТНИКИ!$A$2:$K$705,4,FALSE) ->  | D46: =VLOOKUP($F46,УЧАСТНИКИ!$A$2:$K$705,5,FALSE) ->  | E46: =VLOOKUP($F46,УЧАСТНИКИ!$A$2:$K$705,11,FALSE) ->  | J46: =VLOOKUP($F46,УЧАСТНИКИ!$A$2:$K$231,9,FALSE) -> 
A47: 3 | B47: =VLOOKUP($F47,УЧАСТНИКИ!$A$2:$K$705,3,FALSE) ->  | C47: =VLOOKUP($F47,УЧАСТНИКИ!$A$2:$K$705,4,FALSE) ->  | D47: =VLOOKUP($F47,УЧАСТНИКИ!$A$2:$K$705,5,FALSE) ->  | E47: =VLOOKUP($F47,УЧАСТНИКИ!$A$2:$K$705,11,FALSE) ->  | J47: =VLOOKUP($F47,УЧАСТНИКИ!$A$2:$K$231,9,FALSE) -> 
A48: 4 | B48: =VLOOKUP($F48,УЧАСТНИКИ!$A$2:$K$705,3,FALSE) ->  | C48: =VLOOKUP($F48,УЧАСТНИКИ!$A$2:$K$705,4,FALSE) ->  | D48: =VLOOKUP($F48,УЧАСТНИКИ!$A$2:$K$705,5,FALSE) ->  | E48: =VLOOKUP($F48,УЧАСТНИКИ!$A$2:$K$705,11,FALSE) ->  | J48: =VLOOKUP($F48,УЧАСТНИКИ!$A$2:$K$231,9,FALSE) -> 
A49: 5 | B49: =VLOOKUP($F49,УЧАСТНИКИ!$A$2:$K$705,3,FALSE) ->  | C49: =VLOOKUP($F49,УЧАСТНИКИ!$A$2:$K$705,4,FALSE) ->  | D49: =VLOOKUP($F49,УЧАСТНИКИ!$A$2:$K$705,5,FALSE) ->  | E49: =VLOOKUP($F49,УЧАСТНИКИ!$A$2:$K$705,11,FALSE) ->  | J49: =VLOOKUP($F49,УЧАСТНИКИ!$A$2:$K$231,9,FALSE) -> 
A50: 6 | B50: =VLOOKUP($F50,УЧАСТНИКИ!$A$1:$K$705,3,FALSE) ->  | C50: =VLOOKUP($F50,УЧАСТНИКИ!$A$1:$K$705,4,FALSE) ->  | D50: =VLOOKUP($F50,УЧАСТНИКИ!$A$1:$K$705,5,FALSE) ->  | E50: =VLOOKUP($F50,УЧАСТНИКИ!$A$1:$K$705,11,FALSE) ->  | J50: =VLOOKUP($F50,УЧАСТНИКИ!$A$2:$K$231,9,FALSE) -> 
B51: 7 ЗАБЕГ
A52: 1
A53: 2 | B53: =VLOOKUP($F53,УЧАСТНИКИ!$A$2:$K$705,3,FALSE) ->  | C53: =VLOOKUP($F53,УЧАСТНИКИ!$A$2:$K$705,4,FALSE) ->  | D53: =VLOOKUP($F53,УЧАСТНИКИ!$A$2:$K$705,5,FALSE) ->  | E53: =VLOOKUP($F53,УЧАСТНИКИ!$A$2:$K$705,11,FALSE) ->  | J53: =VLOOKUP($F53,УЧАСТНИКИ!$A$2:$K$231,9,FALSE) -> 
A54: 3 | B54: =VLOOKUP($F54,УЧАСТНИКИ!$A$2:$K$705,3,FALSE) ->  | C54: =VLOOKUP($F54,УЧАСТНИКИ!$A$2:$K$705,4,FALSE) ->  | D54: =VLOOKUP($F54,УЧАСТНИКИ!$A$2:$K$705,5,FALSE) ->  | E54: =VLOOKUP($F54,УЧАСТНИКИ!$A$2:$K$705,11,FALSE) ->  | J54: =VLOOKUP($F54,УЧАСТНИКИ!$A$2:$K$231,9,FALSE) -> 
A55: 4 | B55: =VLOOKUP($F55,УЧАСТНИКИ!$A$1:$K$705,3,FALSE) ->  | C55: =VLOOKUP($F55,УЧАСТНИКИ!$A$1:$K$705,4,FALSE) ->  | D55: =VLOOKUP($F55,УЧАСТНИКИ!$A$1:$K$705,5,FALSE) ->  | E55: =VLOOKUP($F55,УЧАСТНИКИ!$A$1:$K$705,11,FALSE) ->  | J55: =VLOOKUP($F55,УЧАСТНИКИ!$A$2:$K$231,9,FALSE) -> 
A56: 5 | B56: =VLOOKUP($F56,УЧАСТНИКИ!$A$2:$K$705,3,FALSE) ->  | C56: =VLOOKUP($F56,УЧАСТНИКИ!$A$2:$K$705,4,FALSE) ->  | D56: =VLOOKUP($F56,УЧАСТНИКИ!$A$2:$K$705,5,FALSE) ->  | E56: =VLOOKUP($F56,УЧАСТНИКИ!$A$2:$K$705,11,FALSE) ->  | J56: =VLOOKUP($F56,УЧАСТНИКИ!$A$2:$K$231,9,FALSE) -> 
A57: 6 | B57: =VLOOKUP($F57,УЧАСТНИКИ!$A$2:$K$705,3,FALSE) ->  | C57: =VLOOKUP($F57,УЧАСТНИКИ!$A$2:$K$705,4,FALSE) ->  | D57: =VLOOKUP($F57,УЧАСТНИКИ!$A$2:$K$705,5,FALSE) ->  | E57: =VLOOKUP($F57,УЧАСТНИКИ!$A$2:$K$705,11,FALSE) ->  | J57: =VLOOKUP($F57,УЧАСТНИКИ!$A$2:$K$231,9,FALSE) -> 
B58: =Name_9 -> МУЖЧИНЫ 2001г.р. и старше
B59: 8 ЗАБЕГ
A60: 1 | B60: =VLOOKUP($F60,УЧАСТНИКИ!$A$1:$K$705,3,FALSE) ->  | C60: =VLOOKUP($F60,УЧАСТНИКИ!$A$1:$K$705,4,FALSE) ->  | D60: =VLOOKUP($F60,УЧАСТНИКИ!$A$1:$K$705,5,FALSE) ->  | E60: =VLOOKUP($F60,УЧАСТНИКИ!$A$1:$K$705,11,FALSE) -> 
A61: 2 | B61: =VLOOKUP($F61,УЧАСТНИКИ!$A$1:$K$705,3,FALSE) ->  | C61: =VLOOKUP($F61,УЧАСТНИКИ!$A$1:$K$705,4,FALSE) ->  | D61: =VLOOKUP($F61,УЧАСТНИКИ!$A$1:$K$705,5,FALSE) ->  | E61: =VLOOKUP($F61,УЧАСТНИКИ!$A$1:$K$705,11,FALSE) -> 
A62: 3 | B62: =VLOOKUP($F62,УЧАСТНИКИ!$A$2:$K$705,3,FALSE) ->  | C62: =VLOOKUP($F62,УЧАСТНИКИ!$A$2:$K$705,4,FALSE) ->  | D62: =VLOOKUP($F62,УЧАСТНИКИ!$A$2:$K$705,5,FALSE) ->  | E62: =VLOOKUP($F62,УЧАСТНИКИ!$A$2:$K$705,11,FALSE) -> 
A63: 4 | B63: =VLOOKUP($F63,УЧАСТНИКИ!$A$2:$K$705,3,FALSE) ->  | C63: =VLOOKUP($F63,УЧАСТНИКИ!$A$2:$K$705,4,FALSE) ->  | D63: =VLOOKUP($F63,УЧАСТНИКИ!$A$2:$K$705,5,FALSE) ->  | E63: =VLOOKUP($F63,УЧАСТНИКИ!$A$2:$K$705,11,FALSE) -> 
A64: 5 | B64: =VLOOKUP($F64,УЧАСТНИКИ!$A$2:$K$705,3,FALSE) ->  | C64: =VLOOKUP($F64,УЧАСТНИКИ!$A$2:$K$705,4,FALSE) ->  | D64: =VLOOKUP($F64,УЧАСТНИКИ!$A$2:$K$705,5,FALSE) ->  | E64: =VLOOKUP($F64,УЧАСТНИКИ!$A$2:$K$705,11,FALSE) -> 
A65: 6 | B65: =VLOOKUP($F65,УЧАСТНИКИ!$A$2:$K$705,3,FALSE) ->  | C65: =VLOOKUP($F65,УЧАСТНИКИ!$A$2:$K$705,4,FALSE) ->  | D65: =VLOOKUP($F65,УЧАСТНИКИ!$A$2:$K$705,5,FALSE) ->  | E65: =VLOOKUP($F65,УЧАСТНИКИ!$A$2:$K$705,11,FALSE) -> 
B66: 9 ЗАБЕГ
A67: 1 | B67: =VLOOKUP($F67,УЧАСТНИКИ!$A$1:$K$705,3,FALSE) ->  | C67: =VLOOKUP($F67,УЧАСТНИКИ!$A$1:$K$705,4,FALSE) ->  | D67: =VLOOKUP($F67,УЧАСТНИКИ!$A$1:$K$705,5,FALSE) ->  | E67: =VLOOKUP($F67,УЧАСТНИКИ!$A$1:$K$705,11,FALSE) -> 
A68: 2 | B68: =VLOOKUP($F68,УЧАСТНИКИ!$A$1:$K$705,3,FALSE) ->  | C68: =VLOOKUP($F68,УЧАСТНИКИ!$A$1:$K$705,4,FALSE) ->  | D68: =VLOOKUP($F68,УЧАСТНИКИ!$A$1:$K$705,5,FALSE) ->  | E68: =VLOOKUP($F68,УЧАСТНИКИ!$A$1:$K$705,11,FALSE) -> 
A69: 3 | B69: =VLOOKUP($F69,УЧАСТНИКИ!$A$2:$K$705,3,FALSE) ->  | C69: =VLOOKUP($F69,УЧАСТНИКИ!$A$2:$K$705,4,FALSE) ->  | D69: =VLOOKUP($F69,УЧАСТНИКИ!$A$2:$K$705,5,FALSE) ->  | E69: =VLOOKUP($F69,УЧАСТНИКИ!$A$2:$K$705,11,FALSE) -> 
A70: 4 | B70: =VLOOKUP($F70,УЧАСТНИКИ!$A$2:$K$705,3,FALSE) ->  | C70: =VLOOKUP($F70,УЧАСТНИКИ!$A$2:$K$705,4,FALSE) ->  | D70: =VLOOKUP($F70,УЧАСТНИКИ!$A$2:$K$705,5,FALSE) ->  | E70: =VLOOKUP($F70,УЧАСТНИКИ!$A$2:$K$705,11,FALSE) -> 
A71: 5 | B71: =VLOOKUP($F71,УЧАСТНИКИ!$A$2:$K$705,3,FALSE) ->  | C71: =VLOOKUP($F71,УЧАСТНИКИ!$A$2:$K$705,4,FALSE) ->  | D71: =VLOOKUP($F71,УЧАСТНИКИ!$A$2:$K$705,5,FALSE) ->  | E71: =VLOOKUP($F71,УЧАСТНИКИ!$A$2:$K$705,11,FALSE) -> 
A72: 6 | B72: =VLOOKUP($F72,УЧАСТНИКИ!$A$2:$K$705,3,FALSE) ->  | C72: =VLOOKUP($F72,УЧАСТНИКИ!$A$2:$K$705,4,FALSE) ->  | D72: =VLOOKUP($F72,УЧАСТНИКИ!$A$2:$K$705,5,FALSE) ->  | E72: =VLOOKUP($F72,УЧАСТНИКИ!$A$2:$K$705,11,FALSE) -> 
B73: 10 ЗАБЕГ
A74: 1 | B74: =VLOOKUP($F74,УЧАСТНИКИ!$A$1:$K$705,3,FALSE) ->  | C74: =VLOOKUP($F74,УЧАСТНИКИ!$A$1:$K$705,4,FALSE) ->  | D74: =VLOOKUP($F74,УЧАСТНИКИ!$A$1:$K$705,5,FALSE) ->  | E74: =VLOOKUP($F74,УЧАСТНИКИ!$A$1:$K$705,11,FALSE) -> 
A75: 2 | B75: =VLOOKUP($F75,УЧАСТНИКИ!$A$1:$K$705,3,FALSE) ->  | C75: =VLOOKUP($F75,УЧАСТНИКИ!$A$1:$K$705,4,FALSE) ->  | D75: =VLOOKUP($F75,УЧАСТНИКИ!$A$1:$K$705,5,FALSE) ->  | E75: =VLOOKUP($F75,УЧАСТНИКИ!$A$1:$K$705,11,FALSE) -> 
A76: 3 | B76: =VLOOKUP($F76,УЧАСТНИКИ!$A$2:$K$705,3,FALSE) ->  | C76: =VLOOKUP($F76,УЧАСТНИКИ!$A$2:$K$705,4,FALSE) ->  | D76: =VLOOKUP($F76,УЧАСТНИКИ!$A$2:$K$705,5,FALSE) ->  | E76: =VLOOKUP($F76,УЧАСТНИКИ!$A$2:$K$705,11,FALSE) -> 
A77: 4 | B77: =VLOOKUP($F77,УЧАСТНИКИ!$A$2:$K$705,3,FALSE) ->  | C77: =VLOOKUP($F77,УЧАСТНИКИ!$A$2:$K$705,4,FALSE) ->  | D77: =VLOOKUP($F77,УЧАСТНИКИ!$A$2:$K$705,5,FALSE) ->  | E77: =VLOOKUP($F77,УЧАСТНИКИ!$A$2:$K$705,11,FALSE) -> 
A78: 5 | B78: =VLOOKUP($F78,УЧАСТНИКИ!$A$2:$K$705,3,FALSE) ->  | C78: =VLOOKUP($F78,УЧАСТНИКИ!$A$2:$K$705,4,FALSE) ->  | D78: =VLOOKUP($F78,УЧАСТНИКИ!$A$2:$K$705,5,FALSE) ->  | E78: =VLOOKUP($F78,УЧАСТНИКИ!$A$2:$K$705,11,FALSE) -> 
A79: 6 | B79: =VLOOKUP($F79,УЧАСТНИКИ!$A$2:$K$705,3,FALSE) ->  | C79: =VLOOKUP($F79,УЧАСТНИКИ!$A$2:$K$705,4,FALSE) ->  | D79: =VLOOKUP($F79,УЧАСТНИКИ!$A$2:$K$705,5,FALSE) ->  | E79: =VLOOKUP($F79,УЧАСТНИКИ!$A$2:$K$705,11,FALSE) -> 
B80: 11 ЗАБЕГ
A81: 1 | B81: =VLOOKUP($F81,УЧАСТНИКИ!$A$1:$K$705,3,FALSE) ->  | C81: =VLOOKUP($F81,УЧАСТНИКИ!$A$1:$K$705,4,FALSE) ->  | D81: =VLOOKUP($F81,УЧАСТНИКИ!$A$1:$K$705,5,FALSE) ->  | E81: =VLOOKUP($F81,УЧАСТНИКИ!$A$1:$K$705,11,FALSE) -> 
A82: 2 | B82: =VLOOKUP($F82,УЧАСТНИКИ!$A$1:$K$705,3,FALSE) ->  | C82: =VLOOKUP($F82,УЧАСТНИКИ!$A$1:$K$705,4,FALSE) ->  | D82: =VLOOKUP($F82,УЧАСТНИКИ!$A$1:$K$705,5,FALSE) ->  | E82: =VLOOKUP($F82,УЧАСТНИКИ!$A$1:$K$705,11,FALSE) -> 
A83: 3 | B83: =VLOOKUP($F83,УЧАСТНИКИ!$A$2:$K$705,3,FALSE) ->  | C83: =VLOOKUP($F83,УЧАСТНИКИ!$A$2:$K$705,4,FALSE) ->  | D83: =VLOOKUP($F83,УЧАСТНИКИ!$A$2:$K$705,5,FALSE) ->  | E83: =VLOOKUP($F83,УЧАСТНИКИ!$A$2:$K$705,11,FALSE) -> 
A84: 4 | B84: =VLOOKUP($F84,УЧАСТНИКИ!$A$2:$K$705,3,FALSE) ->  | C84: =VLOOKUP($F84,УЧАСТНИКИ!$A$2:$K$705,4,FALSE) ->  | D84: =VLOOKUP($F84,УЧАСТНИКИ!$A$2:$K$705,5,FALSE) ->  | E84: =VLOOKUP($F84,УЧАСТНИКИ!$A$2:$K$705,11,FALSE) -> 
A85: 5 | B85: =VLOOKUP($F85,УЧАСТНИКИ!$A$2:$K$705,3,FALSE) ->  | C85: =VLOOKUP($F85,УЧАСТНИКИ!$A$2:$K$705,4,FALSE) ->  | D85: =VLOOKUP($F85,УЧАСТНИКИ!$A$2:$K$705,5,FALSE) ->  | E85: =VLOOKUP($F85,УЧАСТНИКИ!$A$2:$K$705,11,FALSE) -> 
A86: 6 | B86: =VLOOKUP($F86,УЧАСТНИКИ!$A$2:$K$705,3,FALSE) ->  | C86: =VLOOKUP($F86,УЧАСТНИКИ!$A$2:$K$705,4,FALSE) ->  | D86: =VLOOKUP($F86,УЧАСТНИКИ!$A$2:$K$705,5,FALSE) ->  | E86: =VLOOKUP($F86,УЧАСТНИКИ!$A$2:$K$705,11,FALSE) -> 
B87: 12 ЗАБЕГ
A88: 1 | B88: =VLOOKUP($F88,УЧАСТНИКИ!$A$1:$K$705,3,FALSE) ->  | C88: =VLOOKUP($F88,УЧАСТНИКИ!$A$1:$K$705,4,FALSE) ->  | D88: =VLOOKUP($F88,УЧАСТНИКИ!$A$1:$K$705,5,FALSE) ->  | E88: =VLOOKUP($F88,УЧАСТНИКИ!$A$1:$K$705,11,FALSE) -> 
A89: 2 | B89: =VLOOKUP($F89,УЧАСТНИКИ!$A$1:$K$705,3,FALSE) ->  | C89: =VLOOKUP($F89,УЧАСТНИКИ!$A$1:$K$705,4,FALSE) ->  | D89: =VLOOKUP($F89,УЧАСТНИКИ!$A$1:$K$705,5,FALSE) ->  | E89: =VLOOKUP($F89,УЧАСТНИКИ!$A$1:$K$705,11,FALSE) -> 
A90: 3 | B90: =VLOOKUP($F90,УЧАСТНИКИ!$A$1:$K$705,3,FALSE) ->  | C90: =VLOOKUP($F90,УЧАСТНИКИ!$A$1:$K$705,4,FALSE) ->  | D90: =VLOOKUP($F90,УЧАСТНИКИ!$A$1:$K$705,5,FALSE) ->  | E90: =VLOOKUP($F90,УЧАСТНИКИ!$A$1:$K$705,11,FALSE) -> 
A91: 4 | B91: =VLOOKUP($F91,УЧАСТНИКИ!$A$1:$K$705,3,FALSE) ->  | C91: =VLOOKUP($F91,УЧАСТНИКИ!$A$1:$K$705,4,FALSE) ->  | D91: =VLOOKUP($F91,УЧАСТНИКИ!$A$1:$K$705,5,FALSE) ->  | E91: =VLOOKUP($F91,УЧАСТНИКИ!$A$1:$K$705,11,FALSE) -> 
A92: 5 | B92: =VLOOKUP($F92,УЧАСТНИКИ!$A$1:$K$705,3,FALSE) ->  | C92: =VLOOKUP($F92,УЧАСТНИКИ!$A$1:$K$705,4,FALSE) ->  | D92: =VLOOKUP($F92,УЧАСТНИКИ!$A$1:$K$705,5,FALSE) ->  | E92: =VLOOKUP($F92,УЧАСТНИКИ!$A$1:$K$705,11,FALSE) -> 
A93: 6 | B93: =VLOOKUP($F93,УЧАСТНИКИ!$A$1:$K$705,3,FALSE) ->  | C93: =VLOOKUP($F93,УЧАСТНИКИ!$A$1:$K$705,4,FALSE) ->  | D93: =VLOOKUP($F93,УЧАСТНИКИ!$A$1:$K$705,5,FALSE) ->  | E93: =VLOOKUP($F93,УЧАСТНИКИ!$A$1:$K$705,11,FALSE) -> 
B94: 13 ЗАБЕГ
A95: 1 | B95: =VLOOKUP($F95,УЧАСТНИКИ!$A$1:$K$705,3,FALSE) ->  | C95: =VLOOKUP($F95,УЧАСТНИКИ!$A$1:$K$705,4,FALSE) ->  | D95: =VLOOKUP($F95,УЧАСТНИКИ!$A$1:$K$705,5,FALSE) ->  | E95: =VLOOKUP($F95,УЧАСТНИКИ!$A$1:$K$705,11,FALSE) -> 
A96: 2 | B96: =VLOOKUP($F96,УЧАСТНИКИ!$A$1:$K$705,3,FALSE) ->  | C96: =VLOOKUP($F96,УЧАСТНИКИ!$A$1:$K$705,4,FALSE) ->  | D96: =VLOOKUP($F96,УЧАСТНИКИ!$A$1:$K$705,5,FALSE) ->  | E96: =VLOOKUP($F96,УЧАСТНИКИ!$A$1:$K$705,11,FALSE) -> 
A97: 3 | B97: =VLOOKUP($F97,УЧАСТНИКИ!$A$1:$K$705,3,FALSE) ->  | C97: =VLOOKUP($F97,УЧАСТНИКИ!$A$1:$K$705,4,FALSE) ->  | D97: =VLOOKUP($F97,УЧАСТНИКИ!$A$1:$K$705,5,FALSE) ->  | E97: =VLOOKUP($F97,УЧАСТНИКИ!$A$1:$K$705,11,FALSE) -> 
A98: 4 | B98: =VLOOKUP($F98,УЧАСТНИКИ!$A$1:$K$705,3,FALSE) ->  | C98: =VLOOKUP($F98,УЧАСТНИКИ!$A$1:$K$705,4,FALSE) ->  | D98: =VLOOKUP($F98,УЧАСТНИКИ!$A$1:$K$705,5,FALSE) ->  | E98: =VLOOKUP($F98,УЧАСТНИКИ!$A$1:$K$705,11,FALSE) -> 
A99: 5 | B99: =VLOOKUP($F99,УЧАСТНИКИ!$A$1:$K$705,3,FALSE) ->  | C99: =VLOOKUP($F99,УЧАСТНИКИ!$A$1:$K$705,4,FALSE) ->  | D99: =VLOOKUP($F99,УЧАСТНИКИ!$A$1:$K$705,5,FALSE) ->  | E99: =VLOOKUP($F99,УЧАСТНИКИ!$A$1:$K$705,11,FALSE) -> 
A100: 6 | B100: =VLOOKUP($F100,УЧАСТНИКИ!$A$1:$K$705,3,FALSE) ->  | C100: =VLOOKUP($F100,УЧАСТНИКИ!$A$1:$K$705,4,FALSE) ->  | D100: =VLOOKUP($F100,УЧАСТНИКИ!$A$1:$K$705,5,FALSE) ->  | E100: =VLOOKUP($F100,УЧАСТНИКИ!$A$1:$K$705,11,FALSE) -> 
B101: 14 ЗАБЕГ
A102: 1 | B102: =VLOOKUP($F102,УЧАСТНИКИ!$A$1:$K$705,3,FALSE) ->  | C102: =VLOOKUP($F102,УЧАСТНИКИ!$A$1:$K$705,4,FALSE) ->  | D102: =VLOOKUP($F102,УЧАСТНИКИ!$A$1:$K$705,5,FALSE) ->  | E102: =VLOOKUP($F102,УЧАСТНИКИ!$A$1:$K$705,11,FALSE) -> 
A103: 2 | B103: =VLOOKUP($F103,УЧАСТНИКИ!$A$1:$K$705,3,FALSE) ->  | C103: =VLOOKUP($F103,УЧАСТНИКИ!$A$1:$K$705,4,FALSE) ->  | D103: =VLOOKUP($F103,УЧАСТНИКИ!$A$1:$K$705,5,FALSE) ->  | E103: =VLOOKUP($F103,УЧАСТНИКИ!$A$1:$K$705,11,FALSE) -> 
A104: 3 | B104: =VLOOKUP($F104,УЧАСТНИКИ!$A$1:$K$705,3,FALSE) ->  | C104: =VLOOKUP($F104,УЧАСТНИКИ!$A$1:$K$705,4,FALSE) ->  | D104: =VLOOKUP($F104,УЧАСТНИКИ!$A$1:$K$705,5,FALSE) ->  | E104: =VLOOKUP($F104,УЧАСТНИКИ!$A$1:$K$705,11,FALSE) -> 
A105: 4 | B105: =VLOOKUP($F105,УЧАСТНИКИ!$A$1:$K$705,3,FALSE) ->  | C105: =VLOOKUP($F105,УЧАСТНИКИ!$A$1:$K$705,4,FALSE) ->  | D105: =VLOOKUP($F105,УЧАСТНИКИ!$A$1:$K$705,5,FALSE) ->  | E105: =VLOOKUP($F105,УЧАСТНИКИ!$A$1:$K$705,11,FALSE) -> 
A106: 5 | B106: =VLOOKUP($F106,УЧАСТНИКИ!$A$1:$K$705,3,FALSE) ->  | C106: =VLOOKUP($F106,УЧАСТНИКИ!$A$1:$K$705,4,FALSE) ->  | D106: =VLOOKUP($F106,УЧАСТНИКИ!$A$1:$K$705,5,FALSE) ->  | E106: =VLOOKUP($F106,УЧАСТНИКИ!$A$1:$K$705,11,FALSE) -> 
A107: 6 | B107: =VLOOKUP($F107,УЧАСТНИКИ!$A$1:$K$705,3,FALSE) ->  | C107: =VLOOKUP($F107,УЧАСТНИКИ!$A$1:$K$705,4,FALSE) ->  | D107: =VLOOKUP($F107,УЧАСТНИКИ!$A$1:$K$705,5,FALSE) ->  | E107: =VLOOKUP($F107,УЧАСТНИКИ!$A$1:$K$705,11,FALSE) -> 
B108: 15 ЗАБЕГ
A109: 1 | B109: =VLOOKUP($F109,УЧАСТНИКИ!$A$1:$K$705,3,FALSE) ->  | C109: =VLOOKUP($F109,УЧАСТНИКИ!$A$1:$K$705,4,FALSE) ->  | D109: =VLOOKUP($F109,УЧАСТНИКИ!$A$1:$K$705,5,FALSE) ->  | E109: =VLOOKUP($F109,УЧАСТНИКИ!$A$1:$K$705,11,FALSE) ->  | J109: =VLOOKUP($F109,УЧАСТНИКИ!$A$2:$K$231,9,FALSE) -> 
A110: 2 | B110: =VLOOKUP($F110,УЧАСТНИКИ!$A$1:$K$705,3,FALSE) ->  | C110: =VLOOKUP($F110,УЧАСТНИКИ!$A$1:$K$705,4,FALSE) ->  | D110: =VLOOKUP($F110,УЧАСТНИКИ!$A$1:$K$705,5,FALSE) ->  | E110: =VLOOKUP($F110,УЧАСТНИКИ!$A$1:$K$705,11,FALSE) ->  | J110: =VLOOKUP($F110,УЧАСТНИКИ!$A$2:$K$231,9,FALSE) -> 
A111: 3 | B111: =VLOOKUP($F111,УЧАСТНИКИ!$A$1:$K$705,3,FALSE) ->  | C111: =VLOOKUP($F111,УЧАСТНИКИ!$A$1:$K$705,4,FALSE) ->  | D111: =VLOOKUP($F111,УЧАСТНИКИ!$A$1:$K$705,5,FALSE) ->  | E111: =VLOOKUP($F111,УЧАСТНИКИ!$A$1:$K$705,11,FALSE) ->  | J111: =VLOOKUP($F111,УЧАСТНИКИ!$A$2:$K$231,9,FALSE) -> 
A112: 4 | B112: =VLOOKUP($F112,УЧАСТНИКИ!$A$1:$K$705,3,FALSE) ->  | C112: =VLOOKUP($F112,УЧАСТНИКИ!$A$1:$K$705,4,FALSE) ->  | D112: =VLOOKUP($F112,УЧАСТНИКИ!$A$1:$K$705,5,FALSE) ->  | E112: =VLOOKUP($F112,УЧАСТНИКИ!$A$1:$K$705,11,FALSE) ->  | J112: =VLOOKUP($F112,УЧАСТНИКИ!$A$2:$K$231,9,FALSE) -> 
A113: 5 | B113: =VLOOKUP($F113,УЧАСТНИКИ!$A$1:$K$705,3,FALSE) ->  | C113: =VLOOKUP($F113,УЧАСТНИКИ!$A$1:$K$705,4,FALSE) ->  | D113: =VLOOKUP($F113,УЧАСТНИКИ!$A$1:$K$705,5,FALSE) ->  | E113: =VLOOKUP($F113,УЧАСТНИКИ!$A$1:$K$705,11,FALSE) ->  | J113: =VLOOKUP($F113,УЧАСТНИКИ!$A$2:$K$231,9,FALSE) -> 
A114: 6 | B114: =VLOOKUP($F114,УЧАСТНИКИ!$A$1:$K$705,3,FALSE) ->  | C114: =VLOOKUP($F114,УЧАСТНИКИ!$A$1:$K$705,4,FALSE) ->  | D114: =VLOOKUP($F114,УЧАСТНИКИ!$A$1:$K$705,5,FALSE) ->  | E114: =VLOOKUP($F114,УЧАСТНИКИ!$A$1:$K$705,11,FALSE) ->  | J114: =VLOOKUP($F114,УЧАСТНИКИ!$A$2:$K$231,9,FALSE) -> 
B115: 16 ЗАБЕГ
A116: 1 | B116: =VLOOKUP($F116,УЧАСТНИКИ!$A$1:$K$705,3,FALSE) ->  | C116: =VLOOKUP($F116,УЧАСТНИКИ!$A$1:$K$705,4,FALSE) ->  | D116: =VLOOKUP($F116,УЧАСТНИКИ!$A$1:$K$705,5,FALSE) ->  | E116: =VLOOKUP($F116,УЧАСТНИКИ!$A$1:$K$705,11,FALSE) ->  | J116: =VLOOKUP($F116,УЧАСТНИКИ!$A$2:$K$231,9,FALSE) -> 
A117: 2 | B117: =VLOOKUP($F117,УЧАСТНИКИ!$A$1:$K$705,3,FALSE) ->  | C117: =VLOOKUP($F117,УЧАСТНИКИ!$A$1:$K$705,4,FALSE) ->  | D117: =VLOOKUP($F117,УЧАСТНИКИ!$A$1:$K$705,5,FALSE) ->  | E117: =VLOOKUP($F117,УЧАСТНИКИ!$A$1:$K$705,11,FALSE) ->  | J117: =VLOOKUP($F117,УЧАСТНИКИ!$A$2:$K$231,9,FALSE) -> 
A118: 3 | B118: =VLOOKUP($F118,УЧАСТНИКИ!$A$1:$K$705,3,FALSE) ->  | C118: =VLOOKUP($F118,УЧАСТНИКИ!$A$1:$K$705,4,FALSE) ->  | D118: =VLOOKUP($F118,УЧАСТНИКИ!$A$1:$K$705,5,FALSE) ->  | E118: =VLOOKUP($F118,УЧАСТНИКИ!$A$1:$K$705,11,FALSE) ->  | J118: =VLOOKUP($F118,УЧАСТНИКИ!$A$2:$K$231,9,FALSE) -> 
A119: 4 | B119: =VLOOKUP($F119,УЧАСТНИКИ!$A$1:$K$705,3,FALSE) ->  | C119: =VLOOKUP($F119,УЧАСТНИКИ!$A$1:$K$705,4,FALSE) ->  | D119: =VLOOKUP($F119,УЧАСТНИКИ!$A$1:$K$705,5,FALSE) ->  | E119: =VLOOKUP($F119,УЧАСТНИКИ!$A$1:$K$705,11,FALSE) ->  | J119: =VLOOKUP($F119,УЧАСТНИКИ!$A$2:$K$231,9,FALSE) -> 
A120: 5 | B120: =VLOOKUP($F120,УЧАСТНИКИ!$A$1:$K$705,3,FALSE) ->  | C120: =VLOOKUP($F120,УЧАСТНИКИ!$A$1:$K$705,4,FALSE) ->  | D120: =VLOOKUP($F120,УЧАСТНИКИ!$A$1:$K$705,5,FALSE) ->  | E120: =VLOOKUP($F120,УЧАСТНИКИ!$A$1:$K$705,11,FALSE) ->  | J120: =VLOOKUP($F120,УЧАСТНИКИ!$A$2:$K$231,9,FALSE) -> 
A121: 6 | B121: =VLOOKUP($F121,УЧАСТНИКИ!$A$1:$K$705,3,FALSE) ->  | C121: =VLOOKUP($F121,УЧАСТНИКИ!$A$1:$K$705,4,FALSE) ->  | D121: =VLOOKUP($F121,УЧАСТНИКИ!$A$1:$K$705,5,FALSE) ->  | E121: =VLOOKUP($F121,УЧАСТНИКИ!$A$1:$K$705,11,FALSE) ->  | J121: =VLOOKUP($F121,УЧАСТНИКИ!$A$2:$K$231,9,FALSE) -> 
B122: 17 ЗАБЕГ
A123: 1 | B123: =VLOOKUP($F123,УЧАСТНИКИ!$A$1:$K$705,3,FALSE) ->  | C123: =VLOOKUP($F123,УЧАСТНИКИ!$A$1:$K$705,4,FALSE) ->  | D123: =VLOOKUP($F123,УЧАСТНИКИ!$A$1:$K$705,5,FALSE) ->  | E123: =VLOOKUP($F123,УЧАСТНИКИ!$A$1:$K$705,11,FALSE) ->  | J123: =VLOOKUP($F123,УЧАСТНИКИ!$A$2:$K$231,9,FALSE) -> 
A124: 2 | B124: =VLOOKUP($F124,УЧАСТНИКИ!$A$1:$K$705,3,FALSE) ->  | C124: =VLOOKUP($F124,УЧАСТНИКИ!$A$1:$K$705,4,FALSE) ->  | D124: =VLOOKUP($F124,УЧАСТНИКИ!$A$1:$K$705,5,FALSE) ->  | E124: =VLOOKUP($F124,УЧАСТНИКИ!$A$1:$K$705,11,FALSE) ->  | J124: =VLOOKUP($F124,УЧАСТНИКИ!$A$2:$K$231,9,FALSE) -> 
A125: 3 | B125: =VLOOKUP($F125,УЧАСТНИКИ!$A$1:$K$705,3,FALSE) ->  | C125: =VLOOKUP($F125,УЧАСТНИКИ!$A$1:$K$705,4,FALSE) ->  | D125: =VLOOKUP($F125,УЧАСТНИКИ!$A$1:$K$705,5,FALSE) ->  | E125: =VLOOKUP($F125,УЧАСТНИКИ!$A$1:$K$705,11,FALSE) ->  | J125: =VLOOKUP($F125,УЧАСТНИКИ!$A$2:$K$231,9,FALSE) -> 
A126: 4 | B126: =VLOOKUP($F126,УЧАСТНИКИ!$A$1:$K$705,3,FALSE) ->  | C126: =VLOOKUP($F126,УЧАСТНИКИ!$A$1:$K$705,4,FALSE) ->  | D126: =VLOOKUP($F126,УЧАСТНИКИ!$A$1:$K$705,5,FALSE) ->  | E126: =VLOOKUP($F126,УЧАСТНИКИ!$A$1:$K$705,11,FALSE) ->  | J126: =VLOOKUP($F126,УЧАСТНИКИ!$A$2:$K$231,9,FALSE) -> 
A127: 5 | B127: =VLOOKUP($F127,УЧАСТНИКИ!$A$1:$K$705,3,FALSE) ->  | C127: =VLOOKUP($F127,УЧАСТНИКИ!$A$1:$K$705,4,FALSE) ->  | D127: =VLOOKUP($F127,УЧАСТНИКИ!$A$1:$K$705,5,FALSE) ->  | E127: =VLOOKUP($F127,УЧАСТНИКИ!$A$1:$K$705,11,FALSE) ->  | J127: =VLOOKUP($F127,УЧАСТНИКИ!$A$2:$K$231,9,FALSE) -> 
A128: 6 | B128: =VLOOKUP($F128,УЧАСТНИКИ!$A$1:$K$705,3,FALSE) ->  | C128: =VLOOKUP($F128,УЧАСТНИКИ!$A$1:$K$705,4,FALSE) ->  | D128: =VLOOKUP($F128,УЧАСТНИКИ!$A$1:$K$705,5,FALSE) ->  | E128: =VLOOKUP($F128,УЧАСТНИКИ!$A$1:$K$705,11,FALSE) ->  | J128: =VLOOKUP($F128,УЧАСТНИКИ!$A$2:$K$231,9,FALSE) -> 
A129: Рефери по бегу: | E129: Ст.хронометрист:
A130: Ст.судья: | E130: Секретарь:

Sheet 100м Ф (hidden)
A1: =Name_2 -> ЦЕНТР СПОРТИВНОЙ ПОДГОТОВКИ РЕСПУБЛИКИ ТАТАРСТАН
A2: СТАРТОВЫЙ ПРОТОКОЛ
A3: =Name_4 -> ЛИЧНО-КОМАНДНЫЙ ЧЕМПИОНАТ РЕСПУБЛИКИ ТАТАРСТАН ПО ЛЕГКОЙ АТЛЕТИКЕ
D5: ФИН.ЗАБЕГИ | E5: 17,10
A6: БЕГ 100 М | J6: =d_1 -> 06 ИЮЛЯ 2017г.
J7: =d_5 -> г. Казань, Футбольно-легкоатлетический манеж
A8: № п/п | B8: Фамилия, имя участника | C8: Год рожд. | D8: ГОРОД | E8: КОМАНДА | F8: Номер участника | G8: рез-тат забега | H8: рез-тат полуфин. | I8: приход | J8: Результат | K8: Место | L8: Примеч.
B9: =Name_10 -> МУЖЧИНЫ 2001г.р. и старше
A10: 1 | B10: =VLOOKUP($F10,УЧАСТНИКИ!$A$2:$K$232,3,FALSE) -> ГАЙНЕТДИНОВ НИЯЗ | C10: =VLOOKUP($F10,УЧАСТНИКИ!$A$2:$K$232,4,FALSE) -> 2000 | D10: =VLOOKUP($F10,УЧАСТНИКИ!$A$2:$K$232,5,FALSE) -> КАЗАНЬ | E10: =VLOOKUP($F10,УЧАСТНИКИ!$A$2:$K$232,11,FALSE) -> КДЮСШ АВИАТОР | F10: 3855 | G10: 11.59 | L10: =VLOOKUP($F10,УЧАСТНИКИ!$A$2:$K$232,9,FALSE) -> Л | M10: 1
A11: 2 | B11: =VLOOKUP($F11,УЧАСТНИКИ!$A$2:$K$232,3,FALSE) -> БАБАЕВ ШАКИР | C11: =VLOOKUP($F11,УЧАСТНИКИ!$A$2:$K$232,4,FALSE) -> 1998 | D11: =VLOOKUP($F11,УЧАСТНИКИ!$A$2:$K$232,5,FALSE) -> КАЗАНЬ | E11: =VLOOKUP($F11,УЧАСТНИКИ!$A$2:$K$232,11,FALSE) -> ПГАФКСиТ | F11: 3574 | G11: 11.38 | L11: =VLOOKUP($F11,УЧАСТНИКИ!$A$2:$K$232,9,FALSE) -> Л | M11: 2
A12: 3 | B12: =VLOOKUP($F12,УЧАСТНИКИ!$A$2:$K$232,3,FALSE) -> ОСИПОВ ИВАН | C12: =VLOOKUP($F12,УЧАСТНИКИ!$A$2:$K$232,4,FALSE) -> 1994 | D12: =VLOOKUP($F12,УЧАСТНИКИ!$A$2:$K$232,5,FALSE) -> КАЗАНЬ | E12: =VLOOKUP($F12,УЧАСТНИКИ!$A$2:$K$232,11,FALSE) -> ДЮСШ ОЛИМП | F12: 3866 | G12: 11.16 | L12: =VLOOKUP($F12,УЧАСТНИКИ!$A$2:$K$232,9,FALSE) -> Л | M12: 3
A13: 4 | B13: =VLOOKUP($F13,УЧАСТНИКИ!$A$2:$K$232,3,FALSE) -> АБЛЯЗОВ МАРАТ | C13: =VLOOKUP($F13,УЧАСТНИКИ!$A$2:$K$232,4,FALSE) -> 1990 | D13: =VLOOKUP($F13,УЧАСТНИКИ!$A$2:$K$232,5,FALSE) -> КАЗАНЬ | E13: =VLOOKUP($F13,УЧАСТНИКИ!$A$2:$K$232,11,FALSE) -> КДЮСШ АВИАТОР | F13: 3817 | G13: 11.14 | L13: =VLOOKUP($F13,УЧАСТНИКИ!$A$2:$K$232,9,FALSE) -> Л | M13: 4
A14: 5 | B14: =VLOOKUP($F14,УЧАСТНИКИ!$A$2:$K$232,3,FALSE) -> ВАЗИЕВ РЕГИЛЬ | C14: =VLOOKUP($F14,УЧАСТНИКИ!$A$2:$K$232,4,FALSE) -> 1991 | D14: =VLOOKUP($F14,УЧАСТНИКИ!$A$2:$K$232,5,FALSE) -> КАЗАНЬ | E14: =VLOOKUP($F14,УЧАСТНИКИ!$A$2:$K$232,11,FALSE) -> СДЮСШОР ЛА | F14: 62 | G14: 11.31 | L14: =VLOOKUP($F14,УЧАСТНИКИ!$A$2:$K$232,9,FALSE) -> 3 | M14: 4
A15: 6 | B15: =VLOOKUP($F15,УЧАСТНИКИ!$A$2:$K$232,3,FALSE) -> ФАТЫХОВ ИЛЬНАЗ | C15: =VLOOKUP($F15,УЧАСТНИКИ!$A$2:$K$232,4,FALSE) -> 1992 | D15: =VLOOKUP($F15,УЧАСТНИКИ!$A$2:$K$232,5,FALSE) -> НАБ.ЧЕЛНЫ | E15: =VLOOKUP($F15,УЧАСТНИКИ!$A$2:$K$232,11,FALSE) -> ЯР ЧАЛЛЫ | F15: 3872 | G15: 11.47 | L15: =VLOOKUP($F15,УЧАСТНИКИ!$A$2:$K$232,9,FALSE) -> Л | M15: 6
B17: Рефери по бегу:
B18: Ст.судья:
B19: Секретарь:

Sheet И 100
A2: =Name_2 -> ЦЕНТР СПОРТИВНОЙ ПОДГОТОВКИ РЕСПУБЛИКИ ТАТАРСТАН
A3: =Name_3 -> 
A4: =Name_4 -> ЛИЧНО-КОМАНДНЫЙ ЧЕМПИОНАТ РЕСПУБЛИКИ ТАТАРСТАН ПО ЛЕГКОЙ АТЛЕТИКЕ
A5: ИТОГОВЫЙ ПРОТОКОЛ
AG6: ПРИВЕТ
A7: БЕГ 100 М | E7: забеги | F7: =d_1 -> 06 ИЮЛЯ 2017г.
E8: фин.забеги | F8: =d_1 -> 06 ИЮЛЯ 2017г. | H8: =d_5 -> г. Казань, Футбольно-легкоатлетический манеж
A9: М | B9: Фамилия, имя | C9: Дата рождения | D9: Заявл. разряд | E9: Территория | F9: Организация Ведомство | G9: Забеги | H9: Финал | I9: Вып. разр. | J9: Зачет | K9: Очки | L9: Ф.И. О. тренера
B10: =Name_8 -> МУЖЧИНЫ 2001г.р. и старше
A11: 1 | B11: =VLOOKUP($M11,УЧАСТНИКИ!$A$1:$K$716,3,FALSE) -> АБЛЯЗОВ МАРАТ | C11: =VLOOKUP($M11,УЧАСТНИКИ!$A$1:$K$716,4,FALSE) -> 1990 | D11: =VLOOKUP($M11,УЧАСТНИКИ!$A$1:$K$716,8,FALSE) -> МС | E11: =VLOOKUP($M11,УЧАСТНИКИ!$A$1:$K$716,5,FALSE) -> КАЗАНЬ | F11: =VLOOKUP($M11,УЧАСТНИКИ!$A$1:$K$716,11,FALSE) -> КДЮСШ АВИАТОР | G11: 11.14 | H11: 10.83 | I11: КМС | J11: =VLOOKUP($M11,УЧАСТНИКИ!$A$1:$K$716,9,FALSE) -> Л | L11: =VLOOKUP($M11,УЧАСТНИКИ!$A$1:$K$716,10,FALSE) -> БОРОДОВИЦЫН СН | M11: 3817
A12: 2 | B12: =VLOOKUP($M12,УЧАСТНИКИ!$A$1:$K$716,3,FALSE) -> ВАЗИЕВ РЕГИЛЬ | C12: =VLOOKUP($M12,УЧАСТНИКИ!$A$1:$K$716,4,FALSE) -> 1991 | D12: =VLOOKUP($M12,УЧАСТНИКИ!$A$1:$K$716,8,FALSE) -> КМС | E12: =VLOOKUP($M12,УЧАСТНИКИ!$A$1:$K$716,5,FALSE) -> КАЗАНЬ | F12: =VLOOKUP($M12,УЧАСТНИКИ!$A$1:$K$716,11,FALSE) -> СДЮСШОР ЛА | G12: 11.31 | H12: 11.03 | I12: 1 | J12: =VLOOKUP($M12,УЧАСТНИКИ!$A$1:$K$716,9,FALSE) -> 3 | K12: 20 | L12: =VLOOKUP($M12,УЧАСТНИКИ!$A$1:$K$716,10,FALSE) -> БАРЫШНИКОВЫ АС ЛН | M12: 62
A13: 3 | B13: =VLOOKUP($M13,УЧАСТНИКИ!$A$1:$K$716,3,FALSE) -> ОСИПОВ ИВАН | C13: =VLOOKUP($M13,УЧАСТНИКИ!$A$1:$K$716,4,FALSE) -> 1994 | D13: =VLOOKUP($M13,УЧАСТНИКИ!$A$1:$K$716,8,FALSE) -> КМС | E13: =VLOOKUP($M13,УЧАСТНИКИ!$A$1:$K$716,5,FALSE) -> КАЗАНЬ | F13: =VLOOKUP($M13,УЧАСТНИКИ!$A$1:$K$716,11,FALSE) -> ДЮСШ ОЛИМП | G13: 11.16 | H13: 11.23 | I13: 1 | J13: =VLOOKUP($M13,УЧАСТНИКИ!$A$1:$K$716,9,FALSE) -> Л | L13: =VLOOKUP($M13,УЧАСТНИКИ!$A$1:$K$716,10,FALSE) -> МОСТЯКОВ ДВ | M13: 3866
A14: 4 | B14: =VLOOKUP($M14,УЧАСТНИКИ!$A$1:$K$716,3,FALSE) -> БАБАЕВ ШАКИР | C14: =VLOOKUP($M14,УЧАСТНИКИ!$A$1:$K$716,4,FALSE) -> 1998 | D14: =VLOOKUP($M14,УЧАСТНИКИ!$A$1:$K$716,8,FALSE) -> 2 | E14: =VLOOKUP($M14,УЧАСТНИКИ!$A$1:$K$716,5,FALSE) -> КАЗАНЬ | F14: =VLOOKUP($M14,УЧАСТНИКИ!$A$1:$K$716,11,FALSE) -> ПГАФКСиТ | G14: 11.38 | H14: 11.37 | I14: 1 | J14: =VLOOKUP($M14,УЧАСТНИКИ!$A$1:$K$716,9,FALSE) -> Л | L14: =VLOOKUP($M14,УЧАСТНИКИ!$A$1:$K$716,10,FALSE) -> БОРОВИК СГ | M14: 3574
A15: 5 | B15: =VLOOKUP($M15,УЧАСТНИКИ!$A$1:$K$716,3,FALSE) -> ГАЙНЕТДИНОВ НИЯЗ | C15: =VLOOKUP($M15,УЧАСТНИКИ!$A$1:$K$716,4,FALSE) -> 2000 | D15: =VLOOKUP($M15,УЧАСТНИКИ!$A$1:$K$716,8,FALSE) -> 1 | E15: =VLOOKUP($M15,УЧАСТНИКИ!$A$1:$K$716,5,FALSE) -> КАЗАНЬ | F15: =VLOOKUP($M15,УЧАСТНИКИ!$A$1:$K$716,11,FALSE) -> КДЮСШ АВИАТОР | G15: 11.59 | H15: 11.65 | I15: 2 | J15: =VLOOKUP($M15,УЧАСТНИКИ!$A$1:$K$716,9,FALSE) -> Л | L15: =VLOOKUP($M15,УЧАСТНИКИ!$A$1:$K$716,10,FALSE) -> БОРОДОВИЦЫН СН | M15: 3855
A16: 6 | B16: =VLOOKUP($M16,УЧАСТНИКИ!$A$1:$K$716,3,FALSE) -> ФАТЫХОВ ИЛЬНАЗ | C16: =VLOOKUP($M16,УЧАСТНИКИ!$A$1:$K$716,4,FALSE) -> 1992 | D16: =VLOOKUP($M16,УЧАСТНИКИ!$A$1:$K$716,8,FALSE) -> КМС | E16: =VLOOKUP($M16,УЧАСТНИКИ!$A$1:$K$716,5,FALSE) -> НАБ.ЧЕЛНЫ | F16: =VLOOKUP($M16,УЧАСТНИКИ!$A$1:$K$716,11,FALSE) -> ЯР ЧАЛЛЫ | G16: 11.47 | H16: 12.03 | I16: 2 | J16: =VLOOKUP($M16,УЧАСТНИКИ!$A$1:$K$716,9,FALSE) -> Л | L16: =VLOOKUP($M16,УЧАСТНИКИ!$A$1:$K$716,10,FALSE) -> ГАЛКИН-САМИТОВ АС | M16: 3872
A17: 7 | B17: =VLOOKUP($M17,УЧАСТНИКИ!$A$1:$K$716,3,FALSE) -> СУНЕЙКИН АЛЕКСЕЙ | C17: =VLOOKUP($M17,УЧАСТНИКИ!$A$1:$K$716,4,FALSE) -> 1984 | D17: =VLOOKUP($M17,УЧАСТНИКИ!$A$1:$K$716,8,FALSE) -> - | E17: =VLOOKUP($M17,УЧАСТНИКИ!$A$1:$K$716,5,FALSE) -> КАЗАНЬ | F17: =VLOOKUP($M17,УЧАСТНИКИ!$A$1:$K$716,11,FALSE) -> - | G17: 11.85 | I17: 2 | J17: =VLOOKUP($M17,УЧАСТНИКИ!$A$1:$K$716,9,FALSE) -> - | L17: =VLOOKUP($M17,УЧАСТНИКИ!$A$1:$K$716,10,FALSE) -> - | M17: 36
A18: 8 | B18: =VLOOKUP($M18,УЧАСТНИКИ!$A$1:$K$716,3,FALSE) -> ХУЗИАХМЕТОВ АРТУР | C18: =VLOOKUP($M18,УЧАСТНИКИ!$A$1:$K$716,4,FALSE) -> 1997 | D18: =VLOOKUP($M18,УЧАСТНИКИ!$A$1:$K$716,8,FALSE) -> 2 | E18: =VLOOKUP($M18,УЧАСТНИКИ!$A$1:$K$716,5,FALSE) -> КАЗАНЬ | F18: =VLOOKUP($M18,УЧАСТНИКИ!$A$1:$K$716,11,FALSE) -> КДЮСШ АВИАТОР | G18: 11.89 | I18: 2 | J18: =VLOOKUP($M18,УЧАСТНИКИ!$A$1:$K$716,9,FALSE) -> Л | L18: =VLOOKUP($M18,УЧАСТНИКИ!$A$1:$K$716,10,FALSE) -> БОРОДОВИЦЫН СН | M18: 3856
A19: 9 | B19: =VLOOKUP($M19,УЧАСТНИКИ!$A$1:$K$716,3,FALSE) -> МАТЮШКИН ДАНИЛ | C19: =VLOOKUP($M19,УЧАСТНИКИ!$A$1:$K$716,4,FALSE) -> 1998 | D19: =VLOOKUP($M19,УЧАСТНИКИ!$A$1:$K$716,8,FALSE) -> 2 | E19: =VLOOKUP($M19,УЧАСТНИКИ!$A$1:$K$716,5,FALSE) -> КАЗАНЬ | F19: =VLOOKUP($M19,УЧАСТНИКИ!$A$1:$K$716,11,FALSE) -> ПГАФКСиТ | G19: 11.95 | I19: 2 | J19: =VLOOKUP($M19,УЧАСТНИКИ!$A$1:$K$716,9,FALSE) -> Л | L19: =VLOOKUP($M19,УЧАСТНИКИ!$A$1:$K$716,10,FALSE) -> БОРОВИК СГ | M19: 3573
A20: 10 | B20: =VLOOKUP($M20,УЧАСТНИКИ!$A$1:$K$716,3,FALSE) -> СЕИДОВ ЭЛЬЧИН | C20: =VLOOKUP($M20,УЧАСТНИКИ!$A$1:$K$716,4,FALSE) -> 1992 | D20: =VLOOKUP($M20,УЧАСТНИКИ!$A$1:$K$716,8,FALSE) -> 2 | E20: =VLOOKUP($M20,УЧАСТНИКИ!$A$1:$K$716,5,FALSE) -> КАЗАНЬ | F20: =VLOOKUP($M20,УЧАСТНИКИ!$A$1:$K$716,11,FALSE) -> КГЭУ | G20: 12.01 | I20: 2 | J20: =VLOOKUP($M20,УЧАСТНИКИ!$A$1:$K$716,9,FALSE) -> Л | L20: =VLOOKUP($M20,УЧАСТНИКИ!$A$1:$K$716,10,FALSE) -> САДРЕТДИНОВ ДФ | M20: 3570
A21: 11 | B21: =VLOOKUP($M21,УЧАСТНИКИ!$A$1:$K$716,3,FALSE) -> ИСХАКОВ АСКАР | C21: =VLOOKUP($M21,УЧАСТНИКИ!$A$1:$K$716,4,FALSE) -> 1998 | D21: =VLOOKUP($M21,УЧАСТНИКИ!$A$1:$K$716,8,FALSE) -> 2 | E21: =VLOOKUP($M21,УЧАСТНИКИ!$A$1:$K$716,5,FALSE) -> КАЗАНЬ | F21: =VLOOKUP($M21,УЧАСТНИКИ!$A$1:$K$716,11,FALSE) -> КДЮСШ АВИАТОР | G21: 12.25 | I21: 3 | J21: =VLOOKUP($M21,УЧАСТНИКИ!$A$1:$K$716,9,FALSE) -> Л | L21: =VLOOKUP($M21,УЧАСТНИКИ!$A$1:$K$716,10,FALSE) -> САФИУЛЛИНА ГГ | M21: 3840
A22: 12 | B22: =VLOOKUP($M22,УЧАСТНИКИ!$A$1:$K$716,3,FALSE) -> МУРАДЫМОВ БУЛАТ | C22: =VLOOKUP($M22,УЧАСТНИКИ!$A$1:$K$716,4,FALSE) -> 2000 | D22: =VLOOKUP($M22,УЧАСТНИКИ!$A$1:$K$716,8,FALSE) -> 2 | E22: =VLOOKUP($M22,УЧАСТНИКИ!$A$1:$K$716,5,FALSE) -> КАЗАНЬ | F22: =VLOOKUP($M22,УЧАСТНИКИ!$A$1:$K$716,11,FALSE) -> СДЮСШОР ТАСМА | G22: 12.34 | I22: 3 | J22: =VLOOKUP($M22,УЧАСТНИКИ!$A$1:$K$716,9,FALSE) -> Л | L22: =VLOOKUP($M22,УЧАСТНИКИ!$A$1:$K$716,10,FALSE) -> ЛАТЫПОВА НП | M22: 3864
A23: 13 | B23: =VLOOKUP($M23,УЧАСТНИКИ!$A$1:$K$716,3,FALSE) -> КОНСТАНТИНОВ ОЛЕГ | C23: =VLOOKUP($M23,УЧАСТНИКИ!$A$1:$K$716,4,FALSE) -> 2000 | D23: =VLOOKUP($M23,УЧАСТНИКИ!$A$1:$K$716,8,FALSE) -> 2 | E23: =VLOOKUP($M23,УЧАСТНИКИ!$A$1:$K$716,5,FALSE) -> КАЗАНЬ | F23: =VLOOKUP($M23,УЧАСТНИКИ!$A$1:$K$716,11,FALSE) -> СДЮСШОР ЛА | G23: 12.43 | I23: 3 | J23: =VLOOKUP($M23,УЧАСТНИКИ!$A$1:$K$716,9,FALSE) -> Л | L23: =VLOOKUP($M23,УЧАСТНИКИ!$A$1:$K$716,10,FALSE) -> ФАЙЗУЛЛИНА ГП | M23: 3734
A24: ВК | B24: =VLOOKUP($M24,УЧАСТНИКИ!$A$1:$K$716,3,FALSE) -> ШАМГУЛЛИН АРСЕН | C24: =VLOOKUP($M24,УЧАСТНИКИ!$A$1:$K$716,4,FALSE) -> 1984/ВК | D24: =VLOOKUP($M24,УЧАСТНИКИ!$A$1:$K$716,8,FALSE) -> 1 | E24: =VLOOKUP($M24,УЧАСТНИКИ!$A$1:$K$716,5,FALSE) -> СОЧИ | F24: =VLOOKUP($M24,УЧАСТНИКИ!$A$1:$K$716,11,FALSE) -> - | G24: 11.72 | I24: 2 | J24: =VLOOKUP($M24,УЧАСТНИКИ!$A$1:$K$716,9,FALSE) -> ВК | L24: =VLOOKUP($M24,УЧАСТНИКИ!$A$1:$K$716,10,FALSE) -> - | M24: 3773
A25: ВК | B25: =VLOOKUP($M25,УЧАСТНИКИ!$A$1:$K$716,3,FALSE) -> ВОЛКОВ НИКИТА | C25: =VLOOKUP($M25,УЧАСТНИКИ!$A$1:$K$716,4,FALSE) -> 1999ВК | D25: =VLOOKUP($M25,УЧАСТНИКИ!$A$1:$K$716,8,FALSE) -> 1 | E25: =VLOOKUP($M25,УЧАСТНИКИ!$A$1:$K$716,5,FALSE) -> ЧУВАШСКАЯ РЕСП | F25: =VLOOKUP($M25,УЧАСТНИКИ!$A$1:$K$716,11,FALSE) -> АУ СШОР 3 | G25: 11.74 | I25: 2 | J25: =VLOOKUP($M25,УЧАСТНИКИ!$A$1:$K$716,9,FALSE) -> ВК | L25: =VLOOKUP($M25,УЧАСТНИКИ!$A$1:$K$716,10,FALSE) -> МАКСИМОВА ОА, ЕФИМОВ АА | M25: 3785
A26: ВК | B26: =VLOOKUP($M26,УЧАСТНИКИ!$A$1:$K$716,3,FALSE) -> ЕГОРОВ МАКСИМ | C26: =VLOOKUP($M26,УЧАСТНИКИ!$A$1:$K$716,4,FALSE) -> 2003/ВК | D26: =VLOOKUP($M26,УЧАСТНИКИ!$A$1:$K$716,8,FALSE) -> 3 | E26: =VLOOKUP($M26,УЧАСТНИКИ!$A$1:$K$716,5,FALSE) -> КАЗАНЬ | F26: =VLOOKUP($M26,УЧАСТНИКИ!$A$1:$K$716,11,FALSE) -> КДЮСШ АВИАТОР | G26: 13.21 | I26: 1Ю | J26: =VLOOKUP($M26,УЧАСТНИКИ!$A$1:$K$716,9,FALSE) -> ВК | L26: =VLOOKUP($M26,УЧАСТНИКИ!$A$1:$K$716,10,FALSE) -> ФАЙСХАНОВ РР | M26: 3774
A27: 20 | B27: =VLOOKUP($M27,УЧАСТНИКИ!$A$1:$K$716,3,FALSE) ->  | C27: =VLOOKUP($M27,УЧАСТНИКИ!$A$1:$K$716,4,FALSE) ->  | D27: =VLOOKUP($M27,УЧАСТНИКИ!$A$1:$K$716,8,FALSE) ->  | E27: =VLOOKUP($M27,УЧАСТНИКИ!$A$1:$K$716,5,FALSE) ->  | F27: =VLOOKUP($M27,УЧАСТНИКИ!$A$1:$K$716,11,FALSE) ->  | J27: =VLOOKUP($M27,УЧАСТНИКИ!$A$1:$K$716,9,FALSE) ->  | L27: =VLOOKUP($M27,УЧАСТНИКИ!$A$1:$K$716,10,FALSE) -> 
A28: 21 | B28: =VLOOKUP($M28,УЧАСТНИКИ!$A$1:$K$716,3,FALSE) ->  | C28: =VLOOKUP($M28,УЧАСТНИКИ!$A$1:$K$716,4,FALSE) ->  | D28: =VLOOKUP($M28,УЧАСТНИКИ!$A$1:$K$716,8,FALSE) ->  | E28: =VLOOKUP($M28,УЧАСТНИКИ!$A$1:$K$716,5,FALSE) ->  | F28: =VLOOKUP($M28,УЧАСТНИКИ!$A$1:$K$716,11,FALSE) ->  | J28: =VLOOKUP($M28,УЧАСТНИКИ!$A$1:$K$716,9,FALSE) ->  | L28: =VLOOKUP($M28,УЧАСТНИКИ!$A$1:$K$716,10,FALSE) -> 
A29: 22 | B29: =VLOOKUP($M29,УЧАСТНИКИ!$A$1:$K$716,3,FALSE) ->  | C29: =VLOOKUP($M29,УЧАСТНИКИ!$A$1:$K$716,4,FALSE) ->  | D29: =VLOOKUP($M29,УЧАСТНИКИ!$A$1:$K$716,8,FALSE) ->  | E29: =VLOOKUP($M29,УЧАСТНИКИ!$A$1:$K$716,5,FALSE) ->  | F29: =VLOOKUP($M29,УЧАСТНИКИ!$A$1:$K$716,11,FALSE) ->  | J29: =VLOOKUP($M29,УЧАСТНИКИ!$A$1:$K$716,9,FALSE) ->  | L29: =VLOOKUP($M29,УЧАСТНИКИ!$A$1:$K$716,10,FALSE) -> 
A30: 23 | B30: =VLOOKUP($M30,УЧАСТНИКИ!$A$1:$K$716,3,FALSE) ->  | C30: =VLOOKUP($M30,УЧАСТНИКИ!$A$1:$K$716,4,FALSE) ->  | D30: =VLOOKUP($M30,УЧАСТНИКИ!$A$1:$K$716,8,FALSE) ->  | E30: =VLOOKUP($M30,УЧАСТНИКИ!$A$1:$K$716,5,FALSE) ->  | F30: =VLOOKUP($M30,УЧАСТНИКИ!$A$1:$K$716,11,FALSE) ->  | J30: =VLOOKUP($M30,УЧАСТНИКИ!$A$1:$K$716,9,FALSE) ->  | L30: =VLOOKUP($M30,УЧАСТНИКИ!$A$1:$K$716,10,FALSE) -> 
A31: 24 | B31: =VLOOKUP($M31,УЧАСТНИКИ!$A$1:$K$716,3,FALSE) ->  | C31: =VLOOKUP($M31,УЧАСТНИКИ!$A$1:$K$716,4,FALSE) ->  | D31: =VLOOKUP($M31,УЧАСТНИКИ!$A$1:$K$716,8,FALSE) ->  | E31: =VLOOKUP($M31,УЧАСТНИКИ!$A$1:$K$716,5,FALSE) ->  | F31: =VLOOKUP($M31,УЧАСТНИКИ!$A$1:$K$716,11,FALSE) ->  | J31: =VLOOKUP($M31,УЧАСТНИКИ!$A$1:$K$716,9,FALSE) ->  | L31: =VLOOKUP($M31,УЧАСТНИКИ!$A$1:$K$716,10,FALSE) -> 
A32: 25 | B32: =VLOOKUP($M32,УЧАСТНИКИ!$A$1:$K$716,3,FALSE) ->  | C32: =VLOOKUP($M32,УЧАСТНИКИ!$A$1:$K$716,4,FALSE) ->  | D32: =VLOOKUP($M32,УЧАСТНИКИ!$A$1:$K$716,8,FALSE) ->  | E32: =VLOOKUP($M32,УЧАСТНИКИ!$A$1:$K$716,5,FALSE) ->  | F32: =VLOOKUP($M32,УЧАСТНИКИ!$A$1:$K$716,11,FALSE) ->  | J32: =VLOOKUP($M32,УЧАСТНИКИ!$A$1:$K$716,9,FALSE) ->  | L32: =VLOOKUP($M32,УЧАСТНИКИ!$A$1:$K$716,10,FALSE) -> 
A33: 26 | B33: =VLOOKUP($M33,УЧАСТНИКИ!$A$1:$K$716,3,FALSE) ->  | C33: =VLOOKUP($M33,УЧАСТНИКИ!$A$1:$K$716,4,FALSE) ->  | D33: =VLOOKUP($M33,УЧАСТНИКИ!$A$1:$K$716,8,FALSE) ->  | E33: =VLOOKUP($M33,УЧАСТНИКИ!$A$1:$K$716,5,FALSE) ->  | F33: =VLOOKUP($M33,УЧАСТНИКИ!$A$1:$K$716,11,FALSE) ->  | J33: =VLOOKUP($M33,УЧАСТНИКИ!$A$1:$K$716,9,FALSE) ->  | L33: =VLOOKUP($M33,УЧАСТНИКИ!$A$1:$K$716,10,FALSE) -> 
A34: 27 | B34: =VLOOKUP($M34,УЧАСТНИКИ!$A$1:$K$716,3,FALSE) ->  | C34: =VLOOKUP($M34,УЧАСТНИКИ!$A$1:$K$716,4,FALSE) ->  | D34: =VLOOKUP($M34,УЧАСТНИКИ!$A$1:$K$716,8,FALSE) ->  | E34: =VLOOKUP($M34,УЧАСТНИКИ!$A$1:$K$716,5,FALSE) ->  | F34: =VLOOKUP($M34,УЧАСТНИКИ!$A$1:$K$716,11,FALSE) ->  | J34: Л | L34: =VLOOKUP($M34,УЧАСТНИКИ!$A$1:$K$716,10,FALSE) -> 
A35: 28 | B35: =VLOOKUP($M35,УЧАСТНИКИ!$A$1:$K$716,3,FALSE) ->  | C35: =VLOOKUP($M35,УЧАСТНИКИ!$A$1:$K$716,4,FALSE) ->  | D35: =VLOOKUP($M35,УЧАСТНИКИ!$A$1:$K$716,8,FALSE) ->  | E35: =VLOOKUP($M35,УЧАСТНИКИ!$A$1:$K$716,5,FALSE) ->  | F35: =VLOOKUP($M35,УЧАСТНИКИ!$A$1:$K$716,11,FALSE) ->  | J35: =VLOOKUP($M35,УЧАСТНИКИ!$A$1:$K$716,9,FALSE) ->  | L35: =VLOOKUP($M35,УЧАСТНИКИ!$A$1:$K$716,10,FALSE) -> 
A36: 29 | B36: =VLOOKUP($M36,УЧАСТНИКИ!$A$1:$K$716,3,FALSE) ->  | C36: =VLOOKUP($M36,УЧАСТНИКИ!$A$1:$K$716,4,FALSE) ->  | D36: =VLOOKUP($M36,УЧАСТНИКИ!$A$1:$K$716,8,FALSE) ->  | E36: =VLOOKUP($M36,УЧАСТНИКИ!$A$1:$K$716,5,FALSE) ->  | F36: =VLOOKUP($M36,УЧАСТНИКИ!$A$1:$K$716,11,FALSE) ->  | J36: =VLOOKUP($M36,УЧАСТНИКИ!$A$1:$K$716,9,FALSE) ->  | L36: =VLOOKUP($M36,УЧАСТНИКИ!$A$1:$K$716,10,FALSE) -> 
A37: 30 | B37: =VLOOKUP($M37,УЧАСТНИКИ!$A$1:$K$716,3,FALSE) ->  | C37: =VLOOKUP($M37,УЧАСТНИКИ!$A$1:$K$716,4,FALSE) ->  | D37: =VLOOKUP($M37,УЧАСТНИКИ!$A$1:$K$716,8,FALSE) ->  | E37: =VLOOKUP($M37,УЧАСТНИКИ!$A$1:$K$716,5,FALSE) ->  | F37: =VLOOKUP($M37,УЧАСТНИКИ!$A$1:$K$716,11,FALSE) ->  | J37: =VLOOKUP($M37,УЧАСТНИКИ!$A$1:$K$716,9,FALSE) ->  | L37: =VLOOKUP($M37,УЧАСТНИКИ!$A$1:$K$716,10,FALSE) -> 
A38: 31 | B38: =VLOOKUP($M38,УЧАСТНИКИ!$A$1:$K$716,3,FALSE) ->  | C38: =VLOOKUP($M38,УЧАСТНИКИ!$A$1:$K$716,4,FALSE) ->  | D38: =VLOOKUP($M38,УЧАСТНИКИ!$A$1:$K$716,8,FALSE) ->  | E38: =VLOOKUP($M38,УЧАСТНИКИ!$A$1:$K$716,5,FALSE) ->  | F38: =VLOOKUP($M38,УЧАСТНИКИ!$A$1:$K$716,11,FALSE) ->  | J38: =VLOOKUP($M38,УЧАСТНИКИ!$A$1:$K$716,9,FALSE) ->  | L38: =VLOOKUP($M38,УЧАСТНИКИ!$A$1:$K$716,10,FALSE) -> 
A39: 32 | B39: =VLOOKUP($M39,УЧАСТНИКИ!$A$1:$K$716,3,FALSE) ->  | C39: =VLOOKUP($M39,УЧАСТНИКИ!$A$1:$K$716,4,FALSE) ->  | D39: =VLOOKUP($M39,УЧАСТНИКИ!$A$1:$K$716,8,FALSE) ->  | E39: =VLOOKUP($M39,УЧАСТНИКИ!$A$1:$K$716,5,FALSE) ->  | F39: =VLOOKUP($M39,УЧАСТНИКИ!$A$1:$K$716,11,FALSE) ->  | J39: =VLOOKUP($M39,УЧАСТНИКИ!$A$1:$K$716,9,FALSE) ->  | L39: =VLOOKUP($M39,УЧАСТНИКИ!$A$1:$K$716,10,FALSE) -> 
A40: 33 | B40: =VLOOKUP($M40,УЧАСТНИКИ!$A$1:$K$716,3,FALSE) ->  | C40: =VLOOKUP($M40,УЧАСТНИКИ!$A$1:$K$716,4,FALSE) ->  | D40: =VLOOKUP($M40,УЧАСТНИКИ!$A$1:$K$716,8,FALSE) ->  | E40: =VLOOKUP($M40,УЧАСТНИКИ!$A$1:$K$716,5,FALSE) ->  | F40: =VLOOKUP($M40,УЧАСТНИКИ!$A$1:$K$716,11,FALSE) ->  | J40: =VLOOKUP($M40,УЧАСТНИКИ!$A$1:$K$716,9,FALSE) ->  | L40: =VLOOKUP($M40,УЧАСТНИКИ!$A$1:$K$716,10,FALSE) -> 
A41: 34 | B41: =VLOOKUP($M41,УЧАСТНИКИ!$A$1:$K$716,3,FALSE) ->  | C41: =VLOOKUP($M41,УЧАСТНИКИ!$A$1:$K$716,4,FALSE) ->  | D41: =VLOOKUP($M41,УЧАСТНИКИ!$A$1:$K$716,8,FALSE) ->  | E41: =VLOOKUP($M41,УЧАСТНИКИ!$A$1:$K$716,5,FALSE) ->  | F41: =VLOOKUP($M41,УЧАСТНИКИ!$A$1:$K$716,11,FALSE) ->  | J41: =VLOOKUP($M41,УЧАСТНИКИ!$A$1:$K$716,9,FALSE) ->  | L41: =VLOOKUP($M41,УЧАСТНИКИ!$A$1:$K$716,10,FALSE) -> 
A42: 35 | B42: =VLOOKUP($M42,УЧАСТНИКИ!$A$1:$K$716,3,FALSE) ->  | C42: =VLOOKUP($M42,УЧАСТНИКИ!$A$1:$K$716,4,FALSE) ->  | D42: =VLOOKUP($M42,УЧАСТНИКИ!$A$1:$K$716,8,FALSE) ->  | E42: =VLOOKUP($M42,УЧАСТНИКИ!$A$1:$K$716,5,FALSE) ->  | F42: =VLOOKUP($M42,УЧАСТНИКИ!$A$1:$K$716,11,FALSE) ->  | J42: =VLOOKUP($M42,УЧАСТНИКИ!$A$1:$K$716,9,FALSE) ->  | L42: =VLOOKUP($M42,УЧАСТНИКИ!$A$1:$K$716,10,FALSE) -> 
A43: 36 | B43: =VLOOKUP($M43,УЧАСТНИКИ!$A$1:$K$716,3,FALSE) ->  | C43: =VLOOKUP($M43,УЧАСТНИКИ!$A$1:$K$716,4,FALSE) ->  | D43: =VLOOKUP($M43,УЧАСТНИКИ!$A$1:$K$716,8,FALSE) ->  | E43: =VLOOKUP($M43,УЧАСТНИКИ!$A$1:$K$716,5,FALSE) ->  | F43: =VLOOKUP($M43,УЧАСТНИКИ!$A$1:$K$716,11,FALSE) ->  | J43: =VLOOKUP($M43,УЧАСТНИКИ!$A$1:$K$716,9,FALSE) ->  | L43: =VLOOKUP($M43,УЧАСТНИКИ!$A$1:$K$716,10,FALSE) -> 
A44: 37 | B44: =VLOOKUP($M44,УЧАСТНИКИ!$A$1:$K$716,3,FALSE) ->  | C44: =VLOOKUP($M44,УЧАСТНИКИ!$A$1:$K$716,4,FALSE) ->  | D44: =VLOOKUP($M44,УЧАСТНИКИ!$A$1:$K$716,8,FALSE) ->  | E44: =VLOOKUP($M44,УЧАСТНИКИ!$A$1:$K$716,5,FALSE) ->  | F44: =VLOOKUP($M44,УЧАСТНИКИ!$A$1:$K$716,11,FALSE) ->  | J44: =VLOOKUP($M44,УЧАСТНИКИ!$A$1:$K$716,9,FALSE) ->  | L44: =VLOOKUP($M44,УЧАСТНИКИ!$A$1:$K$716,10,FALSE) -> 
A45: 38 | B45: =VLOOKUP($M45,УЧАСТНИКИ!$A$1:$K$716,3,FALSE) ->  | C45: =VLOOKUP($M45,УЧАСТНИКИ!$A$1:$K$716,4,FALSE) ->  | D45: =VLOOKUP($M45,УЧАСТНИКИ!$A$1:$K$716,8,FALSE) ->  | E45: =VLOOKUP($M45,УЧАСТНИКИ!$A$1:$K$716,5,FALSE) ->  | F45: =VLOOKUP($M45,УЧАСТНИКИ!$A$1:$K$716,11,FALSE) ->  | J45: =VLOOKUP($M45,УЧАСТНИКИ!$A$1:$K$716,9,FALSE) ->  | L45: =VLOOKUP($M45,УЧАСТНИКИ!$A$1:$K$716,10,FALSE) -> 
A46: 39 | B46: =VLOOKUP($M46,УЧАСТНИКИ!$A$1:$K$716,3,FALSE) ->  | C46: =VLOOKUP($M46,УЧАСТНИКИ!$A$1:$K$716,4,FALSE) ->  | D46: =VLOOKUP($M46,УЧАСТНИКИ!$A$1:$K$716,8,FALSE) ->  | E46: =VLOOKUP($M46,УЧАСТНИКИ!$A$1:$K$716,5,FALSE) ->  | F46: =VLOOKUP($M46,УЧАСТНИКИ!$A$1:$K$716,11,FALSE) ->  | J46: =VLOOKUP($M46,УЧАСТНИКИ!$A$1:$K$716,9,FALSE) ->  | L46: =VLOOKUP($M46,УЧАСТНИКИ!$A$1:$K$716,10,FALSE) -> 
A47: 40 | B47: =VLOOKUP($M47,УЧАСТНИКИ!$A$1:$K$716,3,FALSE) ->  | C47: =VLOOKUP($M47,УЧАСТНИКИ!$A$1:$K$716,4,FALSE) ->  | D47: =VLOOKUP($M47,УЧАСТНИКИ!$A$1:$K$716,8,FALSE) ->  | E47: =VLOOKUP($M47,УЧАСТНИКИ!$A$1:$K$716,5,FALSE) ->  | F47: =VLOOKUP($M47,УЧАСТНИКИ!$A$1:$K$716,11,FALSE) ->  | J47: =VLOOKUP($M47,УЧАСТНИКИ!$A$1:$K$716,9,FALSE) ->  | L47: =VLOOKUP($M47,УЧАСТНИКИ!$A$1:$K$716,10,FALSE) -> 
B48: =VLOOKUP($M48,УЧАСТНИКИ!$A$1:$K$716,3,FALSE) ->  | C48: =VLOOKUP($M48,УЧАСТНИКИ!$A$1:$K$716,4,FALSE) ->  | D48: =VLOOKUP($M48,УЧАСТНИКИ!$A$1:$K$716,8,FALSE) ->  | E48: =VLOOKUP($M48,УЧАСТНИКИ!$A$1:$K$716,5,FALSE) ->  | F48: =VLOOKUP($M48,УЧАСТНИКИ!$A$1:$K$716,11,FALSE) ->  | J48: =VLOOKUP($M48,УЧАСТНИКИ!$A$1:$K$716,9,FALSE) ->  | L48: =VLOOKUP($M48,УЧАСТНИКИ!$A$1:$K$716,10,FALSE) -> 
B49: =VLOOKUP($M49,УЧАСТНИКИ!$A$1:$K$716,3,FALSE) ->  | C49: =VLOOKUP($M49,УЧАСТНИКИ!$A$1:$K$716,4,FALSE) ->  | D49: =VLOOKUP($M49,УЧАСТНИКИ!$A$1:$K$716,8,FALSE) ->  | E49: =VLOOKUP($M49,УЧАСТНИКИ!$A$1:$K$716,5,FALSE) ->  | F49: =VLOOKUP($M49,УЧАСТНИКИ!$A$1:$K$716,11,FALSE) ->  | J49: =VLOOKUP($M49,УЧАСТНИКИ!$A$1:$K$716,9,FALSE) ->  | L49: =VLOOKUP($M49,УЧАСТНИКИ!$A$1:$K$716,10,FALSE) -> 

Sheet 110 СБ (hidden)
A1: =Name_2 -> ЦЕНТР СПОРТИВНОЙ ПОДГОТОВКИ РЕСПУБЛИКИ ТАТАРСТАН
A2: СТАРТОВЫЙ ПРОТОКОЛ
A3: =Name_4 -> ЛИЧНО-КОМАНДНЫЙ ЧЕМПИОНАТ РЕСПУБЛИКИ ТАТАРСТАН ПО ЛЕГКОЙ АТЛЕТИКЕ
A5: БАРЬЕРНЫЙ БЕГ 110 М | D5: 14,30 | H5: =d_1 -> 06 ИЮЛЯ 2017г.
H6: =d_5 -> г. Казань, Футбольно-легкоатлетический манеж
A7: № п/п | B7: Фамилия, имя участника | C7: Год рожд. | D7: ГОРОД | E7: КОМАНДА | F7: Номер участника | G7: Приход | H7: Результат | I7: Место | J7: Примеч.
B8: =Name_8 -> МУЖЧИНЫ 2001г.р. и старше
B9: 1 ЗАБЕГ
A10: 1
A11: 2
A12: 3 | B12: =VLOOKUP($F12,УЧАСТНИКИ!$A$2:$K$705,3,FALSE) -> ГИЛЯЗОВ АЙДАР | C12: =VLOOKUP($F12,УЧАСТНИКИ!$A$2:$K$705,4,FALSE) -> 1987 | D12: =VLOOKUP($F12,УЧАСТНИКИ!$A$2:$K$705,5,FALSE) -> НИЖНЕКАМСК | E12: =VLOOKUP($F12,УЧАСТНИКИ!$A$2:$K$705,11,FALSE) -> НЕФТЕХИМИК | F12: 3870 | J12: =VLOOKUP($F12,УЧАСТНИКИ!$A$2:$K$132,9,FALSE) -> Л
A13: 4 | B13: =VLOOKUP($F13,УЧАСТНИКИ!$A$2:$K$705,3,FALSE) -> КРИВОШЕЕВ ВЛАДИСЛАВ | C13: =VLOOKUP($F13,УЧАСТНИКИ!$A$2:$K$705,4,FALSE) -> 1997 | D13: =VLOOKUP($F13,УЧАСТНИКИ!$A$2:$K$705,5,FALSE) -> КАЗАНЬ | E13: =VLOOKUP($F13,УЧАСТНИКИ!$A$2:$K$705,11,FALSE) -> СДЮСШОР ЛА | F13: 3830 | J13: =VLOOKUP($F13,УЧАСТНИКИ!$A$2:$K$132,9,FALSE) -> 3
A14: 5
A15: 6
B16: 2 ЗАБЕГ
A17: 1 | B17: =VLOOKUP($F17,УЧАСТНИКИ!$A$2:$K$705,3,FALSE) ->  | C17: =VLOOKUP($F17,УЧАСТНИКИ!$A$2:$K$705,4,FALSE) ->  | D17: =VLOOKUP($F17,УЧАСТНИКИ!$A$2:$K$705,5,FALSE) ->  | E17: =VLOOKUP($F17,УЧАСТНИКИ!$A$2:$K$705,11,FALSE) ->  | J17: =VLOOKUP($F17,УЧАСТНИКИ!$A$2:$K$132,9,FALSE) -> 
A18: 2 | B18: =VLOOKUP($F18,УЧАСТНИКИ!$A$2:$K$705,3,FALSE) ->  | C18: =VLOOKUP($F18,УЧАСТНИКИ!$A$2:$K$705,4,FALSE) ->  | D18: =VLOOKUP($F18,УЧАСТНИКИ!$A$2:$K$705,5,FALSE) ->  | E18: =VLOOKUP($F18,УЧАСТНИКИ!$A$2:$K$705,11,FALSE) ->  | J18: =VLOOKUP($F18,УЧАСТНИКИ!$A$2:$K$132,9,FALSE) -> 
A19: 3 | B19: =VLOOKUP($F19,УЧАСТНИКИ!$A$2:$K$705,3,FALSE) ->  | C19: =VLOOKUP($F19,УЧАСТНИКИ!$A$2:$K$705,4,FALSE) ->  | D19: =VLOOKUP($F19,УЧАСТНИКИ!$A$2:$K$705,5,FALSE) ->  | E19: =VLOOKUP($F19,УЧАСТНИКИ!$A$2:$K$705,11,FALSE) ->  | J19: =VLOOKUP($F19,УЧАСТНИКИ!$A$2:$K$132,9,FALSE) -> 
A20: 4 | B20: =VLOOKUP($F20,УЧАСТНИКИ!$A$2:$K$705,3,FALSE) ->  | C20: =VLOOKUP($F20,УЧАСТНИКИ!$A$2:$K$705,4,FALSE) ->  | D20: =VLOOKUP($F20,УЧАСТНИКИ!$A$2:$K$705,5,FALSE) ->  | E20: =VLOOKUP($F20,УЧАСТНИКИ!$A$2:$K$705,11,FALSE) ->  | J20: =VLOOKUP($F20,УЧАСТНИКИ!$A$2:$K$132,9,FALSE) -> 
A21: 5 | B21: =VLOOKUP($F21,УЧАСТНИКИ!$A$2:$K$705,3,FALSE) ->  | C21: =VLOOKUP($F21,УЧАСТНИКИ!$A$2:$K$705,4,FALSE) ->  | D21: =VLOOKUP($F21,УЧАСТНИКИ!$A$2:$K$705,5,FALSE) ->  | E21: =VLOOKUP($F21,УЧАСТНИКИ!$A$2:$K$705,11,FALSE) ->  | J21: =VLOOKUP($F21,УЧАСТНИКИ!$A$2:$K$132,9,FALSE) -> 
A22: 6 | B22: =VLOOKUP($F22,УЧАСТНИКИ!$A$2:$K$705,3,FALSE) ->  | C22: =VLOOKUP($F22,УЧАСТНИКИ!$A$2:$K$705,4,FALSE) ->  | D22: =VLOOKUP($F22,УЧАСТНИКИ!$A$2:$K$705,5,FALSE) ->  | E22: =VLOOKUP($F22,УЧАСТНИКИ!$A$2:$K$705,11,FALSE) ->  | J22: =VLOOKUP($F22,УЧАСТНИКИ!$A$2:$K$132,9,FALSE) -> 
B23: =Name_8 -> МУЖЧИНЫ 2001г.р. и старше
B24: 3 ЗАБЕГ
A25: 1
A26: 2 | B26: =VLOOKUP($F26,УЧАСТНИКИ!$A$2:$K$705,3,FALSE) ->  | C26: =VLOOKUP($F26,УЧАСТНИКИ!$A$2:$K$705,4,FALSE) ->  | D26: =VLOOKUP($F26,УЧАСТНИКИ!$A$2:$K$705,5,FALSE) ->  | E26: =VLOOKUP($F26,УЧАСТНИКИ!$A$2:$K$705,11,FALSE) -> 
A27: 3 | B27: =VLOOKUP($F27,УЧАСТНИКИ!$A$2:$K$705,3,FALSE) ->  | C27: =VLOOKUP($F27,УЧАСТНИКИ!$A$2:$K$705,4,FALSE) ->  | D27: =VLOOKUP($F27,УЧАСТНИКИ!$A$2:$K$705,5,FALSE) ->  | E27: =VLOOKUP($F27,УЧАСТНИКИ!$A$2:$K$705,11,FALSE) -> 
A28: 4 | B28: =VLOOKUP($F28,УЧАСТНИКИ!$A$2:$K$705,3,FALSE) ->  | C28: =VLOOKUP($F28,УЧАСТНИКИ!$A$2:$K$705,4,FALSE) ->  | D28: =VLOOKUP($F28,УЧАСТНИКИ!$A$2:$K$705,5,FALSE) ->  | E28: =VLOOKUP($F28,УЧАСТНИКИ!$A$2:$K$705,11,FALSE) -> 
A29: 5 | B29: =VLOOKUP($F29,УЧАСТНИКИ!$A$2:$K$705,3,FALSE) ->  | C29: =VLOOKUP($F29,УЧАСТНИКИ!$A$2:$K$705,4,FALSE) ->  | D29: =VLOOKUP($F29,УЧАСТНИКИ!$A$2:$K$705,5,FALSE) ->  | E29: =VLOOKUP($F29,УЧАСТНИКИ!$A$2:$K$705,11,FALSE) -> 
A30: 6 | B30: =VLOOKUP($F30,УЧАСТНИКИ!$A$2:$K$705,3,FALSE) ->  | C30: =VLOOKUP($F30,УЧАСТНИКИ!$A$2:$K$705,4,FALSE) ->  | D30: =VLOOKUP($F30,УЧАСТНИКИ!$A$2:$K$705,5,FALSE) ->  | E30: =VLOOKUP($F30,УЧАСТНИКИ!$A$2:$K$705,11,FALSE) -> 
B31: =Name_7 -> МУЖЧИНЫ 2001г.р. и старше
B32: 4 ЗАБЕГ
A33: 1
A34: 2 | B34: =VLOOKUP($F34,УЧАСТНИКИ!$A$2:$K$705,3,FALSE) ->  | C34: =VLOOKUP($F34,УЧАСТНИКИ!$A$2:$K$705,4,FALSE) ->  | D34: =VLOOKUP($F34,УЧАСТНИКИ!$A$2:$K$705,5,FALSE) ->  | E34: =VLOOKUP($F34,УЧАСТНИКИ!$A$2:$K$705,11,FALSE) -> 
A35: 3 | B35: =VLOOKUP($F35,УЧАСТНИКИ!$A$2:$K$705,3,FALSE) ->  | C35: =VLOOKUP($F35,УЧАСТНИКИ!$A$2:$K$705,4,FALSE) ->  | D35: =VLOOKUP($F35,УЧАСТНИКИ!$A$2:$K$705,5,FALSE) ->  | E35: =VLOOKUP($F35,УЧАСТНИКИ!$A$2:$K$705,11,FALSE) -> 
A36: 4 | B36: =VLOOKUP($F36,УЧАСТНИКИ!$A$2:$K$705,3,FALSE) ->  | C36: =VLOOKUP($F36,УЧАСТНИКИ!$A$2:$K$705,4,FALSE) ->  | D36: =VLOOKUP($F36,УЧАСТНИКИ!$A$2:$K$705,5,FALSE) ->  | E36: =VLOOKUP($F36,УЧАСТНИКИ!$A$2:$K$705,11,FALSE) -> 
A37: 5
B38: 5 ЗАБЕГ
A39: 1
A40: 2 | B40: =VLOOKUP($F40,УЧАСТНИКИ!$A$2:$K$705,3,FALSE) ->  | C40: =VLOOKUP($F40,УЧАСТНИКИ!$A$2:$K$705,4,FALSE) ->  | D40: =VLOOKUP($F40,УЧАСТНИКИ!$A$2:$K$705,5,FALSE) ->  | E40: =VLOOKUP($F40,УЧАСТНИКИ!$A$2:$K$705,11,FALSE) -> 
A41: 3 | B41: =VLOOKUP($F41,УЧАСТНИКИ!$A$2:$K$705,3,FALSE) ->  | C41: =VLOOKUP($F41,УЧАСТНИКИ!$A$2:$K$705,4,FALSE) ->  | D41: =VLOOKUP($F41,УЧАСТНИКИ!$A$2:$K$705,5,FALSE) ->  | E41: =VLOOKUP($F41,УЧАСТНИКИ!$A$2:$K$705,11,FALSE) -> 
A42: 4 | B42: =VLOOKUP($F42,УЧАСТНИКИ!$A$2:$K$705,3,FALSE) ->  | C42: =VLOOKUP($F42,УЧАСТНИКИ!$A$2:$K$705,4,FALSE) ->  | D42: =VLOOKUP($F42,УЧАСТНИКИ!$A$2:$K$705,5,FALSE) ->  | E42: =VLOOKUP($F42,УЧАСТНИКИ!$A$2:$K$705,11,FALSE) -> 
A43: 5 | B43: =VLOOKUP($F43,УЧАСТНИКИ!$A$2:$K$705,3,FALSE) ->  | C43: =VLOOKUP($F43,УЧАСТНИКИ!$A$2:$K$705,4,FALSE) ->  | D43: =VLOOKUP($F43,УЧАСТНИКИ!$A$2:$K$705,5,FALSE) ->  | E43: =VLOOKUP($F43,УЧАСТНИКИ!$A$2:$K$705,11,FALSE) -> 
A44: 6
B45: 6 ЗАБЕГ
A46: 1
A47: 2 | B47: =VLOOKUP($F47,УЧАСТНИКИ!$A$2:$K$705,3,FALSE) ->  | C47: =VLOOKUP($F47,УЧАСТНИКИ!$A$2:$K$705,4,FALSE) ->  | D47: =VLOOKUP($F47,УЧАСТНИКИ!$A$2:$K$705,5,FALSE) ->  | E47: =VLOOKUP($F47,УЧАСТНИКИ!$A$2:$K$705,11,FALSE) -> 
A48: 3 | B48: =VLOOKUP($F48,УЧАСТНИКИ!$A$2:$K$705,3,FALSE) ->  | C48: =VLOOKUP($F48,УЧАСТНИКИ!$A$2:$K$705,4,FALSE) ->  | D48: =VLOOKUP($F48,УЧАСТНИКИ!$A$2:$K$705,5,FALSE) ->  | E48: =VLOOKUP($F48,УЧАСТНИКИ!$A$2:$K$705,11,FALSE) -> 
A49: 4 | B49: =VLOOKUP($F49,УЧАСТНИКИ!$A$2:$K$705,3,FALSE) ->  | C49: =VLOOKUP($F49,УЧАСТНИКИ!$A$2:$K$705,4,FALSE) ->  | D49: =VLOOKUP($F49,УЧАСТНИКИ!$A$2:$K$705,5,FALSE) ->  | E49: =VLOOKUP($F49,УЧАСТНИКИ!$A$2:$K$705,11,FALSE) -> 
A50: Рефери по бегу: | E50: Ст.хронометрист:
A51: Ст.судья: | E51: Секретарь:

Sheet 110 СБ Ф (hidden)
A1: =Name_2 -> ЦЕНТР СПОРТИВНОЙ ПОДГОТОВКИ РЕСПУБЛИКИ ТАТАРСТАН
A2: СТАРТОВЫЙ ПРОТОКОЛ
A3: =Name_4 -> ЛИЧНО-КОМАНДНЫЙ ЧЕМПИОНАТ РЕСПУБЛИКИ ТАТАРСТАН ПО ЛЕГКОЙ АТЛЕТИКЕ
D5: ФИН.ЗАБЕГ | E5: 16,30 | L5: =d_1 -> 06 ИЮЛЯ 2017г.
A6: БАРЬЕРНЫЙ БЕГ 110 М | L6: =d_5 -> г. Казань, Футбольно-легкоатлетический манеж
A8: № п/п | B8: Фамилия, имя участника | C8: Год рожд. | D8: ГОРОД | E8: КОМАНДА | F8: Номер участника | G8: рез-тат забега | H8: рез-тат полуфин. | I8: приход | J8: Результат | K8: Место | L8: Примеч.
B9: =Name_8 -> МУЖЧИНЫ 2001г.р. и старше
A10: 1
A11: 2 | M11: 1
A12: 3 | B12: =VLOOKUP($F12,УЧАСТНИКИ!$A$2:$K$232,3,FALSE) -> КРИВОШЕЕВ ВЛАДИСЛАВ | C12: =VLOOKUP($F12,УЧАСТНИКИ!$A$2:$K$232,4,FALSE) -> 1997 | D12: =VLOOKUP($F12,УЧАСТНИКИ!$A$2:$K$232,5,FALSE) -> КАЗАНЬ | E12: =VLOOKUP($F12,УЧАСТНИКИ!$A$2:$K$232,11,FALSE) -> СДЮСШОР ЛА | F12: 3830 | G12: 15.49 | L12: =VLOOKUP($F12,УЧАСТНИКИ!$A$2:$K$232,9,FALSE) -> 3 | M12: 3
A13: 4 | B13: =VLOOKUP($F13,УЧАСТНИКИ!$A$2:$K$232,3,FALSE) -> ГИЛЯЗОВ АЙДАР | C13: =VLOOKUP($F13,УЧАСТНИКИ!$A$2:$K$232,4,FALSE) -> 1987 | D13: =VLOOKUP($F13,УЧАСТНИКИ!$A$2:$K$232,5,FALSE) -> НИЖНЕКАМСК | E13: =VLOOKUP($F13,УЧАСТНИКИ!$A$2:$K$232,11,FALSE) -> НЕФТЕХИМИК | F13: 3870 | G13: 14.29 | L13: =VLOOKUP($F13,УЧАСТНИКИ!$A$2:$K$232,9,FALSE) -> Л | M13: 2
A14: 5 | M14: 4
A15: 6 | M15: 5
A16: 7 | L16: =VLOOKUP($F16,УЧАСТНИКИ!#REF!,9,FALSE) ->  | M16: 7
A17: 8
B19: Рефери по бегу:
B20: Ст.судья:
B21: Ст.хронометрист:
B22: Секретарь:

Sheet И 110 СБ
A1: =Name_2 -> ЦЕНТР СПОРТИВНОЙ ПОДГОТОВКИ РЕСПУБЛИКИ ТАТАРСТАН
A2: =Name_3 -> 
A3: =Name_4 -> ЛИЧНО-КОМАНДНЫЙ ЧЕМПИОНАТ РЕСПУБЛИКИ ТАТАРСТАН ПО ЛЕГКОЙ АТЛЕТИКЕ
A5: ИТОГОВЫЙ ПРОТОКОЛ
AG6: ПРИВЕТ
A7: БАРЬЕРНЫЙ БЕГ 110 М | E7: забеги | F7: =d_1 -> 06 ИЮЛЯ 2017г.
E8: фин.забеги | F8: =d_1 -> 06 ИЮЛЯ 2017г. | H8: =d_5 -> г. Казань, Футбольно-легкоатлетический манеж
A9: М | B9: Фамилия, имя | C9: Дата рождения | D9: Заявл. разряд | E9: Территория | F9: Организация Ведомство | G9: Забеги | H9: Финал | I9: Вып. разр. | J9: Зачет | K9: Очки | L9: Ф.И. О. тренера
B10: =Name_8 -> МУЖЧИНЫ 2001г.р. и старше
A11: 1 | B11: =VLOOKUP($M11,УЧАСТНИКИ!$A$1:$K$716,3,FALSE) -> ГИЛЯЗОВ АЙДАР | C11: =VLOOKUP($M11,УЧАСТНИКИ!$A$1:$K$716,4,FALSE) -> 1987 | D11: =VLOOKUP($M11,УЧАСТНИКИ!$A$1:$K$716,8,FALSE) -> МС | E11: =VLOOKUP($M11,УЧАСТНИКИ!$A$1:$K$716,5,FALSE) -> НИЖНЕКАМСК | F11: =VLOOKUP($M11,УЧАСТНИКИ!$A$1:$K$716,11,FALSE) -> НЕФТЕХИМИК | G11: 14.29 | H11: 14.12 | I11: МС | J11: =VLOOKUP($M11,УЧАСТНИКИ!$A$1:$K$716,9,FALSE) -> Л | L11: =VLOOKUP($M11,УЧАСТНИКИ!$A$1:$K$716,10,FALSE) -> ПЕРМЯКОВ ОА, БЫКОВ ВЕ | M11: 3870
A12: 2 | B12: =VLOOKUP($M12,УЧАСТНИКИ!$A$1:$K$716,3,FALSE) -> КРИВОШЕЕВ ВЛАДИСЛАВ | C12: =VLOOKUP($M12,УЧАСТНИКИ!$A$1:$K$716,4,FALSE) -> 1997 | D12: =VLOOKUP($M12,УЧАСТНИКИ!$A$1:$K$716,8,FALSE) -> КМС | E12: =VLOOKUP($M12,УЧАСТНИКИ!$A$1:$K$716,5,FALSE) -> КАЗАНЬ | F12: =VLOOKUP($M12,УЧАСТНИКИ!$A$1:$K$716,11,FALSE) -> СДЮСШОР ЛА | G12: 15.49 | H12: СПРАВКА | I12: 1 | J12: =VLOOKUP($M12,УЧАСТНИКИ!$A$1:$K$716,9,FALSE) -> 3 | K12: 20 | L12: =VLOOKUP($M12,УЧАСТНИКИ!$A$1:$K$716,10,FALSE) -> ЯШИНЫ ЖЛ АН | M12: 3830
A13: 3 | B13: =VLOOKUP($M13,УЧАСТНИКИ!$A$1:$K$716,3,FALSE) ->  | C13: =VLOOKUP($M13,УЧАСТНИКИ!$A$1:$K$716,4,FALSE) ->  | D13: =VLOOKUP($M13,УЧАСТНИКИ!$A$1:$K$716,8,FALSE) ->  | E13: =VLOOKUP($M13,УЧАСТНИКИ!$A$1:$K$716,5,FALSE) ->  | F13: =VLOOKUP($M13,УЧАСТНИКИ!$A$1:$K$716,11,FALSE) ->  | J13: =VLOOKUP($M13,УЧАСТНИКИ!$A$1:$K$716,9,FALSE) ->  | L13: =VLOOKUP($M13,УЧАСТНИКИ!$A$1:$K$716,10,FALSE) -> 
A14: 4 | B14: =VLOOKUP($M14,УЧАСТНИКИ!$A$1:$K$716,3,FALSE) ->  | C14: =VLOOKUP($M14,УЧАСТНИКИ!$A$1:$K$716,4,FALSE) ->  | D14: =VLOOKUP($M14,УЧАСТНИКИ!$A$1:$K$716,8,FALSE) ->  | E14: =VLOOKUP($M14,УЧАСТНИКИ!$A$1:$K$716,5,FALSE) ->  | F14: =VLOOKUP($M14,УЧАСТНИКИ!$A$1:$K$716,11,FALSE) ->  | J14: =VLOOKUP($M14,УЧАСТНИКИ!$A$1:$K$716,9,FALSE) ->  | L14: =VLOOKUP($M14,УЧАСТНИКИ!$A$1:$K$716,10,FALSE) -> 
A15: 5 | B15: =VLOOKUP($M15,УЧАСТНИКИ!$A$1:$K$716,3,FALSE) ->  | C15: =VLOOKUP($M15,УЧАСТНИКИ!$A$1:$K$716,4,FALSE) ->  | D15: =VLOOKUP($M15,УЧАСТНИКИ!$A$1:$K$716,8,FALSE) ->  | E15: =VLOOKUP($M15,УЧАСТНИКИ!$A$1:$K$716,5,FALSE) ->  | F15: =VLOOKUP($M15,УЧАСТНИКИ!$A$1:$K$716,11,FALSE) ->  | J15: =VLOOKUP($M15,УЧАСТНИКИ!$A$1:$K$716,9,FALSE) ->  | L15: =VLOOKUP($M15,УЧАСТНИКИ!$A$1:$K$716,10,FALSE) -> 
A16: 6 | B16: =VLOOKUP($M16,УЧАСТНИКИ!$A$1:$K$716,3,FALSE) ->  | C16: =VLOOKUP($M16,УЧАСТНИКИ!$A$1:$K$716,4,FALSE) ->  | D16: =VLOOKUP($M16,УЧАСТНИКИ!$A$1:$K$716,8,FALSE) ->  | E16: =VLOOKUP($M16,УЧАСТНИКИ!$A$1:$K$716,5,FALSE) ->  | F16: =VLOOKUP($M16,УЧАСТНИКИ!$A$1:$K$716,11,FALSE) ->  | J16: =VLOOKUP($M16,УЧАСТНИКИ!$A$1:$K$716,9,FALSE) ->  | L16: =VLOOKUP($M16,УЧАСТНИКИ!$A$1:$K$716,10,FALSE) -> 
A17: 7 | B17: =VLOOKUP($M17,УЧАСТНИКИ!$A$1:$K$716,3,FALSE) ->  | C17: =VLOOKUP($M17,УЧАСТНИКИ!$A$1:$K$716,4,FALSE) ->  | D17: =VLOOKUP($M17,УЧАСТНИКИ!$A$1:$K$716,8,FALSE) ->  | E17: =VLOOKUP($M17,УЧАСТНИКИ!$A$1:$K$716,5,FALSE) ->  | F17: =VLOOKUP($M17,УЧАСТНИКИ!$A$1:$K$716,11,FALSE) ->  | J17: =VLOOKUP($M17,УЧАСТНИКИ!$A$1:$K$716,9,FALSE) ->  | L17: =VLOOKUP($M17,УЧАСТНИКИ!$A$1:$K$716,10,FALSE) -> 
A18: 8 | B18: =VLOOKUP($M18,УЧАСТНИКИ!$A$1:$K$716,3,FALSE) ->  | C18: =VLOOKUP($M18,УЧАСТНИКИ!$A$1:$K$716,4,FALSE) ->  | D18: =VLOOKUP($M18,УЧАСТНИКИ!$A$1:$K$716,8,FALSE) ->  | E18: =VLOOKUP($M18,УЧАСТНИКИ!$A$1:$K$716,5,FALSE) ->  | F18: =VLOOKUP($M18,УЧАСТНИКИ!$A$1:$K$716,11,FALSE) ->  | J18: =VLOOKUP($M18,УЧАСТНИКИ!$A$1:$K$716,9,FALSE) ->  | L18: =VLOOKUP($M18,УЧАСТНИКИ!$A$1:$K$716,10,FALSE) -> 
B19: =Name_9 -> МУЖЧИНЫ 2001г.р. и старше
A20: 1 | B20: =VLOOKUP($M20,УЧАСТНИКИ!$A$1:$K$716,3,FALSE) ->  | C20: =VLOOKUP($M20,УЧАСТНИКИ!$A$1:$K$716,4,FALSE) ->  | D20: =VLOOKUP($M20,УЧАСТНИКИ!$A$1:$K$716,8,FALSE) ->  | E20: =VLOOKUP($M20,УЧАСТНИКИ!$A$1:$K$716,5,FALSE) ->  | F20: =VLOOKUP($M20,УЧАСТНИКИ!$A$1:$K$716,11,FALSE) ->  | L20: =VLOOKUP($M20,УЧАСТНИКИ!$A$1:$K$716,10,FALSE) -> 
A21: 2 | B21: =VLOOKUP($M21,УЧАСТНИКИ!$A$1:$K$716,3,FALSE) ->  | C21: =VLOOKUP($M21,УЧАСТНИКИ!$A$1:$K$716,4,FALSE) ->  | D21: =VLOOKUP($M21,УЧАСТНИКИ!$A$1:$K$716,8,FALSE) ->  | E21: =VLOOKUP($M21,УЧАСТНИКИ!$A$1:$K$716,5,FALSE) ->  | F21: =VLOOKUP($M21,УЧАСТНИКИ!$A$1:$K$716,11,FALSE) ->  | J21: =VLOOKUP($M21,УЧАСТНИКИ!$A$1:$K$716,9,FALSE) ->  | L21: =VLOOKUP($M21,УЧАСТНИКИ!$A$1:$K$716,10,FALSE) -> 
A22: 3 | B22: =VLOOKUP($M22,УЧАСТНИКИ!$A$1:$K$716,3,FALSE) ->  | C22: =VLOOKUP($M22,УЧАСТНИКИ!$A$1:$K$716,4,FALSE) ->  | D22: =VLOOKUP($M22,УЧАСТНИКИ!$A$1:$K$716,8,FALSE) ->  | E22: =VLOOKUP($M22,УЧАСТНИКИ!$A$1:$K$716,5,FALSE) ->  | F22: =VLOOKUP($M22,УЧАСТНИКИ!$A$1:$K$716,11,FALSE) ->  | J22: =VLOOKUP($M22,УЧАСТНИКИ!$A$1:$K$716,9,FALSE) ->  | L22: =VLOOKUP($M22,УЧАСТНИКИ!$A$1:$K$716,10,FALSE) -> 
A23: 4 | B23: =VLOOKUP($M23,УЧАСТНИКИ!$A$1:$K$716,3,FALSE) ->  | C23: =VLOOKUP($M23,УЧАСТНИКИ!$A$1:$K$716,4,FALSE) ->  | D23: =VLOOKUP($M23,УЧАСТНИКИ!$A$1:$K$716,8,FALSE) ->  | E23: =VLOOKUP($M23,УЧАСТНИКИ!$A$1:$K$716,5,FALSE) ->  | F23: =VLOOKUP($M23,УЧАСТНИКИ!$A$1:$K$716,11,FALSE) ->  | J23: =VLOOKUP($M23,УЧАСТНИКИ!$A$1:$K$716,9,FALSE) ->  | L23: =VLOOKUP($M23,УЧАСТНИКИ!$A$1:$K$716,10,FALSE) -> 
A24: 5 | B24: =VLOOKUP($M24,УЧАСТНИКИ!$A$1:$K$716,3,FALSE) ->  | C24: =VLOOKUP($M24,УЧАСТНИКИ!$A$1:$K$716,4,FALSE) ->  | D24: =VLOOKUP($M24,УЧАСТНИКИ!$A$1:$K$716,8,FALSE) ->  | E24: =VLOOKUP($M24,УЧАСТНИКИ!$A$1:$K$716,5,FALSE) ->  | F24: =VLOOKUP($M24,УЧАСТНИКИ!$A$1:$K$716,11,FALSE) ->  | J24: =VLOOKUP($M24,УЧАСТНИКИ!$A$1:$K$716,9,FALSE) ->  | L24: =VLOOKUP($M24,УЧАСТНИКИ!$A$1:$K$716,10,FALSE) -> 

Sheet 200м (hidden)
A1: =Name_2 -> ЦЕНТР СПОРТИВНОЙ ПОДГОТОВКИ РЕСПУБЛИКИ ТАТАРСТАН
A2: СТАРТОВЫЙ ПРОТОКОЛ
A3: =Name_4 -> ЛИЧНО-КОМАНДНЫЙ ЧЕМПИОНАТ РЕСПУБЛИКИ ТАТАРСТАН ПО ЛЕГКОЙ АТЛЕТИКЕ
A5: БЕГ 200 М | D5: 11,00 | J5: =d_2 -> 07 ИЮЛЯ 2017г.
J6: =d_5 -> г. Казань, Футбольно-легкоатлетический манеж
A7: № п/п | B7: Фамилия, имя участника | C7: Год рожд. | D7: ГОРОД | E7: КОМАНДА | F7: Номер участника | G7: Приход | H7: Результат | I7: Место | J7: Примеч.
B8: =Name_8 -> МУЖЧИНЫ 2001г.р. и старше
B9: 1 ЗАБЕГ
A10: 1 | B10: =VLOOKUP($F10,УЧАСТНИКИ!$A$1:$K$716,3,FALSE) -> БАБАЕВ ШАКИР | C10: =VLOOKUP($F10,УЧАСТНИКИ!$A$1:$K$716,4,FALSE) -> 1998 | D10: =VLOOKUP($F10,УЧАСТНИКИ!$A$1:$K$716,5,FALSE) -> КАЗАНЬ | E10: =VLOOKUP($F10,УЧАСТНИКИ!$A$1:$K$716,11,FALSE) -> ПГАФКСиТ | F10: 3574 | J10: =VLOOKUP($F10,УЧАСТНИКИ!$A$2:$K$232,9,FALSE) -> Л
A11: 2 | B11: =VLOOKUP($F11,УЧАСТНИКИ!$A$1:$K$716,3,FALSE) -> АКШАЕВ НИКИТА | C11: =VLOOKUP($F11,УЧАСТНИКИ!$A$1:$K$716,4,FALSE) -> 2001 | D11: =VLOOKUP($F11,УЧАСТНИКИ!$A$1:$K$716,5,FALSE) -> КАЗАНЬ | E11: =VLOOKUP($F11,УЧАСТНИКИ!$A$1:$K$716,11,FALSE) -> КДЮСШ АВИАТОР | F11: 3839 | J11: =VLOOKUP($F11,УЧАСТНИКИ!$A$2:$K$232,9,FALSE) -> Л
A12: 3 | B12: =VLOOKUP($F12,УЧАСТНИКИ!$A$1:$K$716,3,FALSE) -> ВАЗИЕВ РЕГИЛЬ | C12: =VLOOKUP($F12,УЧАСТНИКИ!$A$1:$K$716,4,FALSE) -> 1991 | D12: =VLOOKUP($F12,УЧАСТНИКИ!$A$1:$K$716,5,FALSE) -> КАЗАНЬ | E12: =VLOOKUP($F12,УЧАСТНИКИ!$A$1:$K$716,11,FALSE) -> СДЮСШОР ЛА | F12: 62 | J12: =VLOOKUP($F12,УЧАСТНИКИ!$A$2:$K$232,9,FALSE) -> 3
A13: 4 | B13: =VLOOKUP($F13,УЧАСТНИКИ!$A$1:$K$716,3,FALSE) -> ЗАКУТАЕВ НИКИТА | C13: =VLOOKUP($F13,УЧАСТНИКИ!$A$1:$K$716,4,FALSE) -> 2000 | D13: =VLOOKUP($F13,УЧАСТНИКИ!$A$1:$K$716,5,FALSE) -> КАЗАНЬ | E13: =VLOOKUP($F13,УЧАСТНИКИ!$A$1:$K$716,11,FALSE) -> СТРЕЛА | F13: 3800 | J13: =VLOOKUP($F13,УЧАСТНИКИ!$A$2:$K$232,9,FALSE) -> Л
A14: 5 | B14: =VLOOKUP($F14,УЧАСТНИКИ!$A$1:$K$716,3,FALSE) -> ГАЗИЗОВ АЛЬБЕРТ | C14: =VLOOKUP($F14,УЧАСТНИКИ!$A$1:$K$716,4,FALSE) -> 1998 | D14: =VLOOKUP($F14,УЧАСТНИКИ!$A$1:$K$716,5,FALSE) -> ЗЕЛЕНОДОЛЬСК | E14: =VLOOKUP($F14,УЧАСТНИКИ!$A$1:$K$716,11,FALSE) -> - | F14: 3562 | J14: =VLOOKUP($F14,УЧАСТНИКИ!$A$2:$K$232,9,FALSE) -> Л
B15: 2 ЗАБЕГ
A16: 1 | B16: =VLOOKUP($F16,УЧАСТНИКИ!$A$1:$K$716,3,FALSE) -> КОЛБЕНЕВ АЛЕКСАНДР | C16: =VLOOKUP($F16,УЧАСТНИКИ!$A$1:$K$716,4,FALSE) -> 2003/ВК | D16: =VLOOKUP($F16,УЧАСТНИКИ!$A$1:$K$716,5,FALSE) -> КАЗАНЬ | E16: =VLOOKUP($F16,УЧАСТНИКИ!$A$1:$K$716,11,FALSE) -> КДЮСШ АВИАТОР | F16: 3775 | J16: =VLOOKUP($F16,УЧАСТНИКИ!$A$2:$K$232,9,FALSE) -> ВК
A17: 2 | B17: =VLOOKUP($F17,УЧАСТНИКИ!$A$1:$K$716,3,FALSE) -> АРАСЛАНОВ АРТЕМ | C17: =VLOOKUP($F17,УЧАСТНИКИ!$A$1:$K$716,4,FALSE) -> 1994 | D17: =VLOOKUP($F17,УЧАСТНИКИ!$A$1:$K$716,5,FALSE) -> КАЗАНЬ | E17: =VLOOKUP($F17,УЧАСТНИКИ!$A$1:$K$716,11,FALSE) -> ПГАФКСиТ, КДЮСШ АВИАТОР | F17: 3853 | J17: =VLOOKUP($F17,УЧАСТНИКИ!$A$2:$K$232,9,FALSE) -> Л
A18: 3 | B18: =VLOOKUP($F18,УЧАСТНИКИ!$A$1:$K$716,3,FALSE) -> ГОРДЕЕВ АЛЕКСАНДР | C18: =VLOOKUP($F18,УЧАСТНИКИ!$A$1:$K$716,4,FALSE) -> 2000 | D18: =VLOOKUP($F18,УЧАСТНИКИ!$A$1:$K$716,5,FALSE) -> КАЗАНЬ | E18: =VLOOKUP($F18,УЧАСТНИКИ!$A$1:$K$716,11,FALSE) -> СДЮСШОР ЛА | F18: 63 | J18: =VLOOKUP($F18,УЧАСТНИКИ!$A$2:$K$232,9,FALSE) -> 3
A19: 4 | B19: =VLOOKUP($F19,УЧАСТНИКИ!$A$1:$K$716,3,FALSE) -> ГАЙНЕТДИНОВ НИЯЗ | C19: =VLOOKUP($F19,УЧАСТНИКИ!$A$1:$K$716,4,FALSE) -> 2000 | D19: =VLOOKUP($F19,УЧАСТНИКИ!$A$1:$K$716,5,FALSE) -> КАЗАНЬ | E19: =VLOOKUP($F19,УЧАСТНИКИ!$A$1:$K$716,11,FALSE) -> КДЮСШ АВИАТОР | F19: 3855 | J19: =VLOOKUP($F19,УЧАСТНИКИ!$A$2:$K$232,9,FALSE) -> Л
A20: 5 | B20: =VLOOKUP($F20,УЧАСТНИКИ!$A$1:$K$716,3,FALSE) -> ИСХАКОВ АСКАР | C20: =VLOOKUP($F20,УЧАСТНИКИ!$A$1:$K$716,4,FALSE) -> 1998 | D20: =VLOOKUP($F20,УЧАСТНИКИ!$A$1:$K$716,5,FALSE) -> КАЗАНЬ | E20: =VLOOKUP($F20,УЧАСТНИКИ!$A$1:$K$716,11,FALSE) -> КДЮСШ АВИАТОР | F20: 3840 | J20: =VLOOKUP($F20,УЧАСТНИКИ!$A$2:$K$232,9,FALSE) -> Л
B21: 3 ЗАБЕГ
A22: 1 | B22: =VLOOKUP($F22,УЧАСТНИКИ!$A$1:$K$716,3,FALSE) -> ЗИГАНШИН ДАМИР | C22: =VLOOKUP($F22,УЧАСТНИКИ!$A$1:$K$716,4,FALSE) -> 1998 | D22: =VLOOKUP($F22,УЧАСТНИКИ!$A$1:$K$716,5,FALSE) -> КАЗАНЬ | E22: =VLOOKUP($F22,УЧАСТНИКИ!$A$1:$K$716,11,FALSE) -> КДЮСШ АВИАТОР | F22: 3841 | J22: =VLOOKUP($F22,УЧАСТНИКИ!$A$2:$K$232,9,FALSE) -> Л
A23: 2 | B23: =VLOOKUP($F23,УЧАСТНИКИ!$A$1:$K$716,3,FALSE) -> ХУЗИАХМЕТОВ АРТУР | C23: =VLOOKUP($F23,УЧАСТНИКИ!$A$1:$K$716,4,FALSE) -> 1997 | D23: =VLOOKUP($F23,УЧАСТНИКИ!$A$1:$K$716,5,FALSE) -> КАЗАНЬ | E23: =VLOOKUP($F23,УЧАСТНИКИ!$A$1:$K$716,11,FALSE) -> КДЮСШ АВИАТОР | F23: 3856 | J23: =VLOOKUP($F23,УЧАСТНИКИ!$A$2:$K$232,9,FALSE) -> Л
A24: 3 | B24: =VLOOKUP($F24,УЧАСТНИКИ!$A$1:$K$716,3,FALSE) -> ФАТЫХОВ ИЛЬНАЗ | C24: =VLOOKUP($F24,УЧАСТНИКИ!$A$1:$K$716,4,FALSE) -> 1992 | D24: =VLOOKUP($F24,УЧАСТНИКИ!$A$1:$K$716,5,FALSE) -> НАБ.ЧЕЛНЫ | E24: =VLOOKUP($F24,УЧАСТНИКИ!$A$1:$K$716,11,FALSE) -> ЯР ЧАЛЛЫ | F24: 3872 | J24: =VLOOKUP($F24,УЧАСТНИКИ!$A$2:$K$232,9,FALSE) -> Л
A25: 4 | B25: =VLOOKUP($F25,УЧАСТНИКИ!$A$1:$K$716,3,FALSE) -> МАЛЬКОВ ДАНИЛ | C25: =VLOOKUP($F25,УЧАСТНИКИ!$A$1:$K$716,4,FALSE) -> 2002ВК | D25: =VLOOKUP($F25,УЧАСТНИКИ!$A$1:$K$716,5,FALSE) -> КАЗАНЬ | E25: =VLOOKUP($F25,УЧАСТНИКИ!$A$1:$K$716,11,FALSE) -> СТРЕЛА | F25: 3795 | J25: =VLOOKUP($F25,УЧАСТНИКИ!$A$2:$K$232,9,FALSE) -> ВК
A26: 5 | B26: =VLOOKUP($F26,УЧАСТНИКИ!$A$1:$K$716,3,FALSE) -> СЕИДОВ ЭЛЬЧИН | C26: =VLOOKUP($F26,УЧАСТНИКИ!$A$1:$K$716,4,FALSE) -> 1992 | D26: =VLOOKUP($F26,УЧАСТНИКИ!$A$1:$K$716,5,FALSE) -> КАЗАНЬ | E26: =VLOOKUP($F26,УЧАСТНИКИ!$A$1:$K$716,11,FALSE) -> КГЭУ | F26: 3570 | J26: =VLOOKUP($F26,УЧАСТНИКИ!$A$2:$K$232,9,FALSE) -> Л
B27: 4 ЗАБЕГ
A28: 1 | B28: =VLOOKUP($F28,УЧАСТНИКИ!$A$1:$K$716,3,FALSE) -> МАТЮШКИН ДАНИЛ | C28: =VLOOKUP($F28,УЧАСТНИКИ!$A$1:$K$716,4,FALSE) -> 1998 | D28: =VLOOKUP($F28,УЧАСТНИКИ!$A$1:$K$716,5,FALSE) -> КАЗАНЬ | E28: =VLOOKUP($F28,УЧАСТНИКИ!$A$1:$K$716,11,FALSE) -> ПГАФКСиТ | F28: 3573 | J28: =VLOOKUP($F28,УЧАСТНИКИ!$A$2:$K$232,9,FALSE) -> Л
A29: 2 | B29: =VLOOKUP($F29,УЧАСТНИКИ!$A$1:$K$716,3,FALSE) -> ДАУТОВ ТИМУР | C29: =VLOOKUP($F29,УЧАСТНИКИ!$A$1:$K$716,4,FALSE) -> 1999 | D29: =VLOOKUP($F29,УЧАСТНИКИ!$A$1:$K$716,5,FALSE) -> КАЗАНЬ | E29: =VLOOKUP($F29,УЧАСТНИКИ!$A$1:$K$716,11,FALSE) -> КДЮСШ АВИАТОР | F29: 3858 | J29: =VLOOKUP($F29,УЧАСТНИКИ!$A$2:$K$232,9,FALSE) -> Л
A30: 3 | B30: =VLOOKUP($F30,УЧАСТНИКИ!$A$1:$K$716,3,FALSE) -> ОСИПОВ ИВАН | C30: =VLOOKUP($F30,УЧАСТНИКИ!$A$1:$K$716,4,FALSE) -> 1994 | D30: =VLOOKUP($F30,УЧАСТНИКИ!$A$1:$K$716,5,FALSE) -> КАЗАНЬ | E30: =VLOOKUP($F30,УЧАСТНИКИ!$A$1:$K$716,11,FALSE) -> ДЮСШ ОЛИМП | F30: 3866 | J30: =VLOOKUP($F30,УЧАСТНИКИ!$A$2:$K$232,9,FALSE) -> Л
A31: 4 | B31: =VLOOKUP($F31,УЧАСТНИКИ!$A$1:$K$716,3,FALSE) -> НИКОЛАВИН ДАНИИЛ | C31: =VLOOKUP($F31,УЧАСТНИКИ!$A$1:$K$716,4,FALSE) -> 2000 | D31: =VLOOKUP($F31,УЧАСТНИКИ!$A$1:$K$716,5,FALSE) -> КАЗАНЬ | E31: =VLOOKUP($F31,УЧАСТНИКИ!$A$1:$K$716,11,FALSE) -> СТРЕЛА | F31: 3799 | J31: =VLOOKUP($F31,УЧАСТНИКИ!$A$2:$K$232,9,FALSE) -> Л
A32: 5 | B32: =VLOOKUP($F32,УЧАСТНИКИ!$A$1:$K$716,3,FALSE) -> КРАЙНОВ ДЕНИС | C32: =VLOOKUP($F32,УЧАСТНИКИ!$A$1:$K$716,4,FALSE) -> 1997 | D32: =VLOOKUP($F32,УЧАСТНИКИ!$A$1:$K$716,5,FALSE) -> КАЗАНЬ | E32: =VLOOKUP($F32,УЧАСТНИКИ!$A$1:$K$716,11,FALSE) -> ДЮСШ ОЛИМП | F32: 69 | J32: =VLOOKUP($F32,УЧАСТНИКИ!$A$2:$K$232,9,FALSE) -> Л
B33: 5 ЗАБЕГ
A34: 1
A35: 2
A36: 3
A37: 4
A38: 5
B39: 6 ЗАБЕГ
A40: 1 | B40: =VLOOKUP($F40,УЧАСТНИКИ!$A$1:$K$716,3,FALSE) ->  | C40: =VLOOKUP($F40,УЧАСТНИКИ!$A$1:$K$716,4,FALSE) ->  | D40: =VLOOKUP($F40,УЧАСТНИКИ!$A$1:$K$716,5,FALSE) ->  | E40: =VLOOKUP($F40,УЧАСТНИКИ!$A$1:$K$716,11,FALSE) ->  | J40: =VLOOKUP($F40,УЧАСТНИКИ!$A$2:$K$232,9,FALSE) -> 
A41: 2 | B41: =VLOOKUP($F41,УЧАСТНИКИ!$A$1:$K$716,3,FALSE) ->  | C41: =VLOOKUP($F41,УЧАСТНИКИ!$A$1:$K$716,4,FALSE) ->  | D41: =VLOOKUP($F41,УЧАСТНИКИ!$A$1:$K$716,5,FALSE) ->  | E41: =VLOOKUP($F41,УЧАСТНИКИ!$A$1:$K$716,11,FALSE) ->  | J41: =VLOOKUP($F41,УЧАСТНИКИ!$A$2:$K$232,9,FALSE) -> 
A42: 3 | B42: =VLOOKUP($F42,УЧАСТНИКИ!$A$1:$K$716,3,FALSE) ->  | C42: =VLOOKUP($F42,УЧАСТНИКИ!$A$1:$K$716,4,FALSE) ->  | D42: =VLOOKUP($F42,УЧАСТНИКИ!$A$1:$K$716,5,FALSE) ->  | E42: =VLOOKUP($F42,УЧАСТНИКИ!$A$1:$K$716,11,FALSE) ->  | J42: =VLOOKUP($F42,УЧАСТНИКИ!$A$2:$K$232,9,FALSE) -> 
A43: 4 | B43: =VLOOKUP($F43,УЧАСТНИКИ!$A$1:$K$716,3,FALSE) ->  | C43: =VLOOKUP($F43,УЧАСТНИКИ!$A$1:$K$716,4,FALSE) ->  | D43: =VLOOKUP($F43,УЧАСТНИКИ!$A$1:$K$716,5,FALSE) ->  | E43: =VLOOKUP($F43,УЧАСТНИКИ!$A$1:$K$716,11,FALSE) ->  | J43: =VLOOKUP($F43,УЧАСТНИКИ!$A$2:$K$232,9,FALSE) -> 
A44: 5 | B44: =VLOOKUP($F44,УЧАСТНИКИ!$A$1:$K$716,3,FALSE) ->  | C44: =VLOOKUP($F44,УЧАСТНИКИ!$A$1:$K$716,4,FALSE) ->  | D44: =VLOOKUP($F44,УЧАСТНИКИ!$A$1:$K$716,5,FALSE) ->  | E44: =VLOOKUP($F44,УЧАСТНИКИ!$A$1:$K$716,11,FALSE) ->  | J44: =VLOOKUP($F44,УЧАСТНИКИ!$A$2:$K$232,9,FALSE) -> 
B45: 7 ЗАБЕГ
A46: 1 | B46: =VLOOKUP($F46,УЧАСТНИКИ!$A$1:$K$716,3,FALSE) ->  | C46: =VLOOKUP($F46,УЧАСТНИКИ!$A$1:$K$716,4,FALSE) ->  | D46: =VLOOKUP($F46,УЧАСТНИКИ!$A$1:$K$716,5,FALSE) ->  | E46: =VLOOKUP($F46,УЧАСТНИКИ!$A$1:$K$716,11,FALSE) ->  | J46: =VLOOKUP($F46,УЧАСТНИКИ!$A$2:$K$232,9,FALSE) -> 
A47: 2 | B47: =VLOOKUP($F47,УЧАСТНИКИ!$A$1:$K$716,3,FALSE) ->  | C47: =VLOOKUP($F47,УЧАСТНИКИ!$A$1:$K$716,4,FALSE) ->  | D47: =VLOOKUP($F47,УЧАСТНИКИ!$A$1:$K$716,5,FALSE) ->  | E47: =VLOOKUP($F47,УЧАСТНИКИ!$A$1:$K$716,11,FALSE) ->  | J47: =VLOOKUP($F47,УЧАСТНИКИ!$A$2:$K$232,9,FALSE) -> 
A48: 3 | B48: =VLOOKUP($F48,УЧАСТНИКИ!$A$1:$K$716,3,FALSE) ->  | C48: =VLOOKUP($F48,УЧАСТНИКИ!$A$1:$K$716,4,FALSE) ->  | D48: =VLOOKUP($F48,УЧАСТНИКИ!$A$1:$K$716,5,FALSE) ->  | E48: =VLOOKUP($F48,УЧАСТНИКИ!$A$1:$K$716,11,FALSE) ->  | J48: =VLOOKUP($F48,УЧАСТНИКИ!$A$2:$K$232,9,FALSE) -> 
A49: 4 | B49: =VLOOKUP($F49,УЧАСТНИКИ!$A$1:$K$716,3,FALSE) ->  | C49: =VLOOKUP($F49,УЧАСТНИКИ!$A$1:$K$716,4,FALSE) ->  | D49: =VLOOKUP($F49,УЧАСТНИКИ!$A$1:$K$716,5,FALSE) ->  | E49: =VLOOKUP($F49,УЧАСТНИКИ!$A$1:$K$716,11,FALSE) ->  | J49: =VLOOKUP($F49,УЧАСТНИКИ!$A$2:$K$232,9,FALSE) -> 
A50: 5 | B50: =VLOOKUP($F50,УЧАСТНИКИ!$A$1:$K$716,3,FALSE) ->  | C50: =VLOOKUP($F50,УЧАСТНИКИ!$A$1:$K$716,4,FALSE) ->  | D50: =VLOOKUP($F50,УЧАСТНИКИ!$A$1:$K$716,5,FALSE) ->  | E50: =VLOOKUP($F50,УЧАСТНИКИ!$A$1:$K$716,11,FALSE) ->  | J50: =VLOOKUP($F50,УЧАСТНИКИ!$A$2:$K$232,9,FALSE) -> 
B51: 8 ЗАБЕГ
A52: 1 | B52: =VLOOKUP($F52,УЧАСТНИКИ!$A$1:$K$716,3,FALSE) ->  | C52: =VLOOKUP($F52,УЧАСТНИКИ!$A$1:$K$716,4,FALSE) ->  | D52: =VLOOKUP($F52,УЧАСТНИКИ!$A$1:$K$716,5,FALSE) ->  | E52: =VLOOKUP($F52,УЧАСТНИКИ!$A$1:$K$716,11,FALSE) ->  | J52: =VLOOKUP($F52,УЧАСТНИКИ!$A$2:$K$232,9,FALSE) -> 
A53: 2 | B53: =VLOOKUP($F53,УЧАСТНИКИ!$A$1:$K$716,3,FALSE) ->  | C53: =VLOOKUP($F53,УЧАСТНИКИ!$A$1:$K$716,4,FALSE) ->  | D53: =VLOOKUP($F53,УЧАСТНИКИ!$A$1:$K$716,5,FALSE) ->  | E53: =VLOOKUP($F53,УЧАСТНИКИ!$A$1:$K$716,11,FALSE) ->  | J53: =VLOOKUP($F53,УЧАСТНИКИ!$A$2:$K$232,9,FALSE) -> 
A54: 3 | B54: =VLOOKUP($F54,УЧАСТНИКИ!$A$1:$K$716,3,FALSE) ->  | C54: =VLOOKUP($F54,УЧАСТНИКИ!$A$1:$K$716,4,FALSE) ->  | D54: =VLOOKUP($F54,УЧАСТНИКИ!$A$1:$K$716,5,FALSE) ->  | E54: =VLOOKUP($F54,УЧАСТНИКИ!$A$1:$K$716,11,FALSE) ->  | J54: =VLOOKUP($F54,УЧАСТНИКИ!$A$2:$K$232,9,FALSE) -> 
A55: 4 | B55: =VLOOKUP($F55,УЧАСТНИКИ!$A$1:$K$716,3,FALSE) ->  | C55: =VLOOKUP($F55,УЧАСТНИКИ!$A$1:$K$716,4,FALSE) ->  | D55: =VLOOKUP($F55,УЧАСТНИКИ!$A$1:$K$716,5,FALSE) ->  | E55: =VLOOKUP($F55,УЧАСТНИКИ!$A$1:$K$716,11,FALSE) ->  | J55: =VLOOKUP($F55,УЧАСТНИКИ!$A$2:$K$232,9,FALSE) -> 
A56: 5 | B56: =VLOOKUP($F56,УЧАСТНИКИ!$A$1:$K$716,3,FALSE) ->  | C56: =VLOOKUP($F56,УЧАСТНИКИ!$A$1:$K$716,4,FALSE) ->  | D56: =VLOOKUP($F56,УЧАСТНИКИ!$A$1:$K$716,5,FALSE) ->  | E56: =VLOOKUP($F56,УЧАСТНИКИ!$A$1:$K$716,11,FALSE) ->  | J56: =VLOOKUP($F56,УЧАСТНИКИ!$A$2:$K$232,9,FALSE) -> 
B57: 9 ЗАБЕГ
A58: 1 | B58: =VLOOKUP($F58,УЧАСТНИКИ!$A$1:$K$716,3,FALSE) ->  | C58: =VLOOKUP($F58,УЧАСТНИКИ!$A$1:$K$716,4,FALSE) ->  | D58: =VLOOKUP($F58,УЧАСТНИКИ!$A$1:$K$716,5,FALSE) ->  | E58: =VLOOKUP($F58,УЧАСТНИКИ!$A$1:$K$716,11,FALSE) ->  | J58: =VLOOKUP($F58,УЧАСТНИКИ!$A$2:$K$232,9,FALSE) -> 
A59: 2 | B59: =VLOOKUP($F59,УЧАСТНИКИ!$A$1:$K$716,3,FALSE) ->  | C59: =VLOOKUP($F59,УЧАСТНИКИ!$A$1:$K$716,4,FALSE) ->  | D59: =VLOOKUP($F59,УЧАСТНИКИ!$A$1:$K$716,5,FALSE) ->  | E59: =VLOOKUP($F59,УЧАСТНИКИ!$A$1:$K$716,11,FALSE) ->  | J59: =VLOOKUP($F59,УЧАСТНИКИ!$A$2:$K$232,9,FALSE) -> 
A60: 3 | B60: =VLOOKUP($F60,УЧАСТНИКИ!$A$1:$K$716,3,FALSE) ->  | C60: =VLOOKUP($F60,УЧАСТНИКИ!$A$1:$K$716,4,FALSE) ->  | D60: =VLOOKUP($F60,УЧАСТНИКИ!$A$1:$K$716,5,FALSE) ->  | E60: =VLOOKUP($F60,УЧАСТНИКИ!$A$1:$K$716,11,FALSE) ->  | J60: =VLOOKUP($F60,УЧАСТНИКИ!$A$2:$K$232,9,FALSE) -> 
A61: 4 | B61: =VLOOKUP($F61,УЧАСТНИКИ!$A$1:$K$716,3,FALSE) ->  | C61: =VLOOKUP($F61,УЧАСТНИКИ!$A$1:$K$716,4,FALSE) ->  | D61: =VLOOKUP($F61,УЧАСТНИКИ!$A$1:$K$716,5,FALSE) ->  | E61: =VLOOKUP($F61,УЧАСТНИКИ!$A$1:$K$716,11,FALSE) ->  | J61: =VLOOKUP($F61,УЧАСТНИКИ!$A$2:$K$232,9,FALSE) -> 
A62: 5 | B62: =VLOOKUP($F62,УЧАСТНИКИ!$A$1:$K$716,3,FALSE) ->  | C62: =VLOOKUP($F62,УЧАСТНИКИ!$A$1:$K$716,4,FALSE) ->  | D62: =VLOOKUP($F62,УЧАСТНИКИ!$A$1:$K$716,5,FALSE) ->  | E62: =VLOOKUP($F62,УЧАСТНИКИ!$A$1:$K$716,11,FALSE) ->  | J62: =VLOOKUP($F62,УЧАСТНИКИ!$A$2:$K$232,9,FALSE) -> 
B63: 10 ЗАБЕГ
A64: 1 | B64: =VLOOKUP($F64,УЧАСТНИКИ!$A$1:$K$716,3,FALSE) ->  | C64: =VLOOKUP($F64,УЧАСТНИКИ!$A$1:$K$716,4,FALSE) ->  | D64: =VLOOKUP($F64,УЧАСТНИКИ!$A$1:$K$716,5,FALSE) ->  | E64: =VLOOKUP($F64,УЧАСТНИКИ!$A$1:$K$716,11,FALSE) ->  | J64: =VLOOKUP($F64,УЧАСТНИКИ!$A$2:$K$232,9,FALSE) -> 
A65: 2 | B65: =VLOOKUP($F65,УЧАСТНИКИ!$A$1:$K$716,3,FALSE) ->  | C65: =VLOOKUP($F65,УЧАСТНИКИ!$A$1:$K$716,4,FALSE) ->  | D65: =VLOOKUP($F65,УЧАСТНИКИ!$A$1:$K$716,5,FALSE) ->  | E65: =VLOOKUP($F65,УЧАСТНИКИ!$A$1:$K$716,11,FALSE) ->  | J65: =VLOOKUP($F65,УЧАСТНИКИ!$A$2:$K$232,9,FALSE) -> 
A66: 3 | B66: =VLOOKUP($F66,УЧАСТНИКИ!$A$1:$K$716,3,FALSE) ->  | C66: =VLOOKUP($F66,УЧАСТНИКИ!$A$1:$K$716,4,FALSE) ->  | D66: =VLOOKUP($F66,УЧАСТНИКИ!$A$1:$K$716,5,FALSE) ->  | E66: =VLOOKUP($F66,УЧАСТНИКИ!$A$1:$K$716,11,FALSE) ->  | J66: =VLOOKUP($F66,УЧАСТНИКИ!$A$2:$K$232,9,FALSE) -> 
A67: 4 | B67: =VLOOKUP($F67,УЧАСТНИКИ!$A$1:$K$716,3,FALSE) ->  | C67: =VLOOKUP($F67,УЧАСТНИКИ!$A$1:$K$716,4,FALSE) ->  | D67: =VLOOKUP($F67,УЧАСТНИКИ!$A$1:$K$716,5,FALSE) ->  | E67: =VLOOKUP($F67,УЧАСТНИКИ!$A$1:$K$716,11,FALSE) ->  | J67: =VLOOKUP($F67,УЧАСТНИКИ!$A$2:$K$232,9,FALSE) -> 
A68: 5 | B68: =VLOOKUP($F68,УЧАСТНИКИ!$A$1:$K$716,3,FALSE) ->  | C68: =VLOOKUP($F68,УЧАСТНИКИ!$A$1:$K$716,4,FALSE) ->  | D68: =VLOOKUP($F68,УЧАСТНИКИ!$A$1:$K$716,5,FALSE) ->  | E68: =VLOOKUP($F68,УЧАСТНИКИ!$A$1:$K$716,11,FALSE) ->  | J68: =VLOOKUP($F68,УЧАСТНИКИ!$A$2:$K$232,9,FALSE) -> 
B69: =Name_9 -> МУЖЧИНЫ 2001г.р. и старше
B70: 11 ЗАБЕГ
A71: 1 | B71: =VLOOKUP($F71,УЧАСТНИКИ!$A$1:$K$716,3,FALSE) ->  | C71: =VLOOKUP($F71,УЧАСТНИКИ!$A$1:$K$716,4,FALSE) ->  | D71: =VLOOKUP($F71,УЧАСТНИКИ!$A$1:$K$716,5,FALSE) ->  | E71: =VLOOKUP($F71,УЧАСТНИКИ!$A$1:$K$716,11,FALSE) -> 
A72: 2 | B72: =VLOOKUP($F72,УЧАСТНИКИ!$A$1:$K$716,3,FALSE) ->  | C72: =VLOOKUP($F72,УЧАСТНИКИ!$A$1:$K$716,4,FALSE) ->  | D72: =VLOOKUP($F72,УЧАСТНИКИ!$A$1:$K$716,5,FALSE) ->  | E72: =VLOOKUP($F72,УЧАСТНИКИ!$A$1:$K$716,11,FALSE) -> 
A73: 3 | B73: =VLOOKUP($F73,УЧАСТНИКИ!$A$1:$K$716,3,FALSE) ->  | C73: =VLOOKUP($F73,УЧАСТНИКИ!$A$1:$K$716,4,FALSE) ->  | D73: =VLOOKUP($F73,УЧАСТНИКИ!$A$1:$K$716,5,FALSE) ->  | E73: =VLOOKUP($F73,УЧАСТНИКИ!$A$1:$K$716,11,FALSE) -> 
A74: 4 | B74: =VLOOKUP($F74,УЧАСТНИКИ!$A$1:$K$716,3,FALSE) ->  | C74: =VLOOKUP($F74,УЧАСТНИКИ!$A$1:$K$716,4,FALSE) ->  | D74: =VLOOKUP($F74,УЧАСТНИКИ!$A$1:$K$716,5,FALSE) ->  | E74: =VLOOKUP($F74,УЧАСТНИКИ!$A$1:$K$716,11,FALSE) -> 
A75: 5 | B75: =VLOOKUP($F75,УЧАСТНИКИ!$A$1:$K$716,3,FALSE) ->  | C75: =VLOOKUP($F75,УЧАСТНИКИ!$A$1:$K$716,4,FALSE) ->  | D75: =VLOOKUP($F75,УЧАСТНИКИ!$A$1:$K$716,5,FALSE) ->  | E75: =VLOOKUP($F75,УЧАСТНИКИ!$A$1:$K$716,11,FALSE) -> 
B76: 12 ЗАБЕГ
A77: 1 | B77: =VLOOKUP($F77,УЧАСТНИКИ!$A$1:$K$716,3,FALSE) ->  | C77: =VLOOKUP($F77,УЧАСТНИКИ!$A$1:$K$716,4,FALSE) ->  | D77: =VLOOKUP($F77,УЧАСТНИКИ!$A$1:$K$716,5,FALSE) ->  | E77: =VLOOKUP($F77,УЧАСТНИКИ!$A$1:$K$716,11,FALSE) -> 
A78: 2 | B78: =VLOOKUP($F78,УЧАСТНИКИ!$A$1:$K$716,3,FALSE) ->  | C78: =VLOOKUP($F78,УЧАСТНИКИ!$A$1:$K$716,4,FALSE) ->  | D78: =VLOOKUP($F78,УЧАСТНИКИ!$A$1:$K$716,5,FALSE) ->  | E78: =VLOOKUP($F78,УЧАСТНИКИ!$A$1:$K$716,11,FALSE) -> 
A79: 3 | B79: =VLOOKUP($F79,УЧАСТНИКИ!$A$1:$K$716,3,FALSE) ->  | C79: =VLOOKUP($F79,УЧАСТНИКИ!$A$1:$K$716,4,FALSE) ->  | D79: =VLOOKUP($F79,УЧАСТНИКИ!$A$1:$K$716,5,FALSE) ->  | E79: =VLOOKUP($F79,УЧАСТНИКИ!$A$1:$K$716,11,FALSE) -> 
A80: 4 | B80: =VLOOKUP($F80,УЧАСТНИКИ!$A$1:$K$716,3,FALSE) ->  | C80: =VLOOKUP($F80,УЧАСТНИКИ!$A$1:$K$716,4,FALSE) ->  | D80: =VLOOKUP($F80,УЧАСТНИКИ!$A$1:$K$716,5,FALSE) ->  | E80: =VLOOKUP($F80,УЧАСТНИКИ!$A$1:$K$716,11,FALSE) -> 
A81: 5 | B81: =VLOOKUP($F81,УЧАСТНИКИ!$A$1:$K$716,3,FALSE) ->  | C81: =VLOOKUP($F81,УЧАСТНИКИ!$A$1:$K$716,4,FALSE) ->  | D81: =VLOOKUP($F81,УЧАСТНИКИ!$A$1:$K$716,5,FALSE) ->  | E81: =VLOOKUP($F81,УЧАСТНИКИ!$A$1:$K$716,11,FALSE) -> 
B82: 13 ЗАБЕГ
A83: 1 | B83: =VLOOKUP($F83,УЧАСТНИКИ!$A$1:$K$716,3,FALSE) ->  | C83: =VLOOKUP($F83,УЧАСТНИКИ!$A$1:$K$716,4,FALSE) ->  | D83: =VLOOKUP($F83,УЧАСТНИКИ!$A$1:$K$716,5,FALSE) ->  | E83: =VLOOKUP($F83,УЧАСТНИКИ!$A$1:$K$716,11,FALSE) -> 
A84: 2 | B84: =VLOOKUP($F84,УЧАСТНИКИ!$A$1:$K$716,3,FALSE) ->  | C84: =VLOOKUP($F84,УЧАСТНИКИ!$A$1:$K$716,4,FALSE) ->  | D84: =VLOOKUP($F84,УЧАСТНИКИ!$A$1:$K$716,5,FALSE) ->  | E84: =VLOOKUP($F84,УЧАСТНИКИ!$A$1:$K$716,11,FALSE) -> 
A85: 3 | B85: =VLOOKUP($F85,УЧАСТНИКИ!$A$1:$K$716,3,FALSE) ->  | C85: =VLOOKUP($F85,УЧАСТНИКИ!$A$1:$K$716,4,FALSE) ->  | D85: =VLOOKUP($F85,УЧАСТНИКИ!$A$1:$K$716,5,FALSE) ->  | E85: =VLOOKUP($F85,УЧАСТНИКИ!$A$1:$K$716,11,FALSE) -> 
A86: 4 | B86: =VLOOKUP($F86,УЧАСТНИКИ!$A$1:$K$716,3,FALSE) ->  | C86: =VLOOKUP($F86,УЧАСТНИКИ!$A$1:$K$716,4,FALSE) ->  | D86: =VLOOKUP($F86,УЧАСТНИКИ!$A$1:$K$716,5,FALSE) ->  | E86: =VLOOKUP($F86,УЧАСТНИКИ!$A$1:$K$716,11,FALSE) -> 
A87: 5
B88: 14 ЗАБЕГ
A89: 1 | B89: =VLOOKUP($F89,УЧАСТНИКИ!$A$1:$K$716,3,FALSE) ->  | C89: =VLOOKUP($F89,УЧАСТНИКИ!$A$1:$K$716,4,FALSE) ->  | D89: =VLOOKUP($F89,УЧАСТНИКИ!$A$1:$K$716,5,FALSE) ->  | E89: =VLOOKUP($F89,УЧАСТНИКИ!$A$1:$K$716,11,FALSE) -> 
A90: 2 | B90: =VLOOKUP($F90,УЧАСТНИКИ!$A$1:$K$716,3,FALSE) ->  | C90: =VLOOKUP($F90,УЧАСТНИКИ!$A$1:$K$716,4,FALSE) ->  | D90: =VLOOKUP($F90,УЧАСТНИКИ!$A$1:$K$716,5,FALSE) ->  | E90: =VLOOKUP($F90,УЧАСТНИКИ!$A$1:$K$716,11,FALSE) -> 
A91: 3 | B91: =VLOOKUP($F91,УЧАСТНИКИ!$A$1:$K$716,3,FALSE) ->  | C91: =VLOOKUP($F91,УЧАСТНИКИ!$A$1:$K$716,4,FALSE) ->  | D91: =VLOOKUP($F91,УЧАСТНИКИ!$A$1:$K$716,5,FALSE) ->  | E91: =VLOOKUP($F91,УЧАСТНИКИ!$A$1:$K$716,11,FALSE) -> 
A92: 4 | B92: =VLOOKUP($F92,УЧАСТНИКИ!$A$1:$K$716,3,FALSE) ->  | C92: =VLOOKUP($F92,УЧАСТНИКИ!$A$1:$K$716,4,FALSE) ->  | D92: =VLOOKUP($F92,УЧАСТНИКИ!$A$1:$K$716,5,FALSE) ->  | E92: =VLOOKUP($F92,УЧАСТНИКИ!$A$1:$K$716,11,FALSE) -> 
A93: 5 | B93: =VLOOKUP($F93,УЧАСТНИКИ!$A$1:$K$716,3,FALSE) ->  | C93: =VLOOKUP($F93,УЧАСТНИКИ!$A$1:$K$716,4,FALSE) ->  | D93: =VLOOKUP($F93,УЧАСТНИКИ!$A$1:$K$716,5,FALSE) ->  | E93: =VLOOKUP($F93,УЧАСТНИКИ!$A$1:$K$716,11,FALSE) -> 
B94: 15 ЗАБЕГ
A95: 1 | B95: =VLOOKUP($F95,УЧАСТНИКИ!$A$1:$K$716,3,FALSE) ->  | C95: =VLOOKUP($F95,УЧАСТНИКИ!$A$1:$K$716,4,FALSE) ->  | D95: =VLOOKUP($F95,УЧАСТНИКИ!$A$1:$K$716,5,FALSE) ->  | E95: =VLOOKUP($F95,УЧАСТНИКИ!$A$1:$K$716,11,FALSE) -> 
A96: 2 | B96: =VLOOKUP($F96,УЧАСТНИКИ!$A$1:$K$716,3,FALSE) ->  | C96: =VLOOKUP($F96,УЧАСТНИКИ!$A$1:$K$716,4,FALSE) ->  | D96: =VLOOKUP($F96,УЧАСТНИКИ!$A$1:$K$716,5,FALSE) ->  | E96: =VLOOKUP($F96,УЧАСТНИКИ!$A$1:$K$716,11,FALSE) -> 
A97: 3 | B97: =VLOOKUP($F97,УЧАСТНИКИ!$A$1:$K$716,3,FALSE) ->  | C97: =VLOOKUP($F97,УЧАСТНИКИ!$A$1:$K$716,4,FALSE) ->  | D97: =VLOOKUP($F97,УЧАСТНИКИ!$A$1:$K$716,5,FALSE) ->  | E97: =VLOOKUP($F97,УЧАСТНИКИ!$A$1:$K$716,11,FALSE) -> 
A98: 4 | B98: =VLOOKUP($F98,УЧАСТНИКИ!$A$1:$K$716,3,FALSE) ->  | C98: =VLOOKUP($F98,УЧАСТНИКИ!$A$1:$K$716,4,FALSE) ->  | D98: =VLOOKUP($F98,УЧАСТНИКИ!$A$1:$K$716,5,FALSE) ->  | E98: =VLOOKUP($F98,УЧАСТНИКИ!$A$1:$K$716,11,FALSE) -> 
A99: 5 | B99: =VLOOKUP($F99,УЧАСТНИКИ!$A$1:$K$716,3,FALSE) ->  | C99: =VLOOKUP($F99,УЧАСТНИКИ!$A$1:$K$716,4,FALSE) ->  | D99: =VLOOKUP($F99,УЧАСТНИКИ!$A$1:$K$716,5,FALSE) ->  | E99: =VLOOKUP($F99,УЧАСТНИКИ!$A$1:$K$716,11,FALSE) -> 
B100: 16 ЗАБЕГ
A101: 1 | B101: =VLOOKUP($F101,УЧАСТНИКИ!$A$1:$K$716,3,FALSE) ->  | C101: =VLOOKUP($F101,УЧАСТНИКИ!$A$1:$K$716,4,FALSE) ->  | D101: =VLOOKUP($F101,УЧАСТНИКИ!$A$1:$K$716,5,FALSE) ->  | E101: =VLOOKUP($F101,УЧАСТНИКИ!$A$1:$K$716,11,FALSE) -> 
A102: 2 | B102: =VLOOKUP($F102,УЧАСТНИКИ!$A$1:$K$716,3,FALSE) ->  | C102: =VLOOKUP($F102,УЧАСТНИКИ!$A$1:$K$716,4,FALSE) ->  | D102: =VLOOKUP($F102,УЧАСТНИКИ!$A$1:$K$716,5,FALSE) ->  | E102: =VLOOKUP($F102,УЧАСТНИКИ!$A$1:$K$716,11,FALSE) -> 
A103: 3 | B103: =VLOOKUP($F103,УЧАСТНИКИ!$A$1:$K$716,3,FALSE) ->  | C103: =VLOOKUP($F103,УЧАСТНИКИ!$A$1:$K$716,4,FALSE) ->  | D103: =VLOOKUP($F103,УЧАСТНИКИ!$A$1:$K$716,5,FALSE) ->  | E103: =VLOOKUP($F103,УЧАСТНИКИ!$A$1:$K$716,11,FALSE) -> 
A104: 4 | B104: =VLOOKUP($F104,УЧАСТНИКИ!$A$1:$K$716,3,FALSE) ->  | C104: =VLOOKUP($F104,УЧАСТНИКИ!$A$1:$K$716,4,FALSE) ->  | D104: =VLOOKUP($F104,УЧАСТНИКИ!$A$1:$K$716,5,FALSE) ->  | E104: =VLOOKUP($F104,УЧАСТНИКИ!$A$1:$K$716,11,FALSE) -> 
A105: 5 | B105: =VLOOKUP($F105,УЧАСТНИКИ!$A$1:$K$716,3,FALSE) ->  | C105: =VLOOKUP($F105,УЧАСТНИКИ!$A$1:$K$716,4,FALSE) ->  | D105: =VLOOKUP($F105,УЧАСТНИКИ!$A$1:$K$716,5,FALSE) ->  | E105: =VLOOKUP($F105,УЧАСТНИКИ!$A$1:$K$716,11,FALSE) -> 
B106: 17 ЗАБЕГ
A107: 1 | B107: =VLOOKUP($F107,УЧАСТНИКИ!$A$1:$K$716,3,FALSE) ->  | C107: =VLOOKUP($F107,УЧАСТНИКИ!$A$1:$K$716,4,FALSE) ->  | D107: =VLOOKUP($F107,УЧАСТНИКИ!$A$1:$K$716,5,FALSE) ->  | E107: =VLOOKUP($F107,УЧАСТНИКИ!$A$1:$K$716,11,FALSE) -> 
A108: 2 | B108: =VLOOKUP($F108,УЧАСТНИКИ!$A$1:$K$716,3,FALSE) ->  | C108: =VLOOKUP($F108,УЧАСТНИКИ!$A$1:$K$716,4,FALSE) ->  | D108: =VLOOKUP($F108,УЧАСТНИКИ!$A$1:$K$716,5,FALSE) ->  | E108: =VLOOKUP($F108,УЧАСТНИКИ!$A$1:$K$716,11,FALSE) -> 
A109: 3 | B109: =VLOOKUP($F109,УЧАСТНИКИ!$A$1:$K$716,3,FALSE) ->  | C109: =VLOOKUP($F109,УЧАСТНИКИ!$A$1:$K$716,4,FALSE) ->  | D109: =VLOOKUP($F109,УЧАСТНИКИ!$A$1:$K$716,5,FALSE) ->  | E109: =VLOOKUP($F109,УЧАСТНИКИ!$A$1:$K$716,11,FALSE) -> 
A110: 4 | B110: =VLOOKUP($F110,УЧАСТНИКИ!$A$1:$K$716,3,FALSE) ->  | C110: =VLOOKUP($F110,УЧАСТНИКИ!$A$1:$K$716,4,FALSE) ->  | D110: =VLOOKUP($F110,УЧАСТНИКИ!$A$1:$K$716,5,FALSE) ->  | E110: =VLOOKUP($F110,УЧАСТНИКИ!$A$1:$K$716,11,FALSE) -> 
A111: 5 | B111: =VLOOKUP($F111,УЧАСТНИКИ!$A$1:$K$716,3,FALSE) ->  | C111: =VLOOKUP($F111,УЧАСТНИКИ!$A$1:$K$716,4,FALSE) ->  | D111: =VLOOKUP($F111,УЧАСТНИКИ!$A$1:$K$716,5,FALSE) ->  | E111: =VLOOKUP($F111,УЧАСТНИКИ!$A$1:$K$716,11,FALSE) -> 
B112: 18 ЗАБЕГ
A113: 1
A114: 2 | B114: =VLOOKUP($F114,УЧАСТНИКИ!$A$1:$K$716,3,FALSE) ->  | C114: =VLOOKUP($F114,УЧАСТНИКИ!$A$1:$K$716,4,FALSE) ->  | D114: =VLOOKUP($F114,УЧАСТНИКИ!$A$1:$K$716,5,FALSE) ->  | E114: =VLOOKUP($F114,УЧАСТНИКИ!$A$1:$K$716,11,FALSE) -> 
A115: 3 | B115: =VLOOKUP($F115,УЧАСТНИКИ!$A$1:$K$716,3,FALSE) ->  | C115: =VLOOKUP($F115,УЧАСТНИКИ!$A$1:$K$716,4,FALSE) ->  | D115: =VLOOKUP($F115,УЧАСТНИКИ!$A$1:$K$716,5,FALSE) ->  | E115: =VLOOKUP($F115,УЧАСТНИКИ!$A$1:$K$716,11,FALSE) -> 
A116: 4 | B116: =VLOOKUP($F116,УЧАСТНИКИ!$A$1:$K$716,3,FALSE) ->  | C116: =VLOOKUP($F116,УЧАСТНИКИ!$A$1:$K$716,4,FALSE) ->  | D116: =VLOOKUP($F116,УЧАСТНИКИ!$A$1:$K$716,5,FALSE) ->  | E116: =VLOOKUP($F116,УЧАСТНИКИ!$A$1:$K$716,11,FALSE) -> 
A117: 5
A119: Рефери по бегу:
A120: Ст.судья:
A121: Ст.хронометрист:
A122: Секретарь:

Sheet 200м (2)
A1: =Name_2 -> ЦЕНТР СПОРТИВНОЙ ПОДГОТОВКИ РЕСПУБЛИКИ ТАТАРСТАН
A2: СТАРТОВЫЙ ПРОТОКОЛ
A3: =Name_4 -> ЛИЧНО-КОМАНДНЫЙ ЧЕМПИОНАТ РЕСПУБЛИКИ ТАТАРСТАН ПО ЛЕГКОЙ АТЛЕТИКЕ
A5: БЕГ 200 М | D5: 11,00 | J5: =d_2 -> 07 ИЮЛЯ 2017г.
J6: =d_5 -> г. Казань, Футбольно-легкоатлетический манеж
A7: № п/п | B7: Фамилия, имя участника | C7: Год рожд. | D7: ГОРОД | E7: КОМАНДА | F7: Номер участника | G7: Приход | H7: Результат | I7: Место | J7: Примеч.
B8: =Name_8 -> МУЖЧИНЫ 2001г.р. и старше
A9: 2 | B9: =VLOOKUP($F9,УЧАСТНИКИ!$A$1:$K$716,3,FALSE) -> АРАСЛАНОВ АРТЕМ | C9: =VLOOKUP($F9,УЧАСТНИКИ!$A$1:$K$716,4,FALSE) -> 1994 | D9: =VLOOKUP($F9,УЧАСТНИКИ!$A$1:$K$716,5,FALSE) -> КАЗАНЬ | E9: =VLOOKUP($F9,УЧАСТНИКИ!$A$1:$K$716,11,FALSE) -> ПГАФКСиТ, КДЮСШ АВИАТОР | F9: 3853 | H9: 22,11 | J9: =VLOOKUP($F9,УЧАСТНИКИ!$A$2:$K$232,9,FALSE) -> Л
A10: 2 | B10: =VLOOKUP($F10,УЧАСТНИКИ!$A$1:$K$716,3,FALSE) -> ДАУТОВ ТИМУР | C10: =VLOOKUP($F10,УЧАСТНИКИ!$A$1:$K$716,4,FALSE) -> 1999 | D10: =VLOOKUP($F10,УЧАСТНИКИ!$A$1:$K$716,5,FALSE) -> КАЗАНЬ | E10: =VLOOKUP($F10,УЧАСТНИКИ!$A$1:$K$716,11,FALSE) -> КДЮСШ АВИАТОР | F10: 3858 | H10: 22,89 | J10: =VLOOKUP($F10,УЧАСТНИКИ!$A$2:$K$232,9,FALSE) -> Л
A11: 3 | B11: =VLOOKUP($F11,УЧАСТНИКИ!$A$1:$K$716,3,FALSE) -> ОСИПОВ ИВАН | C11: =VLOOKUP($F11,УЧАСТНИКИ!$A$1:$K$716,4,FALSE) -> 1994 | D11: =VLOOKUP($F11,УЧАСТНИКИ!$A$1:$K$716,5,FALSE) -> КАЗАНЬ | E11: =VLOOKUP($F11,УЧАСТНИКИ!$A$1:$K$716,11,FALSE) -> ДЮСШ ОЛИМП | F11: 3866 | H11: 23,09 | J11: =VLOOKUP($F11,УЧАСТНИКИ!$A$2:$K$232,9,FALSE) -> Л
A12: 3 | B12: =VLOOKUP($F12,УЧАСТНИКИ!$A$1:$K$716,3,FALSE) -> ВАЗИЕВ РЕГИЛЬ | C12: =VLOOKUP($F12,УЧАСТНИКИ!$A$1:$K$716,4,FALSE) -> 1991 | D12: =VLOOKUP($F12,УЧАСТНИКИ!$A$1:$K$716,5,FALSE) -> КАЗАНЬ | E12: =VLOOKUP($F12,УЧАСТНИКИ!$A$1:$K$716,11,FALSE) -> СДЮСШОР ЛА | F12: 62 | H12: 23,16 | J12: =VLOOKUP($F12,УЧАСТНИКИ!$A$2:$K$232,9,FALSE) -> 3
A13: 4 | B13: =VLOOKUP($F13,УЧАСТНИКИ!$A$1:$K$716,3,FALSE) -> ГАЙНЕТДИНОВ НИЯЗ | C13: =VLOOKUP($F13,УЧАСТНИКИ!$A$1:$K$716,4,FALSE) -> 2000 | D13: =VLOOKUP($F13,УЧАСТНИКИ!$A$1:$K$716,5,FALSE) -> КАЗАНЬ | E13: =VLOOKUP($F13,УЧАСТНИКИ!$A$1:$K$716,11,FALSE) -> КДЮСШ АВИАТОР | F13: 3855 | H13: 23,44 | J13: =VLOOKUP($F13,УЧАСТНИКИ!$A$2:$K$232,9,FALSE) -> Л
A14: 3 | B14: =VLOOKUP($F14,УЧАСТНИКИ!$A$1:$K$716,3,FALSE) -> ГОРДЕЕВ АЛЕКСАНДР | C14: =VLOOKUP($F14,УЧАСТНИКИ!$A$1:$K$716,4,FALSE) -> 2000 | D14: =VLOOKUP($F14,УЧАСТНИКИ!$A$1:$K$716,5,FALSE) -> КАЗАНЬ | E14: =VLOOKUP($F14,УЧАСТНИКИ!$A$1:$K$716,11,FALSE) -> СДЮСШОР ЛА | F14: 63 | H14: 23,48 | J14: =VLOOKUP($F14,УЧАСТНИКИ!$A$2:$K$232,9,FALSE) -> 3
A15: 5 | B15: =VLOOKUP($F15,УЧАСТНИКИ!$A$1:$K$716,3,FALSE) -> ГАЗИЗОВ АЛЬБЕРТ | C15: =VLOOKUP($F15,УЧАСТНИКИ!$A$1:$K$716,4,FALSE) -> 1998 | D15: =VLOOKUP($F15,УЧАСТНИКИ!$A$1:$K$716,5,FALSE) -> ЗЕЛЕНОДОЛЬСК | E15: =VLOOKUP($F15,УЧАСТНИКИ!$A$1:$K$716,11,FALSE) -> - | F15: 3562 | H15: 23,51 | J15: =VLOOKUP($F15,УЧАСТНИКИ!$A$2:$K$232,9,FALSE) -> Л
A16: 1 | B16: =VLOOKUP($F16,УЧАСТНИКИ!$A$1:$K$716,3,FALSE) -> БАБАЕВ ШАКИР | C16: =VLOOKUP($F16,УЧАСТНИКИ!$A$1:$K$716,4,FALSE) -> 1998 | D16: =VLOOKUP($F16,УЧАСТНИКИ!$A$1:$K$716,5,FALSE) -> КАЗАНЬ | E16: =VLOOKUP($F16,УЧАСТНИКИ!$A$1:$K$716,11,FALSE) -> ПГАФКСиТ | F16: 3574 | H16: 23,60 | J16: =VLOOKUP($F16,УЧАСТНИКИ!$A$2:$K$232,9,FALSE) -> Л
A17: 3 | B17: =VLOOKUP($F17,УЧАСТНИКИ!$A$1:$K$716,3,FALSE) -> ФАТЫХОВ ИЛЬНАЗ | C17: =VLOOKUP($F17,УЧАСТНИКИ!$A$1:$K$716,4,FALSE) -> 1992 | D17: =VLOOKUP($F17,УЧАСТНИКИ!$A$1:$K$716,5,FALSE) -> НАБ.ЧЕЛНЫ | E17: =VLOOKUP($F17,УЧАСТНИКИ!$A$1:$K$716,11,FALSE) -> ЯР ЧАЛЛЫ | F17: 3872 | H17: 23,60 | J17: =VLOOKUP($F17,УЧАСТНИКИ!$A$2:$K$232,9,FALSE) -> Л
A18: 2 | B18: =VLOOKUP($F18,УЧАСТНИКИ!$A$1:$K$716,3,FALSE) -> ХУЗИАХМЕТОВ АРТУР | C18: =VLOOKUP($F18,УЧАСТНИКИ!$A$1:$K$716,4,FALSE) -> 1997 | D18: =VLOOKUP($F18,УЧАСТНИКИ!$A$1:$K$716,5,FALSE) -> КАЗАНЬ | E18: =VLOOKUP($F18,УЧАСТНИКИ!$A$1:$K$716,11,FALSE) -> КДЮСШ АВИАТОР | F18: 3856 | H18: 24,09 | J18: =VLOOKUP($F18,УЧАСТНИКИ!$A$2:$K$232,9,FALSE) -> Л
A19: 2 | B19: =VLOOKUP($F19,УЧАСТНИКИ!$A$1:$K$716,3,FALSE) -> АКШАЕВ НИКИТА | C19: =VLOOKUP($F19,УЧАСТНИКИ!$A$1:$K$716,4,FALSE) -> 2001 | D19: =VLOOKUP($F19,УЧАСТНИКИ!$A$1:$K$716,5,FALSE) -> КАЗАНЬ | E19: =VLOOKUP($F19,УЧАСТНИКИ!$A$1:$K$716,11,FALSE) -> КДЮСШ АВИАТОР | F19: 3839 | H19: 24,29 | J19: =VLOOKUP($F19,УЧАСТНИКИ!$A$2:$K$232,9,FALSE) -> Л
A20: 1 | B20: =VLOOKUP($F20,УЧАСТНИКИ!$A$1:$K$716,3,FALSE) -> МАТЮШКИН ДАНИЛ | C20: =VLOOKUP($F20,УЧАСТНИКИ!$A$1:$K$716,4,FALSE) -> 1998 | D20: =VLOOKUP($F20,УЧАСТНИКИ!$A$1:$K$716,5,FALSE) -> КАЗАНЬ | E20: =VLOOKUP($F20,УЧАСТНИКИ!$A$1:$K$716,11,FALSE) -> ПГАФКСиТ | F20: 3573 | H20: 24,46 | J20: =VLOOKUP($F20,УЧАСТНИКИ!$A$2:$K$232,9,FALSE) -> Л
A21: 4 | B21: =VLOOKUP($F21,УЧАСТНИКИ!$A$1:$K$716,3,FALSE) -> МАЛЬКОВ ДАНИЛ | C21: =VLOOKUP($F21,УЧАСТНИКИ!$A$1:$K$716,4,FALSE) -> 2002ВК | D21: =VLOOKUP($F21,УЧАСТНИКИ!$A$1:$K$716,5,FALSE) -> КАЗАНЬ | E21: =VLOOKUP($F21,УЧАСТНИКИ!$A$1:$K$716,11,FALSE) -> СТРЕЛА | F21: 3795 | H21: 24,66 | J21: =VLOOKUP($F21,УЧАСТНИКИ!$A$2:$K$232,9,FALSE) -> ВК
A22: 5 | B22: =VLOOKUP($F22,УЧАСТНИКИ!$A$1:$K$716,3,FALSE) -> СЕИДОВ ЭЛЬЧИН | C22: =VLOOKUP($F22,УЧАСТНИКИ!$A$1:$K$716,4,FALSE) -> 1992 | D22: =VLOOKUP($F22,УЧАСТНИКИ!$A$1:$K$716,5,FALSE) -> КАЗАНЬ | E22: =VLOOKUP($F22,УЧАСТНИКИ!$A$1:$K$716,11,FALSE) -> КГЭУ | F22: 3570 | H22: 24,78 | J22: =VLOOKUP($F22,УЧАСТНИКИ!$A$2:$K$232,9,FALSE) -> Л
A23: 5 | B23: =VLOOKUP($F23,УЧАСТНИКИ!$A$1:$K$716,3,FALSE) -> КРАЙНОВ ДЕНИС | C23: =VLOOKUP($F23,УЧАСТНИКИ!$A$1:$K$716,4,FALSE) -> 1997 | D23: =VLOOKUP($F23,УЧАСТНИКИ!$A$1:$K$716,5,FALSE) -> КАЗАНЬ | E23: =VLOOKUP($F23,УЧАСТНИКИ!$A$1:$K$716,11,FALSE) -> ДЮСШ ОЛИМП | F23: 69 | H23: 25,78 | J23: =VLOOKUP($F23,УЧАСТНИКИ!$A$2:$K$232,9,FALSE) -> Л
A24: 1 | B24: =VLOOKUP($F24,УЧАСТНИКИ!$A$1:$K$716,3,FALSE) -> КОЛБЕНЕВ АЛЕКСАНДР | C24: =VLOOKUP($F24,УЧАСТНИКИ!$A$1:$K$716,4,FALSE) -> 2003/ВК | D24: =VLOOKUP($F24,УЧАСТНИКИ!$A$1:$K$716,5,FALSE) -> КАЗАНЬ | E24: =VLOOKUP($F24,УЧАСТНИКИ!$A$1:$K$716,11,FALSE) -> КДЮСШ АВИАТОР | F24: 3775 | H24: 29,00 | J24: =VLOOKUP($F24,УЧАСТНИКИ!$A$2:$K$232,9,FALSE) -> ВК
A25: 4 | B25: =VLOOKUP($F25,УЧАСТНИКИ!$A$1:$K$716,3,FALSE) -> ЗАКУТАЕВ НИКИТА | C25: =VLOOKUP($F25,УЧАСТНИКИ!$A$1:$K$716,4,FALSE) -> 2000 | D25: =VLOOKUP($F25,УЧАСТНИКИ!$A$1:$K$716,5,FALSE) -> КАЗАНЬ | E25: =VLOOKUP($F25,УЧАСТНИКИ!$A$1:$K$716,11,FALSE) -> СТРЕЛА | F25: 3800 | H25: НЯ | J25: =VLOOKUP($F25,УЧАСТНИКИ!$A$2:$K$232,9,FALSE) -> Л
A26: 5 | B26: =VLOOKUP($F26,УЧАСТНИКИ!$A$1:$K$716,3,FALSE) -> ИСХАКОВ АСКАР | C26: =VLOOKUP($F26,УЧАСТНИКИ!$A$1:$K$716,4,FALSE) -> 1998 | D26: =VLOOKUP($F26,УЧАСТНИКИ!$A$1:$K$716,5,FALSE) -> КАЗАНЬ | E26: =VLOOKUP($F26,УЧАСТНИКИ!$A$1:$K$716,11,FALSE) -> КДЮСШ АВИАТОР | F26: 3840 | H26: НЯ | J26: =VLOOKUP($F26,УЧАСТНИКИ!$A$2:$K$232,9,FALSE) -> Л
A27: 1 | B27: =VLOOKUP($F27,УЧАСТНИКИ!$A$1:$K$716,3,FALSE) -> ЗИГАНШИН ДАМИР | C27: =VLOOKUP($F27,УЧАСТНИКИ!$A$1:$K$716,4,FALSE) -> 1998 | D27: =VLOOKUP($F27,УЧАСТНИКИ!$A$1:$K$716,5,FALSE) -> КАЗАНЬ | E27: =VLOOKUP($F27,УЧАСТНИКИ!$A$1:$K$716,11,FALSE) -> КДЮСШ АВИАТОР | F27: 3841 | H27: НЯ | J27: =VLOOKUP($F27,УЧАСТНИКИ!$A$2:$K$232,9,FALSE) -> Л
A28: 4 | B28: =VLOOKUP($F28,УЧАСТНИКИ!$A$1:$K$716,3,FALSE) -> НИКОЛАВИН ДАНИИЛ | C28: =VLOOKUP($F28,УЧАСТНИКИ!$A$1:$K$716,4,FALSE) -> 2000 | D28: =VLOOKUP($F28,УЧАСТНИКИ!$A$1:$K$716,5,FALSE) -> КАЗАНЬ | E28: =VLOOKUP($F28,УЧАСТНИКИ!$A$1:$K$716,11,FALSE) -> СТРЕЛА | F28: 3799 | H28: НЯ | J28: =VLOOKUP($F28,УЧАСТНИКИ!$A$2:$K$232,9,FALSE) -> Л
B29: 1 ЗАБЕГ
B30: 2 ЗАБЕГ
B31: 3 ЗАБЕГ
B32: 4 ЗАБЕГ
B33: 5 ЗАБЕГ
A34: 1
A35: 2
A36: 3
A37: 4
A38: 5
B39: 6 ЗАБЕГ
A40: 1 | B40: =VLOOKUP($F40,УЧАСТНИКИ!$A$1:$K$716,3,FALSE) ->  | C40: =VLOOKUP($F40,УЧАСТНИКИ!$A$1:$K$716,4,FALSE) ->  | D40: =VLOOKUP($F40,УЧАСТНИКИ!$A$1:$K$716,5,FALSE) ->  | E40: =VLOOKUP($F40,УЧАСТНИКИ!$A$1:$K$716,11,FALSE) ->  | J40: =VLOOKUP($F40,УЧАСТНИКИ!$A$2:$K$232,9,FALSE) -> 
A41: 2 | B41: =VLOOKUP($F41,УЧАСТНИКИ!$A$1:$K$716,3,FALSE) ->  | C41: =VLOOKUP($F41,УЧАСТНИКИ!$A$1:$K$716,4,FALSE) ->  | D41: =VLOOKUP($F41,УЧАСТНИКИ!$A$1:$K$716,5,FALSE) ->  | E41: =VLOOKUP($F41,УЧАСТНИКИ!$A$1:$K$716,11,FALSE) ->  | J41: =VLOOKUP($F41,УЧАСТНИКИ!$A$2:$K$232,9,FALSE) -> 
A42: 3 | B42: =VLOOKUP($F42,УЧАСТНИКИ!$A$1:$K$716,3,FALSE) ->  | C42: =VLOOKUP($F42,УЧАСТНИКИ!$A$1:$K$716,4,FALSE) ->  | D42: =VLOOKUP($F42,УЧАСТНИКИ!$A$1:$K$716,5,FALSE) ->  | E42: =VLOOKUP($F42,УЧАСТНИКИ!$A$1:$K$716,11,FALSE) ->  | J42: =VLOOKUP($F42,УЧАСТНИКИ!$A$2:$K$232,9,FALSE) -> 
A43: 4 | B43: =VLOOKUP($F43,УЧАСТНИКИ!$A$1:$K$716,3,FALSE) ->  | C43: =VLOOKUP($F43,УЧАСТНИКИ!$A$1:$K$716,4,FALSE) ->  | D43: =VLOOKUP($F43,УЧАСТНИКИ!$A$1:$K$716,5,FALSE) ->  | E43: =VLOOKUP($F43,УЧАСТНИКИ!$A$1:$K$716,11,FALSE) ->  | J43: =VLOOKUP($F43,УЧАСТНИКИ!$A$2:$K$232,9,FALSE) -> 
A44: 5 | B44: =VLOOKUP($F44,УЧАСТНИКИ!$A$1:$K$716,3,FALSE) ->  | C44: =VLOOKUP($F44,УЧАСТНИКИ!$A$1:$K$716,4,FALSE) ->  | D44: =VLOOKUP($F44,УЧАСТНИКИ!$A$1:$K$716,5,FALSE) ->  | E44: =VLOOKUP($F44,УЧАСТНИКИ!$A$1:$K$716,11,FALSE) ->  | J44: =VLOOKUP($F44,УЧАСТНИКИ!$A$2:$K$232,9,FALSE) -> 
B45: 7 ЗАБЕГ
A46: 1 | B46: =VLOOKUP($F46,УЧАСТНИКИ!$A$1:$K$716,3,FALSE) ->  | C46: =VLOOKUP($F46,УЧАСТНИКИ!$A$1:$K$716,4,FALSE) ->  | D46: =VLOOKUP($F46,УЧАСТНИКИ!$A$1:$K$716,5,FALSE) ->  | E46: =VLOOKUP($F46,УЧАСТНИКИ!$A$1:$K$716,11,FALSE) ->  | J46: =VLOOKUP($F46,УЧАСТНИКИ!$A$2:$K$232,9,FALSE) -> 
A47: 2 | B47: =VLOOKUP($F47,УЧАСТНИКИ!$A$1:$K$716,3,FALSE) ->  | C47: =VLOOKUP($F47,УЧАСТНИКИ!$A$1:$K$716,4,FALSE) ->  | D47: =VLOOKUP($F47,УЧАСТНИКИ!$A$1:$K$716,5,FALSE) ->  | E47: =VLOOKUP($F47,УЧАСТНИКИ!$A$1:$K$716,11,FALSE) ->  | J47: =VLOOKUP($F47,УЧАСТНИКИ!$A$2:$K$232,9,FALSE) -> 
A48: 3 | B48: =VLOOKUP($F48,УЧАСТНИКИ!$A$1:$K$716,3,FALSE) ->  | C48: =VLOOKUP($F48,УЧАСТНИКИ!$A$1:$K$716,4,FALSE) ->  | D48: =VLOOKUP($F48,УЧАСТНИКИ!$A$1:$K$716,5,FALSE) ->  | E48: =VLOOKUP($F48,УЧАСТНИКИ!$A$1:$K$716,11,FALSE) ->  | J48: =VLOOKUP($F48,УЧАСТНИКИ!$A$2:$K$232,9,FALSE) -> 
A49: 4 | B49: =VLOOKUP($F49,УЧАСТНИКИ!$A$1:$K$716,3,FALSE) ->  | C49: =VLOOKUP($F49,УЧАСТНИКИ!$A$1:$K$716,4,FALSE) ->  | D49: =VLOOKUP($F49,УЧАСТНИКИ!$A$1:$K$716,5,FALSE) ->  | E49: =VLOOKUP($F49,УЧАСТНИКИ!$A$1:$K$716,11,FALSE) ->  | J49: =VLOOKUP($F49,УЧАСТНИКИ!$A$2:$K$232,9,FALSE) -> 
A50: 5 | B50: =VLOOKUP($F50,УЧАСТНИКИ!$A$1:$K$716,3,FALSE) ->  | C50: =VLOOKUP($F50,УЧАСТНИКИ!$A$1:$K$716,4,FALSE) ->  | D50: =VLOOKUP($F50,УЧАСТНИКИ!$A$1:$K$716,5,FALSE) ->  | E50: =VLOOKUP($F50,УЧАСТНИКИ!$A$1:$K$716,11,FALSE) ->  | J50: =VLOOKUP($F50,УЧАСТНИКИ!$A$2:$K$232,9,FALSE) -> 
B51: 8 ЗАБЕГ
A52: 1 | B52: =VLOOKUP($F52,УЧАСТНИКИ!$A$1:$K$716,3,FALSE) ->  | C52: =VLOOKUP($F52,УЧАСТНИКИ!$A$1:$K$716,4,FALSE) ->  | D52: =VLOOKUP($F52,УЧАСТНИКИ!$A$1:$K$716,5,FALSE) ->  | E52: =VLOOKUP($F52,УЧАСТНИКИ!$A$1:$K$716,11,FALSE) ->  | J52: =VLOOKUP($F52,УЧАСТНИКИ!$A$2:$K$232,9,FALSE) -> 
A53: 2 | B53: =VLOOKUP($F53,УЧАСТНИКИ!$A$1:$K$716,3,FALSE) ->  | C53: =VLOOKUP($F53,УЧАСТНИКИ!$A$1:$K$716,4,FALSE) ->  | D53: =VLOOKUP($F53,УЧАСТНИКИ!$A$1:$K$716,5,FALSE) ->  | E53: =VLOOKUP($F53,УЧАСТНИКИ!$A$1:$K$716,11,FALSE) ->  | J53: =VLOOKUP($F53,УЧАСТНИКИ!$A$2:$K$232,9,FALSE) -> 
A54: 3 | B54: =VLOOKUP($F54,УЧАСТНИКИ!$A$1:$K$716,3,FALSE) ->  | C54: =VLOOKUP($F54,УЧАСТНИКИ!$A$1:$K$716,4,FALSE) ->  | D54: =VLOOKUP($F54,УЧАСТНИКИ!$A$1:$K$716,5,FALSE) ->  | E54: =VLOOKUP($F54,УЧАСТНИКИ!$A$1:$K$716,11,FALSE) ->  | J54: =VLOOKUP($F54,УЧАСТНИКИ!$A$2:$K$232,9,FALSE) -> 
A55: 4 | B55: =VLOOKUP($F55,УЧАСТНИКИ!$A$1:$K$716,3,FALSE) ->  | C55: =VLOOKUP($F55,УЧАСТНИКИ!$A$1:$K$716,4,FALSE) ->  | D55: =VLOOKUP($F55,УЧАСТНИКИ!$A$1:$K$716,5,FALSE) ->  | E55: =VLOOKUP($F55,УЧАСТНИКИ!$A$1:$K$716,11,FALSE) ->  | J55: =VLOOKUP($F55,УЧАСТНИКИ!$A$2:$K$232,9,FALSE) -> 
A56: 5 | B56: =VLOOKUP($F56,УЧАСТНИКИ!$A$1:$K$716,3,FALSE) ->  | C56: =VLOOKUP($F56,УЧАСТНИКИ!$A$1:$K$716,4,FALSE) ->  | D56: =VLOOKUP($F56,УЧАСТНИКИ!$A$1:$K$716,5,FALSE) ->  | E56: =VLOOKUP($F56,УЧАСТНИКИ!$A$1:$K$716,11,FALSE) ->  | J56: =VLOOKUP($F56,УЧАСТНИКИ!$A$2:$K$232,9,FALSE) -> 
B57: 9 ЗАБЕГ
A58: 1 | B58: =VLOOKUP($F58,УЧАСТНИКИ!$A$1:$K$716,3,FALSE) ->  | C58: =VLOOKUP($F58,УЧАСТНИКИ!$A$1:$K$716,4,FALSE) ->  | D58: =VLOOKUP($F58,УЧАСТНИКИ!$A$1:$K$716,5,FALSE) ->  | E58: =VLOOKUP($F58,УЧАСТНИКИ!$A$1:$K$716,11,FALSE) ->  | J58: =VLOOKUP($F58,УЧАСТНИКИ!$A$2:$K$232,9,FALSE) -> 
A59: 2 | B59: =VLOOKUP($F59,УЧАСТНИКИ!$A$1:$K$716,3,FALSE) ->  | C59: =VLOOKUP($F59,УЧАСТНИКИ!$A$1:$K$716,4,FALSE) ->  | D59: =VLOOKUP($F59,УЧАСТНИКИ!$A$1:$K$716,5,FALSE) ->  | E59: =VLOOKUP($F59,УЧАСТНИКИ!$A$1:$K$716,11,FALSE) ->  | J59: =VLOOKUP($F59,УЧАСТНИКИ!$A$2:$K$232,9,FALSE) -> 
A60: 3 | B60: =VLOOKUP($F60,УЧАСТНИКИ!$A$1:$K$716,3,FALSE) ->  | C60: =VLOOKUP($F60,УЧАСТНИКИ!$A$1:$K$716,4,FALSE) ->  | D60: =VLOOKUP($F60,УЧАСТНИКИ!$A$1:$K$716,5,FALSE) ->  | E60: =VLOOKUP($F60,УЧАСТНИКИ!$A$1:$K$716,11,FALSE) ->  | J60: =VLOOKUP($F60,УЧАСТНИКИ!$A$2:$K$232,9,FALSE) -> 
A61: 4 | B61: =VLOOKUP($F61,УЧАСТНИКИ!$A$1:$K$716,3,FALSE) ->  | C61: =VLOOKUP($F61,УЧАСТНИКИ!$A$1:$K$716,4,FALSE) ->  | D61: =VLOOKUP($F61,УЧАСТНИКИ!$A$1:$K$716,5,FALSE) ->  | E61: =VLOOKUP($F61,УЧАСТНИКИ!$A$1:$K$716,11,FALSE) ->  | J61: =VLOOKUP($F61,УЧАСТНИКИ!$A$2:$K$232,9,FALSE) -> 
A62: 5 | B62: =VLOOKUP($F62,УЧАСТНИКИ!$A$1:$K$716,3,FALSE) ->  | C62: =VLOOKUP($F62,УЧАСТНИКИ!$A$1:$K$716,4,FALSE) ->  | D62: =VLOOKUP($F62,УЧАСТНИКИ!$A$1:$K$716,5,FALSE) ->  | E62: =VLOOKUP($F62,УЧАСТНИКИ!$A$1:$K$716,11,FALSE) ->  | J62: =VLOOKUP($F62,УЧАСТНИКИ!$A$2:$K$232,9,FALSE) -> 
B63: 10 ЗАБЕГ
A64: 1 | B64: =VLOOKUP($F64,УЧАСТНИКИ!$A$1:$K$716,3,FALSE) ->  | C64: =VLOOKUP($F64,УЧАСТНИКИ!$A$1:$K$716,4,FALSE) ->  | D64: =VLOOKUP($F64,УЧАСТНИКИ!$A$1:$K$716,5,FALSE) ->  | E64: =VLOOKUP($F64,УЧАСТНИКИ!$A$1:$K$716,11,FALSE) ->  | J64: =VLOOKUP($F64,УЧАСТНИКИ!$A$2:$K$232,9,FALSE) -> 
A65: 2 | B65: =VLOOKUP($F65,УЧАСТНИКИ!$A$1:$K$716,3,FALSE) ->  | C65: =VLOOKUP($F65,УЧАСТНИКИ!$A$1:$K$716,4,FALSE) ->  | D65: =VLOOKUP($F65,УЧАСТНИКИ!$A$1:$K$716,5,FALSE) ->  | E65: =VLOOKUP($F65,УЧАСТНИКИ!$A$1:$K$716,11,FALSE) ->  | J65: =VLOOKUP($F65,УЧАСТНИКИ!$A$2:$K$232,9,FALSE) -> 
A66: 3 | B66: =VLOOKUP($F66,УЧАСТНИКИ!$A$1:$K$716,3,FALSE) ->  | C66: =VLOOKUP($F66,УЧАСТНИКИ!$A$1:$K$716,4,FALSE) ->  | D66: =VLOOKUP($F66,УЧАСТНИКИ!$A$1:$K$716,5,FALSE) ->  | E66: =VLOOKUP($F66,УЧАСТНИКИ!$A$1:$K$716,11,FALSE) ->  | J66: =VLOOKUP($F66,УЧАСТНИКИ!$A$2:$K$232,9,FALSE) -> 
A67: 4 | B67: =VLOOKUP($F67,УЧАСТНИКИ!$A$1:$K$716,3,FALSE) ->  | C67: =VLOOKUP($F67,УЧАСТНИКИ!$A$1:$K$716,4,FALSE) ->  | D67: =VLOOKUP($F67,УЧАСТНИКИ!$A$1:$K$716,5,FALSE) ->  | E67: =VLOOKUP($F67,УЧАСТНИКИ!$A$1:$K$716,11,FALSE) ->  | J67: =VLOOKUP($F67,УЧАСТНИКИ!$A$2:$K$232,9,FALSE) -> 
A68: 5 | B68: =VLOOKUP($F68,УЧАСТНИКИ!$A$1:$K$716,3,FALSE) ->  | C68: =VLOOKUP($F68,УЧАСТНИКИ!$A$1:$K$716,4,FALSE) ->  | D68: =VLOOKUP($F68,УЧАСТНИКИ!$A$1:$K$716,5,FALSE) ->  | E68: =VLOOKUP($F68,УЧАСТНИКИ!$A$1:$K$716,11,FALSE) ->  | J68: =VLOOKUP($F68,УЧАСТНИКИ!$A$2:$K$232,9,FALSE) -> 
B69: =Name_9 -> МУЖЧИНЫ 2001г.р. и старше
B70: 11 ЗАБЕГ
A71: 1 | B71: =VLOOKUP($F71,УЧАСТНИКИ!$A$1:$K$716,3,FALSE) ->  | C71: =VLOOKUP($F71,УЧАСТНИКИ!$A$1:$K$716,4,FALSE) ->  | D71: =VLOOKUP($F71,УЧАСТНИКИ!$A$1:$K$716,5,FALSE) ->  | E71: =VLOOKUP($F71,УЧАСТНИКИ!$A$1:$K$716,11,FALSE) -> 
A72: 2 | B72: =VLOOKUP($F72,УЧАСТНИКИ!$A$1:$K$716,3,FALSE) ->  | C72: =VLOOKUP($F72,УЧАСТНИКИ!$A$1:$K$716,4,FALSE) ->  | D72: =VLOOKUP($F72,УЧАСТНИКИ!$A$1:$K$716,5,FALSE) ->  | E72: =VLOOKUP($F72,УЧАСТНИКИ!$A$1:$K$716,11,FALSE) -> 
A73: 3 | B73: =VLOOKUP($F73,УЧАСТНИКИ!$A$1:$K$716,3,FALSE) ->  | C73: =VLOOKUP($F73,УЧАСТНИКИ!$A$1:$K$716,4,FALSE) ->  | D73: =VLOOKUP($F73,УЧАСТНИКИ!$A$1:$K$716,5,FALSE) ->  | E73: =VLOOKUP($F73,УЧАСТНИКИ!$A$1:$K$716,11,FALSE) -> 
A74: 4 | B74: =VLOOKUP($F74,УЧАСТНИКИ!$A$1:$K$716,3,FALSE) ->  | C74: =VLOOKUP($F74,УЧАСТНИКИ!$A$1:$K$716,4,FALSE) ->  | D74: =VLOOKUP($F74,УЧАСТНИКИ!$A$1:$K$716,5,FALSE) ->  | E74: =VLOOKUP($F74,УЧАСТНИКИ!$A$1:$K$716,11,FALSE) -> 
A75: 5 | B75: =VLOOKUP($F75,УЧАСТНИКИ!$A$1:$K$716,3,FALSE) ->  | C75: =VLOOKUP($F75,УЧАСТНИКИ!$A$1:$K$716,4,FALSE) ->  | D75: =VLOOKUP($F75,УЧАСТНИКИ!$A$1:$K$716,5,FALSE) ->  | E75: =VLOOKUP($F75,УЧАСТНИКИ!$A$1:$K$716,11,FALSE) -> 
B76: 12 ЗАБЕГ
A77: 1 | B77: =VLOOKUP($F77,УЧАСТНИКИ!$A$1:$K$716,3,FALSE) ->  | C77: =VLOOKUP($F77,УЧАСТНИКИ!$A$1:$K$716,4,FALSE) ->  | D77: =VLOOKUP($F77,УЧАСТНИКИ!$A$1:$K$716,5,FALSE) ->  | E77: =VLOOKUP($F77,УЧАСТНИКИ!$A$1:$K$716,11,FALSE) -> 
A78: 2 | B78: =VLOOKUP($F78,УЧАСТНИКИ!$A$1:$K$716,3,FALSE) ->  | C78: =VLOOKUP($F78,УЧАСТНИКИ!$A$1:$K$716,4,FALSE) ->  | D78: =VLOOKUP($F78,УЧАСТНИКИ!$A$1:$K$716,5,FALSE) ->  | E78: =VLOOKUP($F78,УЧАСТНИКИ!$A$1:$K$716,11,FALSE) -> 
A79: 3 | B79: =VLOOKUP($F79,УЧАСТНИКИ!$A$1:$K$716,3,FALSE) ->  | C79: =VLOOKUP($F79,УЧАСТНИКИ!$A$1:$K$716,4,FALSE) ->  | D79: =VLOOKUP($F79,УЧАСТНИКИ!$A$1:$K$716,5,FALSE) ->  | E79: =VLOOKUP($F79,УЧАСТНИКИ!$A$1:$K$716,11,FALSE) -> 
A80: 4 | B80: =VLOOKUP($F80,УЧАСТНИКИ!$A$1:$K$716,3,FALSE) ->  | C80: =VLOOKUP($F80,УЧАСТНИКИ!$A$1:$K$716,4,FALSE) ->  | D80: =VLOOKUP($F80,УЧАСТНИКИ!$A$1:$K$716,5,FALSE) ->  | E80: =VLOOKUP($F80,УЧАСТНИКИ!$A$1:$K$716,11,FALSE) -> 
A81: 5 | B81: =VLOOKUP($F81,УЧАСТНИКИ!$A$1:$K$716,3,FALSE) ->  | C81: =VLOOKUP($F81,УЧАСТНИКИ!$A$1:$K$716,4,FALSE) ->  | D81: =VLOOKUP($F81,УЧАСТНИКИ!$A$1:$K$716,5,FALSE) ->  | E81: =VLOOKUP($F81,УЧАСТНИКИ!$A$1:$K$716,11,FALSE) -> 
B82: 13 ЗАБЕГ
A83: 1 | B83: =VLOOKUP($F83,УЧАСТНИКИ!$A$1:$K$716,3,FALSE) ->  | C83: =VLOOKUP($F83,УЧАСТНИКИ!$A$1:$K$716,4,FALSE) ->  | D83: =VLOOKUP($F83,УЧАСТНИКИ!$A$1:$K$716,5,FALSE) ->  | E83: =VLOOKUP($F83,УЧАСТНИКИ!$A$1:$K$716,11,FALSE) -> 
A84: 2 | B84: =VLOOKUP($F84,УЧАСТНИКИ!$A$1:$K$716,3,FALSE) ->  | C84: =VLOOKUP($F84,УЧАСТНИКИ!$A$1:$K$716,4,FALSE) ->  | D84: =VLOOKUP($F84,УЧАСТНИКИ!$A$1:$K$716,5,FALSE) ->  | E84: =VLOOKUP($F84,УЧАСТНИКИ!$A$1:$K$716,11,FALSE) -> 
A85: 3 | B85: =VLOOKUP($F85,УЧАСТНИКИ!$A$1:$K$716,3,FALSE) ->  | C85: =VLOOKUP($F85,УЧАСТНИКИ!$A$1:$K$716,4,FALSE) ->  | D85: =VLOOKUP($F85,УЧАСТНИКИ!$A$1:$K$716,5,FALSE) ->  | E85: =VLOOKUP($F85,УЧАСТНИКИ!$A$1:$K$716,11,FALSE) -> 
A86: 4 | B86: =VLOOKUP($F86,УЧАСТНИКИ!$A$1:$K$716,3,FALSE) ->  | C86: =VLOOKUP($F86,УЧАСТНИКИ!$A$1:$K$716,4,FALSE) ->  | D86: =VLOOKUP($F86,УЧАСТНИКИ!$A$1:$K$716,5,FALSE) ->  | E86: =VLOOKUP($F86,УЧАСТНИКИ!$A$1:$K$716,11,FALSE) -> 
A87: 5
B88: 14 ЗАБЕГ
A89: 1 | B89: =VLOOKUP($F89,УЧАСТНИКИ!$A$1:$K$716,3,FALSE) ->  | C89: =VLOOKUP($F89,УЧАСТНИКИ!$A$1:$K$716,4,FALSE) ->  | D89: =VLOOKUP($F89,УЧАСТНИКИ!$A$1:$K$716,5,FALSE) ->  | E89: =VLOOKUP($F89,УЧАСТНИКИ!$A$1:$K$716,11,FALSE) -> 
A90: 2 | B90: =VLOOKUP($F90,УЧАСТНИКИ!$A$1:$K$716,3,FALSE) ->  | C90: =VLOOKUP($F90,УЧАСТНИКИ!$A$1:$K$716,4,FALSE) ->  | D90: =VLOOKUP($F90,УЧАСТНИКИ!$A$1:$K$716,5,FALSE) ->  | E90: =VLOOKUP($F90,УЧАСТНИКИ!$A$1:$K$716,11,FALSE) -> 
A91: 3 | B91: =VLOOKUP($F91,УЧАСТНИКИ!$A$1:$K$716,3,FALSE) ->  | C91: =VLOOKUP($F91,УЧАСТНИКИ!$A$1:$K$716,4,FALSE) ->  | D91: =VLOOKUP($F91,УЧАСТНИКИ!$A$1:$K$716,5,FALSE) ->  | E91: =VLOOKUP($F91,УЧАСТНИКИ!$A$1:$K$716,11,FALSE) -> 
A92: 4 | B92: =VLOOKUP($F92,УЧАСТНИКИ!$A$1:$K$716,3,FALSE) ->  | C92: =VLOOKUP($F92,УЧАСТНИКИ!$A$1:$K$716,4,FALSE) ->  | D92: =VLOOKUP($F92,УЧАСТНИКИ!$A$1:$K$716,5,FALSE) ->  | E92: =VLOOKUP($F92,УЧАСТНИКИ!$A$1:$K$716,11,FALSE) -> 
A93: 5 | B93: =VLOOKUP($F93,УЧАСТНИКИ!$A$1:$K$716,3,FALSE) ->  | C93: =VLOOKUP($F93,УЧАСТНИКИ!$A$1:$K$716,4,FALSE) ->  | D93: =VLOOKUP($F93,УЧАСТНИКИ!$A$1:$K$716,5,FALSE) ->  | E93: =VLOOKUP($F93,УЧАСТНИКИ!$A$1:$K$716,11,FALSE) -> 
B94: 15 ЗАБЕГ
A95: 1 | B95: =VLOOKUP($F95,УЧАСТНИКИ!$A$1:$K$716,3,FALSE) ->  | C95: =VLOOKUP($F95,УЧАСТНИКИ!$A$1:$K$716,4,FALSE) ->  | D95: =VLOOKUP($F95,УЧАСТНИКИ!$A$1:$K$716,5,FALSE) ->  | E95: =VLOOKUP($F95,УЧАСТНИКИ!$A$1:$K$716,11,FALSE) -> 
A96: 2 | B96: =VLOOKUP($F96,УЧАСТНИКИ!$A$1:$K$716,3,FALSE) ->  | C96: =VLOOKUP($F96,УЧАСТНИКИ!$A$1:$K$716,4,FALSE) ->  | D96: =VLOOKUP($F96,УЧАСТНИКИ!$A$1:$K$716,5,FALSE) ->  | E96: =VLOOKUP($F96,УЧАСТНИКИ!$A$1:$K$716,11,FALSE) -> 
A97: 3 | B97: =VLOOKUP($F97,УЧАСТНИКИ!$A$1:$K$716,3,FALSE) ->  | C97: =VLOOKUP($F97,УЧАСТНИКИ!$A$1:$K$716,4,FALSE) ->  | D97: =VLOOKUP($F97,УЧАСТНИКИ!$A$1:$K$716,5,FALSE) ->  | E97: =VLOOKUP($F97,УЧАСТНИКИ!$A$1:$K$716,11,FALSE) -> 
A98: 4 | B98: =VLOOKUP($F98,УЧАСТНИКИ!$A$1:$K$716,3,FALSE) ->  | C98: =VLOOKUP($F98,УЧАСТНИКИ!$A$1:$K$716,4,FALSE) ->  | D98: =VLOOKUP($F98,УЧАСТНИКИ!$A$1:$K$716,5,FALSE) ->  | E98: =VLOOKUP($F98,УЧАСТНИКИ!$A$1:$K$716,11,FALSE) -> 
A99: 5 | B99: =VLOOKUP($F99,УЧАСТНИКИ!$A$1:$K$716,3,FALSE) ->  | C99: =VLOOKUP($F99,УЧАСТНИКИ!$A$1:$K$716,4,FALSE) ->  | D99: =VLOOKUP($F99,УЧАСТНИКИ!$A$1:$K$716,5,FALSE) ->  | E99: =VLOOKUP($F99,УЧАСТНИКИ!$A$1:$K$716,11,FALSE) -> 
B100: 16 ЗАБЕГ
A101: 1 | B101: =VLOOKUP($F101,УЧАСТНИКИ!$A$1:$K$716,3,FALSE) ->  | C101: =VLOOKUP($F101,УЧАСТНИКИ!$A$1:$K$716,4,FALSE) ->  | D101: =VLOOKUP($F101,УЧАСТНИКИ!$A$1:$K$716,5,FALSE) ->  | E101: =VLOOKUP($F101,УЧАСТНИКИ!$A$1:$K$716,11,FALSE) -> 
A102: 2 | B102: =VLOOKUP($F102,УЧАСТНИКИ!$A$1:$K$716,3,FALSE) ->  | C102: =VLOOKUP($F102,УЧАСТНИКИ!$A$1:$K$716,4,FALSE) ->  | D102: =VLOOKUP($F102,УЧАСТНИКИ!$A$1:$K$716,5,FALSE) ->  | E102: =VLOOKUP($F102,УЧАСТНИКИ!$A$1:$K$716,11,FALSE) -> 
A103: 3 | B103: =VLOOKUP($F103,УЧАСТНИКИ!$A$1:$K$716,3,FALSE) ->  | C103: =VLOOKUP($F103,УЧАСТНИКИ!$A$1:$K$716,4,FALSE) ->  | D103: =VLOOKUP($F103,УЧАСТНИКИ!$A$1:$K$716,5,FALSE) ->  | E103: =VLOOKUP($F103,УЧАСТНИКИ!$A$1:$K$716,11,FALSE) -> 
A104: 4 | B104: =VLOOKUP($F104,УЧАСТНИКИ!$A$1:$K$716,3,FALSE) ->  | C104: =VLOOKUP($F104,УЧАСТНИКИ!$A$1:$K$716,4,FALSE) ->  | D104: =VLOOKUP($F104,УЧАСТНИКИ!$A$1:$K$716,5,FALSE) ->  | E104: =VLOOKUP($F104,УЧАСТНИКИ!$A$1:$K$716,11,FALSE) -> 
A105: 5 | B105: =VLOOKUP($F105,УЧАСТНИКИ!$A$1:$K$716,3,FALSE) ->  | C105: =VLOOKUP($F105,УЧАСТНИКИ!$A$1:$K$716,4,FALSE) ->  | D105: =VLOOKUP($F105,УЧАСТНИКИ!$A$1:$K$716,5,FALSE) ->  | E105: =VLOOKUP($F105,УЧАСТНИКИ!$A$1:$K$716,11,FALSE) -> 
B106: 17 ЗАБЕГ
A107: 1 | B107: =VLOOKUP($F107,УЧАСТНИКИ!$A$1:$K$716,3,FALSE) ->  | C107: =VLOOKUP($F107,УЧАСТНИКИ!$A$1:$K$716,4,FALSE) ->  | D107: =VLOOKUP($F107,УЧАСТНИКИ!$A$1:$K$716,5,FALSE) ->  | E107: =VLOOKUP($F107,УЧАСТНИКИ!$A$1:$K$716,11,FALSE) -> 
A108: 2 | B108: =VLOOKUP($F108,УЧАСТНИКИ!$A$1:$K$716,3,FALSE) ->  | C108: =VLOOKUP($F108,УЧАСТНИКИ!$A$1:$K$716,4,FALSE) ->  | D108: =VLOOKUP($F108,УЧАСТНИКИ!$A$1:$K$716,5,FALSE) ->  | E108: =VLOOKUP($F108,УЧАСТНИКИ!$A$1:$K$716,11,FALSE) -> 
A109: 3 | B109: =VLOOKUP($F109,УЧАСТНИКИ!$A$1:$K$716,3,FALSE) ->  | C109: =VLOOKUP($F109,УЧАСТНИКИ!$A$1:$K$716,4,FALSE) ->  | D109: =VLOOKUP($F109,УЧАСТНИКИ!$A$1:$K$716,5,FALSE) ->  | E109: =VLOOKUP($F109,УЧАСТНИКИ!$A$1:$K$716,11,FALSE) -> 
A110: 4 | B110: =VLOOKUP($F110,УЧАСТНИКИ!$A$1:$K$716,3,FALSE) ->  | C110: =VLOOKUP($F110,УЧАСТНИКИ!$A$1:$K$716,4,FALSE) ->  | D110: =VLOOKUP($F110,УЧАСТНИКИ!$A$1:$K$716,5,FALSE) ->  | E110: =VLOOKUP($F110,УЧАСТНИКИ!$A$1:$K$716,11,FALSE) -> 
A111: 5 | B111: =VLOOKUP($F111,УЧАСТНИКИ!$A$1:$K$716,3,FALSE) ->  | C111: =VLOOKUP($F111,УЧАСТНИКИ!$A$1:$K$716,4,FALSE) ->  | D111: =VLOOKUP($F111,УЧАСТНИКИ!$A$1:$K$716,5,FALSE) ->  | E111: =VLOOKUP($F111,УЧАСТНИКИ!$A$1:$K$716,11,FALSE) -> 
B112: 18 ЗАБЕГ
A113: 1
A114: 2 | B114: =VLOOKUP($F114,УЧАСТНИКИ!$A$1:$K$716,3,FALSE) ->  | C114: =VLOOKUP($F114,УЧАСТНИКИ!$A$1:$K$716,4,FALSE) ->  | D114: =VLOOKUP($F114,УЧАСТНИКИ!$A$1:$K$716,5,FALSE) ->  | E114: =VLOOKUP($F114,УЧАСТНИКИ!$A$1:$K$716,11,FALSE) -> 
A115: 3 | B115: =VLOOKUP($F115,УЧАСТНИКИ!$A$1:$K$716,3,FALSE) ->  | C115: =VLOOKUP($F115,УЧАСТНИКИ!$A$1:$K$716,4,FALSE) ->  | D115: =VLOOKUP($F115,УЧАСТНИКИ!$A$1:$K$716,5,FALSE) ->  | E115: =VLOOKUP($F115,УЧАСТНИКИ!$A$1:$K$716,11,FALSE) -> 
A116: 4 | B116: =VLOOKUP($F116,УЧАСТНИКИ!$A$1:$K$716,3,FALSE) ->  | C116: =VLOOKUP($F116,УЧАСТНИКИ!$A$1:$K$716,4,FALSE) ->  | D116: =VLOOKUP($F116,УЧАСТНИКИ!$A$1:$K$716,5,FALSE) ->  | E116: =VLOOKUP($F116,УЧАСТНИКИ!$A$1:$K$716,11,FALSE) -> 
A117: 5
A119: Рефери по бегу:
A120: Ст.судья:
A121: Ст.хронометрист:
A122: Секретарь:

Sheet 200М Ф
A1: =Name_2 -> ЦЕНТР СПОРТИВНОЙ ПОДГОТОВКИ РЕСПУБЛИКИ ТАТАРСТАН
A2: СТАРТОВЫЙ ПРОТОКОЛ
A3: =Name_4 -> ЛИЧНО-КОМАНДНЫЙ ЧЕМПИОНАТ РЕСПУБЛИКИ ТАТАРСТАН ПО ЛЕГКОЙ АТЛЕТИКЕ
D5: ФИН.ЗАБЕГИ | E5: 12,50
A6: БЕГ 200 М | L6: =d_2 -> 07 ИЮЛЯ 2017г.
L7: =d_5 -> г. Казань, Футбольно-легкоатлетический манеж
A8: № п/п | B8: Фамилия, имя участника | C8: Год рожд. | D8: ГОРОД | E8: КОМАНДА | F8: Номер участника | G8: рез-тат забега | H8: рез-тат полуфин. | I8: приход | J8: Результат | K8: Место | L8: Примеч.
B9: =Name_8 -> МУЖЧИНЫ 2001г.р. и старше
A10: 1 | B10: =VLOOKUP($F10,УЧАСТНИКИ!$A$2:$K$118,3,FALSE) -> ГАЙНЕТДИНОВ НИЯЗ | C10: =VLOOKUP($F10,УЧАСТНИКИ!$A$2:$K$118,4,FALSE) -> 2000 | D10: =VLOOKUP($F10,УЧАСТНИКИ!$A$2:$K$118,5,FALSE) -> КАЗАНЬ | E10: =VLOOKUP($F10,УЧАСТНИКИ!$A$2:$K$118,11,FALSE) -> КДЮСШ АВИАТОР | F10: 3855 | G10: 23,44 | L10: =VLOOKUP($F10,УЧАСТНИКИ!$A$2:$K$232,9,FALSE) -> Л | M10: 1
A11: 2 | B11: =VLOOKUP($F11,УЧАСТНИКИ!$A$2:$K$118,3,FALSE) -> ОСИПОВ ИВАН | C11: =VLOOKUP($F11,УЧАСТНИКИ!$A$2:$K$118,4,FALSE) -> 1994 | D11: =VLOOKUP($F11,УЧАСТНИКИ!$A$2:$K$118,5,FALSE) -> КАЗАНЬ | E11: =VLOOKUP($F11,УЧАСТНИКИ!$A$2:$K$118,11,FALSE) -> ДЮСШ ОЛИМП | F11: 3866 | G11: 23,09 | L11: =VLOOKUP($F11,УЧАСТНИКИ!$A$2:$K$232,9,FALSE) -> Л | M11: 2
A12: 3 | B12: =VLOOKUP($F12,УЧАСТНИКИ!$A$2:$K$118,3,FALSE) -> АРАСЛАНОВ АРТЕМ | C12: =VLOOKUP($F12,УЧАСТНИКИ!$A$2:$K$118,4,FALSE) -> 1994 | D12: =VLOOKUP($F12,УЧАСТНИКИ!$A$2:$K$118,5,FALSE) -> КАЗАНЬ | E12: =VLOOKUP($F12,УЧАСТНИКИ!$A$2:$K$118,11,FALSE) -> ПГАФКСиТ, КДЮСШ АВИАТОР | F12: 3853 | G12: 22,11 | L12: =VLOOKUP($F12,УЧАСТНИКИ!$A$2:$K$232,9,FALSE) -> Л | M12: 3
A13: 4 | B13: =VLOOKUP($F13,УЧАСТНИКИ!$A$2:$K$118,3,FALSE) -> ДАУТОВ ТИМУР | C13: =VLOOKUP($F13,УЧАСТНИКИ!$A$2:$K$118,4,FALSE) -> 1999 | D13: =VLOOKUP($F13,УЧАСТНИКИ!$A$2:$K$118,5,FALSE) -> КАЗАНЬ | E13: =VLOOKUP($F13,УЧАСТНИКИ!$A$2:$K$118,11,FALSE) -> КДЮСШ АВИАТОР | F13: 3858 | G13: 22,89 | L13: =VLOOKUP($F13,УЧАСТНИКИ!$A$2:$K$232,9,FALSE) -> Л | M13: 4
A14: 5 | B14: =VLOOKUP($F14,УЧАСТНИКИ!$A$2:$K$118,3,FALSE) -> ВАЗИЕВ РЕГИЛЬ | C14: =VLOOKUP($F14,УЧАСТНИКИ!$A$2:$K$118,4,FALSE) -> 1991 | D14: =VLOOKUP($F14,УЧАСТНИКИ!$A$2:$K$118,5,FALSE) -> КАЗАНЬ | E14: =VLOOKUP($F14,УЧАСТНИКИ!$A$2:$K$118,11,FALSE) -> СДЮСШОР ЛА | F14: 62 | G14: 23,16 | L14: =VLOOKUP($F14,УЧАСТНИКИ!$A$2:$K$232,9,FALSE) -> 3 | M14: 5
A15: 6 | B15: =VLOOKUP($F15,УЧАСТНИКИ!$A$2:$K$118,3,FALSE) ->  | C15: =VLOOKUP($F15,УЧАСТНИКИ!$A$2:$K$118,4,FALSE) ->  | D15: =VLOOKUP($F15,УЧАСТНИКИ!$A$2:$K$118,5,FALSE) ->  | E15: =VLOOKUP($F15,УЧАСТНИКИ!$A$2:$K$118,11,FALSE) ->  | L15: =VLOOKUP($F15,УЧАСТНИКИ!$A$2:$K$232,9,FALSE) ->  | M15: 1
A16: 7 | B16: =VLOOKUP($F16,УЧАСТНИКИ!$A$2:$K$118,3,FALSE) ->  | C16: =VLOOKUP($F16,УЧАСТНИКИ!$A$2:$K$118,4,FALSE) ->  | D16: =VLOOKUP($F16,УЧАСТНИКИ!$A$2:$K$118,5,FALSE) ->  | E16: =VLOOKUP($F16,УЧАСТНИКИ!$A$2:$K$118,11,FALSE) ->  | L16: =VLOOKUP($F16,УЧАСТНИКИ!$A$2:$K$232,9,FALSE) ->  | M16: 2
A17: 8 | B17: =VLOOKUP($F17,УЧАСТНИКИ!$A$2:$K$118,3,FALSE) ->  | C17: =VLOOKUP($F17,УЧАСТНИКИ!$A$2:$K$118,4,FALSE) ->  | D17: =VLOOKUP($F17,УЧАСТНИКИ!$A$2:$K$118,5,FALSE) ->  | E17: =VLOOKUP($F17,УЧАСТНИКИ!$A$2:$K$118,11,FALSE) ->  | L17: =VLOOKUP($F17,УЧАСТНИКИ!$A$2:$K$232,9,FALSE) ->  | M17: 3
B18: Рефери по бегу:
B19: Ст.судья:
B20: Секретарь:

Sheet И 200м
A1: =Name_1 -> 
A2: =Name_2 -> ЦЕНТР СПОРТИВНОЙ ПОДГОТОВКИ РЕСПУБЛИКИ ТАТАРСТАН
A3: =Name_3 -> 
A4: =Name_4 -> ЛИЧНО-КОМАНДНЫЙ ЧЕМПИОНАТ РЕСПУБЛИКИ ТАТАРСТАН ПО ЛЕГКОЙ АТЛЕТИКЕ
A6: ИТОГОВЫЙ ПРОТОКОЛ
A8: БЕГ 200 М | E8: забеги | F8: =d_2 -> 07 ИЮЛЯ 2017г.
E9: фин.забеги | F9: =d_2 -> 07 ИЮЛЯ 2017г. | H9: =d_5 -> г. Казань, Футбольно-легкоатлетический манеж
A10: М | B10: Фамилия, имя | C10: Дата рождения | D10: Заявл. разряд | E10: Территория | F10: Организация Ведомство | G10: Забеги | H10: Финал | I10: Вып. разр. | J10: Зачет | K10: Очки | L10: Ф.И. О. тренера
B11: =Name_7 -> МУЖЧИНЫ 2001г.р. и старше
A12: 1 | B12: =VLOOKUP($M12,УЧАСТНИКИ!$A$2:$K$118,3,FALSE) -> АРАСЛАНОВ АРТЕМ | C12: =VLOOKUP($M12,УЧАСТНИКИ!$A$2:$K$118,4,FALSE) -> 1994 | D12: =VLOOKUP($M12,УЧАСТНИКИ!$A$2:$K$118,8,FALSE) -> МС | E12: =VLOOKUP($M12,УЧАСТНИКИ!$A$2:$K$118,5,FALSE) -> КАЗАНЬ | F12: =VLOOKUP($M12,УЧАСТНИКИ!$A$2:$K$118,11,FALSE) -> ПГАФКСиТ, КДЮСШ АВИАТОР | G12: 22,11 | H12: 21.93 | I12: КМС | J12: =VLOOKUP($M12,УЧАСТНИКИ!$A$1:$K$716,9,FALSE) -> Л | L12: =VLOOKUP($M12,УЧАСТНИКИ!$A$2:$K$118,10,FALSE) -> БОРОДОВИЦЫН СН, СЫРЦЕВ ВВ | M12: 3853
A13: 2 | B13: =VLOOKUP($M13,УЧАСТНИКИ!$A$2:$K$118,3,FALSE) -> ВАЗИЕВ РЕГИЛЬ | C13: =VLOOKUP($M13,УЧАСТНИКИ!$A$2:$K$118,4,FALSE) -> 1991 | D13: =VLOOKUP($M13,УЧАСТНИКИ!$A$2:$K$118,8,FALSE) -> КМС | E13: =VLOOKUP($M13,УЧАСТНИКИ!$A$2:$K$118,5,FALSE) -> КАЗАНЬ | F13: =VLOOKUP($M13,УЧАСТНИКИ!$A$2:$K$118,11,FALSE) -> СДЮСШОР ЛА | G13: 23,16 | H13: 22.34 | I13: 1 | J13: =VLOOKUP($M13,УЧАСТНИКИ!$A$1:$K$716,9,FALSE) -> 3 | K13: 20 | L13: =VLOOKUP($M13,УЧАСТНИКИ!$A$2:$K$118,10,FALSE) -> БАРЫШНИКОВЫ АС ЛН | M13: 62
A14: 3 | B14: =VLOOKUP($M14,УЧАСТНИКИ!$A$2:$K$118,3,FALSE) -> ДАУТОВ ТИМУР | C14: =VLOOKUP($M14,УЧАСТНИКИ!$A$2:$K$118,4,FALSE) -> 1999 | D14: =VLOOKUP($M14,УЧАСТНИКИ!$A$2:$K$118,8,FALSE) -> 1 | E14: =VLOOKUP($M14,УЧАСТНИКИ!$A$2:$K$118,5,FALSE) -> КАЗАНЬ | F14: =VLOOKUP($M14,УЧАСТНИКИ!$A$2:$K$118,11,FALSE) -> КДЮСШ АВИАТОР | G14: 22,89 | H14: 22.64 | I14: 1 | J14: =VLOOKUP($M14,УЧАСТНИКИ!$A$1:$K$716,9,FALSE) -> Л | L14: =VLOOKUP($M14,УЧАСТНИКИ!$A$2:$K$118,10,FALSE) -> БОРОДОВИЦЫН СН | M14: 3858
A15: 4 | B15: =VLOOKUP($M15,УЧАСТНИКИ!$A$2:$K$118,3,FALSE) -> ОСИПОВ ИВАН | C15: =VLOOKUP($M15,УЧАСТНИКИ!$A$2:$K$118,4,FALSE) -> 1994 | D15: =VLOOKUP($M15,УЧАСТНИКИ!$A$2:$K$118,8,FALSE) -> КМС | E15: =VLOOKUP($M15,УЧАСТНИКИ!$A$2:$K$118,5,FALSE) -> КАЗАНЬ | F15: =VLOOKUP($M15,УЧАСТНИКИ!$A$2:$K$118,11,FALSE) -> ДЮСШ ОЛИМП | G15: 23,09 | H15: 22.74 | I15: 1 | J15: =VLOOKUP($M15,УЧАСТНИКИ!$A$1:$K$716,9,FALSE) -> Л | L15: =VLOOKUP($M15,УЧАСТНИКИ!$A$2:$K$118,10,FALSE) -> МОСТЯКОВ ДВ | M15: 3866
A16: 5 | B16: =VLOOKUP($M16,УЧАСТНИКИ!$A$2:$K$118,3,FALSE) -> ГАЙНЕТДИНОВ НИЯЗ | C16: =VLOOKUP($M16,УЧАСТНИКИ!$A$2:$K$118,4,FALSE) -> 2000 | D16: =VLOOKUP($M16,УЧАСТНИКИ!$A$2:$K$118,8,FALSE) -> 1 | E16: =VLOOKUP($M16,УЧАСТНИКИ!$A$2:$K$118,5,FALSE) -> КАЗАНЬ | F16: =VLOOKUP($M16,УЧАСТНИКИ!$A$2:$K$118,11,FALSE) -> КДЮСШ АВИАТОР | G16: 23,44 | H16: 23.60 | I16: 2 | J16: =VLOOKUP($M16,УЧАСТНИКИ!$A$1:$K$716,9,FALSE) -> Л | L16: =VLOOKUP($M16,УЧАСТНИКИ!$A$2:$K$118,10,FALSE) -> БОРОДОВИЦЫН СН | M16: 3855
A17: 6 | B17: =VLOOKUP($M17,УЧАСТНИКИ!$A$2:$K$118,3,FALSE) -> ГОРДЕЕВ АЛЕКСАНДР | C17: =VLOOKUP($M17,УЧАСТНИКИ!$A$2:$K$118,4,FALSE) -> 2000 | D17: =VLOOKUP($M17,УЧАСТНИКИ!$A$2:$K$118,8,FALSE) -> 1 | E17: =VLOOKUP($M17,УЧАСТНИКИ!$A$2:$K$118,5,FALSE) -> КАЗАНЬ | F17: =VLOOKUP($M17,УЧАСТНИКИ!$A$2:$K$118,11,FALSE) -> СДЮСШОР ЛА | G17: 23,48 | I17: 2 | J17: =VLOOKUP($M17,УЧАСТНИКИ!$A$1:$K$716,9,FALSE) -> 3 | K17: 17 | L17: =VLOOKUP($M17,УЧАСТНИКИ!$A$2:$K$118,10,FALSE) -> БАРЫШНИКОВЫ АС ЛН, ЮСУПОВА ОВ | M17: 63
A18: 7 | B18: =VLOOKUP($M18,УЧАСТНИКИ!$A$2:$K$118,3,FALSE) -> ГАЗИЗОВ АЛЬБЕРТ | C18: =VLOOKUP($M18,УЧАСТНИКИ!$A$2:$K$118,4,FALSE) -> 1998 | D18: =VLOOKUP($M18,УЧАСТНИКИ!$A$2:$K$118,8,FALSE) -> - | E18: =VLOOKUP($M18,УЧАСТНИКИ!$A$2:$K$118,5,FALSE) -> ЗЕЛЕНОДОЛЬСК | F18: =VLOOKUP($M18,УЧАСТНИКИ!$A$2:$K$118,11,FALSE) -> - | G18: 23,51 | I18: 2 | J18: =VLOOKUP($M18,УЧАСТНИКИ!$A$1:$K$716,9,FALSE) -> Л | L18: =VLOOKUP($M18,УЧАСТНИКИ!$A$2:$K$118,10,FALSE) -> ГИБАДУЛЛИН РР, ПАВЛОВ ИЛ | M18: 3562
A19: 8 | B19: =VLOOKUP($M19,УЧАСТНИКИ!$A$2:$K$118,3,FALSE) -> БАБАЕВ ШАКИР | C19: =VLOOKUP($M19,УЧАСТНИКИ!$A$2:$K$118,4,FALSE) -> 1998 | D19: =VLOOKUP($M19,УЧАСТНИКИ!$A$2:$K$118,8,FALSE) -> 2 | E19: =VLOOKUP($M19,УЧАСТНИКИ!$A$2:$K$118,5,FALSE) -> КАЗАНЬ | F19: =VLOOKUP($M19,УЧАСТНИКИ!$A$2:$K$118,11,FALSE) -> ПГАФКСиТ | G19: 23,60 | I19: 2 | J19: =VLOOKUP($M19,УЧАСТНИКИ!$A$1:$K$716,9,FALSE) -> Л | L19: =VLOOKUP($M19,УЧАСТНИКИ!$A$2:$K$118,10,FALSE) -> БОРОВИК СГ | M19: 3574
A20: 9 | B20: =VLOOKUP($M20,УЧАСТНИКИ!$A$2:$K$118,3,FALSE) -> ФАТЫХОВ ИЛЬНАЗ | C20: =VLOOKUP($M20,УЧАСТНИКИ!$A$2:$K$118,4,FALSE) -> 1992 | D20: =VLOOKUP($M20,УЧАСТНИКИ!$A$2:$K$118,8,FALSE) -> КМС | E20: =VLOOKUP($M20,УЧАСТНИКИ!$A$2:$K$118,5,FALSE) -> НАБ.ЧЕЛНЫ | F20: =VLOOKUP($M20,УЧАСТНИКИ!$A$2:$K$118,11,FALSE) -> ЯР ЧАЛЛЫ | G20: 23,60 | I20: 2 | J20: =VLOOKUP($M20,УЧАСТНИКИ!$A$1:$K$716,9,FALSE) -> Л | L20: =VLOOKUP($M20,УЧАСТНИКИ!$A$2:$K$118,10,FALSE) -> ГАЛКИН-САМИТОВ АС | M20: 3872
A21: 10 | B21: =VLOOKUP($M21,УЧАСТНИКИ!$A$2:$K$118,3,FALSE) -> ХУЗИАХМЕТОВ АРТУР | C21: =VLOOKUP($M21,УЧАСТНИКИ!$A$2:$K$118,4,FALSE) -> 1997 | D21: =VLOOKUP($M21,УЧАСТНИКИ!$A$2:$K$118,8,FALSE) -> 2 | E21: =VLOOKUP($M21,УЧАСТНИКИ!$A$2:$K$118,5,FALSE) -> КАЗАНЬ | F21: =VLOOKUP($M21,УЧАСТНИКИ!$A$2:$K$118,11,FALSE) -> КДЮСШ АВИАТОР | G21: 24,09 | I21: 2 | J21: =VLOOKUP($M21,УЧАСТНИКИ!$A$1:$K$716,9,FALSE) -> Л | L21: =VLOOKUP($M21,УЧАСТНИКИ!$A$2:$K$118,10,FALSE) -> БОРОДОВИЦЫН СН | M21: 3856
A22: 11 | B22: =VLOOKUP($M22,УЧАСТНИКИ!$A$2:$K$118,3,FALSE) -> АКШАЕВ НИКИТА | C22: =VLOOKUP($M22,УЧАСТНИКИ!$A$2:$K$118,4,FALSE) -> 2001 | D22: =VLOOKUP($M22,УЧАСТНИКИ!$A$2:$K$118,8,FALSE) -> 2 | E22: =VLOOKUP($M22,УЧАСТНИКИ!$A$2:$K$118,5,FALSE) -> КАЗАНЬ | F22: =VLOOKUP($M22,УЧАСТНИКИ!$A$2:$K$118,11,FALSE) -> КДЮСШ АВИАТОР | G22: 24,29 | I22: 2 | J22: =VLOOKUP($M22,УЧАСТНИКИ!$A$1:$K$716,9,FALSE) -> Л | L22: =VLOOKUP($M22,УЧАСТНИКИ!$A$2:$K$118,10,FALSE) -> РЫНИНА ЕИ | M22: 3839
A23: 12 | B23: =VLOOKUP($M23,УЧАСТНИКИ!$A$2:$K$118,3,FALSE) -> МАТЮШКИН ДАНИЛ | C23: =VLOOKUP($M23,УЧАСТНИКИ!$A$2:$K$118,4,FALSE) -> 1998 | D23: =VLOOKUP($M23,УЧАСТНИКИ!$A$2:$K$118,8,FALSE) -> 2 | E23: =VLOOKUP($M23,УЧАСТНИКИ!$A$2:$K$118,5,FALSE) -> КАЗАНЬ | F23: =VLOOKUP($M23,УЧАСТНИКИ!$A$2:$K$118,11,FALSE) -> ПГАФКСиТ | G23: 24,46 | I23: 3 | J23: =VLOOKUP($M23,УЧАСТНИКИ!$A$1:$K$716,9,FALSE) -> Л | L23: =VLOOKUP($M23,УЧАСТНИКИ!$A$2:$K$118,10,FALSE) -> БОРОВИК СГ | M23: 3573
A24: 13 | B24: =VLOOKUP($M24,УЧАСТНИКИ!$A$2:$K$118,3,FALSE) -> СЕИДОВ ЭЛЬЧИН | C24: =VLOOKUP($M24,УЧАСТНИКИ!$A$2:$K$118,4,FALSE) -> 1992 | D24: =VLOOKUP($M24,УЧАСТНИКИ!$A$2:$K$118,8,FALSE) -> 2 | E24: =VLOOKUP($M24,УЧАСТНИКИ!$A$2:$K$118,5,FALSE) -> КАЗАНЬ | F24: =VLOOKUP($M24,УЧАСТНИКИ!$A$2:$K$118,11,FALSE) -> КГЭУ | G24: 24,78 | I24: 3 | J24: =VLOOKUP($M24,УЧАСТНИКИ!$A$1:$K$716,9,FALSE) -> Л | L24: =VLOOKUP($M24,УЧАСТНИКИ!$A$2:$K$118,10,FALSE) -> САДРЕТДИНОВ ДФ | M24: 3570
A25: 14 | B25: =VLOOKUP($M25,УЧАСТНИКИ!$A$2:$K$118,3,FALSE) -> КРАЙНОВ ДЕНИС | C25: =VLOOKUP($M25,УЧАСТНИКИ!$A$2:$K$118,4,FALSE) -> 1997 | D25: =VLOOKUP($M25,УЧАСТНИКИ!$A$2:$K$118,8,FALSE) -> 2 | E25: =VLOOKUP($M25,УЧАСТНИКИ!$A$2:$K$118,5,FALSE) -> КАЗАНЬ | F25: =VLOOKUP($M25,УЧАСТНИКИ!$A$2:$K$118,11,FALSE) -> ДЮСШ ОЛИМП | G25: 25,78 | I25: 3 | J25: =VLOOKUP($M25,УЧАСТНИКИ!$A$1:$K$716,9,FALSE) -> Л | L25: =VLOOKUP($M25,УЧАСТНИКИ!$A$2:$K$118,10,FALSE) -> ПЕТРОВ АВ | M25: 69
A26: ВК | B26: =VLOOKUP($M26,УЧАСТНИКИ!$A$2:$K$118,3,FALSE) -> МАЛЬКОВ ДАНИЛ | C26: =VLOOKUP($M26,УЧАСТНИКИ!$A$2:$K$118,4,FALSE) -> 2002ВК | D26: =VLOOKUP($M26,УЧАСТНИКИ!$A$2:$K$118,8,FALSE) -> 2 | E26: =VLOOKUP($M26,УЧАСТНИКИ!$A$2:$K$118,5,FALSE) -> КАЗАНЬ | F26: =VLOOKUP($M26,УЧАСТНИКИ!$A$2:$K$118,11,FALSE) -> СТРЕЛА | G26: 24,66 | I26: 3 | J26: =VLOOKUP($M26,УЧАСТНИКИ!$A$1:$K$716,9,FALSE) -> ВК | L26: =VLOOKUP($M26,УЧАСТНИКИ!$A$2:$K$118,10,FALSE) -> ПАВЛОВ ИЛ, ЛЕБЕДЕВ ВИ | M26: 3795
A27: ВК | B27: =VLOOKUP($M27,УЧАСТНИКИ!$A$2:$K$118,3,FALSE) -> КОЛБЕНЕВ АЛЕКСАНДР | C27: =VLOOKUP($M27,УЧАСТНИКИ!$A$2:$K$118,4,FALSE) -> 2003/ВК | D27: =VLOOKUP($M27,УЧАСТНИКИ!$A$2:$K$118,8,FALSE) -> 3 | E27: =VLOOKUP($M27,УЧАСТНИКИ!$A$2:$K$118,5,FALSE) -> КАЗАНЬ | F27: =VLOOKUP($M27,УЧАСТНИКИ!$A$2:$K$118,11,FALSE) -> КДЮСШ АВИАТОР | G27: 29,00 | I27: 2Ю | J27: =VLOOKUP($M27,УЧАСТНИКИ!$A$1:$K$716,9,FALSE) -> ВК | L27: =VLOOKUP($M27,УЧАСТНИКИ!$A$2:$K$118,10,FALSE) -> ФАЙСХАНОВ РР | M27: 3775
A28: 17 | B28: =VLOOKUP($M28,УЧАСТНИКИ!$A$2:$K$118,3,FALSE) ->  | C28: =VLOOKUP($M28,УЧАСТНИКИ!$A$2:$K$118,4,FALSE) ->  | D28: =VLOOKUP($M28,УЧАСТНИКИ!$A$2:$K$118,8,FALSE) ->  | E28: =VLOOKUP($M28,УЧАСТНИКИ!$A$2:$K$118,5,FALSE) ->  | F28: =VLOOKUP($M28,УЧАСТНИКИ!$A$2:$K$118,11,FALSE) ->  | J28: =VLOOKUP($M28,УЧАСТНИКИ!$A$1:$K$716,9,FALSE) ->  | L28: =VLOOKUP($M28,УЧАСТНИКИ!$A$2:$K$118,10,FALSE) -> 
A29: 18 | B29: =VLOOKUP($M29,УЧАСТНИКИ!$A$2:$K$118,3,FALSE) ->  | C29: =VLOOKUP($M29,УЧАСТНИКИ!$A$2:$K$118,4,FALSE) ->  | D29: =VLOOKUP($M29,УЧАСТНИКИ!$A$2:$K$118,8,FALSE) ->  | E29: =VLOOKUP($M29,УЧАСТНИКИ!$A$2:$K$118,5,FALSE) ->  | F29: =VLOOKUP($M29,УЧАСТНИКИ!$A$2:$K$118,11,FALSE) ->  | J29: =VLOOKUP($M29,УЧАСТНИКИ!$A$1:$K$716,9,FALSE) ->  | L29: =VLOOKUP($M29,УЧАСТНИКИ!$A$2:$K$118,10,FALSE) -> 
A30: 19 | B30: =VLOOKUP($M30,УЧАСТНИКИ!$A$2:$K$118,3,FALSE) ->  | C30: =VLOOKUP($M30,УЧАСТНИКИ!$A$2:$K$118,4,FALSE) ->  | D30: =VLOOKUP($M30,УЧАСТНИКИ!$A$2:$K$118,8,FALSE) ->  | E30: =VLOOKUP($M30,УЧАСТНИКИ!$A$2:$K$118,5,FALSE) ->  | F30: =VLOOKUP($M30,УЧАСТНИКИ!$A$2:$K$118,11,FALSE) ->  | J30: =VLOOKUP($M30,УЧАСТНИКИ!$A$1:$K$716,9,FALSE) ->  | L30: =VLOOKUP($M30,УЧАСТНИКИ!$A$2:$K$118,10,FALSE) -> 
A31: 20 | B31: =VLOOKUP($M31,УЧАСТНИКИ!$A$2:$K$118,3,FALSE) ->  | C31: =VLOOKUP($M31,УЧАСТНИКИ!$A$2:$K$118,4,FALSE) ->  | D31: =VLOOKUP($M31,УЧАСТНИКИ!$A$2:$K$118,8,FALSE) ->  | E31: =VLOOKUP($M31,УЧАСТНИКИ!$A$2:$K$118,5,FALSE) ->  | F31: =VLOOKUP($M31,УЧАСТНИКИ!$A$2:$K$118,11,FALSE) ->  | J31: =VLOOKUP($M31,УЧАСТНИКИ!$A$1:$K$716,9,FALSE) ->  | L31: =VLOOKUP($M31,УЧАСТНИКИ!$A$2:$K$118,10,FALSE) -> 
A32: 21 | B32: =VLOOKUP($M32,УЧАСТНИКИ!$A$2:$K$118,3,FALSE) ->  | C32: =VLOOKUP($M32,УЧАСТНИКИ!$A$2:$K$118,4,FALSE) ->  | D32: =VLOOKUP($M32,УЧАСТНИКИ!$A$2:$K$118,8,FALSE) ->  | E32: =VLOOKUP($M32,УЧАСТНИКИ!$A$2:$K$118,5,FALSE) ->  | F32: =VLOOKUP($M32,УЧАСТНИКИ!$A$2:$K$118,11,FALSE) ->  | J32: =VLOOKUP($M32,УЧАСТНИКИ!$A$1:$K$716,9,FALSE) ->  | L32: =VLOOKUP($M32,УЧАСТНИКИ!$A$2:$K$118,10,FALSE) -> 
A33: 22 | B33: =VLOOKUP($M33,УЧАСТНИКИ!$A$2:$K$118,3,FALSE) ->  | C33: =VLOOKUP($M33,УЧАСТНИКИ!$A$2:$K$118,4,FALSE) ->  | D33: =VLOOKUP($M33,УЧАСТНИКИ!$A$2:$K$118,8,FALSE) ->  | E33: =VLOOKUP($M33,УЧАСТНИКИ!$A$2:$K$118,5,FALSE) ->  | F33: =VLOOKUP($M33,УЧАСТНИКИ!$A$2:$K$118,11,FALSE) ->  | J33: =VLOOKUP($M33,УЧАСТНИКИ!$A$1:$K$716,9,FALSE) ->  | L33: =VLOOKUP($M33,УЧАСТНИКИ!$A$2:$K$118,10,FALSE) -> 
A34: 23 | B34: =VLOOKUP($M34,УЧАСТНИКИ!$A$2:$K$118,3,FALSE) ->  | C34: =VLOOKUP($M34,УЧАСТНИКИ!$A$2:$K$118,4,FALSE) ->  | D34: =VLOOKUP($M34,УЧАСТНИКИ!$A$2:$K$118,8,FALSE) ->  | E34: =VLOOKUP($M34,УЧАСТНИКИ!$A$2:$K$118,5,FALSE) ->  | F34: =VLOOKUP($M34,УЧАСТНИКИ!$A$2:$K$118,11,FALSE) ->  | J34: =VLOOKUP($M34,УЧАСТНИКИ!$A$1:$K$716,9,FALSE) ->  | L34: =VLOOKUP($M34,УЧАСТНИКИ!$A$2:$K$118,10,FALSE) -> 
A35: 24 | B35: =VLOOKUP($M35,УЧАСТНИКИ!$A$2:$K$118,3,FALSE) ->  | C35: =VLOOKUP($M35,УЧАСТНИКИ!$A$2:$K$118,4,FALSE) ->  | D35: =VLOOKUP($M35,УЧАСТНИКИ!$A$2:$K$118,8,FALSE) ->  | E35: =VLOOKUP($M35,УЧАСТНИКИ!$A$2:$K$118,5,FALSE) ->  | F35: =VLOOKUP($M35,УЧАСТНИКИ!$A$2:$K$118,11,FALSE) ->  | J35: =VLOOKUP($M35,УЧАСТНИКИ!$A$1:$K$716,9,FALSE) ->  | L35: =VLOOKUP($M35,УЧАСТНИКИ!$A$2:$K$118,10,FALSE) -> 
A36: 25 | B36: =VLOOKUP($M36,УЧАСТНИКИ!$A$2:$K$118,3,FALSE) ->  | C36: =VLOOKUP($M36,УЧАСТНИКИ!$A$2:$K$118,4,FALSE) ->  | D36: =VLOOKUP($M36,УЧАСТНИКИ!$A$2:$K$118,8,FALSE) ->  | E36: =VLOOKUP($M36,УЧАСТНИКИ!$A$2:$K$118,5,FALSE) ->  | F36: =VLOOKUP($M36,УЧАСТНИКИ!$A$2:$K$118,11,FALSE) ->  | J36: =VLOOKUP($M36,УЧАСТНИКИ!$A$1:$K$716,9,FALSE) ->  | L36: =VLOOKUP($M36,УЧАСТНИКИ!$A$2:$K$118,10,FALSE) -> 
A37: 26 | B37: =VLOOKUP($M37,УЧАСТНИКИ!$A$2:$K$118,3,FALSE) ->  | C37: =VLOOKUP($M37,УЧАСТНИКИ!$A$2:$K$118,4,FALSE) ->  | D37: =VLOOKUP($M37,УЧАСТНИКИ!$A$2:$K$118,8,FALSE) ->  | E37: =VLOOKUP($M37,УЧАСТНИКИ!$A$2:$K$118,5,FALSE) ->  | F37: =VLOOKUP($M37,УЧАСТНИКИ!$A$2:$K$118,11,FALSE) ->  | J37: =VLOOKUP($M37,УЧАСТНИКИ!$A$1:$K$716,9,FALSE) ->  | L37: =VLOOKUP($M37,УЧАСТНИКИ!$A$2:$K$118,10,FALSE) -> 
A38: 27 | B38: =VLOOKUP($M38,УЧАСТНИКИ!$A$2:$K$118,3,FALSE) ->  | C38: =VLOOKUP($M38,УЧАСТНИКИ!$A$2:$K$118,4,FALSE) ->  | D38: =VLOOKUP($M38,УЧАСТНИКИ!$A$2:$K$118,8,FALSE) ->  | E38: =VLOOKUP($M38,УЧАСТНИКИ!$A$2:$K$118,5,FALSE) ->  | F38: =VLOOKUP($M38,УЧАСТНИКИ!$A$2:$K$118,11,FALSE) ->  | J38: =VLOOKUP($M38,УЧАСТНИКИ!$A$1:$K$716,9,FALSE) ->  | L38: =VLOOKUP($M38,УЧАСТНИКИ!$A$2:$K$118,10,FALSE) -> 
A39: 28 | B39: =VLOOKUP($M39,УЧАСТНИКИ!$A$2:$K$118,3,FALSE) ->  | C39: =VLOOKUP($M39,УЧАСТНИКИ!$A$2:$K$118,4,FALSE) ->  | D39: =VLOOKUP($M39,УЧАСТНИКИ!$A$2:$K$118,8,FALSE) ->  | E39: =VLOOKUP($M39,УЧАСТНИКИ!$A$2:$K$118,5,FALSE) ->  | F39: =VLOOKUP($M39,УЧАСТНИКИ!$A$2:$K$118,11,FALSE) ->  | J39: =VLOOKUP($M39,УЧАСТНИКИ!$A$1:$K$716,9,FALSE) ->  | L39: =VLOOKUP($M39,УЧАСТНИКИ!$A$2:$K$118,10,FALSE) -> 
A40: 29 | B40: =VLOOKUP($M40,УЧАСТНИКИ!$A$2:$K$118,3,FALSE) ->  | C40: =VLOOKUP($M40,УЧАСТНИКИ!$A$2:$K$118,4,FALSE) ->  | D40: =VLOOKUP($M40,УЧАСТНИКИ!$A$2:$K$118,8,FALSE) ->  | E40: =VLOOKUP($M40,УЧАСТНИКИ!$A$2:$K$118,5,FALSE) ->  | F40: =VLOOKUP($M40,УЧАСТНИКИ!$A$2:$K$118,11,FALSE) ->  | J40: =VLOOKUP($M40,УЧАСТНИКИ!$A$1:$K$716,9,FALSE) ->  | L40: =VLOOKUP($M40,УЧАСТНИКИ!$A$2:$K$118,10,FALSE) -> 
A41: 30 | B41: =VLOOKUP($M41,УЧАСТНИКИ!$A$2:$K$118,3,FALSE) ->  | C41: =VLOOKUP($M41,УЧАСТНИКИ!$A$2:$K$118,4,FALSE) ->  | D41: =VLOOKUP($M41,УЧАСТНИКИ!$A$2:$K$118,8,FALSE) ->  | E41: =VLOOKUP($M41,УЧАСТНИКИ!$A$2:$K$118,5,FALSE) ->  | F41: =VLOOKUP($M41,УЧАСТНИКИ!$A$2:$K$118,11,FALSE) ->  | J41: =VLOOKUP($M41,УЧАСТНИКИ!$A$1:$K$716,9,FALSE) ->  | L41: =VLOOKUP($M41,УЧАСТНИКИ!$A$2:$K$118,10,FALSE) -> 
A42: 31 | B42: =VLOOKUP($M42,УЧАСТНИКИ!$A$2:$K$118,3,FALSE) ->  | C42: =VLOOKUP($M42,УЧАСТНИКИ!$A$2:$K$118,4,FALSE) ->  | D42: =VLOOKUP($M42,УЧАСТНИКИ!$A$2:$K$118,8,FALSE) ->  | E42: =VLOOKUP($M42,УЧАСТНИКИ!$A$2:$K$118,5,FALSE) ->  | F42: =VLOOKUP($M42,УЧАСТНИКИ!$A$2:$K$118,11,FALSE) ->  | J42: =VLOOKUP($M42,УЧАСТНИКИ!$A$1:$K$716,9,FALSE) ->  | L42: =VLOOKUP($M42,УЧАСТНИКИ!$A$2:$K$118,10,FALSE) -> 
A43: 32 | B43: =VLOOKUP($M43,УЧАСТНИКИ!$A$2:$K$118,3,FALSE) ->  | C43: =VLOOKUP($M43,УЧАСТНИКИ!$A$2:$K$118,4,FALSE) ->  | D43: =VLOOKUP($M43,УЧАСТНИКИ!$A$2:$K$118,8,FALSE) ->  | E43: =VLOOKUP($M43,УЧАСТНИКИ!$A$2:$K$118,5,FALSE) ->  | F43: =VLOOKUP($M43,УЧАСТНИКИ!$A$2:$K$118,11,FALSE) ->  | J43: =VLOOKUP($M43,УЧАСТНИКИ!$A$1:$K$716,9,FALSE) ->  | L43: =VLOOKUP($M43,УЧАСТНИКИ!$A$2:$K$118,10,FALSE) -> 
A44: 33 | B44: =VLOOKUP($M44,УЧАСТНИКИ!$A$2:$K$118,3,FALSE) ->  | C44: =VLOOKUP($M44,УЧАСТНИКИ!$A$2:$K$118,4,FALSE) ->  | D44: =VLOOKUP($M44,УЧАСТНИКИ!$A$2:$K$118,8,FALSE) ->  | E44: =VLOOKUP($M44,УЧАСТНИКИ!$A$2:$K$118,5,FALSE) ->  | F44: =VLOOKUP($M44,УЧАСТНИКИ!$A$2:$K$118,11,FALSE) ->  | J44: =VLOOKUP($M44,УЧАСТНИКИ!$A$1:$K$716,9,FALSE) ->  | L44: =VLOOKUP($M44,УЧАСТНИКИ!$A$2:$K$118,10,FALSE) -> 
A45: 34 | B45: =VLOOKUP($M45,УЧАСТНИКИ!$A$2:$K$118,3,FALSE) ->  | C45: =VLOOKUP($M45,УЧАСТНИКИ!$A$2:$K$118,4,FALSE) ->  | D45: =VLOOKUP($M45,УЧАСТНИКИ!$A$2:$K$118,8,FALSE) ->  | E45: =VLOOKUP($M45,УЧАСТНИКИ!$A$2:$K$118,5,FALSE) ->  | F45: =VLOOKUP($M45,УЧАСТНИКИ!$A$2:$K$118,11,FALSE) ->  | J45: =VLOOKUP($M45,УЧАСТНИКИ!$A$1:$K$716,9,FALSE) ->  | L45: =VLOOKUP($M45,УЧАСТНИКИ!$A$2:$K$118,10,FALSE) -> 

Sheet 400м (hidden)
A1: =Name_2 -> ЦЕНТР СПОРТИВНОЙ ПОДГОТОВКИ РЕСПУБЛИКИ ТАТАРСТАН
A2: СТАРТОВЫЙ ПРОТОКОЛ
A3: =Name_4 -> ЛИЧНО-КОМАНДНЫЙ ЧЕМПИОНАТ РЕСПУБЛИКИ ТАТАРСТАН ПО ЛЕГКОЙ АТЛЕТИКЕ
A5: БЕГ 400 М | D5: 16,00 | H5: =d_1 -> 06 ИЮЛЯ 2017г.
H6: =d_5 -> г. Казань, Футбольно-легкоатлетический манеж
A7: № п/п | B7: Фамилия, имя участника | C7: Год рожд. | D7: ГОРОД | E7: КОМАНДА | F7: Номер участника | G7: Приход | H7: Результат | I7: Место | J7: Примеч.
B8: =Name_8 -> МУЖЧИНЫ 2001г.р. и старше
B9: 1 ЗАБЕГ
A10: 1 | B10: =VLOOKUP($F10,УЧАСТНИКИ!$A$1:$K$705,3,FALSE) -> УСТИМОВ ВЛАДИМИР | C10: =VLOOKUP($F10,УЧАСТНИКИ!$A$1:$K$705,4,FALSE) -> 2002 | D10: =VLOOKUP($F10,УЧАСТНИКИ!$A$1:$K$705,5,FALSE) -> ТЕТЮШИ | E10: =VLOOKUP($F10,УЧАСТНИКИ!$A$1:$K$705,11,FALSE) -> ДЮСШ | F10: 3883 | J10: =VLOOKUP($F10,УЧАСТНИКИ!$A$2:$K$231,9,FALSE) -> Л
A11: 2 | B11: =VLOOKUP($F11,УЧАСТНИКИ!$A$1:$K$705,3,FALSE) -> МАХМУТШИН ИРЕК | C11: =VLOOKUP($F11,УЧАСТНИКИ!$A$1:$K$705,4,FALSE) -> 1960 | D11: =VLOOKUP($F11,УЧАСТНИКИ!$A$1:$K$705,5,FALSE) -> КАЗАНЬ | E11: =VLOOKUP($F11,УЧАСТНИКИ!$A$1:$K$705,11,FALSE) -> - | F11: 3571 | J11: =VLOOKUP($F11,УЧАСТНИКИ!$A$2:$K$231,9,FALSE) -> Л
A12: 3 | B12: =VLOOKUP($F12,УЧАСТНИКИ!$A$1:$K$705,3,FALSE) -> ШАГИЕВ ДИНАР | C12: =VLOOKUP($F12,УЧАСТНИКИ!$A$1:$K$705,4,FALSE) -> 1999 | D12: =VLOOKUP($F12,УЧАСТНИКИ!$A$1:$K$705,5,FALSE) -> КАЗАНЬ | E12: =VLOOKUP($F12,УЧАСТНИКИ!$A$1:$K$705,11,FALSE) -> СДЮСШОР ЛА | F12: 3732 | J12: =VLOOKUP($F12,УЧАСТНИКИ!$A$2:$K$231,9,FALSE) -> Л
A13: 4 | B13: =VLOOKUP($F13,УЧАСТНИКИ!$A$1:$K$705,3,FALSE) -> НИГМАТУЛЛИН БУЛАТ | C13: =VLOOKUP($F13,УЧАСТНИКИ!$A$1:$K$705,4,FALSE) -> 1993 | D13: =VLOOKUP($F13,УЧАСТНИКИ!$A$1:$K$705,5,FALSE) -> БАВЛЫ | E13: =VLOOKUP($F13,УЧАСТНИКИ!$A$1:$K$705,11,FALSE) -> ДЮСШ №2 | F13: 11 | J13: =VLOOKUP($F13,УЧАСТНИКИ!$A$2:$K$231,9,FALSE) -> 2
A14: 5 | B14: =VLOOKUP($F14,УЧАСТНИКИ!$A$1:$K$705,3,FALSE) -> КОЛБЕНЕВ АЛЕКСАНДР | C14: =VLOOKUP($F14,УЧАСТНИКИ!$A$1:$K$705,4,FALSE) -> 2003/ВК | D14: =VLOOKUP($F14,УЧАСТНИКИ!$A$1:$K$705,5,FALSE) -> КАЗАНЬ | E14: =VLOOKUP($F14,УЧАСТНИКИ!$A$1:$K$705,11,FALSE) -> КДЮСШ АВИАТОР | F14: 3775 | J14: =VLOOKUP($F14,УЧАСТНИКИ!$A$2:$K$231,9,FALSE) -> ВК
B15: 2 ЗАБЕГ
A16: 1 | B16: =VLOOKUP($F16,УЧАСТНИКИ!$A$1:$K$705,3,FALSE) -> САФИУЛЛИН БУЛАТ | C16: =VLOOKUP($F16,УЧАСТНИКИ!$A$1:$K$705,4,FALSE) -> 2000 | D16: =VLOOKUP($F16,УЧАСТНИКИ!$A$1:$K$705,5,FALSE) -> КАЗАНЬ | E16: =VLOOKUP($F16,УЧАСТНИКИ!$A$1:$K$705,11,FALSE) -> СДЮСШОР ЛА | F16: 3739 | J16: =VLOOKUP($F16,УЧАСТНИКИ!$A$2:$K$231,9,FALSE) -> Л
A17: 2 | B17: =VLOOKUP($F17,УЧАСТНИКИ!$A$1:$K$705,3,FALSE) -> РАЗИН АЛЕКСАНДР | C17: =VLOOKUP($F17,УЧАСТНИКИ!$A$1:$K$705,4,FALSE) -> 1999 | D17: =VLOOKUP($F17,УЧАСТНИКИ!$A$1:$K$705,5,FALSE) -> ТЕТЮШИ | E17: =VLOOKUP($F17,УЧАСТНИКИ!$A$1:$K$705,11,FALSE) -> ДЮСШ | F17: 3882 | J17: =VLOOKUP($F17,УЧАСТНИКИ!$A$2:$K$231,9,FALSE) -> Л
A18: 3 | B18: =VLOOKUP($F18,УЧАСТНИКИ!$A$1:$K$705,3,FALSE) -> ГАРАФУТДИНОВ АЗАТ | C18: =VLOOKUP($F18,УЧАСТНИКИ!$A$1:$K$705,4,FALSE) -> 1996 | D18: =VLOOKUP($F18,УЧАСТНИКИ!$A$1:$K$705,5,FALSE) -> КАЗАНЬ | E18: =VLOOKUP($F18,УЧАСТНИКИ!$A$1:$K$705,11,FALSE) -> КНИТУ (КХТИ) | F18: 3569 | J18: =VLOOKUP($F18,УЧАСТНИКИ!$A$2:$K$231,9,FALSE) -> Л
A19: 4 | B19: =VLOOKUP($F19,УЧАСТНИКИ!$A$1:$K$705,3,FALSE) -> ТРИБОЙ РОМАН | C19: =VLOOKUP($F19,УЧАСТНИКИ!$A$1:$K$705,4,FALSE) -> 2001ВК | D19: =VLOOKUP($F19,УЧАСТНИКИ!$A$1:$K$705,5,FALSE) -> ЧУВАШСКАЯ РЕСП | E19: =VLOOKUP($F19,УЧАСТНИКИ!$A$1:$K$705,11,FALSE) -> АУ СШОР 3 | F19: 3784 | J19: =VLOOKUP($F19,УЧАСТНИКИ!$A$2:$K$231,9,FALSE) -> ВК
A20: 5 | B20: =VLOOKUP($F20,УЧАСТНИКИ!$A$1:$K$705,3,FALSE) -> КРАЙНОВ ДЕНИС | C20: =VLOOKUP($F20,УЧАСТНИКИ!$A$1:$K$705,4,FALSE) -> 1997 | D20: =VLOOKUP($F20,УЧАСТНИКИ!$A$1:$K$705,5,FALSE) -> КАЗАНЬ | E20: =VLOOKUP($F20,УЧАСТНИКИ!$A$1:$K$705,11,FALSE) -> ДЮСШ ОЛИМП | F20: 69 | J20: =VLOOKUP($F20,УЧАСТНИКИ!$A$2:$K$231,9,FALSE) -> Л
B21: 3 ЗАБЕГ
A22: 1 | B22: =VLOOKUP($F22,УЧАСТНИКИ!$A$1:$K$705,3,FALSE) -> ЖУКОВ ПАВЕЛ | C22: =VLOOKUP($F22,УЧАСТНИКИ!$A$1:$K$705,4,FALSE) -> 1997 | D22: =VLOOKUP($F22,УЧАСТНИКИ!$A$1:$K$705,5,FALSE) -> КАЗАНЬ | E22: =VLOOKUP($F22,УЧАСТНИКИ!$A$1:$K$705,11,FALSE) -> КФУ | F22: 3813 | J22: =VLOOKUP($F22,УЧАСТНИКИ!$A$2:$K$231,9,FALSE) -> Л
A23: 2 | B23: =VLOOKUP($F23,УЧАСТНИКИ!$A$1:$K$705,3,FALSE) -> ТАХАУОВ АЗАТ | C23: =VLOOKUP($F23,УЧАСТНИКИ!$A$1:$K$705,4,FALSE) -> 1996 | D23: =VLOOKUP($F23,УЧАСТНИКИ!$A$1:$K$705,5,FALSE) -> НАБ.ЧЕЛНЫ | E23: =VLOOKUP($F23,УЧАСТНИКИ!$A$1:$K$705,11,FALSE) -> ЯР ЧАЛЛЫ | F23: 3874 | J23: =VLOOKUP($F23,УЧАСТНИКИ!$A$2:$K$231,9,FALSE) -> Л
A24: 3 | B24: =VLOOKUP($F24,УЧАСТНИКИ!$A$1:$K$705,3,FALSE) -> ДАУТОВ ТИМУР | C24: =VLOOKUP($F24,УЧАСТНИКИ!$A$1:$K$705,4,FALSE) -> 1999 | D24: =VLOOKUP($F24,УЧАСТНИКИ!$A$1:$K$705,5,FALSE) -> КАЗАНЬ | E24: =VLOOKUP($F24,УЧАСТНИКИ!$A$1:$K$705,11,FALSE) -> КДЮСШ АВИАТОР | F24: 3858 | J24: =VLOOKUP($F24,УЧАСТНИКИ!$A$2:$K$231,9,FALSE) -> Л
A25: 4 | B25: =VLOOKUP($F25,УЧАСТНИКИ!$A$1:$K$705,3,FALSE) -> ГОРДЕЕВ АЛЕКСАНДР | C25: =VLOOKUP($F25,УЧАСТНИКИ!$A$1:$K$705,4,FALSE) -> 2000 | D25: =VLOOKUP($F25,УЧАСТНИКИ!$A$1:$K$705,5,FALSE) -> КАЗАНЬ | E25: =VLOOKUP($F25,УЧАСТНИКИ!$A$1:$K$705,11,FALSE) -> СДЮСШОР ЛА | F25: 63 | J25: =VLOOKUP($F25,УЧАСТНИКИ!$A$2:$K$231,9,FALSE) -> 3
A26: 5 | B26: =VLOOKUP($F26,УЧАСТНИКИ!$A$1:$K$705,3,FALSE) -> СЕНЬКИН АНДРЕЙ | C26: =VLOOKUP($F26,УЧАСТНИКИ!$A$1:$K$705,4,FALSE) -> 1992 | D26: =VLOOKUP($F26,УЧАСТНИКИ!$A$1:$K$705,5,FALSE) -> КАЗАНЬ | E26: =VLOOKUP($F26,УЧАСТНИКИ!$A$1:$K$705,11,FALSE) -> - | F26: 3563 | J26: =VLOOKUP($F26,УЧАСТНИКИ!$A$2:$K$231,9,FALSE) -> Л
B27: 4 ЗАБЕГ
A28: 1 | B28: =VLOOKUP($F28,УЧАСТНИКИ!$A$1:$K$705,3,FALSE) -> ЕВГРАФОВ СВЯТОСЛАВ | C28: =VLOOKUP($F28,УЧАСТНИКИ!$A$1:$K$705,4,FALSE) -> 1991ВК | D28: =VLOOKUP($F28,УЧАСТНИКИ!$A$1:$K$705,5,FALSE) -> ЧУВАШСКАЯ РЕСП | E28: =VLOOKUP($F28,УЧАСТНИКИ!$A$1:$K$705,11,FALSE) -> МБУ, САШ | F28: 3789 | J28: =VLOOKUP($F28,УЧАСТНИКИ!$A$2:$K$231,9,FALSE) -> ВК
A29: 2 | B29: =VLOOKUP($F29,УЧАСТНИКИ!$A$1:$K$705,3,FALSE) -> СИДОРОВ ОЛЕГ | C29: =VLOOKUP($F29,УЧАСТНИКИ!$A$1:$K$705,4,FALSE) -> 1990 | D29: =VLOOKUP($F29,УЧАСТНИКИ!$A$1:$K$705,5,FALSE) -> КАЗАНЬ | E29: =VLOOKUP($F29,УЧАСТНИКИ!$A$1:$K$705,11,FALSE) -> СДЮСШОР ЛА | F29: 3567 | J29: Л
A30: 3 | B30: =VLOOKUP($F30,УЧАСТНИКИ!$A$1:$K$705,3,FALSE) -> ГАЗИЗОВ АЛЬБЕРТ | C30: =VLOOKUP($F30,УЧАСТНИКИ!$A$1:$K$705,4,FALSE) -> 1998 | D30: =VLOOKUP($F30,УЧАСТНИКИ!$A$1:$K$705,5,FALSE) -> ЗЕЛЕНОДОЛЬСК | E30: =VLOOKUP($F30,УЧАСТНИКИ!$A$1:$K$705,11,FALSE) -> - | F30: 3562 | J30: =VLOOKUP($F30,УЧАСТНИКИ!$A$2:$K$231,9,FALSE) -> Л
A31: 4 | B31: =VLOOKUP($F31,УЧАСТНИКИ!$A$1:$K$705,3,FALSE) -> ХВАТКОВ СЕРГЕЙ | C31: =VLOOKUP($F31,УЧАСТНИКИ!$A$1:$K$705,4,FALSE) -> 1992 | D31: =VLOOKUP($F31,УЧАСТНИКИ!$A$1:$K$705,5,FALSE) -> УЛЬЯНОВСК | E31: =VLOOKUP($F31,УЧАСТНИКИ!$A$1:$K$705,11,FALSE) -> - | F31: 17 | J31: =VLOOKUP($F31,УЧАСТНИКИ!$A$2:$K$231,9,FALSE) -> ВК
A32: 5 | B32: =VLOOKUP($F32,УЧАСТНИКИ!$A$1:$K$705,3,FALSE) -> ЗИЯНГИРОВ АЙДАР | C32: =VLOOKUP($F32,УЧАСТНИКИ!$A$1:$K$705,4,FALSE) -> 1997 | D32: =VLOOKUP($F32,УЧАСТНИКИ!$A$1:$K$705,5,FALSE) -> БАВЛЫ | E32: =VLOOKUP($F32,УЧАСТНИКИ!$A$1:$K$705,11,FALSE) -> ДЮСШ №1 | F32: 16 | J32: =VLOOKUP($F32,УЧАСТНИКИ!$A$2:$K$231,9,FALSE) -> 2
B33: 5 ЗАБЕГ
A34: 1
A35: 2 | B35: =VLOOKUP($F35,УЧАСТНИКИ!$A$1:$K$705,3,FALSE) -> КОНСТАНТИНОВ ОЛЕГ | C35: =VLOOKUP($F35,УЧАСТНИКИ!$A$1:$K$705,4,FALSE) -> 2000 | D35: =VLOOKUP($F35,УЧАСТНИКИ!$A$1:$K$705,5,FALSE) -> КАЗАНЬ | E35: =VLOOKUP($F35,УЧАСТНИКИ!$A$1:$K$705,11,FALSE) -> СДЮСШОР ЛА | F35: 3734 | J35: =VLOOKUP($F35,УЧАСТНИКИ!$A$2:$K$231,9,FALSE) -> Л
A36: 3 | B36: =VLOOKUP($F36,УЧАСТНИКИ!$A$1:$K$705,3,FALSE) -> ГАФУРОВ АКМАЛЬ | C36: =VLOOKUP($F36,УЧАСТНИКИ!$A$1:$K$705,4,FALSE) -> 1996 | D36: =VLOOKUP($F36,УЧАСТНИКИ!$A$1:$K$705,5,FALSE) -> КАЗАНЬ | E36: =VLOOKUP($F36,УЧАСТНИКИ!$A$1:$K$705,11,FALSE) -> ДЮСШ ОЛИМП | F36: 68 | J36: =VLOOKUP($F36,УЧАСТНИКИ!$A$2:$K$231,9,FALSE) -> Л
A37: 4 | B37: =VLOOKUP($F37,УЧАСТНИКИ!$A$1:$K$705,3,FALSE) -> БАЖАЙКИН МИХАИЛ | C37: =VLOOKUP($F37,УЧАСТНИКИ!$A$1:$K$705,4,FALSE) -> 1996ВК | D37: =VLOOKUP($F37,УЧАСТНИКИ!$A$1:$K$705,5,FALSE) -> ЧУВАШСКАЯ РЕСП | E37: =VLOOKUP($F37,УЧАСТНИКИ!$A$1:$K$705,11,FALSE) -> МБУ, САШ | F37: 3786 | J37: =VLOOKUP($F37,УЧАСТНИКИ!$A$2:$K$231,9,FALSE) -> ВК
A38: 5 | B38: =VLOOKUP($F38,УЧАСТНИКИ!$A$1:$K$705,3,FALSE) -> ТАГИРОВ АЙЗАТ | C38: =VLOOKUP($F38,УЧАСТНИКИ!$A$1:$K$705,4,FALSE) -> 1997 | D38: =VLOOKUP($F38,УЧАСТНИКИ!$A$1:$K$705,5,FALSE) -> КАЗАНЬ | E38: =VLOOKUP($F38,УЧАСТНИКИ!$A$1:$K$705,11,FALSE) -> КЭК | F38: 3790 | J38: =VLOOKUP($F38,УЧАСТНИКИ!$A$2:$K$231,9,FALSE) -> Л
B39: 6 ЗАБЕГ
A40: 1
A41: 2 | B41: =VLOOKUP($F41,УЧАСТНИКИ!$A$1:$K$705,3,FALSE) -> ШАГИДОВ РАДИФ | C41: =VLOOKUP($F41,УЧАСТНИКИ!$A$1:$K$705,4,FALSE) -> 1995 | D41: =VLOOKUP($F41,УЧАСТНИКИ!$A$1:$K$705,5,FALSE) -> КАЗАНЬ | E41: =VLOOKUP($F41,УЧАСТНИКИ!$A$1:$K$705,11,FALSE) -> КГАВМ | F41: 61 | J41: =VLOOKUP($F41,УЧАСТНИКИ!$A$2:$K$231,9,FALSE) -> Л
A42: 3 | B42: =VLOOKUP($F42,УЧАСТНИКИ!$A$1:$K$705,3,FALSE) -> ДОРМИДОНТОВ АЛЕКСАНДР | C42: =VLOOKUP($F42,УЧАСТНИКИ!$A$1:$K$705,4,FALSE) -> 1996ВК | D42: =VLOOKUP($F42,УЧАСТНИКИ!$A$1:$K$705,5,FALSE) -> ЧУВАШСКАЯ РЕСП | E42: =VLOOKUP($F42,УЧАСТНИКИ!$A$1:$K$705,11,FALSE) -> МБУ, САШ | F42: 3787 | J42: =VLOOKUP($F42,УЧАСТНИКИ!$A$2:$K$231,9,FALSE) -> ВК
A43: 4 | B43: =VLOOKUP($F43,УЧАСТНИКИ!$A$1:$K$705,3,FALSE) -> ЗАКУТАЕВ НИКИТА | C43: =VLOOKUP($F43,УЧАСТНИКИ!$A$1:$K$705,4,FALSE) -> 2000 | D43: =VLOOKUP($F43,УЧАСТНИКИ!$A$1:$K$705,5,FALSE) -> КАЗАНЬ | E43: =VLOOKUP($F43,УЧАСТНИКИ!$A$1:$K$705,11,FALSE) -> СТРЕЛА | F43: 3800 | J43: =VLOOKUP($F43,УЧАСТНИКИ!$A$2:$K$231,9,FALSE) -> Л
A44: 5
B45: 7 ЗАБЕГ
A46: 1 | B46: =VLOOKUP($F46,УЧАСТНИКИ!$A$1:$K$705,3,FALSE) ->  | C46: =VLOOKUP($F46,УЧАСТНИКИ!$A$1:$K$705,4,FALSE) ->  | D46: =VLOOKUP($F46,УЧАСТНИКИ!$A$1:$K$705,5,FALSE) ->  | E46: =VLOOKUP($F46,УЧАСТНИКИ!$A$1:$K$705,11,FALSE) ->  | J46: =VLOOKUP($F46,УЧАСТНИКИ!$A$2:$K$231,9,FALSE) -> 
A47: 2 | B47: =VLOOKUP($F47,УЧАСТНИКИ!$A$1:$K$705,3,FALSE) ->  | C47: =VLOOKUP($F47,УЧАСТНИКИ!$A$1:$K$705,4,FALSE) ->  | D47: =VLOOKUP($F47,УЧАСТНИКИ!$A$1:$K$705,5,FALSE) ->  | E47: =VLOOKUP($F47,УЧАСТНИКИ!$A$1:$K$705,11,FALSE) ->  | J47: =VLOOKUP($F47,УЧАСТНИКИ!$A$2:$K$231,9,FALSE) -> 
A48: 3 | B48: =VLOOKUP($F48,УЧАСТНИКИ!$A$1:$K$705,3,FALSE) ->  | C48: =VLOOKUP($F48,УЧАСТНИКИ!$A$1:$K$705,4,FALSE) ->  | D48: =VLOOKUP($F48,УЧАСТНИКИ!$A$1:$K$705,5,FALSE) ->  | E48: =VLOOKUP($F48,УЧАСТНИКИ!$A$1:$K$705,11,FALSE) ->  | J48: =VLOOKUP($F48,УЧАСТНИКИ!$A$2:$K$231,9,FALSE) -> 
A49: 4 | B49: =VLOOKUP($F49,УЧАСТНИКИ!$A$1:$K$705,3,FALSE) ->  | C49: =VLOOKUP($F49,УЧАСТНИКИ!$A$1:$K$705,4,FALSE) ->  | D49: =VLOOKUP($F49,УЧАСТНИКИ!$A$1:$K$705,5,FALSE) ->  | E49: =VLOOKUP($F49,УЧАСТНИКИ!$A$1:$K$705,11,FALSE) ->  | J49: =VLOOKUP($F49,УЧАСТНИКИ!$A$2:$K$231,9,FALSE) -> 
A50: 5 | B50: =VLOOKUP($F50,УЧАСТНИКИ!$A$1:$K$705,3,FALSE) ->  | C50: =VLOOKUP($F50,УЧАСТНИКИ!$A$1:$K$705,4,FALSE) ->  | D50: =VLOOKUP($F50,УЧАСТНИКИ!$A$1:$K$705,5,FALSE) ->  | E50: =VLOOKUP($F50,УЧАСТНИКИ!$A$1:$K$705,11,FALSE) ->  | J50: =VLOOKUP($F50,УЧАСТНИКИ!$A$2:$K$231,9,FALSE) -> 
B51: 8 ЗАБЕГ
A52: 1 | B52: =VLOOKUP($F52,УЧАСТНИКИ!$A$1:$K$705,3,FALSE) ->  | C52: =VLOOKUP($F52,УЧАСТНИКИ!$A$1:$K$705,4,FALSE) ->  | D52: =VLOOKUP($F52,УЧАСТНИКИ!$A$1:$K$705,5,FALSE) ->  | E52: =VLOOKUP($F52,УЧАСТНИКИ!$A$1:$K$705,11,FALSE) ->  | J52: =VLOOKUP($F52,УЧАСТНИКИ!$A$2:$K$231,9,FALSE) -> 
A53: 2 | B53: =VLOOKUP($F53,УЧАСТНИКИ!$A$1:$K$705,3,FALSE) ->  | C53: =VLOOKUP($F53,УЧАСТНИКИ!$A$1:$K$705,4,FALSE) ->  | D53: =VLOOKUP($F53,УЧАСТНИКИ!$A$1:$K$705,5,FALSE) ->  | E53: =VLOOKUP($F53,УЧАСТНИКИ!$A$1:$K$705,11,FALSE) ->  | J53: =VLOOKUP($F53,УЧАСТНИКИ!$A$2:$K$231,9,FALSE) -> 
A54: 3 | B54: =VLOOKUP($F54,УЧАСТНИКИ!$A$1:$K$705,3,FALSE) ->  | C54: =VLOOKUP($F54,УЧАСТНИКИ!$A$1:$K$705,4,FALSE) ->  | D54: =VLOOKUP($F54,УЧАСТНИКИ!$A$1:$K$705,5,FALSE) ->  | E54: =VLOOKUP($F54,УЧАСТНИКИ!$A$1:$K$705,11,FALSE) ->  | J54: =VLOOKUP($F54,УЧАСТНИКИ!$A$2:$K$231,9,FALSE) -> 
A55: 4 | B55: =VLOOKUP($F55,УЧАСТНИКИ!$A$1:$K$705,3,FALSE) ->  | C55: =VLOOKUP($F55,УЧАСТНИКИ!$A$1:$K$705,4,FALSE) ->  | D55: =VLOOKUP($F55,УЧАСТНИКИ!$A$1:$K$705,5,FALSE) ->  | E55: =VLOOKUP($F55,УЧАСТНИКИ!$A$1:$K$705,11,FALSE) ->  | J55: =VLOOKUP($F55,УЧАСТНИКИ!$A$2:$K$231,9,FALSE) -> 
A56: 5 | B56: =VLOOKUP($F56,УЧАСТНИКИ!$A$1:$K$705,3,FALSE) ->  | C56: =VLOOKUP($F56,УЧАСТНИКИ!$A$1:$K$705,4,FALSE) ->  | D56: =VLOOKUP($F56,УЧАСТНИКИ!$A$1:$K$705,5,FALSE) ->  | E56: =VLOOKUP($F56,УЧАСТНИКИ!$A$1:$K$705,11,FALSE) ->  | J56: =VLOOKUP($F56,УЧАСТНИКИ!$A$2:$K$231,9,FALSE) -> 
B57: 9 ЗАБЕГ
A58: 1 | B58: =VLOOKUP($F58,УЧАСТНИКИ!$A$1:$K$705,3,FALSE) ->  | C58: =VLOOKUP($F58,УЧАСТНИКИ!$A$1:$K$705,4,FALSE) ->  | D58: =VLOOKUP($F58,УЧАСТНИКИ!$A$1:$K$705,5,FALSE) ->  | E58: =VLOOKUP($F58,УЧАСТНИКИ!$A$1:$K$705,11,FALSE) ->  | J58: =VLOOKUP($F58,УЧАСТНИКИ!$A$2:$K$231,9,FALSE) -> 
A59: 2 | B59: =VLOOKUP($F59,УЧАСТНИКИ!$A$1:$K$705,3,FALSE) ->  | C59: =VLOOKUP($F59,УЧАСТНИКИ!$A$1:$K$705,4,FALSE) ->  | D59: =VLOOKUP($F59,УЧАСТНИКИ!$A$1:$K$705,5,FALSE) ->  | E59: =VLOOKUP($F59,УЧАСТНИКИ!$A$1:$K$705,11,FALSE) ->  | J59: =VLOOKUP($F59,УЧАСТНИКИ!$A$2:$K$231,9,FALSE) -> 
A60: 3 | B60: =VLOOKUP($F60,УЧАСТНИКИ!$A$1:$K$705,3,FALSE) ->  | C60: =VLOOKUP($F60,УЧАСТНИКИ!$A$1:$K$705,4,FALSE) ->  | D60: =VLOOKUP($F60,УЧАСТНИКИ!$A$1:$K$705,5,FALSE) ->  | E60: =VLOOKUP($F60,УЧАСТНИКИ!$A$1:$K$705,11,FALSE) ->  | J60: =VLOOKUP($F60,УЧАСТНИКИ!$A$2:$K$231,9,FALSE) -> 
A61: 4 | B61: =VLOOKUP($F61,УЧАСТНИКИ!$A$1:$K$705,3,FALSE) ->  | C61: =VLOOKUP($F61,УЧАСТНИКИ!$A$1:$K$705,4,FALSE) ->  | D61: =VLOOKUP($F61,УЧАСТНИКИ!$A$1:$K$705,5,FALSE) ->  | E61: =VLOOKUP($F61,УЧАСТНИКИ!$A$1:$K$705,11,FALSE) ->  | J61: =VLOOKUP($F61,УЧАСТНИКИ!$A$2:$K$231,9,FALSE) -> 
A62: 5 | B62: =VLOOKUP($F62,УЧАСТНИКИ!$A$1:$K$705,3,FALSE) ->  | C62: =VLOOKUP($F62,УЧАСТНИКИ!$A$1:$K$705,4,FALSE) ->  | D62: =VLOOKUP($F62,УЧАСТНИКИ!$A$1:$K$705,5,FALSE) ->  | E62: =VLOOKUP($F62,УЧАСТНИКИ!$A$1:$K$705,11,FALSE) ->  | J62: =VLOOKUP($F62,УЧАСТНИКИ!$A$2:$K$231,9,FALSE) -> 
B63: 10 ЗАБЕГ
A64: 1 | B64: =VLOOKUP($F64,УЧАСТНИКИ!$A$1:$K$705,3,FALSE) ->  | C64: =VLOOKUP($F64,УЧАСТНИКИ!$A$1:$K$705,4,FALSE) ->  | D64: =VLOOKUP($F64,УЧАСТНИКИ!$A$1:$K$705,5,FALSE) ->  | E64: =VLOOKUP($F64,УЧАСТНИКИ!$A$1:$K$705,11,FALSE) ->  | J64: =VLOOKUP($F64,УЧАСТНИКИ!$A$2:$K$231,9,FALSE) -> 
A65: 2 | B65: =VLOOKUP($F65,УЧАСТНИКИ!$A$1:$K$705,3,FALSE) ->  | C65: =VLOOKUP($F65,УЧАСТНИКИ!$A$1:$K$705,4,FALSE) ->  | D65: =VLOOKUP($F65,УЧАСТНИКИ!$A$1:$K$705,5,FALSE) ->  | E65: =VLOOKUP($F65,УЧАСТНИКИ!$A$1:$K$705,11,FALSE) ->  | J65: =VLOOKUP($F65,УЧАСТНИКИ!$A$2:$K$231,9,FALSE) -> 
A66: 3 | B66: =VLOOKUP($F66,УЧАСТНИКИ!$A$1:$K$705,3,FALSE) ->  | C66: =VLOOKUP($F66,УЧАСТНИКИ!$A$1:$K$705,4,FALSE) ->  | D66: =VLOOKUP($F66,УЧАСТНИКИ!$A$1:$K$705,5,FALSE) ->  | E66: =VLOOKUP($F66,УЧАСТНИКИ!$A$1:$K$705,11,FALSE) ->  | J66: =VLOOKUP($F66,УЧАСТНИКИ!$A$2:$K$231,9,FALSE) -> 
A67: 4 | B67: =VLOOKUP($F67,УЧАСТНИКИ!$A$1:$K$705,3,FALSE) ->  | C67: =VLOOKUP($F67,УЧАСТНИКИ!$A$1:$K$705,4,FALSE) ->  | D67: =VLOOKUP($F67,УЧАСТНИКИ!$A$1:$K$705,5,FALSE) ->  | E67: =VLOOKUP($F67,УЧАСТНИКИ!$A$1:$K$705,11,FALSE) ->  | J67: =VLOOKUP($F67,УЧАСТНИКИ!$A$2:$K$231,9,FALSE) -> 
A68: 5 | B68: =VLOOKUP($F68,УЧАСТНИКИ!$A$1:$K$705,3,FALSE) ->  | C68: =VLOOKUP($F68,УЧАСТНИКИ!$A$1:$K$705,4,FALSE) ->  | D68: =VLOOKUP($F68,УЧАСТНИКИ!$A$1:$K$705,5,FALSE) ->  | E68: =VLOOKUP($F68,УЧАСТНИКИ!$A$1:$K$705,11,FALSE) ->  | J68: =VLOOKUP($F68,УЧАСТНИКИ!$A$2:$K$231,9,FALSE) -> 
B69: 11 ЗАБЕГ
A70: 1 | B70: =VLOOKUP($F70,УЧАСТНИКИ!$A$1:$K$705,3,FALSE) ->  | C70: =VLOOKUP($F70,УЧАСТНИКИ!$A$1:$K$705,4,FALSE) ->  | D70: =VLOOKUP($F70,УЧАСТНИКИ!$A$1:$K$705,5,FALSE) ->  | E70: =VLOOKUP($F70,УЧАСТНИКИ!$A$1:$K$705,11,FALSE) ->  | J70: =VLOOKUP($F70,УЧАСТНИКИ!$A$2:$K$231,9,FALSE) -> 
A71: 2 | B71: =VLOOKUP($F71,УЧАСТНИКИ!$A$1:$K$705,3,FALSE) ->  | C71: =VLOOKUP($F71,УЧАСТНИКИ!$A$1:$K$705,4,FALSE) ->  | D71: =VLOOKUP($F71,УЧАСТНИКИ!$A$1:$K$705,5,FALSE) ->  | E71: =VLOOKUP($F71,УЧАСТНИКИ!$A$1:$K$705,11,FALSE) ->  | J71: =VLOOKUP($F71,УЧАСТНИКИ!$A$2:$K$231,9,FALSE) -> 
A72: 3 | B72: =VLOOKUP($F72,УЧАСТНИКИ!$A$1:$K$705,3,FALSE) ->  | C72: =VLOOKUP($F72,УЧАСТНИКИ!$A$1:$K$705,4,FALSE) ->  | D72: =VLOOKUP($F72,УЧАСТНИКИ!$A$1:$K$705,5,FALSE) ->  | E72: =VLOOKUP($F72,УЧАСТНИКИ!$A$1:$K$705,11,FALSE) ->  | J72: =VLOOKUP($F72,УЧАСТНИКИ!$A$2:$K$231,9,FALSE) -> 
A73: 4 | B73: =VLOOKUP($F73,УЧАСТНИКИ!$A$1:$K$705,3,FALSE) ->  | C73: =VLOOKUP($F73,УЧАСТНИКИ!$A$1:$K$705,4,FALSE) ->  | D73: =VLOOKUP($F73,УЧАСТНИКИ!$A$1:$K$705,5,FALSE) ->  | E73: =VLOOKUP($F73,УЧАСТНИКИ!$A$1:$K$705,11,FALSE) ->  | J73: =VLOOKUP($F73,УЧАСТНИКИ!$A$2:$K$231,9,FALSE) -> 
A74: 5 | B74: =VLOOKUP($F74,УЧАСТНИКИ!$A$1:$K$705,3,FALSE) ->  | C74: =VLOOKUP($F74,УЧАСТНИКИ!$A$1:$K$705,4,FALSE) ->  | D74: =VLOOKUP($F74,УЧАСТНИКИ!$A$1:$K$705,5,FALSE) ->  | E74: =VLOOKUP($F74,УЧАСТНИКИ!$A$1:$K$705,11,FALSE) ->  | J74: =VLOOKUP($F74,УЧАСТНИКИ!$A$2:$K$231,9,FALSE) -> 
B75: 12 ЗАБЕГ
A76: 1
A77: 2 | B77: =VLOOKUP($F77,УЧАСТНИКИ!$A$1:$K$705,3,FALSE) ->  | C77: =VLOOKUP($F77,УЧАСТНИКИ!$A$1:$K$705,4,FALSE) ->  | D77: =VLOOKUP($F77,УЧАСТНИКИ!$A$1:$K$705,5,FALSE) ->  | E77: =VLOOKUP($F77,УЧАСТНИКИ!$A$1:$K$705,11,FALSE) ->  | J77: =VLOOKUP($F77,УЧАСТНИКИ!$A$2:$K$231,9,FALSE) -> 
A78: 3 | B78: =VLOOKUP($F78,УЧАСТНИКИ!$A$1:$K$705,3,FALSE) ->  | C78: =VLOOKUP($F78,УЧАСТНИКИ!$A$1:$K$705,4,FALSE) ->  | D78: =VLOOKUP($F78,УЧАСТНИКИ!$A$1:$K$705,5,FALSE) ->  | E78: =VLOOKUP($F78,УЧАСТНИКИ!$A$1:$K$705,11,FALSE) ->  | J78: =VLOOKUP($F78,УЧАСТНИКИ!$A$2:$K$231,9,FALSE) -> 
A79: 4 | B79: =VLOOKUP($F79,УЧАСТНИКИ!$A$1:$K$705,3,FALSE) ->  | C79: =VLOOKUP($F79,УЧАСТНИКИ!$A$1:$K$705,4,FALSE) ->  | D79: =VLOOKUP($F79,УЧАСТНИКИ!$A$1:$K$705,5,FALSE) ->  | E79: =VLOOKUP($F79,УЧАСТНИКИ!$A$1:$K$705,11,FALSE) ->  | J79: =VLOOKUP($F79,УЧАСТНИКИ!$A$2:$K$231,9,FALSE) -> 
A80: 5 | B80: =VLOOKUP($F80,УЧАСТНИКИ!$A$1:$K$705,3,FALSE) ->  | C80: =VLOOKUP($F80,УЧАСТНИКИ!$A$1:$K$705,4,FALSE) ->  | D80: =VLOOKUP($F80,УЧАСТНИКИ!$A$1:$K$705,5,FALSE) ->  | E80: =VLOOKUP($F80,УЧАСТНИКИ!$A$1:$K$705,11,FALSE) ->  | J80: =VLOOKUP($F80,УЧАСТНИКИ!$A$2:$K$231,9,FALSE) -> 
B81: 13 ЗАБЕГ
A82: 1 | B82: =VLOOKUP($F82,УЧАСТНИКИ!$A$1:$K$705,3,FALSE) ->  | C82: =VLOOKUP($F82,УЧАСТНИКИ!$A$1:$K$705,4,FALSE) ->  | D82: =VLOOKUP($F82,УЧАСТНИКИ!$A$1:$K$705,5,FALSE) ->  | E82: =VLOOKUP($F82,УЧАСТНИКИ!$A$1:$K$705,11,FALSE) ->  | J82: =VLOOKUP($F82,УЧАСТНИКИ!$A$2:$K$231,9,FALSE) -> 
A83: 2 | B83: =VLOOKUP($F83,УЧАСТНИКИ!$A$1:$K$705,3,FALSE) ->  | C83: =VLOOKUP($F83,УЧАСТНИКИ!$A$1:$K$705,4,FALSE) ->  | D83: =VLOOKUP($F83,УЧАСТНИКИ!$A$1:$K$705,5,FALSE) ->  | E83: =VLOOKUP($F83,УЧАСТНИКИ!$A$1:$K$705,11,FALSE) ->  | J83: =VLOOKUP($F83,УЧАСТНИКИ!$A$2:$K$231,9,FALSE) -> 
A84: 3 | B84: =VLOOKUP($F84,УЧАСТНИКИ!$A$1:$K$705,3,FALSE) ->  | C84: =VLOOKUP($F84,УЧАСТНИКИ!$A$1:$K$705,4,FALSE) ->  | D84: =VLOOKUP($F84,УЧАСТНИКИ!$A$1:$K$705,5,FALSE) ->  | E84: =VLOOKUP($F84,УЧАСТНИКИ!$A$1:$K$705,11,FALSE) ->  | J84: =VLOOKUP($F84,УЧАСТНИКИ!$A$2:$K$231,9,FALSE) -> 
A85: 4 | B85: =VLOOKUP($F85,УЧАСТНИКИ!$A$1:$K$705,3,FALSE) ->  | C85: =VLOOKUP($F85,УЧАСТНИКИ!$A$1:$K$705,4,FALSE) ->  | D85: =VLOOKUP($F85,УЧАСТНИКИ!$A$1:$K$705,5,FALSE) ->  | E85: =VLOOKUP($F85,УЧАСТНИКИ!$A$1:$K$705,11,FALSE) ->  | J85: =VLOOKUP($F85,УЧАСТНИКИ!$A$2:$K$231,9,FALSE) -> 
B86: 14 ЗАБЕГ
A87: 1 | B87: =VLOOKUP($F87,УЧАСТНИКИ!$A$1:$K$705,3,FALSE) ->  | C87: =VLOOKUP($F87,УЧАСТНИКИ!$A$1:$K$705,4,FALSE) ->  | D87: =VLOOKUP($F87,УЧАСТНИКИ!$A$1:$K$705,5,FALSE) ->  | E87: =VLOOKUP($F87,УЧАСТНИКИ!$A$1:$K$705,11,FALSE) ->  | J87: =VLOOKUP($F87,УЧАСТНИКИ!$A$2:$K$231,9,FALSE) -> 
A88: 2 | B88: =VLOOKUP($F88,УЧАСТНИКИ!$A$1:$K$705,3,FALSE) ->  | C88: =VLOOKUP($F88,УЧАСТНИКИ!$A$1:$K$705,4,FALSE) ->  | D88: =VLOOKUP($F88,УЧАСТНИКИ!$A$1:$K$705,5,FALSE) ->  | E88: =VLOOKUP($F88,УЧАСТНИКИ!$A$1:$K$705,11,FALSE) ->  | J88: =VLOOKUP($F88,УЧАСТНИКИ!$A$2:$K$231,9,FALSE) -> 
A89: 3 | B89: =VLOOKUP($F89,УЧАСТНИКИ!$A$1:$K$705,3,FALSE) ->  | C89: =VLOOKUP($F89,УЧАСТНИКИ!$A$1:$K$705,4,FALSE) ->  | D89: =VLOOKUP($F89,УЧАСТНИКИ!$A$1:$K$705,5,FALSE) ->  | E89: =VLOOKUP($F89,УЧАСТНИКИ!$A$1:$K$705,11,FALSE) ->  | J89: =VLOOKUP($F89,УЧАСТНИКИ!$A$2:$K$231,9,FALSE) -> 
A90: 4 | B90: =VLOOKUP($F90,УЧАСТНИКИ!$A$1:$K$705,3,FALSE) ->  | C90: =VLOOKUP($F90,УЧАСТНИКИ!$A$1:$K$705,4,FALSE) ->  | D90: =VLOOKUP($F90,УЧАСТНИКИ!$A$1:$K$705,5,FALSE) ->  | E90: =VLOOKUP($F90,УЧАСТНИКИ!$A$1:$K$705,11,FALSE) ->  | J90: =VLOOKUP($F90,УЧАСТНИКИ!$A$2:$K$231,9,FALSE) -> 
B91: 15 ЗАБЕГ
A92: 1 | B92: =VLOOKUP($F92,УЧАСТНИКИ!$A$1:$K$705,3,FALSE) ->  | C92: =VLOOKUP($F92,УЧАСТНИКИ!$A$1:$K$705,4,FALSE) ->  | D92: =VLOOKUP($F92,УЧАСТНИКИ!$A$1:$K$705,5,FALSE) ->  | E92: =VLOOKUP($F92,УЧАСТНИКИ!$A$1:$K$705,11,FALSE) ->  | J92: =VLOOKUP($F92,УЧАСТНИКИ!$A$2:$K$231,9,FALSE) -> 
A93: 2 | B93: =VLOOKUP($F93,УЧАСТНИКИ!$A$1:$K$705,3,FALSE) ->  | C93: =VLOOKUP($F93,УЧАСТНИКИ!$A$1:$K$705,4,FALSE) ->  | D93: =VLOOKUP($F93,УЧАСТНИКИ!$A$1:$K$705,5,FALSE) ->  | E93: =VLOOKUP($F93,УЧАСТНИКИ!$A$1:$K$705,11,FALSE) ->  | J93: =VLOOKUP($F93,УЧАСТНИКИ!$A$2:$K$231,9,FALSE) -> 
A94: 3 | B94: =VLOOKUP($F94,УЧАСТНИКИ!$A$1:$K$705,3,FALSE) ->  | C94: =VLOOKUP($F94,УЧАСТНИКИ!$A$1:$K$705,4,FALSE) ->  | D94: =VLOOKUP($F94,УЧАСТНИКИ!$A$1:$K$705,5,FALSE) ->  | E94: =VLOOKUP($F94,УЧАСТНИКИ!$A$1:$K$705,11,FALSE) ->  | J94: =VLOOKUP($F94,УЧАСТНИКИ!$A$2:$K$231,9,FALSE) -> 
A95: 4 | B95: =VLOOKUP($F95,УЧАСТНИКИ!$A$1:$K$705,3,FALSE) ->  | C95: =VLOOKUP($F95,УЧАСТНИКИ!$A$1:$K$705,4,FALSE) ->  | D95: =VLOOKUP($F95,УЧАСТНИКИ!$A$1:$K$705,5,FALSE) ->  | E95: =VLOOKUP($F95,УЧАСТНИКИ!$A$1:$K$705,11,FALSE) ->  | J95: =VLOOKUP($F95,УЧАСТНИКИ!$A$2:$K$231,9,FALSE) -> 
B96: 16 ЗАБЕГ
A97: 1 | B97: =VLOOKUP($F97,УЧАСТНИКИ!$A$1:$K$705,3,FALSE) ->  | C97: =VLOOKUP($F97,УЧАСТНИКИ!$A$1:$K$705,4,FALSE) ->  | D97: =VLOOKUP($F97,УЧАСТНИКИ!$A$1:$K$705,5,FALSE) ->  | E97: =VLOOKUP($F97,УЧАСТНИКИ!$A$1:$K$705,11,FALSE) ->  | J97: =VLOOKUP($F97,УЧАСТНИКИ!$A$2:$K$231,9,FALSE) -> 
A98: 2 | B98: =VLOOKUP($F98,УЧАСТНИКИ!$A$1:$K$705,3,FALSE) ->  | C98: =VLOOKUP($F98,УЧАСТНИКИ!$A$1:$K$705,4,FALSE) ->  | D98: =VLOOKUP($F98,УЧАСТНИКИ!$A$1:$K$705,5,FALSE) ->  | E98: =VLOOKUP($F98,УЧАСТНИКИ!$A$1:$K$705,11,FALSE) ->  | J98: =VLOOKUP($F98,УЧАСТНИКИ!$A$2:$K$231,9,FALSE) -> 
A99: 3 | B99: =VLOOKUP($F99,УЧАСТНИКИ!$A$1:$K$705,3,FALSE) ->  | C99: =VLOOKUP($F99,УЧАСТНИКИ!$A$1:$K$705,4,FALSE) ->  | D99: =VLOOKUP($F99,УЧАСТНИКИ!$A$1:$K$705,5,FALSE) ->  | E99: =VLOOKUP($F99,УЧАСТНИКИ!$A$1:$K$705,11,FALSE) ->  | J99: =VLOOKUP($F99,УЧАСТНИКИ!$A$2:$K$231,9,FALSE) -> 
A100: 4 | B100: =VLOOKUP($F100,УЧАСТНИКИ!$A$1:$K$705,3,FALSE) ->  | C100: =VLOOKUP($F100,УЧАСТНИКИ!$A$1:$K$705,4,FALSE) ->  | D100: =VLOOKUP($F100,УЧАСТНИКИ!$A$1:$K$705,5,FALSE) ->  | E100: =VLOOKUP($F100,УЧАСТНИКИ!$A$1:$K$705,11,FALSE) ->  | J100: =VLOOKUP($F100,УЧАСТНИКИ!$A$2:$K$231,9,FALSE) -> 
B101: 17 ЗАБЕГ
A102: 1 | B102: =VLOOKUP($F102,УЧАСТНИКИ!$A$1:$K$705,3,FALSE) ->  | C102: =VLOOKUP($F102,УЧАСТНИКИ!$A$1:$K$705,4,FALSE) ->  | D102: =VLOOKUP($F102,УЧАСТНИКИ!$A$1:$K$705,5,FALSE) ->  | E102: =VLOOKUP($F102,УЧАСТНИКИ!$A$1:$K$705,11,FALSE) ->  | J102: =VLOOKUP($F102,УЧАСТНИКИ!$A$2:$K$231,9,FALSE) -> 
A103: 2 | B103: =VLOOKUP($F103,УЧАСТНИКИ!$A$1:$K$705,3,FALSE) ->  | C103: =VLOOKUP($F103,УЧАСТНИКИ!$A$1:$K$705,4,FALSE) ->  | D103: =VLOOKUP($F103,УЧАСТНИКИ!$A$1:$K$705,5,FALSE) ->  | E103: =VLOOKUP($F103,УЧАСТНИКИ!$A$1:$K$705,11,FALSE) ->  | J103: =VLOOKUP($F103,УЧАСТНИКИ!$A$2:$K$231,9,FALSE) -> 
A104: 3 | B104: =VLOOKUP($F104,УЧАСТНИКИ!$A$1:$K$705,3,FALSE) ->  | C104: =VLOOKUP($F104,УЧАСТНИКИ!$A$1:$K$705,4,FALSE) ->  | D104: =VLOOKUP($F104,УЧАСТНИКИ!$A$1:$K$705,5,FALSE) ->  | E104: =VLOOKUP($F104,УЧАСТНИКИ!$A$1:$K$705,11,FALSE) ->  | J104: =VLOOKUP($F104,УЧАСТНИКИ!$A$2:$K$231,9,FALSE) -> 
A105: 4 | J105: =VLOOKUP($F105,УЧАСТНИКИ!$A$2:$K$231,9,FALSE) -> 
B106: 18 ЗАБЕГ
A107: 1 | B107: =VLOOKUP($F107,УЧАСТНИКИ!$A$1:$K$705,3,FALSE) ->  | C107: =VLOOKUP($F107,УЧАСТНИКИ!$A$1:$K$705,4,FALSE) ->  | D107: =VLOOKUP($F107,УЧАСТНИКИ!$A$1:$K$705,5,FALSE) ->  | E107: =VLOOKUP($F107,УЧАСТНИКИ!$A$1:$K$705,11,FALSE) ->  | J107: =VLOOKUP($F107,УЧАСТНИКИ!$A$2:$K$231,9,FALSE) -> 
A108: 2 | B108: =VLOOKUP($F108,УЧАСТНИКИ!$A$1:$K$705,3,FALSE) ->  | C108: =VLOOKUP($F108,УЧАСТНИКИ!$A$1:$K$705,4,FALSE) ->  | D108: =VLOOKUP($F108,УЧАСТНИКИ!$A$1:$K$705,5,FALSE) ->  | E108: =VLOOKUP($F108,УЧАСТНИКИ!$A$1:$K$705,11,FALSE) ->  | J108: =VLOOKUP($F108,УЧАСТНИКИ!$A$2:$K$231,9,FALSE) -> 
A109: 3 | B109: =VLOOKUP($F109,УЧАСТНИКИ!$A$1:$K$705,3,FALSE) ->  | C109: =VLOOKUP($F109,УЧАСТНИКИ!$A$1:$K$705,4,FALSE) ->  | D109: =VLOOKUP($F109,УЧАСТНИКИ!$A$1:$K$705,5,FALSE) ->  | E109: =VLOOKUP($F109,УЧАСТНИКИ!$A$1:$K$705,11,FALSE) ->  | J109: =VLOOKUP($F109,УЧАСТНИКИ!$A$2:$K$231,9,FALSE) -> 
A110: 4 | B110: =VLOOKUP($F110,УЧАСТНИКИ!$A$1:$K$705,3,FALSE) ->  | C110: =VLOOKUP($F110,УЧАСТНИКИ!$A$1:$K$705,4,FALSE) ->  | D110: =VLOOKUP($F110,УЧАСТНИКИ!$A$1:$K$705,5,FALSE) ->  | E110: =VLOOKUP($F110,УЧАСТНИКИ!$A$1:$K$705,11,FALSE) ->  | J110: =VLOOKUP($F110,УЧАСТНИКИ!$A$2:$K$231,9,FALSE) -> 
B111: =Name_8 -> МУЖЧИНЫ 2001г.р. и старше
B112: 19 ЗАБЕГ
A113: 1 | B113: =VLOOKUP($F113,УЧАСТНИКИ!$A$1:$K$705,3,FALSE) ->  | C113: =VLOOKUP($F113,УЧАСТНИКИ!$A$1:$K$705,4,FALSE) ->  | D113: =VLOOKUP($F113,УЧАСТНИКИ!$A$1:$K$705,5,FALSE) ->  | E113: =VLOOKUP($F113,УЧАСТНИКИ!$A$1:$K$705,11,FALSE) ->  | J113: =VLOOKUP($F113,УЧАСТНИКИ!#REF!,9,FALSE) -> 
A114: 2 | B114: =VLOOKUP($F114,УЧАСТНИКИ!$A$1:$K$705,3,FALSE) ->  | C114: =VLOOKUP($F114,УЧАСТНИКИ!$A$1:$K$705,4,FALSE) ->  | D114: =VLOOKUP($F114,УЧАСТНИКИ!$A$1:$K$705,5,FALSE) ->  | E114: =VLOOKUP($F114,УЧАСТНИКИ!$A$1:$K$705,11,FALSE) ->  | J114: =VLOOKUP($F114,УЧАСТНИКИ!#REF!,9,FALSE) -> 
A115: 3 | B115: =VLOOKUP($F115,УЧАСТНИКИ!$A$1:$K$705,3,FALSE) ->  | C115: =VLOOKUP($F115,УЧАСТНИКИ!$A$1:$K$705,4,FALSE) ->  | D115: =VLOOKUP($F115,УЧАСТНИКИ!$A$1:$K$705,5,FALSE) ->  | E115: =VLOOKUP($F115,УЧАСТНИКИ!$A$1:$K$705,11,FALSE) ->  | J115: =VLOOKUP($F115,УЧАСТНИКИ!#REF!,9,FALSE) -> 
A116: 4 | B116: =VLOOKUP($F116,УЧАСТНИКИ!$A$1:$K$705,3,FALSE) ->  | C116: =VLOOKUP($F116,УЧАСТНИКИ!$A$1:$K$705,4,FALSE) ->  | D116: =VLOOKUP($F116,УЧАСТНИКИ!$A$1:$K$705,5,FALSE) ->  | E116: =VLOOKUP($F116,УЧАСТНИКИ!$A$1:$K$705,11,FALSE) ->  | J116: =VLOOKUP($F116,УЧАСТНИКИ!#REF!,9,FALSE) -> 
B117: 20 ЗАБЕГ
A118: 1 | B118: =VLOOKUP($F118,УЧАСТНИКИ!$A$1:$K$705,3,FALSE) ->  | C118: =VLOOKUP($F118,УЧАСТНИКИ!$A$1:$K$705,4,FALSE) ->  | D118: =VLOOKUP($F118,УЧАСТНИКИ!$A$1:$K$705,5,FALSE) ->  | E118: =VLOOKUP($F118,УЧАСТНИКИ!$A$1:$K$705,11,FALSE) ->  | J118: =VLOOKUP($F118,УЧАСТНИКИ!#REF!,9,FALSE) -> 
A119: 2 | B119: =VLOOKUP($F119,УЧАСТНИКИ!$A$1:$K$705,3,FALSE) ->  | C119: =VLOOKUP($F119,УЧАСТНИКИ!$A$1:$K$705,4,FALSE) ->  | D119: =VLOOKUP($F119,УЧАСТНИКИ!$A$1:$K$705,5,FALSE) ->  | E119: =VLOOKUP($F119,УЧАСТНИКИ!$A$1:$K$705,11,FALSE) ->  | J119: =VLOOKUP($F119,УЧАСТНИКИ!#REF!,9,FALSE) -> 
A120: 3 | B120: =VLOOKUP($F120,УЧАСТНИКИ!$A$1:$K$705,3,FALSE) ->  | C120: =VLOOKUP($F120,УЧАСТНИКИ!$A$1:$K$705,4,FALSE) ->  | D120: =VLOOKUP($F120,УЧАСТНИКИ!$A$1:$K$705,5,FALSE) ->  | E120: =VLOOKUP($F120,УЧАСТНИКИ!$A$1:$K$705,11,FALSE) ->  | J120: =VLOOKUP($F120,УЧАСТНИКИ!#REF!,9,FALSE) -> 
A121: 4 | B121: =VLOOKUP($F121,УЧАСТНИКИ!$A$1:$K$705,3,FALSE) ->  | C121: =VLOOKUP($F121,УЧАСТНИКИ!$A$1:$K$705,4,FALSE) ->  | D121: =VLOOKUP($F121,УЧАСТНИКИ!$A$1:$K$705,5,FALSE) ->  | E121: =VLOOKUP($F121,УЧАСТНИКИ!$A$1:$K$705,11,FALSE) ->  | J121: =VLOOKUP($F121,УЧАСТНИКИ!#REF!,9,FALSE) -> 
B122: 21 ЗАБЕГ
A123: 1 | B123: =VLOOKUP($F123,УЧАСТНИКИ!$A$1:$K$705,3,FALSE) ->  | C123: =VLOOKUP($F123,УЧАСТНИКИ!$A$1:$K$705,4,FALSE) ->  | D123: =VLOOKUP($F123,УЧАСТНИКИ!$A$1:$K$705,5,FALSE) ->  | E123: =VLOOKUP($F123,УЧАСТНИКИ!$A$1:$K$705,11,FALSE) ->  | J123: =VLOOKUP($F123,УЧАСТНИКИ!#REF!,9,FALSE) -> 
A124: 2 | B124: =VLOOKUP($F124,УЧАСТНИКИ!$A$1:$K$705,3,FALSE) ->  | C124: =VLOOKUP($F124,УЧАСТНИКИ!$A$1:$K$705,4,FALSE) ->  | D124: =VLOOKUP($F124,УЧАСТНИКИ!$A$1:$K$705,5,FALSE) ->  | E124: =VLOOKUP($F124,УЧАСТНИКИ!$A$1:$K$705,11,FALSE) ->  | J124: =VLOOKUP($F124,УЧАСТНИКИ!#REF!,9,FALSE) -> 
A125: 3 | B125: =VLOOKUP($F125,УЧАСТНИКИ!$A$1:$K$705,3,FALSE) ->  | C125: =VLOOKUP($F125,УЧАСТНИКИ!$A$1:$K$705,4,FALSE) ->  | D125: =VLOOKUP($F125,УЧАСТНИКИ!$A$1:$K$705,5,FALSE) ->  | E125: =VLOOKUP($F125,УЧАСТНИКИ!$A$1:$K$705,11,FALSE) ->  | J125: =VLOOKUP($F125,УЧАСТНИКИ!#REF!,9,FALSE) -> 
A126: 4 | B126: =VLOOKUP($F126,УЧАСТНИКИ!$A$1:$K$705,3,FALSE) ->  | C126: =VLOOKUP($F126,УЧАСТНИКИ!$A$1:$K$705,4,FALSE) ->  | D126: =VLOOKUP($F126,УЧАСТНИКИ!$A$1:$K$705,5,FALSE) ->  | E126: =VLOOKUP($F126,УЧАСТНИКИ!$A$1:$K$705,11,FALSE) ->  | J126: =VLOOKUP($F126,УЧАСТНИКИ!#REF!,9,FALSE) -> 
B127: 22 ЗАБЕГ
A128: 1 | B128: =VLOOKUP($F128,УЧАСТНИКИ!$A$1:$K$705,3,FALSE) ->  | C128: =VLOOKUP($F128,УЧАСТНИКИ!$A$1:$K$705,4,FALSE) ->  | D128: =VLOOKUP($F128,УЧАСТНИКИ!$A$1:$K$705,5,FALSE) ->  | E128: =VLOOKUP($F128,УЧАСТНИКИ!$A$1:$K$705,11,FALSE) ->  | J128: =VLOOKUP($F128,УЧАСТНИКИ!#REF!,9,FALSE) -> 
A129: 2 | B129: =VLOOKUP($F129,УЧАСТНИКИ!$A$1:$K$705,3,FALSE) ->  | C129: =VLOOKUP($F129,УЧАСТНИКИ!$A$1:$K$705,4,FALSE) ->  | D129: =VLOOKUP($F129,УЧАСТНИКИ!$A$1:$K$705,5,FALSE) ->  | E129: =VLOOKUP($F129,УЧАСТНИКИ!$A$1:$K$705,11,FALSE) ->  | J129: =VLOOKUP($F129,УЧАСТНИКИ!#REF!,9,FALSE) -> 
A130: 3 | B130: =VLOOKUP($F130,УЧАСТНИКИ!$A$1:$K$705,3,FALSE) ->  | C130: =VLOOKUP($F130,УЧАСТНИКИ!$A$1:$K$705,4,FALSE) ->  | D130: =VLOOKUP($F130,УЧАСТНИКИ!$A$1:$K$705,5,FALSE) ->  | E130: =VLOOKUP($F130,УЧАСТНИКИ!$A$1:$K$705,11,FALSE) ->  | J130: =VLOOKUP($F130,УЧАСТНИКИ!#REF!,9,FALSE) -> 
A131: 4 | B131: =VLOOKUP($F131,УЧАСТНИКИ!$A$1:$K$705,3,FALSE) ->  | C131: =VLOOKUP($F131,УЧАСТНИКИ!$A$1:$K$705,4,FALSE) ->  | D131: =VLOOKUP($F131,УЧАСТНИКИ!$A$1:$K$705,5,FALSE) ->  | E131: =VLOOKUP($F131,УЧАСТНИКИ!$A$1:$K$705,11,FALSE) ->  | J131: =VLOOKUP($F131,УЧАСТНИКИ!#REF!,9,FALSE) -> 
B132: 23 ЗАБЕГ
A133: 1 | B133: =VLOOKUP($F133,УЧАСТНИКИ!$A$1:$K$705,3,FALSE) ->  | C133: =VLOOKUP($F133,УЧАСТНИКИ!$A$1:$K$705,4,FALSE) ->  | D133: =VLOOKUP($F133,УЧАСТНИКИ!$A$1:$K$705,5,FALSE) ->  | E133: =VLOOKUP($F133,УЧАСТНИКИ!$A$1:$K$705,11,FALSE) ->  | J133: =VLOOKUP($F133,УЧАСТНИКИ!#REF!,9,FALSE) -> 
A134: 2 | B134: =VLOOKUP($F134,УЧАСТНИКИ!$A$1:$K$705,3,FALSE) ->  | C134: =VLOOKUP($F134,УЧАСТНИКИ!$A$1:$K$705,4,FALSE) ->  | D134: =VLOOKUP($F134,УЧАСТНИКИ!$A$1:$K$705,5,FALSE) ->  | E134: =VLOOKUP($F134,УЧАСТНИКИ!$A$1:$K$705,11,FALSE) ->  | J134: =VLOOKUP($F134,УЧАСТНИКИ!#REF!,9,FALSE) -> 
A135: 3 | B135: =VLOOKUP($F135,УЧАСТНИКИ!$A$1:$K$705,3,FALSE) ->  | C135: =VLOOKUP($F135,УЧАСТНИКИ!$A$1:$K$705,4,FALSE) ->  | D135: =VLOOKUP($F135,УЧАСТНИКИ!$A$1:$K$705,5,FALSE) ->  | E135: =VLOOKUP($F135,УЧАСТНИКИ!$A$1:$K$705,11,FALSE) ->  | J135: =VLOOKUP($F135,УЧАСТНИКИ!#REF!,9,FALSE) -> 
A136: 4 | B136: =VLOOKUP($F136,УЧАСТНИКИ!$A$1:$K$705,3,FALSE) ->  | C136: =VLOOKUP($F136,УЧАСТНИКИ!$A$1:$K$705,4,FALSE) ->  | D136: =VLOOKUP($F136,УЧАСТНИКИ!$A$1:$K$705,5,FALSE) ->  | E136: =VLOOKUP($F136,УЧАСТНИКИ!$A$1:$K$705,11,FALSE) ->  | J136: =VLOOKUP($F136,УЧАСТНИКИ!#REF!,9,FALSE) -> 
B137: 24 ЗАБЕГ
A138: 1 | B138: =VLOOKUP($F138,УЧАСТНИКИ!$A$1:$K$705,3,FALSE) ->  | C138: =VLOOKUP($F138,УЧАСТНИКИ!$A$1:$K$705,4,FALSE) ->  | D138: =VLOOKUP($F138,УЧАСТНИКИ!$A$1:$K$705,5,FALSE) ->  | E138: =VLOOKUP($F138,УЧАСТНИКИ!$A$1:$K$705,11,FALSE) ->  | J138: =VLOOKUP($F138,УЧАСТНИКИ!#REF!,9,FALSE) -> 
A139: 2 | B139: =VLOOKUP($F139,УЧАСТНИКИ!$A$1:$K$705,3,FALSE) ->  | C139: =VLOOKUP($F139,УЧАСТНИКИ!$A$1:$K$705,4,FALSE) ->  | D139: =VLOOKUP($F139,УЧАСТНИКИ!$A$1:$K$705,5,FALSE) ->  | E139: =VLOOKUP($F139,УЧАСТНИКИ!$A$1:$K$705,11,FALSE) ->  | J139: =VLOOKUP($F139,УЧАСТНИКИ!#REF!,9,FALSE) -> 
A140: 3 | B140: =VLOOKUP($F140,УЧАСТНИКИ!$A$1:$K$705,3,FALSE) ->  | C140: =VLOOKUP($F140,УЧАСТНИКИ!$A$1:$K$705,4,FALSE) ->  | D140: =VLOOKUP($F140,УЧАСТНИКИ!$A$1:$K$705,5,FALSE) ->  | E140: =VLOOKUP($F140,УЧАСТНИКИ!$A$1:$K$705,11,FALSE) ->  | J140: =VLOOKUP($F140,УЧАСТНИКИ!#REF!,9,FALSE) -> 
A141: 4 | B141: =VLOOKUP($F141,УЧАСТНИКИ!$A$1:$K$705,3,FALSE) ->  | C141: =VLOOKUP($F141,УЧАСТНИКИ!$A$1:$K$705,4,FALSE) ->  | D141: =VLOOKUP($F141,УЧАСТНИКИ!$A$1:$K$705,5,FALSE) ->  | E141: =VLOOKUP($F141,УЧАСТНИКИ!$A$1:$K$705,11,FALSE) ->  | J141: =VLOOKUP($F141,УЧАСТНИКИ!#REF!,9,FALSE) -> 
B142: 25 ЗАБЕГ
A143: 1 | B143: =VLOOKUP($F143,УЧАСТНИКИ!$A$1:$K$705,3,FALSE) ->  | C143: =VLOOKUP($F143,УЧАСТНИКИ!$A$1:$K$705,4,FALSE) ->  | D143: =VLOOKUP($F143,УЧАСТНИКИ!$A$1:$K$705,5,FALSE) ->  | E143: =VLOOKUP($F143,УЧАСТНИКИ!$A$1:$K$705,11,FALSE) ->  | J143: =VLOOKUP($F143,УЧАСТНИКИ!#REF!,9,FALSE) -> 
A144: 2 | B144: =VLOOKUP($F144,УЧАСТНИКИ!$A$1:$K$705,3,FALSE) ->  | C144: =VLOOKUP($F144,УЧАСТНИКИ!$A$1:$K$705,4,FALSE) ->  | D144: =VLOOKUP($F144,УЧАСТНИКИ!$A$1:$K$705,5,FALSE) ->  | E144: =VLOOKUP($F144,УЧАСТНИКИ!$A$1:$K$705,11,FALSE) ->  | J144: =VLOOKUP($F144,УЧАСТНИКИ!#REF!,9,FALSE) -> 
A145: 3 | B145: =VLOOKUP($F145,УЧАСТНИКИ!$A$1:$K$705,3,FALSE) ->  | C145: =VLOOKUP($F145,УЧАСТНИКИ!$A$1:$K$705,4,FALSE) ->  | D145: =VLOOKUP($F145,УЧАСТНИКИ!$A$1:$K$705,5,FALSE) ->  | E145: =VLOOKUP($F145,УЧАСТНИКИ!$A$1:$K$705,11,FALSE) ->  | J145: =VLOOKUP($F145,УЧАСТНИКИ!#REF!,9,FALSE) -> 
A146: 4 | B146: =VLOOKUP($F146,УЧАСТНИКИ!$A$1:$K$705,3,FALSE) ->  | C146: =VLOOKUP($F146,УЧАСТНИКИ!$A$1:$K$705,4,FALSE) ->  | D146: =VLOOKUP($F146,УЧАСТНИКИ!$A$1:$K$705,5,FALSE) ->  | E146: =VLOOKUP($F146,УЧАСТНИКИ!$A$1:$K$705,11,FALSE) ->  | J146: =VLOOKUP($F146,УЧАСТНИКИ!#REF!,9,FALSE) -> 
B147: 26 ЗАБЕГ
A148: 1 | B148: =VLOOKUP($F148,УЧАСТНИКИ!$A$1:$K$705,3,FALSE) ->  | C148: =VLOOKUP($F148,УЧАСТНИКИ!$A$1:$K$705,4,FALSE) ->  | D148: =VLOOKUP($F148,УЧАСТНИКИ!$A$1:$K$705,5,FALSE) ->  | E148: =VLOOKUP($F148,УЧАСТНИКИ!$A$1:$K$705,11,FALSE) ->  | J148: =VLOOKUP($F148,УЧАСТНИКИ!#REF!,9,FALSE) -> 
A149: 2 | B149: =VLOOKUP($F149,УЧАСТНИКИ!$A$1:$K$705,3,FALSE) ->  | C149: =VLOOKUP($F149,УЧАСТНИКИ!$A$1:$K$705,4,FALSE) ->  | D149: =VLOOKUP($F149,УЧАСТНИКИ!$A$1:$K$705,5,FALSE) ->  | E149: =VLOOKUP($F149,УЧАСТНИКИ!$A$1:$K$705,11,FALSE) ->  | J149: =VLOOKUP($F149,УЧАСТНИКИ!#REF!,9,FALSE) -> 
A150: 3 | B150: =VLOOKUP($F150,УЧАСТНИКИ!$A$1:$K$705,3,FALSE) ->  | C150: =VLOOKUP($F150,УЧАСТНИКИ!$A$1:$K$705,4,FALSE) ->  | D150: =VLOOKUP($F150,УЧАСТНИКИ!$A$1:$K$705,5,FALSE) ->  | E150: =VLOOKUP($F150,УЧАСТНИКИ!$A$1:$K$705,11,FALSE) ->  | J150: =VLOOKUP($F150,УЧАСТНИКИ!#REF!,9,FALSE) -> 
A151: 4 | B151: =VLOOKUP($F151,УЧАСТНИКИ!$A$1:$K$705,3,FALSE) ->  | C151: =VLOOKUP($F151,УЧАСТНИКИ!$A$1:$K$705,4,FALSE) ->  | D151: =VLOOKUP($F151,УЧАСТНИКИ!$A$1:$K$705,5,FALSE) ->  | E151: =VLOOKUP($F151,УЧАСТНИКИ!$A$1:$K$705,11,FALSE) ->  | J151: =VLOOKUP($F151,УЧАСТНИКИ!#REF!,9,FALSE) -> 
B152: 27 ЗАБЕГ
A153: 1 | B153: =VLOOKUP($F153,УЧАСТНИКИ!$A$1:$K$705,3,FALSE) ->  | C153: =VLOOKUP($F153,УЧАСТНИКИ!$A$1:$K$705,4,FALSE) ->  | D153: =VLOOKUP($F153,УЧАСТНИКИ!$A$1:$K$705,5,FALSE) ->  | E153: =VLOOKUP($F153,УЧАСТНИКИ!$A$1:$K$705,11,FALSE) ->  | J153: =VLOOKUP($F153,УЧАСТНИКИ!#REF!,9,FALSE) -> 
A154: 2 | B154: =VLOOKUP($F154,УЧАСТНИКИ!$A$1:$K$705,3,FALSE) ->  | C154: =VLOOKUP($F154,УЧАСТНИКИ!$A$1:$K$705,4,FALSE) ->  | D154: =VLOOKUP($F154,УЧАСТНИКИ!$A$1:$K$705,5,FALSE) ->  | E154: =VLOOKUP($F154,УЧАСТНИКИ!$A$1:$K$705,11,FALSE) ->  | J154: =VLOOKUP($F154,УЧАСТНИКИ!#REF!,9,FALSE) -> 
A155: 3 | B155: =VLOOKUP($F155,УЧАСТНИКИ!$A$1:$K$705,3,FALSE) ->  | C155: =VLOOKUP($F155,УЧАСТНИКИ!$A$1:$K$705,4,FALSE) ->  | D155: =VLOOKUP($F155,УЧАСТНИКИ!$A$1:$K$705,5,FALSE) ->  | E155: =VLOOKUP($F155,УЧАСТНИКИ!$A$1:$K$705,11,FALSE) ->  | J155: =VLOOKUP($F155,УЧАСТНИКИ!#REF!,9,FALSE) -> 
A156: 4 | B156: =VLOOKUP($F156,УЧАСТНИКИ!$A$1:$K$705,3,FALSE) ->  | C156: =VLOOKUP($F156,УЧАСТНИКИ!$A$1:$K$705,4,FALSE) ->  | D156: =VLOOKUP($F156,УЧАСТНИКИ!$A$1:$K$705,5,FALSE) ->  | E156: =VLOOKUP($F156,УЧАСТНИКИ!$A$1:$K$705,11,FALSE) ->  | J156: =VLOOKUP($F156,УЧАСТНИКИ!#REF!,9,FALSE) -> 
B157: 28 ЗАБЕГ
A158: 1 | B158: =VLOOKUP($F158,УЧАСТНИКИ!$A$1:$K$705,3,FALSE) ->  | C158: =VLOOKUP($F158,УЧАСТНИКИ!$A$1:$K$705,4,FALSE) ->  | D158: =VLOOKUP($F158,УЧАСТНИКИ!$A$1:$K$705,5,FALSE) ->  | E158: =VLOOKUP($F158,УЧАСТНИКИ!$A$1:$K$705,11,FALSE) ->  | J158: =VLOOKUP($F158,УЧАСТНИКИ!#REF!,9,FALSE) -> 
A159: 2 | B159: =VLOOKUP($F159,УЧАСТНИКИ!$A$1:$K$705,3,FALSE) ->  | C159: =VLOOKUP($F159,УЧАСТНИКИ!$A$1:$K$705,4,FALSE) ->  | D159: =VLOOKUP($F159,УЧАСТНИКИ!$A$1:$K$705,5,FALSE) ->  | E159: =VLOOKUP($F159,УЧАСТНИКИ!$A$1:$K$705,11,FALSE) ->  | J159: =VLOOKUP($F159,УЧАСТНИКИ!#REF!,9,FALSE) -> 
A160: 3 | B160: =VLOOKUP($F160,УЧАСТНИКИ!$A$1:$K$705,3,FALSE) ->  | C160: =VLOOKUP($F160,УЧАСТНИКИ!$A$1:$K$705,4,FALSE) ->  | D160: =VLOOKUP($F160,УЧАСТНИКИ!$A$1:$K$705,5,FALSE) ->  | E160: =VLOOKUP($F160,УЧАСТНИКИ!$A$1:$K$705,11,FALSE) ->  | J160: =VLOOKUP($F160,УЧАСТНИКИ!#REF!,9,FALSE) -> 
A161: 4 | B161: =VLOOKUP($F161,УЧАСТНИКИ!$A$1:$K$705,3,FALSE) ->  | C161: =VLOOKUP($F161,УЧАСТНИКИ!$A$1:$K$705,4,FALSE) ->  | D161: =VLOOKUP($F161,УЧАСТНИКИ!$A$1:$K$705,5,FALSE) ->  | E161: =VLOOKUP($F161,УЧАСТНИКИ!$A$1:$K$705,11,FALSE) ->  | J161: =VLOOKUP($F161,УЧАСТНИКИ!#REF!,9,FALSE) -> 
B162: 29 ЗАБЕГ
A163: 1 | B163: =VLOOKUP($F163,УЧАСТНИКИ!$A$1:$K$705,3,FALSE) ->  | C163: =VLOOKUP($F163,УЧАСТНИКИ!$A$1:$K$705,4,FALSE) ->  | D163: =VLOOKUP($F163,УЧАСТНИКИ!$A$1:$K$705,5,FALSE) ->  | E163: =VLOOKUP($F163,УЧАСТНИКИ!$A$1:$K$705,11,FALSE) ->  | J163: =VLOOKUP($F163,УЧАСТНИКИ!#REF!,9,FALSE) -> 
A164: 2 | B164: =VLOOKUP($F164,УЧАСТНИКИ!$A$1:$K$705,3,FALSE) ->  | C164: =VLOOKUP($F164,УЧАСТНИКИ!$A$1:$K$705,4,FALSE) ->  | D164: =VLOOKUP($F164,УЧАСТНИКИ!$A$1:$K$705,5,FALSE) ->  | E164: =VLOOKUP($F164,УЧАСТНИКИ!$A$1:$K$705,11,FALSE) ->  | J164: =VLOOKUP($F164,УЧАСТНИКИ!#REF!,9,FALSE) -> 
A165: 3 | B165: =VLOOKUP($F165,УЧАСТНИКИ!$A$1:$K$705,3,FALSE) ->  | C165: =VLOOKUP($F165,УЧАСТНИКИ!$A$1:$K$705,4,FALSE) ->  | D165: =VLOOKUP($F165,УЧАСТНИКИ!$A$1:$K$705,5,FALSE) ->  | E165: =VLOOKUP($F165,УЧАСТНИКИ!$A$1:$K$705,11,FALSE) ->  | J165: =VLOOKUP($F165,УЧАСТНИКИ!#REF!,9,FALSE) -> 
A166: 4 | B166: =VLOOKUP($F166,УЧАСТНИКИ!$A$1:$K$705,3,FALSE) ->  | C166: =VLOOKUP($F166,УЧАСТНИКИ!$A$1:$K$705,4,FALSE) ->  | D166: =VLOOKUP($F166,УЧАСТНИКИ!$A$1:$K$705,5,FALSE) ->  | E166: =VLOOKUP($F166,УЧАСТНИКИ!$A$1:$K$705,11,FALSE) ->  | J166: =VLOOKUP($F166,УЧАСТНИКИ!#REF!,9,FALSE) -> 
B167: 30 ЗАБЕГ
A168: 1 | B168: =VLOOKUP($F168,УЧАСТНИКИ!$A$1:$K$705,3,FALSE) ->  | C168: =VLOOKUP($F168,УЧАСТНИКИ!$A$1:$K$705,4,FALSE) ->  | D168: =VLOOKUP($F168,УЧАСТНИКИ!$A$1:$K$705,5,FALSE) ->  | E168: =VLOOKUP($F168,УЧАСТНИКИ!$A$1:$K$705,11,FALSE) ->  | J168: =VLOOKUP($F168,УЧАСТНИКИ!#REF!,9,FALSE) -> 
A169: 2 | B169: =VLOOKUP($F169,УЧАСТНИКИ!$A$1:$K$705,3,FALSE) ->  | C169: =VLOOKUP($F169,УЧАСТНИКИ!$A$1:$K$705,4,FALSE) ->  | D169: =VLOOKUP($F169,УЧАСТНИКИ!$A$1:$K$705,5,FALSE) ->  | E169: =VLOOKUP($F169,УЧАСТНИКИ!$A$1:$K$705,11,FALSE) ->  | J169: =VLOOKUP($F169,УЧАСТНИКИ!#REF!,9,FALSE) -> 
A170: 3 | B170: =VLOOKUP($F170,УЧАСТНИКИ!$A$1:$K$705,3,FALSE) ->  | C170: =VLOOKUP($F170,УЧАСТНИКИ!$A$1:$K$705,4,FALSE) ->  | D170: =VLOOKUP($F170,УЧАСТНИКИ!$A$1:$K$705,5,FALSE) ->  | E170: =VLOOKUP($F170,УЧАСТНИКИ!$A$1:$K$705,11,FALSE) ->  | J170: =VLOOKUP($F170,УЧАСТНИКИ!#REF!,9,FALSE) -> 
A171: 4 | B171: =VLOOKUP($F171,УЧАСТНИКИ!$A$1:$K$705,3,FALSE) ->  | C171: =VLOOKUP($F171,УЧАСТНИКИ!$A$1:$K$705,4,FALSE) ->  | D171: =VLOOKUP($F171,УЧАСТНИКИ!$A$1:$K$705,5,FALSE) ->  | E171: =VLOOKUP($F171,УЧАСТНИКИ!$A$1:$K$705,11,FALSE) ->  | J171: =VLOOKUP($F171,УЧАСТНИКИ!#REF!,9,FALSE) -> 
B172: 31 ЗАБЕГ
A173: 1 | B173: =VLOOKUP($F173,УЧАСТНИКИ!$A$1:$K$705,3,FALSE) ->  | C173: =VLOOKUP($F173,УЧАСТНИКИ!$A$1:$K$705,4,FALSE) ->  | D173: =VLOOKUP($F173,УЧАСТНИКИ!$A$1:$K$705,5,FALSE) ->  | E173: =VLOOKUP($F173,УЧАСТНИКИ!$A$1:$K$705,11,FALSE) ->  | J173: =VLOOKUP($F173,УЧАСТНИКИ!#REF!,9,FALSE) -> 
A174: 2 | B174: =VLOOKUP($F174,УЧАСТНИКИ!$A$1:$K$705,3,FALSE) ->  | C174: =VLOOKUP($F174,УЧАСТНИКИ!$A$1:$K$705,4,FALSE) ->  | D174: =VLOOKUP($F174,УЧАСТНИКИ!$A$1:$K$705,5,FALSE) ->  | E174: =VLOOKUP($F174,УЧАСТНИКИ!$A$1:$K$705,11,FALSE) ->  | J174: =VLOOKUP($F174,УЧАСТНИКИ!#REF!,9,FALSE) -> 
A175: 3 | B175: =VLOOKUP($F175,УЧАСТНИКИ!$A$1:$K$705,3,FALSE) ->  | C175: =VLOOKUP($F175,УЧАСТНИКИ!$A$1:$K$705,4,FALSE) ->  | D175: =VLOOKUP($F175,УЧАСТНИКИ!$A$1:$K$705,5,FALSE) ->  | E175: =VLOOKUP($F175,УЧАСТНИКИ!$A$1:$K$705,11,FALSE) ->  | J175: =VLOOKUP($F175,УЧАСТНИКИ!#REF!,9,FALSE) -> 
A176: 4 | B176: =VLOOKUP($F176,УЧАСТНИКИ!$A$1:$K$705,3,FALSE) ->  | C176: =VLOOKUP($F176,УЧАСТНИКИ!$A$1:$K$705,4,FALSE) ->  | D176: =VLOOKUP($F176,УЧАСТНИКИ!$A$1:$K$705,5,FALSE) ->  | E176: =VLOOKUP($F176,УЧАСТНИКИ!$A$1:$K$705,11,FALSE) ->  | J176: =VLOOKUP($F176,УЧАСТНИКИ!#REF!,9,FALSE) -> 
B177: 32 ЗАБЕГ
A178: 1 | B178: =VLOOKUP($F178,УЧАСТНИКИ!$A$1:$K$705,3,FALSE) ->  | C178: =VLOOKUP($F178,УЧАСТНИКИ!$A$1:$K$705,4,FALSE) ->  | D178: =VLOOKUP($F178,УЧАСТНИКИ!$A$1:$K$705,5,FALSE) ->  | E178: =VLOOKUP($F178,УЧАСТНИКИ!$A$1:$K$705,11,FALSE) ->  | J178: =VLOOKUP($F178,УЧАСТНИКИ!#REF!,9,FALSE) -> 
A179: 2 | B179: =VLOOKUP($F179,УЧАСТНИКИ!$A$1:$K$705,3,FALSE) ->  | C179: =VLOOKUP($F179,УЧАСТНИКИ!$A$1:$K$705,4,FALSE) ->  | D179: =VLOOKUP($F179,УЧАСТНИКИ!$A$1:$K$705,5,FALSE) ->  | E179: =VLOOKUP($F179,УЧАСТНИКИ!$A$1:$K$705,11,FALSE) ->  | J179: =VLOOKUP($F179,УЧАСТНИКИ!#REF!,9,FALSE) -> 
A180: 3 | B180: =VLOOKUP($F180,УЧАСТНИКИ!$A$1:$K$705,3,FALSE) ->  | C180: =VLOOKUP($F180,УЧАСТНИКИ!$A$1:$K$705,4,FALSE) ->  | D180: =VLOOKUP($F180,УЧАСТНИКИ!$A$1:$K$705,5,FALSE) ->  | E180: =VLOOKUP($F180,УЧАСТНИКИ!$A$1:$K$705,11,FALSE) ->  | J180: =VLOOKUP($F180,УЧАСТНИКИ!#REF!,9,FALSE) -> 
A181: 4 | B181: =VLOOKUP($F181,УЧАСТНИКИ!$A$1:$K$705,3,FALSE) ->  | C181: =VLOOKUP($F181,УЧАСТНИКИ!$A$1:$K$705,4,FALSE) ->  | D181: =VLOOKUP($F181,УЧАСТНИКИ!$A$1:$K$705,5,FALSE) ->  | E181: =VLOOKUP($F181,УЧАСТНИКИ!$A$1:$K$705,11,FALSE) ->  | J181: =VLOOKUP($F181,УЧАСТНИКИ!#REF!,9,FALSE) -> 
B182: 33 ЗАБЕГ
A183: 1 | B183: =VLOOKUP($F183,УЧАСТНИКИ!$A$1:$K$705,3,FALSE) ->  | C183: =VLOOKUP($F183,УЧАСТНИКИ!$A$1:$K$705,4,FALSE) ->  | D183: =VLOOKUP($F183,УЧАСТНИКИ!$A$1:$K$705,5,FALSE) ->  | E183: =VLOOKUP($F183,УЧАСТНИКИ!$A$1:$K$705,11,FALSE) ->  | J183: =VLOOKUP($F183,УЧАСТНИКИ!#REF!,9,FALSE) -> 
A184: 2 | B184: =VLOOKUP($F184,УЧАСТНИКИ!$A$1:$K$705,3,FALSE) ->  | C184: =VLOOKUP($F184,УЧАСТНИКИ!$A$1:$K$705,4,FALSE) ->  | D184: =VLOOKUP($F184,УЧАСТНИКИ!$A$1:$K$705,5,FALSE) ->  | E184: =VLOOKUP($F184,УЧАСТНИКИ!$A$1:$K$705,11,FALSE) ->  | J184: =VLOOKUP($F184,УЧАСТНИКИ!#REF!,9,FALSE) -> 
A185: 3 | B185: =VLOOKUP($F185,УЧАСТНИКИ!$A$1:$K$705,3,FALSE) ->  | C185: =VLOOKUP($F185,УЧАСТНИКИ!$A$1:$K$705,4,FALSE) ->  | D185: =VLOOKUP($F185,УЧАСТНИКИ!$A$1:$K$705,5,FALSE) ->  | E185: =VLOOKUP($F185,УЧАСТНИКИ!$A$1:$K$705,11,FALSE) ->  | J185: =VLOOKUP($F185,УЧАСТНИКИ!#REF!,9,FALSE) -> 
A186: 4 | B186: =VLOOKUP($F186,УЧАСТНИКИ!$A$1:$K$705,3,FALSE) ->  | C186: =VLOOKUP($F186,УЧАСТНИКИ!$A$1:$K$705,4,FALSE) ->  | D186: =VLOOKUP($F186,УЧАСТНИКИ!$A$1:$K$705,5,FALSE) ->  | E186: =VLOOKUP($F186,УЧАСТНИКИ!$A$1:$K$705,11,FALSE) ->  | J186: =VLOOKUP($F186,УЧАСТНИКИ!#REF!,9,FALSE) -> 
B187: 34 ЗАБЕГ
A188: 1 | B188: =VLOOKUP($F188,УЧАСТНИКИ!$A$1:$K$705,3,FALSE) ->  | C188: =VLOOKUP($F188,УЧАСТНИКИ!$A$1:$K$705,4,FALSE) ->  | D188: =VLOOKUP($F188,УЧАСТНИКИ!$A$1:$K$705,5,FALSE) ->  | E188: =VLOOKUP($F188,УЧАСТНИКИ!$A$1:$K$705,11,FALSE) ->  | J188: =VLOOKUP($F188,УЧАСТНИКИ!#REF!,9,FALSE) -> 
A189: 2 | B189: =VLOOKUP($F189,УЧАСТНИКИ!$A$1:$K$705,3,FALSE) ->  | C189: =VLOOKUP($F189,УЧАСТНИКИ!$A$1:$K$705,4,FALSE) ->  | D189: =VLOOKUP($F189,УЧАСТНИКИ!$A$1:$K$705,5,FALSE) ->  | E189: =VLOOKUP($F189,УЧАСТНИКИ!$A$1:$K$705,11,FALSE) ->  | J189: =VLOOKUP($F189,УЧАСТНИКИ!#REF!,9,FALSE) -> 
A190: 3 | B190: =VLOOKUP($F190,УЧАСТНИКИ!$A$1:$K$705,3,FALSE) ->  | C190: =VLOOKUP($F190,УЧАСТНИКИ!$A$1:$K$705,4,FALSE) ->  | D190: =VLOOKUP($F190,УЧАСТНИКИ!$A$1:$K$705,5,FALSE) ->  | E190: =VLOOKUP($F190,УЧАСТНИКИ!$A$1:$K$705,11,FALSE) ->  | J190: =VLOOKUP($F190,УЧАСТНИКИ!#REF!,9,FALSE) -> 
A191: 4 | B191: =VLOOKUP($F191,УЧАСТНИКИ!$A$1:$K$705,3,FALSE) ->  | C191: =VLOOKUP($F191,УЧАСТНИКИ!$A$1:$K$705,4,FALSE) ->  | D191: =VLOOKUP($F191,УЧАСТНИКИ!$A$1:$K$705,5,FALSE) ->  | E191: =VLOOKUP($F191,УЧАСТНИКИ!$A$1:$K$705,11,FALSE) ->  | J191: =VLOOKUP($F191,УЧАСТНИКИ!#REF!,9,FALSE) -> 
B192: 35 ЗАБЕГ
A193: 1 | B193: =VLOOKUP($F193,УЧАСТНИКИ!$A$1:$K$705,3,FALSE) ->  | C193: =VLOOKUP($F193,УЧАСТНИКИ!$A$1:$K$705,4,FALSE) ->  | D193: =VLOOKUP($F193,УЧАСТНИКИ!$A$1:$K$705,5,FALSE) ->  | E193: =VLOOKUP($F193,УЧАСТНИКИ!$A$1:$K$705,11,FALSE) ->  | J193: =VLOOKUP($F193,УЧАСТНИКИ!#REF!,9,FALSE) -> 
A194: 2 | B194: =VLOOKUP($F194,УЧАСТНИКИ!$A$1:$K$705,3,FALSE) ->  | C194: =VLOOKUP($F194,УЧАСТНИКИ!$A$1:$K$705,4,FALSE) ->  | D194: =VLOOKUP($F194,УЧАСТНИКИ!$A$1:$K$705,5,FALSE) ->  | E194: =VLOOKUP($F194,УЧАСТНИКИ!$A$1:$K$705,11,FALSE) ->  | J194: =VLOOKUP($F194,УЧАСТНИКИ!#REF!,9,FALSE) -> 
A195: 3 | B195: =VLOOKUP($F195,УЧАСТНИКИ!$A$1:$K$705,3,FALSE) ->  | C195: =VLOOKUP($F195,УЧАСТНИКИ!$A$1:$K$705,4,FALSE) ->  | D195: =VLOOKUP($F195,УЧАСТНИКИ!$A$1:$K$705,5,FALSE) ->  | E195: =VLOOKUP($F195,УЧАСТНИКИ!$A$1:$K$705,11,FALSE) ->  | J195: =VLOOKUP($F195,УЧАСТНИКИ!#REF!,9,FALSE) -> 
A196: 4 | B196: =VLOOKUP($F196,УЧАСТНИКИ!$A$1:$K$705,3,FALSE) ->  | C196: =VLOOKUP($F196,УЧАСТНИКИ!$A$1:$K$705,4,FALSE) ->  | D196: =VLOOKUP($F196,УЧАСТНИКИ!$A$1:$K$705,5,FALSE) ->  | E196: =VLOOKUP($F196,УЧАСТНИКИ!$A$1:$K$705,11,FALSE) ->  | J196: =VLOOKUP($F196,УЧАСТНИКИ!#REF!,9,FALSE) -> 
B197: =Name_7 -> МУЖЧИНЫ 2001г.р. и старше
B198: 36 ЗАБЕГ
A199: 1 | J199: =VLOOKUP($F199,УЧАСТНИКИ!#REF!,9,FALSE) -> 
A200: 2 | B200: =VLOOKUP($F200,УЧАСТНИКИ!$A$1:$K$705,3,FALSE) ->  | C200: =VLOOKUP($F200,УЧАСТНИКИ!$A$1:$K$705,4,FALSE) ->  | D200: =VLOOKUP($F200,УЧАСТНИКИ!$A$1:$K$705,5,FALSE) ->  | E200: =VLOOKUP($F200,УЧАСТНИКИ!$A$1:$K$705,11,FALSE) ->  | J200: =VLOOKUP($F200,УЧАСТНИКИ!#REF!,9,FALSE) -> 
A201: 3 | B201: =VLOOKUP($F201,УЧАСТНИКИ!$A$1:$K$705,3,FALSE) ->  | C201: =VLOOKUP($F201,УЧАСТНИКИ!$A$1:$K$705,4,FALSE) ->  | D201: =VLOOKUP($F201,УЧАСТНИКИ!$A$1:$K$705,5,FALSE) ->  | E201: =VLOOKUP($F201,УЧАСТНИКИ!$A$1:$K$705,11,FALSE) ->  | J201: =VLOOKUP($F201,УЧАСТНИКИ!#REF!,9,FALSE) -> 
... 53 more rows

Sheet И 400
A1: =Name_2 -> ЦЕНТР СПОРТИВНОЙ ПОДГОТОВКИ РЕСПУБЛИКИ ТАТАРСТАН
A2: ='1'!A11:M11 -> 
A4: =Name_4 -> ЛИЧНО-КОМАНДНЫЙ ЧЕМПИОНАТ РЕСПУБЛИКИ ТАТАРСТАН ПО ЛЕГКОЙ АТЛЕТИКЕ
A6: ИТОГОВЫЙ ПРОТОКОЛ | AG6: ПРИВЕТ
A7: БЕГ 400 М
F8: фин.забеги | H8: =d_2 -> 07 ИЮЛЯ 2017г. | M8: =d_5 -> г. Казань, Футбольно-легкоатлетический манеж
A9: М | B9: Фамилия, имя | C9: № | D9: Дата рождения | E9: Заявл. разряд | F9: Организация | G9: Округ | H9: Город | I9: ФИН. ЗАБЕГИ | J9: Вып. разр. | K9: Зачет | L9: Очки | M9: Ф.И. О. тренера
B10: =Name_8 -> МУЖЧИНЫ 2001г.р. и старше
A11: 1 | B11: =VLOOKUP($N11,УЧАСТНИКИ!$A$1:$K$716,3,FALSE) -> СЕНЬКИН АНДРЕЙ | C11: =N11 -> 3563 | D11: =VLOOKUP($N11,УЧАСТНИКИ!$A$1:$K$716,4,FALSE) -> 1992 | E11: =VLOOKUP($N11,УЧАСТНИКИ!$A$1:$K$716,8,FALSE) -> КМС | F11: =VLOOKUP($N11,УЧАСТНИКИ!$A$1:$K$716,5,FALSE) -> КАЗАНЬ | G11: =VLOOKUP($N11,УЧАСТНИКИ!#REF!,7,FALSE) ->  | H11: =VLOOKUP($N11,УЧАСТНИКИ!$A$1:$K$716,11,FALSE) -> - | I11: 50,28 | J11: 1 | K11: =VLOOKUP($N11,УЧАСТНИКИ!$A$1:$K$716,9,FALSE) -> Л | M11: =VLOOKUP($N11,УЧАСТНИКИ!$A$1:$K$716,10,FALSE) -> - | N11: 3563
A12: 2 | B12: =VLOOKUP($N12,УЧАСТНИКИ!$A$1:$K$716,3,FALSE) -> ГАЗИЗОВ АЛЬБЕРТ | C12: 3562 | D12: =VLOOKUP($N12,УЧАСТНИКИ!$A$1:$K$716,4,FALSE) -> 1998 | E12: =VLOOKUP($N12,УЧАСТНИКИ!$A$1:$K$716,8,FALSE) -> - | F12: =VLOOKUP($N12,УЧАСТНИКИ!$A$1:$K$716,5,FALSE) -> ЗЕЛЕНОДОЛЬСК | G12: =VLOOKUP($N12,УЧАСТНИКИ!#REF!,7,FALSE) ->  | H12: =VLOOKUP($N12,УЧАСТНИКИ!$A$1:$K$716,11,FALSE) -> - | I12: 50,64 | J12: 1 | K12: =VLOOKUP($N12,УЧАСТНИКИ!$A$1:$K$716,9,FALSE) -> Л | M12: =VLOOKUP($N12,УЧАСТНИКИ!$A$1:$K$716,10,FALSE) -> ГИБАДУЛЛИН РР, ПАВЛОВ ИЛ | N12: 3562
A13: 3 | B13: =VLOOKUP($N13,УЧАСТНИКИ!$A$1:$K$716,3,FALSE) -> ТАХАУОВ АЗАТ | C13: 3874 | D13: =VLOOKUP($N13,УЧАСТНИКИ!$A$1:$K$716,4,FALSE) -> 1996 | E13: =VLOOKUP($N13,УЧАСТНИКИ!$A$1:$K$716,8,FALSE) -> КМС | F13: =VLOOKUP($N13,УЧАСТНИКИ!$A$1:$K$716,5,FALSE) -> НАБ.ЧЕЛНЫ | G13: =VLOOKUP($N13,УЧАСТНИКИ!#REF!,7,FALSE) ->  | H13: =VLOOKUP($N13,УЧАСТНИКИ!$A$1:$K$716,11,FALSE) -> ЯР ЧАЛЛЫ | I13: 50,77 | J13: 1 | K13: =VLOOKUP($N13,УЧАСТНИКИ!$A$1:$K$716,9,FALSE) -> Л | M13: =VLOOKUP($N13,УЧАСТНИКИ!$A$1:$K$716,10,FALSE) -> ПЕТРОВЫ ТН ВМ | N13: 3874
A14: 4 | B14: =VLOOKUP($N14,УЧАСТНИКИ!$A$1:$K$716,3,FALSE) -> ГОРДЕЕВ АЛЕКСАНДР | C14: 63 | D14: =VLOOKUP($N14,УЧАСТНИКИ!$A$1:$K$716,4,FALSE) -> 2000 | E14: =VLOOKUP($N14,УЧАСТНИКИ!$A$1:$K$716,8,FALSE) -> 1 | F14: =VLOOKUP($N14,УЧАСТНИКИ!$A$1:$K$716,5,FALSE) -> КАЗАНЬ | G14: =VLOOKUP($N14,УЧАСТНИКИ!#REF!,7,FALSE) ->  | H14: =VLOOKUP($N14,УЧАСТНИКИ!$A$1:$K$716,11,FALSE) -> СДЮСШОР ЛА | I14: 51,37 | J14: 1 | K14: =VLOOKUP($N14,УЧАСТНИКИ!$A$1:$K$716,9,FALSE) -> 3 | L14: 20 | M14: =VLOOKUP($N14,УЧАСТНИКИ!$A$1:$K$716,10,FALSE) -> БАРЫШНИКОВЫ АС ЛН, ЮСУПОВА ОВ | N14: 63
A15: 5 | B15: =VLOOKUP($N15,УЧАСТНИКИ!$A$1:$K$716,3,FALSE) -> ДАУТОВ ТИМУР | C15: 3858 | D15: =VLOOKUP($N15,УЧАСТНИКИ!$A$1:$K$716,4,FALSE) -> 1999 | E15: =VLOOKUP($N15,УЧАСТНИКИ!$A$1:$K$716,8,FALSE) -> 1 | F15: =VLOOKUP($N15,УЧАСТНИКИ!$A$1:$K$716,5,FALSE) -> КАЗАНЬ | G15: =VLOOKUP($N15,УЧАСТНИКИ!#REF!,7,FALSE) ->  | H15: =VLOOKUP($N15,УЧАСТНИКИ!$A$1:$K$716,11,FALSE) -> КДЮСШ АВИАТОР | I15: 51,73 | J15: 1 | K15: =VLOOKUP($N15,УЧАСТНИКИ!$A$1:$K$716,9,FALSE) -> Л | M15: =VLOOKUP($N15,УЧАСТНИКИ!$A$1:$K$716,10,FALSE) -> БОРОДОВИЦЫН СН | N15: 3858
A16: 6 | B16: =VLOOKUP($N16,УЧАСТНИКИ!$A$1:$K$716,3,FALSE) -> ГАРАФУТДИНОВ АЗАТ | C16: 3569 | D16: =VLOOKUP($N16,УЧАСТНИКИ!$A$1:$K$716,4,FALSE) -> 1996 | E16: =VLOOKUP($N16,УЧАСТНИКИ!$A$1:$K$716,8,FALSE) -> 1 | F16: =VLOOKUP($N16,УЧАСТНИКИ!$A$1:$K$716,5,FALSE) -> КАЗАНЬ | G16: =VLOOKUP($N16,УЧАСТНИКИ!#REF!,7,FALSE) ->  | H16: =VLOOKUP($N16,УЧАСТНИКИ!$A$1:$K$716,11,FALSE) -> КНИТУ (КХТИ) | I16: 53,41 | J16: 2 | K16: =VLOOKUP($N16,УЧАСТНИКИ!$A$1:$K$716,9,FALSE) -> Л | M16: =VLOOKUP($N16,УЧАСТНИКИ!$A$1:$K$716,10,FALSE) -> САДРЕТДИНОВ ДФ | N16: 3569
A17: 7 | B17: =VLOOKUP($N17,УЧАСТНИКИ!$A$1:$K$716,3,FALSE) -> ГАФУРОВ АКМАЛЬ | C17: 68 | D17: =VLOOKUP($N17,УЧАСТНИКИ!$A$1:$K$716,4,FALSE) -> 1996 | E17: =VLOOKUP($N17,УЧАСТНИКИ!$A$1:$K$716,8,FALSE) -> 2 | F17: =VLOOKUP($N17,УЧАСТНИКИ!$A$1:$K$716,5,FALSE) -> КАЗАНЬ | G17: =VLOOKUP($N17,УЧАСТНИКИ!#REF!,7,FALSE) ->  | H17: =VLOOKUP($N17,УЧАСТНИКИ!$A$1:$K$716,11,FALSE) -> ДЮСШ ОЛИМП | I17: 54,32 | J17: 2 | K17: =VLOOKUP($N17,УЧАСТНИКИ!$A$1:$K$716,9,FALSE) -> Л | M17: =VLOOKUP($N17,УЧАСТНИКИ!$A$1:$K$716,10,FALSE) -> ПЕТРОВ АВ | N17: 68
A18: 8 | B18: =VLOOKUP($N18,УЧАСТНИКИ!$A$1:$K$716,3,FALSE) -> РАЗИН АЛЕКСАНДР | C18: 3882 | D18: =VLOOKUP($N18,УЧАСТНИКИ!$A$1:$K$716,4,FALSE) -> 1999 | E18: =VLOOKUP($N18,УЧАСТНИКИ!$A$1:$K$716,8,FALSE) -> 2 | F18: =VLOOKUP($N18,УЧАСТНИКИ!$A$1:$K$716,5,FALSE) -> ТЕТЮШИ | G18: =VLOOKUP($N18,УЧАСТНИКИ!#REF!,7,FALSE) ->  | H18: =VLOOKUP($N18,УЧАСТНИКИ!$A$1:$K$716,11,FALSE) -> ДЮСШ | I18: 54,49 | J18: 2 | K18: =VLOOKUP($N18,УЧАСТНИКИ!$A$1:$K$716,9,FALSE) -> Л | M18: =VLOOKUP($N18,УЧАСТНИКИ!$A$1:$K$716,10,FALSE) -> ГАБДРАХМАНОВ РР | N18: 3882
A19: 9 | B19: =VLOOKUP($N19,УЧАСТНИКИ!$A$1:$K$716,3,FALSE) -> ТАГИРОВ АЙЗАТ | C19: 3790 | D19: =VLOOKUP($N19,УЧАСТНИКИ!$A$1:$K$716,4,FALSE) -> 1997 | E19: =VLOOKUP($N19,УЧАСТНИКИ!$A$1:$K$716,8,FALSE) -> 2 | F19: =VLOOKUP($N19,УЧАСТНИКИ!$A$1:$K$716,5,FALSE) -> КАЗАНЬ | G19: =VLOOKUP($N19,УЧАСТНИКИ!#REF!,7,FALSE) ->  | H19: =VLOOKUP($N19,УЧАСТНИКИ!$A$1:$K$716,11,FALSE) -> КЭК | I19: 54,52 | J19: 2 | K19: =VLOOKUP($N19,УЧАСТНИКИ!$A$1:$K$716,9,FALSE) -> Л | M19: =VLOOKUP($N19,УЧАСТНИКИ!$A$1:$K$716,10,FALSE) -> САДРЕТДИНОВ ДФ, СВЕРИГИН РР | N19: 3790
A20: 10 | B20: =VLOOKUP($N20,УЧАСТНИКИ!$A$1:$K$716,3,FALSE) -> ШАГИЕВ ДИНАР | C20: 3732 | D20: =VLOOKUP($N20,УЧАСТНИКИ!$A$1:$K$716,4,FALSE) -> 1999 | E20: =VLOOKUP($N20,УЧАСТНИКИ!$A$1:$K$716,8,FALSE) -> 2 | F20: =VLOOKUP($N20,УЧАСТНИКИ!$A$1:$K$716,5,FALSE) -> КАЗАНЬ | G20: =VLOOKUP($N20,УЧАСТНИКИ!#REF!,7,FALSE) ->  | H20: =VLOOKUP($N20,УЧАСТНИКИ!$A$1:$K$716,11,FALSE) -> СДЮСШОР ЛА | I20: 54,76 | J20: 2 | K20: =VLOOKUP($N20,УЧАСТНИКИ!$A$1:$K$716,9,FALSE) -> Л | M20: =VLOOKUP($N20,УЧАСТНИКИ!$A$1:$K$716,10,FALSE) -> ФАЙЗУЛЛИНА ГП | N20: 3732
A21: 11 | B21: =VLOOKUP($N21,УЧАСТНИКИ!$A$1:$K$716,3,FALSE) -> ШАГИДОВ РАДИФ | C21: 61 | D21: =VLOOKUP($N21,УЧАСТНИКИ!$A$1:$K$716,4,FALSE) -> 1995 | E21: =VLOOKUP($N21,УЧАСТНИКИ!$A$1:$K$716,8,FALSE) -> 2 | F21: =VLOOKUP($N21,УЧАСТНИКИ!$A$1:$K$716,5,FALSE) -> КАЗАНЬ | G21: =VLOOKUP($N21,УЧАСТНИКИ!#REF!,7,FALSE) ->  | H21: =VLOOKUP($N21,УЧАСТНИКИ!$A$1:$K$716,11,FALSE) -> КГАВМ | I21: 56,27 | J21: 3 | K21: =VLOOKUP($N21,УЧАСТНИКИ!$A$1:$K$716,9,FALSE) -> Л | M21: =VLOOKUP($N21,УЧАСТНИКИ!$A$1:$K$716,10,FALSE) -> АБДУЛЛИН ГХ | N21: 61
A22: 12 | B22: =VLOOKUP($N22,УЧАСТНИКИ!$A$1:$K$716,3,FALSE) -> КОНСТАНТИНОВ ОЛЕГ | C22: 3734 | D22: =VLOOKUP($N22,УЧАСТНИКИ!$A$1:$K$716,4,FALSE) -> 2000 | E22: =VLOOKUP($N22,УЧАСТНИКИ!$A$1:$K$716,8,FALSE) -> 2 | F22: =VLOOKUP($N22,УЧАСТНИКИ!$A$1:$K$716,5,FALSE) -> КАЗАНЬ | G22: =VLOOKUP($N22,УЧАСТНИКИ!#REF!,7,FALSE) ->  | H22: =VLOOKUP($N22,УЧАСТНИКИ!$A$1:$K$716,11,FALSE) -> СДЮСШОР ЛА | I22: 56,69 | J22: 3 | K22: =VLOOKUP($N22,УЧАСТНИКИ!$A$1:$K$716,9,FALSE) -> Л | M22: =VLOOKUP($N22,УЧАСТНИКИ!$A$1:$K$716,10,FALSE) -> ФАЙЗУЛЛИНА ГП | N22: 3734
A23: 13 | B23: =VLOOKUP($N23,УЧАСТНИКИ!$A$1:$K$716,3,FALSE) -> УСТИМОВ ВЛАДИМИР | C23: 3883 | D23: =VLOOKUP($N23,УЧАСТНИКИ!$A$1:$K$716,4,FALSE) -> 2002 | E23: =VLOOKUP($N23,УЧАСТНИКИ!$A$1:$K$716,8,FALSE) -> 3 | F23: =VLOOKUP($N23,УЧАСТНИКИ!$A$1:$K$716,5,FALSE) -> ТЕТЮШИ | G23: =VLOOKUP($N23,УЧАСТНИКИ!#REF!,7,FALSE) ->  | H23: =VLOOKUP($N23,УЧАСТНИКИ!$A$1:$K$716,11,FALSE) -> ДЮСШ | I23: 57,25 | J23: 3 | K23: =VLOOKUP($N23,УЧАСТНИКИ!$A$1:$K$716,9,FALSE) -> Л | M23: =VLOOKUP($N23,УЧАСТНИКИ!$A$1:$K$716,10,FALSE) -> ГАБДРАХМАНОВ РР | N23: 3883
A24: 14 | B24: =VLOOKUP($N24,УЧАСТНИКИ!$A$1:$K$716,3,FALSE) -> КРАЙНОВ ДЕНИС | C24: 69 | D24: =VLOOKUP($N24,УЧАСТНИКИ!$A$1:$K$716,4,FALSE) -> 1997 | E24: =VLOOKUP($N24,УЧАСТНИКИ!$A$1:$K$716,8,FALSE) -> 2 | F24: =VLOOKUP($N24,УЧАСТНИКИ!$A$1:$K$716,5,FALSE) -> КАЗАНЬ | G24: =VLOOKUP($N24,УЧАСТНИКИ!#REF!,7,FALSE) ->  | H24: =VLOOKUP($N24,УЧАСТНИКИ!$A$1:$K$716,11,FALSE) -> ДЮСШ ОЛИМП | I24: 57,79 | J24: 3 | K24: =VLOOKUP($N24,УЧАСТНИКИ!$A$1:$K$716,9,FALSE) -> Л | M24: =VLOOKUP($N24,УЧАСТНИКИ!$A$1:$K$716,10,FALSE) -> ПЕТРОВ АВ | N24: 69
A25: 15 | B25: =VLOOKUP($N25,УЧАСТНИКИ!$A$1:$K$716,3,FALSE) -> НИГМАТУЛЛИН БУЛАТ | C25: 11 | D25: =VLOOKUP($N25,УЧАСТНИКИ!$A$1:$K$716,4,FALSE) -> 1993 | E25: =VLOOKUP($N25,УЧАСТНИКИ!$A$1:$K$716,8,FALSE) -> 2 | F25: =VLOOKUP($N25,УЧАСТНИКИ!$A$1:$K$716,5,FALSE) -> БАВЛЫ | G25: =VLOOKUP($N25,УЧАСТНИКИ!#REF!,7,FALSE) ->  | H25: =VLOOKUP($N25,УЧАСТНИКИ!$A$1:$K$716,11,FALSE) -> ДЮСШ №2 | I25: 58,81 | J25: 3 | K25: =VLOOKUP($N25,УЧАСТНИКИ!$A$1:$K$716,9,FALSE) -> 2 | L25: 0 | M25: =VLOOKUP($N25,УЧАСТНИКИ!$A$1:$K$716,10,FALSE) -> ТУХБАТУЛЛИНЫ ФФ ЭР | N25: 11
A26: 16 | B26: =VLOOKUP($N26,УЧАСТНИКИ!$A$1:$K$716,3,FALSE) -> САФИУЛЛИН БУЛАТ | C26: 3739 | D26: =VLOOKUP($N26,УЧАСТНИКИ!$A$1:$K$716,4,FALSE) -> 2000 | E26: =VLOOKUP($N26,УЧАСТНИКИ!$A$1:$K$716,8,FALSE) -> 3 | F26: =VLOOKUP($N26,УЧАСТНИКИ!$A$1:$K$716,5,FALSE) -> КАЗАНЬ | G26: =VLOOKUP($N26,УЧАСТНИКИ!#REF!,7,FALSE) ->  | H26: =VLOOKUP($N26,УЧАСТНИКИ!$A$1:$K$716,11,FALSE) -> СДЮСШОР ЛА | I26: 1.00,06 | J26: 3 | K26: =VLOOKUP($N26,УЧАСТНИКИ!$A$1:$K$716,9,FALSE) -> Л | M26: =VLOOKUP($N26,УЧАСТНИКИ!$A$1:$K$716,10,FALSE) -> ФАЙЗУЛЛИНА ГП | N26: 3739
A27: 17 | B27: =VLOOKUP($N27,УЧАСТНИКИ!$A$1:$K$716,3,FALSE) -> МАХМУТШИН ИРЕК | C27: =N27 -> 3571 | D27: =VLOOKUP($N27,УЧАСТНИКИ!$A$1:$K$716,4,FALSE) -> 1960 | E27: =VLOOKUP($N27,УЧАСТНИКИ!$A$1:$K$716,8,FALSE) -> КМС | F27: =VLOOKUP($N27,УЧАСТНИКИ!$A$1:$K$716,5,FALSE) -> КАЗАНЬ | G27: =VLOOKUP($N27,УЧАСТНИКИ!#REF!,7,FALSE) ->  | H27: =VLOOKUP($N27,УЧАСТНИКИ!$A$1:$K$716,11,FALSE) -> - | I27: 1.07,05 | J27: БР | K27: Л | M27: =VLOOKUP($N27,УЧАСТНИКИ!$A$1:$K$716,10,FALSE) -> - | N27: 3571
B28: =VLOOKUP($N28,УЧАСТНИКИ!$A$1:$K$716,3,FALSE) -> ЗИЯНГИРОВ АЙДАР | C28: 16 | D28: =VLOOKUP($N28,УЧАСТНИКИ!$A$1:$K$716,4,FALSE) -> 1997 | E28: =VLOOKUP($N28,УЧАСТНИКИ!$A$1:$K$716,8,FALSE) -> КМС | F28: =VLOOKUP($N28,УЧАСТНИКИ!$A$1:$K$716,5,FALSE) -> БАВЛЫ | G28: =VLOOKUP($N28,УЧАСТНИКИ!#REF!,7,FALSE) ->  | H28: =VLOOKUP($N28,УЧАСТНИКИ!$A$1:$K$716,11,FALSE) -> ДЮСШ №1 | I28: НЯ | K28: =VLOOKUP($N28,УЧАСТНИКИ!$A$1:$K$716,9,FALSE) -> 2 | L28: 0 | M28: =VLOOKUP($N28,УЧАСТНИКИ!$A$1:$K$716,10,FALSE) -> ФАХРИЕВ ММ | N28: 16
A29: ВК | B29: =VLOOKUP($N29,УЧАСТНИКИ!$A$1:$K$716,3,FALSE) -> ХВАТКОВ СЕРГЕЙ | C29: =N29 -> 17 | D29: =VLOOKUP($N29,УЧАСТНИКИ!$A$1:$K$716,4,FALSE) -> 1992 | E29: =VLOOKUP($N29,УЧАСТНИКИ!$A$1:$K$716,8,FALSE) -> КМС | F29: =VLOOKUP($N29,УЧАСТНИКИ!$A$1:$K$716,5,FALSE) -> УЛЬЯНОВСК | G29: =VLOOKUP($N29,УЧАСТНИКИ!#REF!,7,FALSE) ->  | H29: =VLOOKUP($N29,УЧАСТНИКИ!$A$1:$K$716,11,FALSE) -> - | I29: 48,98 | J29: КМС | K29: =VLOOKUP($N29,УЧАСТНИКИ!$A$1:$K$716,9,FALSE) -> ВК | M29: =VLOOKUP($N29,УЧАСТНИКИ!$A$1:$K$716,10,FALSE) -> - | N29: 17
A30: ВК | B30: =VLOOKUP($N30,УЧАСТНИКИ!$A$1:$K$716,3,FALSE) -> ДОРМИДОНТОВ АЛЕКСАНДР | C30: =N30 -> 3787 | D30: =VLOOKUP($N30,УЧАСТНИКИ!$A$1:$K$716,4,FALSE) -> 1996ВК | E30: =VLOOKUP($N30,УЧАСТНИКИ!$A$1:$K$716,8,FALSE) -> КМС | F30: =VLOOKUP($N30,УЧАСТНИКИ!$A$1:$K$716,5,FALSE) -> ЧУВАШСКАЯ РЕСП | G30: =VLOOKUP($N30,УЧАСТНИКИ!#REF!,7,FALSE) ->  | H30: =VLOOKUP($N30,УЧАСТНИКИ!$A$1:$K$716,11,FALSE) -> МБУ, САШ | I30: 51,54 | J30: 1 | K30: =VLOOKUP($N30,УЧАСТНИКИ!$A$1:$K$716,9,FALSE) -> ВК | M30: =VLOOKUP($N30,УЧАСТНИКИ!$A$1:$K$716,10,FALSE) -> ДРУГОВ Р | N30: 3787
A31: ВК | B31: =VLOOKUP($N31,УЧАСТНИКИ!$A$1:$K$716,3,FALSE) -> БАЖАЙКИН МИХАИЛ | C31: =N31 -> 3786 | D31: =VLOOKUP($N31,УЧАСТНИКИ!$A$1:$K$716,4,FALSE) -> 1996ВК | E31: =VLOOKUP($N31,УЧАСТНИКИ!$A$1:$K$716,8,FALSE) -> КМС | F31: =VLOOKUP($N31,УЧАСТНИКИ!$A$1:$K$716,5,FALSE) -> ЧУВАШСКАЯ РЕСП | G31: =VLOOKUP($N31,УЧАСТНИКИ!#REF!,7,FALSE) ->  | H31: =VLOOKUP($N31,УЧАСТНИКИ!$A$1:$K$716,11,FALSE) -> МБУ, САШ | I31: 53,76 | J31: 2 | K31: =VLOOKUP($N31,УЧАСТНИКИ!$A$1:$K$716,9,FALSE) -> ВК | M31: =VLOOKUP($N31,УЧАСТНИКИ!$A$1:$K$716,10,FALSE) -> ДРУГОВ Р | N31: 3786
A32: ВК | B32: =VLOOKUP($N32,УЧАСТНИКИ!$A$1:$K$716,3,FALSE) -> ЕВГРАФОВ СВЯТОСЛАВ | C32: =N32 -> 3789 | D32: =VLOOKUP($N32,УЧАСТНИКИ!$A$1:$K$716,4,FALSE) -> 1991ВК | E32: =VLOOKUP($N32,УЧАСТНИКИ!$A$1:$K$716,8,FALSE) -> КМС | F32: =VLOOKUP($N32,УЧАСТНИКИ!$A$1:$K$716,5,FALSE) -> ЧУВАШСКАЯ РЕСП | G32: =VLOOKUP($N32,УЧАСТНИКИ!#REF!,7,FALSE) ->  | H32: =VLOOKUP($N32,УЧАСТНИКИ!$A$1:$K$716,11,FALSE) -> МБУ, САШ | I32: 54,29 | J32: 2 | K32: =VLOOKUP($N32,УЧАСТНИКИ!$A$1:$K$716,9,FALSE) -> ВК | M32: =VLOOKUP($N32,УЧАСТНИКИ!$A$1:$K$716,10,FALSE) -> ДРУГОВ Р | N32: 3789
A33: ВК | B33: =VLOOKUP($N33,УЧАСТНИКИ!$A$1:$K$716,3,FALSE) -> ТРИБОЙ РОМАН | C33: =N33 -> 3784 | D33: =VLOOKUP($N33,УЧАСТНИКИ!$A$1:$K$716,4,FALSE) -> 2001ВК | E33: =VLOOKUP($N33,УЧАСТНИКИ!$A$1:$K$716,8,FALSE) -> 2 | F33: =VLOOKUP($N33,УЧАСТНИКИ!$A$1:$K$716,5,FALSE) -> ЧУВАШСКАЯ РЕСП | G33: =VLOOKUP($N33,УЧАСТНИКИ!#REF!,7,FALSE) ->  | H33: =VLOOKUP($N33,УЧАСТНИКИ!$A$1:$K$716,11,FALSE) -> АУ СШОР 3 | I33: 54,63 | J33: 2 | K33: =VLOOKUP($N33,УЧАСТНИКИ!$A$1:$K$716,9,FALSE) -> ВК | M33: =VLOOKUP($N33,УЧАСТНИКИ!$A$1:$K$716,10,FALSE) -> МАКСИМОВА ОА | N33: 3784
A34: ВК | B34: =VLOOKUP($N34,УЧАСТНИКИ!$A$1:$K$716,3,FALSE) -> КОЛБЕНЕВ АЛЕКСАНДР | C34: =N34 -> 3775 | D34: =VLOOKUP($N34,УЧАСТНИКИ!$A$1:$K$716,4,FALSE) -> 2003/ВК | E34: =VLOOKUP($N34,УЧАСТНИКИ!$A$1:$K$716,8,FALSE) -> 3 | F34: =VLOOKUP($N34,УЧАСТНИКИ!$A$1:$K$716,5,FALSE) -> КАЗАНЬ | G34: =VLOOKUP($N34,УЧАСТНИКИ!#REF!,7,FALSE) ->  | H34: =VLOOKUP($N34,УЧАСТНИКИ!$A$1:$K$716,11,FALSE) -> КДЮСШ АВИАТОР | I34: 1.07,48 | J34: 2Ю | K34: =VLOOKUP($N34,УЧАСТНИКИ!$A$1:$K$716,9,FALSE) -> ВК | M34: =VLOOKUP($N34,УЧАСТНИКИ!$A$1:$K$716,10,FALSE) -> ФАЙСХАНОВ РР | N34: 3775
A35: 28 | B35: =VLOOKUP($N35,УЧАСТНИКИ!$A$1:$K$716,3,FALSE) ->  | C35: 0 | D35: =VLOOKUP($N35,УЧАСТНИКИ!$A$1:$K$716,4,FALSE) ->  | E35: =VLOOKUP($N35,УЧАСТНИКИ!$A$1:$K$716,8,FALSE) ->  | F35: =VLOOKUP($N35,УЧАСТНИКИ!$A$1:$K$716,5,FALSE) ->  | G35: =VLOOKUP($N35,УЧАСТНИКИ!#REF!,7,FALSE) ->  | H35: =VLOOKUP($N35,УЧАСТНИКИ!$A$1:$K$716,11,FALSE) ->  | K35: =VLOOKUP($N35,УЧАСТНИКИ!$A$1:$K$716,9,FALSE) ->  | M35: =VLOOKUP($N35,УЧАСТНИКИ!$A$1:$K$716,10,FALSE) -> 
A36: 29 | B36: =VLOOKUP($N36,УЧАСТНИКИ!$A$1:$K$716,3,FALSE) ->  | C36: 0 | D36: =VLOOKUP($N36,УЧАСТНИКИ!$A$1:$K$716,4,FALSE) ->  | E36: =VLOOKUP($N36,УЧАСТНИКИ!$A$1:$K$716,8,FALSE) ->  | F36: =VLOOKUP($N36,УЧАСТНИКИ!$A$1:$K$716,5,FALSE) ->  | G36: =VLOOKUP($N36,УЧАСТНИКИ!#REF!,7,FALSE) ->  | H36: =VLOOKUP($N36,УЧАСТНИКИ!$A$1:$K$716,11,FALSE) ->  | K36: =VLOOKUP($N36,УЧАСТНИКИ!$A$1:$K$716,9,FALSE) ->  | M36: =VLOOKUP($N36,УЧАСТНИКИ!$A$1:$K$716,10,FALSE) -> 
A37: 30 | B37: =VLOOKUP($N37,УЧАСТНИКИ!$A$1:$K$716,3,FALSE) ->  | C37: 0 | D37: =VLOOKUP($N37,УЧАСТНИКИ!$A$1:$K$716,4,FALSE) ->  | E37: =VLOOKUP($N37,УЧАСТНИКИ!$A$1:$K$716,8,FALSE) ->  | F37: =VLOOKUP($N37,УЧАСТНИКИ!$A$1:$K$716,5,FALSE) ->  | G37: =VLOOKUP($N37,УЧАСТНИКИ!#REF!,7,FALSE) ->  | H37: =VLOOKUP($N37,УЧАСТНИКИ!$A$1:$K$716,11,FALSE) ->  | K37: =VLOOKUP($N37,УЧАСТНИКИ!$A$1:$K$716,9,FALSE) ->  | M37: =VLOOKUP($N37,УЧАСТНИКИ!$A$1:$K$716,10,FALSE) -> 
A38: 31 | B38: =VLOOKUP($N38,УЧАСТНИКИ!$A$1:$K$716,3,FALSE) ->  | C38: =N38 -> 0 | D38: =VLOOKUP($N38,УЧАСТНИКИ!$A$1:$K$716,4,FALSE) ->  | E38: =VLOOKUP($N38,УЧАСТНИКИ!$A$1:$K$716,8,FALSE) ->  | F38: =VLOOKUP($N38,УЧАСТНИКИ!$A$1:$K$716,5,FALSE) ->  | G38: =VLOOKUP($N38,УЧАСТНИКИ!#REF!,7,FALSE) ->  | H38: =VLOOKUP($N38,УЧАСТНИКИ!$A$1:$K$716,11,FALSE) ->  | K38: =VLOOKUP($N38,УЧАСТНИКИ!$A$1:$K$716,9,FALSE) ->  | M38: =VLOOKUP($N38,УЧАСТНИКИ!$A$1:$K$716,10,FALSE) -> 
A39: 32 | B39: =VLOOKUP($N39,УЧАСТНИКИ!$A$1:$K$716,3,FALSE) ->  | C39: 0 | D39: =VLOOKUP($N39,УЧАСТНИКИ!$A$1:$K$716,4,FALSE) ->  | E39: =VLOOKUP($N39,УЧАСТНИКИ!$A$1:$K$716,8,FALSE) ->  | F39: =VLOOKUP($N39,УЧАСТНИКИ!$A$1:$K$716,5,FALSE) ->  | G39: =VLOOKUP($N39,УЧАСТНИКИ!#REF!,7,FALSE) ->  | H39: =VLOOKUP($N39,УЧАСТНИКИ!$A$1:$K$716,11,FALSE) ->  | K39: =VLOOKUP($N39,УЧАСТНИКИ!$A$1:$K$716,9,FALSE) ->  | M39: =VLOOKUP($N39,УЧАСТНИКИ!$A$1:$K$716,10,FALSE) -> 
A40: 33 | B40: =VLOOKUP($N40,УЧАСТНИКИ!$A$1:$K$716,3,FALSE) ->  | C40: 0 | D40: =VLOOKUP($N40,УЧАСТНИКИ!$A$1:$K$716,4,FALSE) ->  | E40: =VLOOKUP($N40,УЧАСТНИКИ!$A$1:$K$716,8,FALSE) ->  | F40: =VLOOKUP($N40,УЧАСТНИКИ!$A$1:$K$716,5,FALSE) ->  | G40: =VLOOKUP($N40,УЧАСТНИКИ!#REF!,7,FALSE) ->  | H40: =VLOOKUP($N40,УЧАСТНИКИ!$A$1:$K$716,11,FALSE) ->  | K40: =VLOOKUP($N40,УЧАСТНИКИ!$A$1:$K$716,9,FALSE) ->  | M40: =VLOOKUP($N40,УЧАСТНИКИ!$A$1:$K$716,10,FALSE) -> 
A41: 34 | B41: =VLOOKUP($N41,УЧАСТНИКИ!$A$1:$K$716,3,FALSE) ->  | C41: 0 | D41: =VLOOKUP($N41,УЧАСТНИКИ!$A$1:$K$716,4,FALSE) ->  | E41: =VLOOKUP($N41,УЧАСТНИКИ!$A$1:$K$716,8,FALSE) ->  | F41: =VLOOKUP($N41,УЧАСТНИКИ!$A$1:$K$716,5,FALSE) ->  | G41: =VLOOKUP($N41,УЧАСТНИКИ!#REF!,7,FALSE) ->  | H41: =VLOOKUP($N41,УЧАСТНИКИ!$A$1:$K$716,11,FALSE) ->  | K41: =VLOOKUP($N41,УЧАСТНИКИ!$A$1:$K$716,9,FALSE) ->  | M41: =VLOOKUP($N41,УЧАСТНИКИ!$A$1:$K$716,10,FALSE) -> 
B42: =VLOOKUP($N42,УЧАСТНИКИ!$A$1:$K$716,3,FALSE) ->  | C42: 0 | D42: =VLOOKUP($N42,УЧАСТНИКИ!$A$1:$K$716,4,FALSE) ->  | E42: =VLOOKUP($N42,УЧАСТНИКИ!$A$1:$K$716,8,FALSE) ->  | F42: =VLOOKUP($N42,УЧАСТНИКИ!$A$1:$K$716,5,FALSE) ->  | G42: =VLOOKUP($N42,УЧАСТНИКИ!#REF!,7,FALSE) ->  | H42: =VLOOKUP($N42,УЧАСТНИКИ!$A$1:$K$716,11,FALSE) ->  | K42: =VLOOKUP($N42,УЧАСТНИКИ!$A$1:$K$716,9,FALSE) ->  | M42: =VLOOKUP($N42,УЧАСТНИКИ!$A$1:$K$716,10,FALSE) -> 
B43: =VLOOKUP($N43,УЧАСТНИКИ!$A$1:$K$716,3,FALSE) ->  | C43: 0 | D43: =VLOOKUP($N43,УЧАСТНИКИ!$A$1:$K$716,4,FALSE) ->  | E43: =VLOOKUP($N43,УЧАСТНИКИ!$A$1:$K$716,8,FALSE) ->  | F43: =VLOOKUP($N43,УЧАСТНИКИ!$A$1:$K$716,5,FALSE) ->  | G43: =VLOOKUP($N43,УЧАСТНИКИ!#REF!,7,FALSE) ->  | H43: =VLOOKUP($N43,УЧАСТНИКИ!$A$1:$K$716,11,FALSE) ->  | K43: =VLOOKUP($N43,УЧАСТНИКИ!$A$1:$K$716,9,FALSE) ->  | M43: =VLOOKUP($N43,УЧАСТНИКИ!$A$1:$K$716,10,FALSE) -> 
B44: =VLOOKUP($N44,УЧАСТНИКИ!$A$1:$K$716,3,FALSE) ->  | C44: 0 | D44: =VLOOKUP($N44,УЧАСТНИКИ!$A$1:$K$716,4,FALSE) ->  | E44: =VLOOKUP($N44,УЧАСТНИКИ!$A$1:$K$716,8,FALSE) ->  | F44: =VLOOKUP($N44,УЧАСТНИКИ!$A$1:$K$716,5,FALSE) ->  | G44: =VLOOKUP($N44,УЧАСТНИКИ!#REF!,7,FALSE) ->  | H44: =VLOOKUP($N44,УЧАСТНИКИ!$A$1:$K$716,11,FALSE) ->  | K44: =VLOOKUP($N44,УЧАСТНИКИ!$A$1:$K$716,9,FALSE) ->  | M44: =VLOOKUP($N44,УЧАСТНИКИ!$A$1:$K$716,10,FALSE) -> 

Sheet 400 СБ (hidden)
A1: =Name_2 -> ЦЕНТР СПОРТИВНОЙ ПОДГОТОВКИ РЕСПУБЛИКИ ТАТАРСТАН
A2: СТАРТОВЫЙ ПРОТОКОЛ
A3: =Name_4 -> ЛИЧНО-КОМАНДНЫЙ ЧЕМПИОНАТ РЕСПУБЛИКИ ТАТАРСТАН ПО ЛЕГКОЙ АТЛЕТИКЕ
A5: БАРЬЕРНЫЙ БЕГ 400 М | E5: 10,15 | J5: =d_2 -> 07 ИЮЛЯ 2017г.
J6: =d_5 -> г. Казань, Футбольно-легкоатлетический манеж
A7: № п/п | B7: Фамилия, имя участника | C7: Год рожд. | D7: ГОРОД | E7: КОМАНДА | F7: Номер участника | G7: Приход | H7: Результат | I7: Место | J7: Примеч.
B8: =Name_8 -> МУЖЧИНЫ 2001г.р. и старше
B9: 1 ЗАБЕГ
A10: 1 | B10: =VLOOKUP($F10,УЧАСТНИКИ!$A$1:$K$705,3,FALSE) -> ШАГИДОВ РАДИФ | C10: =VLOOKUP($F10,УЧАСТНИКИ!$A$1:$K$705,4,FALSE) -> 1995 | D10: =VLOOKUP($F10,УЧАСТНИКИ!$A$1:$K$705,5,FALSE) -> КАЗАНЬ | E10: =VLOOKUP($F10,УЧАСТНИКИ!$A$1:$K$705,11,FALSE) -> КГАВМ | F10: 61 | J10: =VLOOKUP($F10,УЧАСТНИКИ!$A$2:$K$231,9,FALSE) -> Л
A11: 2 | B11: =VLOOKUP($F11,УЧАСТНИКИ!$A$1:$K$705,3,FALSE) -> ШАРИФУЛЛИН ИЛЬНАЗ | C11: =VLOOKUP($F11,УЧАСТНИКИ!$A$1:$K$705,4,FALSE) -> 1994 | D11: =VLOOKUP($F11,УЧАСТНИКИ!$A$1:$K$705,5,FALSE) -> КАЗАНЬ | E11: =VLOOKUP($F11,УЧАСТНИКИ!$A$1:$K$705,11,FALSE) -> СДЮСШОР ЛА | F11: 3731 | J11: =VLOOKUP($F11,УЧАСТНИКИ!$A$2:$K$231,9,FALSE) -> Л
A12: 3 | B12: =VLOOKUP($F12,УЧАСТНИКИ!$A$1:$K$705,3,FALSE) -> ЛАНЦОВ ВЛАДИМИР | C12: =VLOOKUP($F12,УЧАСТНИКИ!$A$1:$K$705,4,FALSE) -> 1988 | D12: =VLOOKUP($F12,УЧАСТНИКИ!$A$1:$K$705,5,FALSE) -> КАЗАНЬ | E12: =VLOOKUP($F12,УЧАСТНИКИ!$A$1:$K$705,11,FALSE) -> КДЮСШ АВИАТОР | F12: 3857 | J12: =VLOOKUP($F12,УЧАСТНИКИ!$A$2:$K$231,9,FALSE) -> Л
A13: 4 | B13: =VLOOKUP($F13,УЧАСТНИКИ!$A$1:$K$705,3,FALSE) -> ГАФУРОВ АКМАЛЬ | C13: =VLOOKUP($F13,УЧАСТНИКИ!$A$1:$K$705,4,FALSE) -> 1996 | D13: =VLOOKUP($F13,УЧАСТНИКИ!$A$1:$K$705,5,FALSE) -> КАЗАНЬ | E13: =VLOOKUP($F13,УЧАСТНИКИ!$A$1:$K$705,11,FALSE) -> ДЮСШ ОЛИМП | F13: 68 | J13: =VLOOKUP($F13,УЧАСТНИКИ!$A$2:$K$231,9,FALSE) -> Л
B14: 2 ЗАБЕГ
A15: 1 | B15: =VLOOKUP($F15,УЧАСТНИКИ!$A$1:$K$705,3,FALSE) -> ФРОЛОВ НИКИТА | C15: =VLOOKUP($F15,УЧАСТНИКИ!$A$1:$K$705,4,FALSE) -> 2000ВК | D15: =VLOOKUP($F15,УЧАСТНИКИ!$A$1:$K$705,5,FALSE) -> КАНАШ | E15: =VLOOKUP($F15,УЧАСТНИКИ!$A$1:$K$705,11,FALSE) -> ДЮСШ | F15: 3568 | J15: =VLOOKUP($F15,УЧАСТНИКИ!$A$2:$K$231,9,FALSE) -> ВК
A16: 2 | B16: =VLOOKUP($F16,УЧАСТНИКИ!$A$1:$K$705,3,FALSE) -> САФИУЛЛИН БУЛАТ | C16: =VLOOKUP($F16,УЧАСТНИКИ!$A$1:$K$705,4,FALSE) -> 2000 | D16: =VLOOKUP($F16,УЧАСТНИКИ!$A$1:$K$705,5,FALSE) -> КАЗАНЬ | E16: =VLOOKUP($F16,УЧАСТНИКИ!$A$1:$K$705,11,FALSE) -> СДЮСШОР ЛА | F16: 3739 | J16: =VLOOKUP($F16,УЧАСТНИКИ!$A$2:$K$231,9,FALSE) -> Л
A17: 3 | B17: =VLOOKUP($F17,УЧАСТНИКИ!$A$1:$K$705,3,FALSE) -> ГАЙНУТДИНОВ ДАМИР | C17: =VLOOKUP($F17,УЧАСТНИКИ!$A$1:$K$705,4,FALSE) -> 2001 | D17: =VLOOKUP($F17,УЧАСТНИКИ!$A$1:$K$705,5,FALSE) -> КАЗАНЬ | E17: =VLOOKUP($F17,УЧАСТНИКИ!$A$1:$K$705,11,FALSE) -> СДЮСШОР ЛА | F17: 3736 | J17: =VLOOKUP($F17,УЧАСТНИКИ!$A$2:$K$231,9,FALSE) -> 3
A18: 4 | B18: =VLOOKUP($F18,УЧАСТНИКИ!$A$1:$K$705,3,FALSE) -> УСТИМОВ ВЛАДИМИР | C18: =VLOOKUP($F18,УЧАСТНИКИ!$A$1:$K$705,4,FALSE) -> 2002 | D18: =VLOOKUP($F18,УЧАСТНИКИ!$A$1:$K$705,5,FALSE) -> ТЕТЮШИ | E18: =VLOOKUP($F18,УЧАСТНИКИ!$A$1:$K$705,11,FALSE) -> ДЮСШ | F18: 3883 | J18: =VLOOKUP($F18,УЧАСТНИКИ!$A$2:$K$231,9,FALSE) -> Л
A19: 5 | B19: =VLOOKUP($F19,УЧАСТНИКИ!$A$1:$K$705,3,FALSE) -> РАЗИН АЛЕКСАНДР | C19: =VLOOKUP($F19,УЧАСТНИКИ!$A$1:$K$705,4,FALSE) -> 1999 | D19: =VLOOKUP($F19,УЧАСТНИКИ!$A$1:$K$705,5,FALSE) -> ТЕТЮШИ | E19: =VLOOKUP($F19,УЧАСТНИКИ!$A$1:$K$705,11,FALSE) -> ДЮСШ | F19: 3882 | J19: =VLOOKUP($F19,УЧАСТНИКИ!$A$2:$K$231,9,FALSE) -> Л
B20: 3 ЗАБЕГ
A21: 1 | B21: =VLOOKUP($F21,УЧАСТНИКИ!$A$1:$K$705,3,FALSE) ->  | C21: =VLOOKUP($F21,УЧАСТНИКИ!$A$1:$K$705,4,FALSE) ->  | D21: =VLOOKUP($F21,УЧАСТНИКИ!$A$1:$K$705,5,FALSE) ->  | E21: =VLOOKUP($F21,УЧАСТНИКИ!$A$1:$K$705,11,FALSE) ->  | J21: =VLOOKUP($F21,УЧАСТНИКИ!$A$2:$K$231,9,FALSE) -> 
A22: 2 | B22: =VLOOKUP($F22,УЧАСТНИКИ!$A$1:$K$705,3,FALSE) ->  | C22: =VLOOKUP($F22,УЧАСТНИКИ!$A$1:$K$705,4,FALSE) ->  | D22: =VLOOKUP($F22,УЧАСТНИКИ!$A$1:$K$705,5,FALSE) ->  | E22: =VLOOKUP($F22,УЧАСТНИКИ!$A$1:$K$705,11,FALSE) ->  | J22: =VLOOKUP($F22,УЧАСТНИКИ!$A$2:$K$231,9,FALSE) -> 
A23: 3 | B23: =VLOOKUP($F23,УЧАСТНИКИ!$A$1:$K$705,3,FALSE) ->  | C23: =VLOOKUP($F23,УЧАСТНИКИ!$A$1:$K$705,4,FALSE) ->  | D23: =VLOOKUP($F23,УЧАСТНИКИ!$A$1:$K$705,5,FALSE) ->  | E23: =VLOOKUP($F23,УЧАСТНИКИ!$A$1:$K$705,11,FALSE) ->  | J23: =VLOOKUP($F23,УЧАСТНИКИ!$A$2:$K$231,9,FALSE) -> 
A24: 4 | B24: =VLOOKUP($F24,УЧАСТНИКИ!$A$1:$K$705,3,FALSE) ->  | C24: =VLOOKUP($F24,УЧАСТНИКИ!$A$1:$K$705,4,FALSE) ->  | D24: =VLOOKUP($F24,УЧАСТНИКИ!$A$1:$K$705,5,FALSE) ->  | E24: =VLOOKUP($F24,УЧАСТНИКИ!$A$1:$K$705,11,FALSE) ->  | J24: =VLOOKUP($F24,УЧАСТНИКИ!$A$2:$K$231,9,FALSE) -> 
B25: 4 ЗАБЕГ
A26: 1 | B26: =VLOOKUP($F26,УЧАСТНИКИ!$A$1:$K$705,3,FALSE) ->  | C26: =VLOOKUP($F26,УЧАСТНИКИ!$A$1:$K$705,4,FALSE) ->  | D26: =VLOOKUP($F26,УЧАСТНИКИ!$A$1:$K$705,5,FALSE) ->  | E26: =VLOOKUP($F26,УЧАСТНИКИ!$A$1:$K$705,11,FALSE) ->  | J26: =VLOOKUP($F26,УЧАСТНИКИ!$A$2:$K$231,9,FALSE) -> 
A27: 2 | B27: =VLOOKUP($F27,УЧАСТНИКИ!$A$1:$K$705,3,FALSE) ->  | C27: =VLOOKUP($F27,УЧАСТНИКИ!$A$1:$K$705,4,FALSE) ->  | D27: =VLOOKUP($F27,УЧАСТНИКИ!$A$1:$K$705,5,FALSE) ->  | E27: =VLOOKUP($F27,УЧАСТНИКИ!$A$1:$K$705,11,FALSE) ->  | J27: =VLOOKUP($F27,УЧАСТНИКИ!$A$2:$K$231,9,FALSE) -> 
A28: 3 | B28: =VLOOKUP($F28,УЧАСТНИКИ!$A$1:$K$705,3,FALSE) ->  | C28: =VLOOKUP($F28,УЧАСТНИКИ!$A$1:$K$705,4,FALSE) ->  | D28: =VLOOKUP($F28,УЧАСТНИКИ!$A$1:$K$705,5,FALSE) ->  | E28: =VLOOKUP($F28,УЧАСТНИКИ!$A$1:$K$705,11,FALSE) ->  | J28: =VLOOKUP($F28,УЧАСТНИКИ!$A$2:$K$231,9,FALSE) -> 
A29: 4 | B29: =VLOOKUP($F29,УЧАСТНИКИ!$A$1:$K$705,3,FALSE) ->  | C29: =VLOOKUP($F29,УЧАСТНИКИ!$A$1:$K$705,4,FALSE) ->  | D29: =VLOOKUP($F29,УЧАСТНИКИ!$A$1:$K$705,5,FALSE) ->  | E29: =VLOOKUP($F29,УЧАСТНИКИ!$A$1:$K$705,11,FALSE) ->  | J29: =VLOOKUP($F29,УЧАСТНИКИ!$A$2:$K$231,9,FALSE) -> 
B30: 5 ЗАБЕГ
A31: 1 | B31: =VLOOKUP($F31,УЧАСТНИКИ!$A$1:$K$705,3,FALSE) ->  | C31: =VLOOKUP($F31,УЧАСТНИКИ!$A$1:$K$705,4,FALSE) ->  | D31: =VLOOKUP($F31,УЧАСТНИКИ!$A$1:$K$705,5,FALSE) ->  | E31: =VLOOKUP($F31,УЧАСТНИКИ!$A$1:$K$705,11,FALSE) ->  | J31: =VLOOKUP($F31,УЧАСТНИКИ!$A$2:$K$231,9,FALSE) -> 
A32: 2 | B32: =VLOOKUP($F32,УЧАСТНИКИ!$A$1:$K$705,3,FALSE) ->  | C32: =VLOOKUP($F32,УЧАСТНИКИ!$A$1:$K$705,4,FALSE) ->  | D32: =VLOOKUP($F32,УЧАСТНИКИ!$A$1:$K$705,5,FALSE) ->  | E32: =VLOOKUP($F32,УЧАСТНИКИ!$A$1:$K$705,11,FALSE) ->  | J32: =VLOOKUP($F32,УЧАСТНИКИ!$A$2:$K$231,9,FALSE) -> 
A33: 3 | B33: =VLOOKUP($F33,УЧАСТНИКИ!$A$1:$K$705,3,FALSE) ->  | C33: =VLOOKUP($F33,УЧАСТНИКИ!$A$1:$K$705,4,FALSE) ->  | D33: =VLOOKUP($F33,УЧАСТНИКИ!$A$1:$K$705,5,FALSE) ->  | E33: =VLOOKUP($F33,УЧАСТНИКИ!$A$1:$K$705,11,FALSE) ->  | J33: =VLOOKUP($F33,УЧАСТНИКИ!$A$2:$K$231,9,FALSE) -> 
A34: 4 | B34: =VLOOKUP($F34,УЧАСТНИКИ!$A$1:$K$705,3,FALSE) ->  | C34: =VLOOKUP($F34,УЧАСТНИКИ!$A$1:$K$705,4,FALSE) ->  | D34: =VLOOKUP($F34,УЧАСТНИКИ!$A$1:$K$705,5,FALSE) ->  | E34: =VLOOKUP($F34,УЧАСТНИКИ!$A$1:$K$705,11,FALSE) ->  | J34: =VLOOKUP($F34,УЧАСТНИКИ!$A$2:$K$231,9,FALSE) -> 
B35: 6 ЗАБЕГ
A36: 1 | B36: =VLOOKUP($F36,УЧАСТНИКИ!$A$1:$K$705,3,FALSE) ->  | C36: =VLOOKUP($F36,УЧАСТНИКИ!$A$1:$K$705,4,FALSE) ->  | D36: =VLOOKUP($F36,УЧАСТНИКИ!$A$1:$K$705,5,FALSE) ->  | E36: =VLOOKUP($F36,УЧАСТНИКИ!$A$1:$K$705,11,FALSE) ->  | J36: =VLOOKUP($F36,УЧАСТНИКИ!$A$2:$K$231,9,FALSE) -> 
A37: 2 | B37: =VLOOKUP($F37,УЧАСТНИКИ!$A$1:$K$705,3,FALSE) ->  | C37: =VLOOKUP($F37,УЧАСТНИКИ!$A$1:$K$705,4,FALSE) ->  | D37: =VLOOKUP($F37,УЧАСТНИКИ!$A$1:$K$705,5,FALSE) ->  | E37: =VLOOKUP($F37,УЧАСТНИКИ!$A$1:$K$705,11,FALSE) ->  | J37: =VLOOKUP($F37,УЧАСТНИКИ!$A$2:$K$231,9,FALSE) -> 
A38: 3 | B38: =VLOOKUP($F38,УЧАСТНИКИ!$A$1:$K$705,3,FALSE) ->  | C38: =VLOOKUP($F38,УЧАСТНИКИ!$A$1:$K$705,4,FALSE) ->  | D38: =VLOOKUP($F38,УЧАСТНИКИ!$A$1:$K$705,5,FALSE) ->  | E38: =VLOOKUP($F38,УЧАСТНИКИ!$A$1:$K$705,11,FALSE) ->  | J38: =VLOOKUP($F38,УЧАСТНИКИ!$A$2:$K$231,9,FALSE) -> 
A39: 4 | B39: =VLOOKUP($F39,УЧАСТНИКИ!$A$1:$K$705,3,FALSE) ->  | C39: =VLOOKUP($F39,УЧАСТНИКИ!$A$1:$K$705,4,FALSE) ->  | D39: =VLOOKUP($F39,УЧАСТНИКИ!$A$1:$K$705,5,FALSE) ->  | E39: =VLOOKUP($F39,УЧАСТНИКИ!$A$1:$K$705,11,FALSE) ->  | J39: =VLOOKUP($F39,УЧАСТНИКИ!$A$2:$K$231,9,FALSE) -> 
B40: 7 ЗАБЕГ
A41: 1 | B41: =VLOOKUP($F41,УЧАСТНИКИ!$A$1:$K$705,3,FALSE) ->  | C41: =VLOOKUP($F41,УЧАСТНИКИ!$A$1:$K$705,4,FALSE) ->  | D41: =VLOOKUP($F41,УЧАСТНИКИ!$A$1:$K$705,5,FALSE) ->  | E41: =VLOOKUP($F41,УЧАСТНИКИ!$A$1:$K$705,11,FALSE) ->  | J41: =VLOOKUP($F41,УЧАСТНИКИ!$A$2:$K$231,9,FALSE) -> 
A42: 2 | B42: =VLOOKUP($F42,УЧАСТНИКИ!$A$1:$K$705,3,FALSE) ->  | C42: =VLOOKUP($F42,УЧАСТНИКИ!$A$1:$K$705,4,FALSE) ->  | D42: =VLOOKUP($F42,УЧАСТНИКИ!$A$1:$K$705,5,FALSE) ->  | E42: =VLOOKUP($F42,УЧАСТНИКИ!$A$1:$K$705,11,FALSE) ->  | J42: =VLOOKUP($F42,УЧАСТНИКИ!$A$2:$K$231,9,FALSE) -> 
A43: 3 | B43: =VLOOKUP($F43,УЧАСТНИКИ!$A$1:$K$705,3,FALSE) ->  | C43: =VLOOKUP($F43,УЧАСТНИКИ!$A$1:$K$705,4,FALSE) ->  | D43: =VLOOKUP($F43,УЧАСТНИКИ!$A$1:$K$705,5,FALSE) ->  | E43: =VLOOKUP($F43,УЧАСТНИКИ!$A$1:$K$705,11,FALSE) ->  | J43: =VLOOKUP($F43,УЧАСТНИКИ!$A$2:$K$231,9,FALSE) -> 
A44: 4 | B44: =VLOOKUP($F44,УЧАСТНИКИ!$A$1:$K$705,3,FALSE) ->  | C44: =VLOOKUP($F44,УЧАСТНИКИ!$A$1:$K$705,4,FALSE) ->  | D44: =VLOOKUP($F44,УЧАСТНИКИ!$A$1:$K$705,5,FALSE) ->  | E44: =VLOOKUP($F44,УЧАСТНИКИ!$A$1:$K$705,11,FALSE) ->  | J44: =VLOOKUP($F44,УЧАСТНИКИ!$A$2:$K$231,9,FALSE) -> 
B45: 8 ЗАБЕГ
A46: 1 | B46: =VLOOKUP($F46,УЧАСТНИКИ!$A$1:$K$705,3,FALSE) ->  | C46: =VLOOKUP($F46,УЧАСТНИКИ!$A$1:$K$705,4,FALSE) ->  | D46: =VLOOKUP($F46,УЧАСТНИКИ!$A$1:$K$705,5,FALSE) ->  | E46: =VLOOKUP($F46,УЧАСТНИКИ!$A$1:$K$705,11,FALSE) ->  | J46: =VLOOKUP($F46,УЧАСТНИКИ!$A$2:$K$231,9,FALSE) -> 
A47: 2 | B47: =VLOOKUP($F47,УЧАСТНИКИ!$A$1:$K$705,3,FALSE) ->  | C47: =VLOOKUP($F47,УЧАСТНИКИ!$A$1:$K$705,4,FALSE) ->  | D47: =VLOOKUP($F47,УЧАСТНИКИ!$A$1:$K$705,5,FALSE) ->  | E47: =VLOOKUP($F47,УЧАСТНИКИ!$A$1:$K$705,11,FALSE) ->  | J47: =VLOOKUP($F47,УЧАСТНИКИ!$A$2:$K$231,9,FALSE) -> 
A48: 3 | B48: =VLOOKUP($F48,УЧАСТНИКИ!$A$1:$K$705,3,FALSE) ->  | C48: =VLOOKUP($F48,УЧАСТНИКИ!$A$1:$K$705,4,FALSE) ->  | D48: =VLOOKUP($F48,УЧАСТНИКИ!$A$1:$K$705,5,FALSE) ->  | E48: =VLOOKUP($F48,УЧАСТНИКИ!$A$1:$K$705,11,FALSE) ->  | J48: =VLOOKUP($F48,УЧАСТНИКИ!$A$2:$K$231,9,FALSE) -> 
A49: 4 | B49: =VLOOKUP($F49,УЧАСТНИКИ!$A$1:$K$705,3,FALSE) ->  | C49: =VLOOKUP($F49,УЧАСТНИКИ!$A$1:$K$705,4,FALSE) ->  | D49: =VLOOKUP($F49,УЧАСТНИКИ!$A$1:$K$705,5,FALSE) ->  | E49: =VLOOKUP($F49,УЧАСТНИКИ!$A$1:$K$705,11,FALSE) ->  | J49: =VLOOKUP($F49,УЧАСТНИКИ!$A$2:$K$231,9,FALSE) -> 
B50: 9 ЗАБЕГ
A51: 1
A52: 2 | B52: =VLOOKUP($F52,УЧАСТНИКИ!$A$1:$K$705,3,FALSE) ->  | C52: =VLOOKUP($F52,УЧАСТНИКИ!$A$1:$K$705,4,FALSE) ->  | D52: =VLOOKUP($F52,УЧАСТНИКИ!$A$1:$K$705,5,FALSE) ->  | E52: =VLOOKUP($F52,УЧАСТНИКИ!$A$1:$K$705,11,FALSE) ->  | J52: =VLOOKUP($F52,УЧАСТНИКИ!$A$2:$K$231,9,FALSE) -> 
A53: 3 | B53: =VLOOKUP($F53,УЧАСТНИКИ!$A$1:$K$705,3,FALSE) ->  | C53: =VLOOKUP($F53,УЧАСТНИКИ!$A$1:$K$705,4,FALSE) ->  | D53: =VLOOKUP($F53,УЧАСТНИКИ!$A$1:$K$705,5,FALSE) ->  | E53: =VLOOKUP($F53,УЧАСТНИКИ!$A$1:$K$705,11,FALSE) ->  | J53: =VLOOKUP($F53,УЧАСТНИКИ!$A$2:$K$231,9,FALSE) -> 
A54: 4 | B54: =VLOOKUP($F54,УЧАСТНИКИ!$A$1:$K$705,3,FALSE) ->  | C54: =VLOOKUP($F54,УЧАСТНИКИ!$A$1:$K$705,4,FALSE) ->  | D54: =VLOOKUP($F54,УЧАСТНИКИ!$A$1:$K$705,5,FALSE) ->  | E54: =VLOOKUP($F54,УЧАСТНИКИ!$A$1:$K$705,11,FALSE) ->  | J54: =VLOOKUP($F54,УЧАСТНИКИ!$A$2:$K$231,9,FALSE) -> 
B55: 10 ЗАБЕГ
A56: 1
A57: 2 | B57: =VLOOKUP($F57,УЧАСТНИКИ!$A$1:$K$705,3,FALSE) ->  | C57: =VLOOKUP($F57,УЧАСТНИКИ!$A$1:$K$705,4,FALSE) ->  | D57: =VLOOKUP($F57,УЧАСТНИКИ!$A$1:$K$705,5,FALSE) ->  | E57: =VLOOKUP($F57,УЧАСТНИКИ!$A$1:$K$705,11,FALSE) ->  | J57: =VLOOKUP($F57,УЧАСТНИКИ!$A$2:$K$231,9,FALSE) -> 
A58: 3 | B58: =VLOOKUP($F58,УЧАСТНИКИ!$A$1:$K$705,3,FALSE) ->  | C58: =VLOOKUP($F58,УЧАСТНИКИ!$A$1:$K$705,4,FALSE) ->  | D58: =VLOOKUP($F58,УЧАСТНИКИ!$A$1:$K$705,5,FALSE) ->  | E58: =VLOOKUP($F58,УЧАСТНИКИ!$A$1:$K$705,11,FALSE) ->  | J58: =VLOOKUP($F58,УЧАСТНИКИ!$A$2:$K$231,9,FALSE) -> 
A59: 4
B60: =Name_9 -> МУЖЧИНЫ 2001г.р. и старше
B61: 11 ЗАБЕГ
A62: 1
A63: 2 | B63: =VLOOKUP($F63,УЧАСТНИКИ!$A$1:$K$705,3,FALSE) ->  | C63: =VLOOKUP($F63,УЧАСТНИКИ!$A$1:$K$705,4,FALSE) ->  | D63: =VLOOKUP($F63,УЧАСТНИКИ!$A$1:$K$705,5,FALSE) ->  | E63: =VLOOKUP($F63,УЧАСТНИКИ!$A$1:$K$705,11,FALSE) -> 
A64: 3 | B64: =VLOOKUP($F64,УЧАСТНИКИ!$A$1:$K$705,3,FALSE) ->  | C64: =VLOOKUP($F64,УЧАСТНИКИ!$A$1:$K$705,4,FALSE) ->  | D64: =VLOOKUP($F64,УЧАСТНИКИ!$A$1:$K$705,5,FALSE) ->  | E64: =VLOOKUP($F64,УЧАСТНИКИ!$A$1:$K$705,11,FALSE) -> 
A65: 4
B66: 12 ЗАБЕГ
A67: 1
A68: 2 | B68: =VLOOKUP($F68,УЧАСТНИКИ!$A$1:$K$705,3,FALSE) ->  | C68: =VLOOKUP($F68,УЧАСТНИКИ!$A$1:$K$705,4,FALSE) ->  | D68: =VLOOKUP($F68,УЧАСТНИКИ!$A$1:$K$705,5,FALSE) ->  | E68: =VLOOKUP($F68,УЧАСТНИКИ!$A$1:$K$705,11,FALSE) ->  | J68: =VLOOKUP($F68,УЧАСТНИКИ!$A$2:$K$231,9,FALSE) -> 
A69: 3 | B69: =VLOOKUP($F69,УЧАСТНИКИ!$A$1:$K$705,3,FALSE) ->  | C69: =VLOOKUP($F69,УЧАСТНИКИ!$A$1:$K$705,4,FALSE) ->  | D69: =VLOOKUP($F69,УЧАСТНИКИ!$A$1:$K$705,5,FALSE) ->  | E69: =VLOOKUP($F69,УЧАСТНИКИ!$A$1:$K$705,11,FALSE) ->  | J69: =VLOOKUP($F69,УЧАСТНИКИ!$A$2:$K$231,9,FALSE) -> 
A70: 4 | B70: =VLOOKUP($F70,УЧАСТНИКИ!$A$1:$K$705,3,FALSE) ->  | C70: =VLOOKUP($F70,УЧАСТНИКИ!$A$1:$K$705,4,FALSE) ->  | D70: =VLOOKUP($F70,УЧАСТНИКИ!$A$1:$K$705,5,FALSE) ->  | E70: =VLOOKUP($F70,УЧАСТНИКИ!$A$1:$K$705,11,FALSE) ->  | J70: =VLOOKUP($F70,УЧАСТНИКИ!$A$2:$K$231,9,FALSE) -> 
B71: 13 ЗАБЕГ
A72: 1 | B72: =VLOOKUP($F72,УЧАСТНИКИ!$A$1:$K$705,3,FALSE) ->  | C72: =VLOOKUP($F72,УЧАСТНИКИ!$A$1:$K$705,4,FALSE) ->  | D72: =VLOOKUP($F72,УЧАСТНИКИ!$A$1:$K$705,5,FALSE) ->  | E72: =VLOOKUP($F72,УЧАСТНИКИ!$A$1:$K$705,11,FALSE) ->  | J72: =VLOOKUP($F72,УЧАСТНИКИ!$A$2:$K$231,9,FALSE) -> 
A73: 2 | B73: =VLOOKUP($F73,УЧАСТНИКИ!$A$1:$K$705,3,FALSE) ->  | C73: =VLOOKUP($F73,УЧАСТНИКИ!$A$1:$K$705,4,FALSE) ->  | D73: =VLOOKUP($F73,УЧАСТНИКИ!$A$1:$K$705,5,FALSE) ->  | E73: =VLOOKUP($F73,УЧАСТНИКИ!$A$1:$K$705,11,FALSE) ->  | J73: =VLOOKUP($F73,УЧАСТНИКИ!$A$2:$K$231,9,FALSE) -> 
A74: 3 | B74: =VLOOKUP($F74,УЧАСТНИКИ!$A$1:$K$705,3,FALSE) ->  | C74: =VLOOKUP($F74,УЧАСТНИКИ!$A$1:$K$705,4,FALSE) ->  | D74: =VLOOKUP($F74,УЧАСТНИКИ!$A$1:$K$705,5,FALSE) ->  | E74: =VLOOKUP($F74,УЧАСТНИКИ!$A$1:$K$705,11,FALSE) ->  | J74: =VLOOKUP($F74,УЧАСТНИКИ!$A$2:$K$231,9,FALSE) -> 
A75: 4 | B75: =VLOOKUP($F75,УЧАСТНИКИ!$A$1:$K$705,3,FALSE) ->  | C75: =VLOOKUP($F75,УЧАСТНИКИ!$A$1:$K$705,4,FALSE) ->  | D75: =VLOOKUP($F75,УЧАСТНИКИ!$A$1:$K$705,5,FALSE) ->  | E75: =VLOOKUP($F75,УЧАСТНИКИ!$A$1:$K$705,11,FALSE) ->  | J75: =VLOOKUP($F75,УЧАСТНИКИ!$A$2:$K$231,9,FALSE) -> 
B76: 14 ЗАБЕГ
A77: 1 | B77: =VLOOKUP($F77,УЧАСТНИКИ!$A$1:$K$705,3,FALSE) ->  | C77: =VLOOKUP($F77,УЧАСТНИКИ!$A$1:$K$705,4,FALSE) ->  | D77: =VLOOKUP($F77,УЧАСТНИКИ!$A$1:$K$705,5,FALSE) ->  | E77: =VLOOKUP($F77,УЧАСТНИКИ!$A$1:$K$705,11,FALSE) ->  | J77: =VLOOKUP($F77,УЧАСТНИКИ!$A$2:$K$231,9,FALSE) -> 
A78: 2 | B78: =VLOOKUP($F78,УЧАСТНИКИ!$A$1:$K$705,3,FALSE) ->  | C78: =VLOOKUP($F78,УЧАСТНИКИ!$A$1:$K$705,4,FALSE) ->  | D78: =VLOOKUP($F78,УЧАСТНИКИ!$A$1:$K$705,5,FALSE) ->  | E78: =VLOOKUP($F78,УЧАСТНИКИ!$A$1:$K$705,11,FALSE) ->  | J78: =VLOOKUP($F78,УЧАСТНИКИ!$A$2:$K$231,9,FALSE) -> 
A79: 3 | B79: =VLOOKUP($F79,УЧАСТНИКИ!$A$1:$K$705,3,FALSE) ->  | C79: =VLOOKUP($F79,УЧАСТНИКИ!$A$1:$K$705,4,FALSE) ->  | D79: =VLOOKUP($F79,УЧАСТНИКИ!$A$1:$K$705,5,FALSE) ->  | E79: =VLOOKUP($F79,УЧАСТНИКИ!$A$1:$K$705,11,FALSE) ->  | J79: =VLOOKUP($F79,УЧАСТНИКИ!$A$2:$K$231,9,FALSE) -> 
A80: 4 | B80: =VLOOKUP($F80,УЧАСТНИКИ!$A$1:$K$705,3,FALSE) ->  | C80: =VLOOKUP($F80,УЧАСТНИКИ!$A$1:$K$705,4,FALSE) ->  | D80: =VLOOKUP($F80,УЧАСТНИКИ!$A$1:$K$705,5,FALSE) ->  | E80: =VLOOKUP($F80,УЧАСТНИКИ!$A$1:$K$705,11,FALSE) ->  | J80: =VLOOKUP($F80,УЧАСТНИКИ!$A$2:$K$231,9,FALSE) -> 
B81: 15 ЗАБЕГ
A82: 1 | B82: =VLOOKUP($F82,УЧАСТНИКИ!$A$1:$K$705,3,FALSE) ->  | C82: =VLOOKUP($F82,УЧАСТНИКИ!$A$1:$K$705,4,FALSE) ->  | D82: =VLOOKUP($F82,УЧАСТНИКИ!$A$1:$K$705,5,FALSE) ->  | E82: =VLOOKUP($F82,УЧАСТНИКИ!$A$1:$K$705,11,FALSE) ->  | J82: =VLOOKUP($F82,УЧАСТНИКИ!$A$2:$K$231,9,FALSE) -> 
A83: 2 | B83: =VLOOKUP($F83,УЧАСТНИКИ!$A$1:$K$705,3,FALSE) ->  | C83: =VLOOKUP($F83,УЧАСТНИКИ!$A$1:$K$705,4,FALSE) ->  | D83: =VLOOKUP($F83,УЧАСТНИКИ!$A$1:$K$705,5,FALSE) ->  | E83: =VLOOKUP($F83,УЧАСТНИКИ!$A$1:$K$705,11,FALSE) ->  | J83: =VLOOKUP($F83,УЧАСТНИКИ!$A$2:$K$231,9,FALSE) -> 
A84: 3 | B84: =VLOOKUP($F84,УЧАСТНИКИ!$A$1:$K$705,3,FALSE) ->  | C84: =VLOOKUP($F84,УЧАСТНИКИ!$A$1:$K$705,4,FALSE) ->  | D84: =VLOOKUP($F84,УЧАСТНИКИ!$A$1:$K$705,5,FALSE) ->  | E84: =VLOOKUP($F84,УЧАСТНИКИ!$A$1:$K$705,11,FALSE) ->  | J84: =VLOOKUP($F84,УЧАСТНИКИ!$A$2:$K$231,9,FALSE) -> 
A85: 4 | B85: =VLOOKUP($F85,УЧАСТНИКИ!$A$1:$K$705,3,FALSE) ->  | C85: =VLOOKUP($F85,УЧАСТНИКИ!$A$1:$K$705,4,FALSE) ->  | D85: =VLOOKUP($F85,УЧАСТНИКИ!$A$1:$K$705,5,FALSE) ->  | E85: =VLOOKUP($F85,УЧАСТНИКИ!$A$1:$K$705,11,FALSE) ->  | J85: =VLOOKUP($F85,УЧАСТНИКИ!$A$2:$K$231,9,FALSE) -> 
B86: 16 ЗАБЕГ
A87: 1 | B87: =VLOOKUP($F87,УЧАСТНИКИ!$A$1:$K$705,3,FALSE) ->  | C87: =VLOOKUP($F87,УЧАСТНИКИ!$A$1:$K$705,4,FALSE) ->  | D87: =VLOOKUP($F87,УЧАСТНИКИ!$A$1:$K$705,5,FALSE) ->  | E87: =VLOOKUP($F87,УЧАСТНИКИ!$A$1:$K$705,11,FALSE) ->  | J87: =VLOOKUP($F87,УЧАСТНИКИ!$A$2:$K$231,9,FALSE) -> 
A88: 2 | B88: =VLOOKUP($F88,УЧАСТНИКИ!$A$1:$K$705,3,FALSE) ->  | C88: =VLOOKUP($F88,УЧАСТНИКИ!$A$1:$K$705,4,FALSE) ->  | D88: =VLOOKUP($F88,УЧАСТНИКИ!$A$1:$K$705,5,FALSE) ->  | E88: =VLOOKUP($F88,УЧАСТНИКИ!$A$1:$K$705,11,FALSE) ->  | J88: =VLOOKUP($F88,УЧАСТНИКИ!$A$2:$K$231,9,FALSE) -> 
A89: 3 | B89: =VLOOKUP($F89,УЧАСТНИКИ!$A$1:$K$705,3,FALSE) ->  | C89: =VLOOKUP($F89,УЧАСТНИКИ!$A$1:$K$705,4,FALSE) ->  | D89: =VLOOKUP($F89,УЧАСТНИКИ!$A$1:$K$705,5,FALSE) ->  | E89: =VLOOKUP($F89,УЧАСТНИКИ!$A$1:$K$705,11,FALSE) ->  | J89: =VLOOKUP($F89,УЧАСТНИКИ!$A$2:$K$231,9,FALSE) -> 
A90: 4 | B90: =VLOOKUP($F90,УЧАСТНИКИ!$A$1:$K$705,3,FALSE) ->  | C90: =VLOOKUP($F90,УЧАСТНИКИ!$A$1:$K$705,4,FALSE) ->  | D90: =VLOOKUP($F90,УЧАСТНИКИ!$A$1:$K$705,5,FALSE) ->  | E90: =VLOOKUP($F90,УЧАСТНИКИ!$A$1:$K$705,11,FALSE) ->  | J90: =VLOOKUP($F90,УЧАСТНИКИ!$A$2:$K$231,9,FALSE) -> 
B91: 17 ЗАБЕГ
A92: 1 | B92: =VLOOKUP($F92,УЧАСТНИКИ!$A$1:$K$705,3,FALSE) ->  | C92: =VLOOKUP($F92,УЧАСТНИКИ!$A$1:$K$705,4,FALSE) ->  | D92: =VLOOKUP($F92,УЧАСТНИКИ!$A$1:$K$705,5,FALSE) ->  | E92: =VLOOKUP($F92,УЧАСТНИКИ!$A$1:$K$705,11,FALSE) ->  | J92: =VLOOKUP($F92,УЧАСТНИКИ!$A$2:$K$231,9,FALSE) -> 
A93: 2 | B93: =VLOOKUP($F93,УЧАСТНИКИ!$A$1:$K$705,3,FALSE) ->  | C93: =VLOOKUP($F93,УЧАСТНИКИ!$A$1:$K$705,4,FALSE) ->  | D93: =VLOOKUP($F93,УЧАСТНИКИ!$A$1:$K$705,5,FALSE) ->  | E93: =VLOOKUP($F93,УЧАСТНИКИ!$A$1:$K$705,11,FALSE) ->  | J93: =VLOOKUP($F93,УЧАСТНИКИ!$A$2:$K$231,9,FALSE) -> 
A94: 3 | B94: =VLOOKUP($F94,УЧАСТНИКИ!$A$1:$K$705,3,FALSE) ->  | C94: =VLOOKUP($F94,УЧАСТНИКИ!$A$1:$K$705,4,FALSE) ->  | D94: =VLOOKUP($F94,УЧАСТНИКИ!$A$1:$K$705,5,FALSE) ->  | E94: =VLOOKUP($F94,УЧАСТНИКИ!$A$1:$K$705,11,FALSE) ->  | J94: =VLOOKUP($F94,УЧАСТНИКИ!$A$2:$K$231,9,FALSE) -> 
A95: 4 | J95: =VLOOKUP($F95,УЧАСТНИКИ!$A$2:$K$231,9,FALSE) -> 
B96: 18 ЗАБЕГ
A97: 1 | B97: =VLOOKUP($F97,УЧАСТНИКИ!$A$1:$K$705,3,FALSE) ->  | C97: =VLOOKUP($F97,УЧАСТНИКИ!$A$1:$K$705,4,FALSE) ->  | D97: =VLOOKUP($F97,УЧАСТНИКИ!$A$1:$K$705,5,FALSE) ->  | E97: =VLOOKUP($F97,УЧАСТНИКИ!$A$1:$K$705,11,FALSE) ->  | J97: =VLOOKUP($F97,УЧАСТНИКИ!$A$2:$K$231,9,FALSE) -> 
A98: 2 | B98: =VLOOKUP($F98,УЧАСТНИКИ!$A$1:$K$705,3,FALSE) ->  | C98: =VLOOKUP($F98,УЧАСТНИКИ!$A$1:$K$705,4,FALSE) ->  | D98: =VLOOKUP($F98,УЧАСТНИКИ!$A$1:$K$705,5,FALSE) ->  | E98: =VLOOKUP($F98,УЧАСТНИКИ!$A$1:$K$705,11,FALSE) ->  | J98: =VLOOKUP($F98,УЧАСТНИКИ!$A$2:$K$231,9,FALSE) -> 
A99: 3 | B99: =VLOOKUP($F99,УЧАСТНИКИ!$A$1:$K$705,3,FALSE) ->  | C99: =VLOOKUP($F99,УЧАСТНИКИ!$A$1:$K$705,4,FALSE) ->  | D99: =VLOOKUP($F99,УЧАСТНИКИ!$A$1:$K$705,5,FALSE) ->  | E99: =VLOOKUP($F99,УЧАСТНИКИ!$A$1:$K$705,11,FALSE) ->  | J99: =VLOOKUP($F99,УЧАСТНИКИ!$A$2:$K$231,9,FALSE) -> 
A100: 4 | B100: =VLOOKUP($F100,УЧАСТНИКИ!$A$1:$K$705,3,FALSE) ->  | C100: =VLOOKUP($F100,УЧАСТНИКИ!$A$1:$K$705,4,FALSE) ->  | D100: =VLOOKUP($F100,УЧАСТНИКИ!$A$1:$K$705,5,FALSE) ->  | E100: =VLOOKUP($F100,УЧАСТНИКИ!$A$1:$K$705,11,FALSE) ->  | J100: =VLOOKUP($F100,УЧАСТНИКИ!$A$2:$K$231,9,FALSE) -> 
B101: =Name_8 -> МУЖЧИНЫ 2001г.р. и старше
B102: 19 ЗАБЕГ
A103: 1 | B103: =VLOOKUP($F103,УЧАСТНИКИ!$A$1:$K$705,3,FALSE) ->  | C103: =VLOOKUP($F103,УЧАСТНИКИ!$A$1:$K$705,4,FALSE) ->  | D103: =VLOOKUP($F103,УЧАСТНИКИ!$A$1:$K$705,5,FALSE) ->  | E103: =VLOOKUP($F103,УЧАСТНИКИ!$A$1:$K$705,11,FALSE) ->  | J103: =VLOOKUP($F103,УЧАСТНИКИ!#REF!,9,FALSE) -> 
A104: 2 | B104: =VLOOKUP($F104,УЧАСТНИКИ!$A$1:$K$705,3,FALSE) ->  | C104: =VLOOKUP($F104,УЧАСТНИКИ!$A$1:$K$705,4,FALSE) ->  | D104: =VLOOKUP($F104,УЧАСТНИКИ!$A$1:$K$705,5,FALSE) ->  | E104: =VLOOKUP($F104,УЧАСТНИКИ!$A$1:$K$705,11,FALSE) ->  | J104: =VLOOKUP($F104,УЧАСТНИКИ!#REF!,9,FALSE) -> 
A105: 3 | B105: =VLOOKUP($F105,УЧАСТНИКИ!$A$1:$K$705,3,FALSE) ->  | C105: =VLOOKUP($F105,УЧАСТНИКИ!$A$1:$K$705,4,FALSE) ->  | D105: =VLOOKUP($F105,УЧАСТНИКИ!$A$1:$K$705,5,FALSE) ->  | E105: =VLOOKUP($F105,УЧАСТНИКИ!$A$1:$K$705,11,FALSE) ->  | J105: =VLOOKUP($F105,УЧАСТНИКИ!#REF!,9,FALSE) -> 
A106: 4 | B106: =VLOOKUP($F106,УЧАСТНИКИ!$A$1:$K$705,3,FALSE) ->  | C106: =VLOOKUP($F106,УЧАСТНИКИ!$A$1:$K$705,4,FALSE) ->  | D106: =VLOOKUP($F106,УЧАСТНИКИ!$A$1:$K$705,5,FALSE) ->  | E106: =VLOOKUP($F106,УЧАСТНИКИ!$A$1:$K$705,11,FALSE) ->  | J106: =VLOOKUP($F106,УЧАСТНИКИ!#REF!,9,FALSE) -> 
B107: 20 ЗАБЕГ
A108: 1 | B108: =VLOOKUP($F108,УЧАСТНИКИ!$A$1:$K$705,3,FALSE) ->  | C108: =VLOOKUP($F108,УЧАСТНИКИ!$A$1:$K$705,4,FALSE) ->  | D108: =VLOOKUP($F108,УЧАСТНИКИ!$A$1:$K$705,5,FALSE) ->  | E108: =VLOOKUP($F108,УЧАСТНИКИ!$A$1:$K$705,11,FALSE) ->  | J108: =VLOOKUP($F108,УЧАСТНИКИ!#REF!,9,FALSE) -> 
A109: 2 | B109: =VLOOKUP($F109,УЧАСТНИКИ!$A$1:$K$705,3,FALSE) ->  | C109: =VLOOKUP($F109,УЧАСТНИКИ!$A$1:$K$705,4,FALSE) ->  | D109: =VLOOKUP($F109,УЧАСТНИКИ!$A$1:$K$705,5,FALSE) ->  | E109: =VLOOKUP($F109,УЧАСТНИКИ!$A$1:$K$705,11,FALSE) ->  | J109: =VLOOKUP($F109,УЧАСТНИКИ!#REF!,9,FALSE) -> 
A110: 3 | B110: =VLOOKUP($F110,УЧАСТНИКИ!$A$1:$K$705,3,FALSE) ->  | C110: =VLOOKUP($F110,УЧАСТНИКИ!$A$1:$K$705,4,FALSE) ->  | D110: =VLOOKUP($F110,УЧАСТНИКИ!$A$1:$K$705,5,FALSE) ->  | E110: =VLOOKUP($F110,УЧАСТНИКИ!$A$1:$K$705,11,FALSE) ->  | J110: =VLOOKUP($F110,УЧАСТНИКИ!#REF!,9,FALSE) -> 
A111: 4 | B111: =VLOOKUP($F111,УЧАСТНИКИ!$A$1:$K$705,3,FALSE) ->  | C111: =VLOOKUP($F111,УЧАСТНИКИ!$A$1:$K$705,4,FALSE) ->  | D111: =VLOOKUP($F111,УЧАСТНИКИ!$A$1:$K$705,5,FALSE) ->  | E111: =VLOOKUP($F111,УЧАСТНИКИ!$A$1:$K$705,11,FALSE) ->  | J111: =VLOOKUP($F111,УЧАСТНИКИ!#REF!,9,FALSE) -> 
B112: 21 ЗАБЕГ
A113: 1 | B113: =VLOOKUP($F113,УЧАСТНИКИ!$A$1:$K$705,3,FALSE) ->  | C113: =VLOOKUP($F113,УЧАСТНИКИ!$A$1:$K$705,4,FALSE) ->  | D113: =VLOOKUP($F113,УЧАСТНИКИ!$A$1:$K$705,5,FALSE) ->  | E113: =VLOOKUP($F113,УЧАСТНИКИ!$A$1:$K$705,11,FALSE) ->  | J113: =VLOOKUP($F113,УЧАСТНИКИ!#REF!,9,FALSE) -> 
A114: 2 | B114: =VLOOKUP($F114,УЧАСТНИКИ!$A$1:$K$705,3,FALSE) ->  | C114: =VLOOKUP($F114,УЧАСТНИКИ!$A$1:$K$705,4,FALSE) ->  | D114: =VLOOKUP($F114,УЧАСТНИКИ!$A$1:$K$705,5,FALSE) ->  | E114: =VLOOKUP($F114,УЧАСТНИКИ!$A$1:$K$705,11,FALSE) ->  | J114: =VLOOKUP($F114,УЧАСТНИКИ!#REF!,9,FALSE) -> 
A115: 3 | B115: =VLOOKUP($F115,УЧАСТНИКИ!$A$1:$K$705,3,FALSE) ->  | C115: =VLOOKUP($F115,УЧАСТНИКИ!$A$1:$K$705,4,FALSE) ->  | D115: =VLOOKUP($F115,УЧАСТНИКИ!$A$1:$K$705,5,FALSE) ->  | E115: =VLOOKUP($F115,УЧАСТНИКИ!$A$1:$K$705,11,FALSE) ->  | J115: =VLOOKUP($F115,УЧАСТНИКИ!#REF!,9,FALSE) -> 
A116: 4 | B116: =VLOOKUP($F116,УЧАСТНИКИ!$A$1:$K$705,3,FALSE) ->  | C116: =VLOOKUP($F116,УЧАСТНИКИ!$A$1:$K$705,4,FALSE) ->  | D116: =VLOOKUP($F116,УЧАСТНИКИ!$A$1:$K$705,5,FALSE) ->  | E116: =VLOOKUP($F116,УЧАСТНИКИ!$A$1:$K$705,11,FALSE) ->  | J116: =VLOOKUP($F116,УЧАСТНИКИ!#REF!,9,FALSE) -> 
B117: 22 ЗАБЕГ
A118: 1 | B118: =VLOOKUP($F118,УЧАСТНИКИ!$A$1:$K$705,3,FALSE) ->  | C118: =VLOOKUP($F118,УЧАСТНИКИ!$A$1:$K$705,4,FALSE) ->  | D118: =VLOOKUP($F118,УЧАСТНИКИ!$A$1:$K$705,5,FALSE) ->  | E118: =VLOOKUP($F118,УЧАСТНИКИ!$A$1:$K$705,11,FALSE) ->  | J118: =VLOOKUP($F118,УЧАСТНИКИ!#REF!,9,FALSE) -> 
A119: 2 | B119: =VLOOKUP($F119,УЧАСТНИКИ!$A$1:$K$705,3,FALSE) ->  | C119: =VLOOKUP($F119,УЧАСТНИКИ!$A$1:$K$705,4,FALSE) ->  | D119: =VLOOKUP($F119,УЧАСТНИКИ!$A$1:$K$705,5,FALSE) ->  | E119: =VLOOKUP($F119,УЧАСТНИКИ!$A$1:$K$705,11,FALSE) ->  | J119: =VLOOKUP($F119,УЧАСТНИКИ!#REF!,9,FALSE) -> 
A120: 3 | B120: =VLOOKUP($F120,УЧАСТНИКИ!$A$1:$K$705,3,FALSE) ->  | C120: =VLOOKUP($F120,УЧАСТНИКИ!$A$1:$K$705,4,FALSE) ->  | D120: =VLOOKUP($F120,УЧАСТНИКИ!$A$1:$K$705,5,FALSE) ->  | E120: =VLOOKUP($F120,УЧАСТНИКИ!$A$1:$K$705,11,FALSE) ->  | J120: =VLOOKUP($F120,УЧАСТНИКИ!#REF!,9,FALSE) -> 
A121: 4 | B121: =VLOOKUP($F121,УЧАСТНИКИ!$A$1:$K$705,3,FALSE) ->  | C121: =VLOOKUP($F121,УЧАСТНИКИ!$A$1:$K$705,4,FALSE) ->  | D121: =VLOOKUP($F121,УЧАСТНИКИ!$A$1:$K$705,5,FALSE) ->  | E121: =VLOOKUP($F121,УЧАСТНИКИ!$A$1:$K$705,11,FALSE) ->  | J121: =VLOOKUP($F121,УЧАСТНИКИ!#REF!,9,FALSE) -> 
B122: 23 ЗАБЕГ
A123: 1 | B123: =VLOOKUP($F123,УЧАСТНИКИ!$A$1:$K$705,3,FALSE) ->  | C123: =VLOOKUP($F123,УЧАСТНИКИ!$A$1:$K$705,4,FALSE) ->  | D123: =VLOOKUP($F123,УЧАСТНИКИ!$A$1:$K$705,5,FALSE) ->  | E123: =VLOOKUP($F123,УЧАСТНИКИ!$A$1:$K$705,11,FALSE) ->  | J123: =VLOOKUP($F123,УЧАСТНИКИ!#REF!,9,FALSE) -> 
A124: 2 | B124: =VLOOKUP($F124,УЧАСТНИКИ!$A$1:$K$705,3,FALSE) ->  | C124: =VLOOKUP($F124,УЧАСТНИКИ!$A$1:$K$705,4,FALSE) ->  | D124: =VLOOKUP($F124,УЧАСТНИКИ!$A$1:$K$705,5,FALSE) ->  | E124: =VLOOKUP($F124,УЧАСТНИКИ!$A$1:$K$705,11,FALSE) ->  | J124: =VLOOKUP($F124,УЧАСТНИКИ!#REF!,9,FALSE) -> 
A125: 3 | B125: =VLOOKUP($F125,УЧАСТНИКИ!$A$1:$K$705,3,FALSE) ->  | C125: =VLOOKUP($F125,УЧАСТНИКИ!$A$1:$K$705,4,FALSE) ->  | D125: =VLOOKUP($F125,УЧАСТНИКИ!$A$1:$K$705,5,FALSE) ->  | E125: =VLOOKUP($F125,УЧАСТНИКИ!$A$1:$K$705,11,FALSE) ->  | J125: =VLOOKUP($F125,УЧАСТНИКИ!#REF!,9,FALSE) -> 
A126: 4 | B126: =VLOOKUP($F126,УЧАСТНИКИ!$A$1:$K$705,3,FALSE) ->  | C126: =VLOOKUP($F126,УЧАСТНИКИ!$A$1:$K$705,4,FALSE) ->  | D126: =VLOOKUP($F126,УЧАСТНИКИ!$A$1:$K$705,5,FALSE) ->  | E126: =VLOOKUP($F126,УЧАСТНИКИ!$A$1:$K$705,11,FALSE) ->  | J126: =VLOOKUP($F126,УЧАСТНИКИ!#REF!,9,FALSE) -> 
B127: 24 ЗАБЕГ
A128: 1 | B128: =VLOOKUP($F128,УЧАСТНИКИ!$A$1:$K$705,3,FALSE) ->  | C128: =VLOOKUP($F128,УЧАСТНИКИ!$A$1:$K$705,4,FALSE) ->  | D128: =VLOOKUP($F128,УЧАСТНИКИ!$A$1:$K$705,5,FALSE) ->  | E128: =VLOOKUP($F128,УЧАСТНИКИ!$A$1:$K$705,11,FALSE) ->  | J128: =VLOOKUP($F128,УЧАСТНИКИ!#REF!,9,FALSE) -> 
A129: 2 | B129: =VLOOKUP($F129,УЧАСТНИКИ!$A$1:$K$705,3,FALSE) ->  | C129: =VLOOKUP($F129,УЧАСТНИКИ!$A$1:$K$705,4,FALSE) ->  | D129: =VLOOKUP($F129,УЧАСТНИКИ!$A$1:$K$705,5,FALSE) ->  | E129: =VLOOKUP($F129,УЧАСТНИКИ!$A$1:$K$705,11,FALSE) ->  | J129: =VLOOKUP($F129,УЧАСТНИКИ!#REF!,9,FALSE) -> 
A130: 3 | B130: =VLOOKUP($F130,УЧАСТНИКИ!$A$1:$K$705,3,FALSE) ->  | C130: =VLOOKUP($F130,УЧАСТНИКИ!$A$1:$K$705,4,FALSE) ->  | D130: =VLOOKUP($F130,УЧАСТНИКИ!$A$1:$K$705,5,FALSE) ->  | E130: =VLOOKUP($F130,УЧАСТНИКИ!$A$1:$K$705,11,FALSE) ->  | J130: =VLOOKUP($F130,УЧАСТНИКИ!#REF!,9,FALSE) -> 
A131: 4 | B131: =VLOOKUP($F131,УЧАСТНИКИ!$A$1:$K$705,3,FALSE) ->  | C131: =VLOOKUP($F131,УЧАСТНИКИ!$A$1:$K$705,4,FALSE) ->  | D131: =VLOOKUP($F131,УЧАСТНИКИ!$A$1:$K$705,5,FALSE) ->  | E131: =VLOOKUP($F131,УЧАСТНИКИ!$A$1:$K$705,11,FALSE) ->  | J131: =VLOOKUP($F131,УЧАСТНИКИ!#REF!,9,FALSE) -> 
B132: 25 ЗАБЕГ
A133: 1 | B133: =VLOOKUP($F133,УЧАСТНИКИ!$A$1:$K$705,3,FALSE) ->  | C133: =VLOOKUP($F133,УЧАСТНИКИ!$A$1:$K$705,4,FALSE) ->  | D133: =VLOOKUP($F133,УЧАСТНИКИ!$A$1:$K$705,5,FALSE) ->  | E133: =VLOOKUP($F133,УЧАСТНИКИ!$A$1:$K$705,11,FALSE) ->  | J133: =VLOOKUP($F133,УЧАСТНИКИ!#REF!,9,FALSE) -> 
A134: 2 | B134: =VLOOKUP($F134,УЧАСТНИКИ!$A$1:$K$705,3,FALSE) ->  | C134: =VLOOKUP($F134,УЧАСТНИКИ!$A$1:$K$705,4,FALSE) ->  | D134: =VLOOKUP($F134,УЧАСТНИКИ!$A$1:$K$705,5,FALSE) ->  | E134: =VLOOKUP($F134,УЧАСТНИКИ!$A$1:$K$705,11,FALSE) ->  | J134: =VLOOKUP($F134,УЧАСТНИКИ!#REF!,9,FALSE) -> 
A135: 3 | B135: =VLOOKUP($F135,УЧАСТНИКИ!$A$1:$K$705,3,FALSE) ->  | C135: =VLOOKUP($F135,УЧАСТНИКИ!$A$1:$K$705,4,FALSE) ->  | D135: =VLOOKUP($F135,УЧАСТНИКИ!$A$1:$K$705,5,FALSE) ->  | E135: =VLOOKUP($F135,УЧАСТНИКИ!$A$1:$K$705,11,FALSE) ->  | J135: =VLOOKUP($F135,УЧАСТНИКИ!#REF!,9,FALSE) -> 
A136: 4 | B136: =VLOOKUP($F136,УЧАСТНИКИ!$A$1:$K$705,3,FALSE) ->  | C136: =VLOOKUP($F136,УЧАСТНИКИ!$A$1:$K$705,4,FALSE) ->  | D136: =VLOOKUP($F136,УЧАСТНИКИ!$A$1:$K$705,5,FALSE) ->  | E136: =VLOOKUP($F136,УЧАСТНИКИ!$A$1:$K$705,11,FALSE) ->  | J136: =VLOOKUP($F136,УЧАСТНИКИ!#REF!,9,FALSE) -> 
B137: 26 ЗАБЕГ
A138: 1 | B138: =VLOOKUP($F138,УЧАСТНИКИ!$A$1:$K$705,3,FALSE) ->  | C138: =VLOOKUP($F138,УЧАСТНИКИ!$A$1:$K$705,4,FALSE) ->  | D138: =VLOOKUP($F138,УЧАСТНИКИ!$A$1:$K$705,5,FALSE) ->  | E138: =VLOOKUP($F138,УЧАСТНИКИ!$A$1:$K$705,11,FALSE) ->  | J138: =VLOOKUP($F138,УЧАСТНИКИ!#REF!,9,FALSE) -> 
A139: 2 | B139: =VLOOKUP($F139,УЧАСТНИКИ!$A$1:$K$705,3,FALSE) ->  | C139: =VLOOKUP($F139,УЧАСТНИКИ!$A$1:$K$705,4,FALSE) ->  | D139: =VLOOKUP($F139,УЧАСТНИКИ!$A$1:$K$705,5,FALSE) ->  | E139: =VLOOKUP($F139,УЧАСТНИКИ!$A$1:$K$705,11,FALSE) ->  | J139: =VLOOKUP($F139,УЧАСТНИКИ!#REF!,9,FALSE) -> 
A140: 3 | B140: =VLOOKUP($F140,УЧАСТНИКИ!$A$1:$K$705,3,FALSE) ->  | C140: =VLOOKUP($F140,УЧАСТНИКИ!$A$1:$K$705,4,FALSE) ->  | D140: =VLOOKUP($F140,УЧАСТНИКИ!$A$1:$K$705,5,FALSE) ->  | E140: =VLOOKUP($F140,УЧАСТНИКИ!$A$1:$K$705,11,FALSE) ->  | J140: =VLOOKUP($F140,УЧАСТНИКИ!#REF!,9,FALSE) -> 
A141: 4 | B141: =VLOOKUP($F141,УЧАСТНИКИ!$A$1:$K$705,3,FALSE) ->  | C141: =VLOOKUP($F141,УЧАСТНИКИ!$A$1:$K$705,4,FALSE) ->  | D141: =VLOOKUP($F141,УЧАСТНИКИ!$A$1:$K$705,5,FALSE) ->  | E141: =VLOOKUP($F141,УЧАСТНИКИ!$A$1:$K$705,11,FALSE) ->  | J141: =VLOOKUP($F141,УЧАСТНИКИ!#REF!,9,FALSE) -> 
B142: 27 ЗАБЕГ
A143: 1 | B143: =VLOOKUP($F143,УЧАСТНИКИ!$A$1:$K$705,3,FALSE) ->  | C143: =VLOOKUP($F143,УЧАСТНИКИ!$A$1:$K$705,4,FALSE) ->  | D143: =VLOOKUP($F143,УЧАСТНИКИ!$A$1:$K$705,5,FALSE) ->  | E143: =VLOOKUP($F143,УЧАСТНИКИ!$A$1:$K$705,11,FALSE) ->  | J143: =VLOOKUP($F143,УЧАСТНИКИ!#REF!,9,FALSE) -> 
A144: 2 | B144: =VLOOKUP($F144,УЧАСТНИКИ!$A$1:$K$705,3,FALSE) ->  | C144: =VLOOKUP($F144,УЧАСТНИКИ!$A$1:$K$705,4,FALSE) ->  | D144: =VLOOKUP($F144,УЧАСТНИКИ!$A$1:$K$705,5,FALSE) ->  | E144: =VLOOKUP($F144,УЧАСТНИКИ!$A$1:$K$705,11,FALSE) ->  | J144: =VLOOKUP($F144,УЧАСТНИКИ!#REF!,9,FALSE) -> 
A145: 3 | B145: =VLOOKUP($F145,УЧАСТНИКИ!$A$1:$K$705,3,FALSE) ->  | C145: =VLOOKUP($F145,УЧАСТНИКИ!$A$1:$K$705,4,FALSE) ->  | D145: =VLOOKUP($F145,УЧАСТНИКИ!$A$1:$K$705,5,FALSE) ->  | E145: =VLOOKUP($F145,УЧАСТНИКИ!$A$1:$K$705,11,FALSE) ->  | J145: =VLOOKUP($F145,УЧАСТНИКИ!#REF!,9,FALSE) -> 
A146: 4 | B146: =VLOOKUP($F146,УЧАСТНИКИ!$A$1:$K$705,3,FALSE) ->  | C146: =VLOOKUP($F146,УЧАСТНИКИ!$A$1:$K$705,4,FALSE) ->  | D146: =VLOOKUP($F146,УЧАСТНИКИ!$A$1:$K$705,5,FALSE) ->  | E146: =VLOOKUP($F146,УЧАСТНИКИ!$A$1:$K$705,11,FALSE) ->  | J146: =VLOOKUP($F146,УЧАСТНИКИ!#REF!,9,FALSE) -> 
B147: 28 ЗАБЕГ
A148: 1 | B148: =VLOOKUP($F148,УЧАСТНИКИ!$A$1:$K$705,3,FALSE) ->  | C148: =VLOOKUP($F148,УЧАСТНИКИ!$A$1:$K$705,4,FALSE) ->  | D148: =VLOOKUP($F148,УЧАСТНИКИ!$A$1:$K$705,5,FALSE) ->  | E148: =VLOOKUP($F148,УЧАСТНИКИ!$A$1:$K$705,11,FALSE) ->  | J148: =VLOOKUP($F148,УЧАСТНИКИ!#REF!,9,FALSE) -> 
A149: 2 | B149: =VLOOKUP($F149,УЧАСТНИКИ!$A$1:$K$705,3,FALSE) ->  | C149: =VLOOKUP($F149,УЧАСТНИКИ!$A$1:$K$705,4,FALSE) ->  | D149: =VLOOKUP($F149,УЧАСТНИКИ!$A$1:$K$705,5,FALSE) ->  | E149: =VLOOKUP($F149,УЧАСТНИКИ!$A$1:$K$705,11,FALSE) ->  | J149: =VLOOKUP($F149,УЧАСТНИКИ!#REF!,9,FALSE) -> 
A150: 3 | B150: =VLOOKUP($F150,УЧАСТНИКИ!$A$1:$K$705,3,FALSE) ->  | C150: =VLOOKUP($F150,УЧАСТНИКИ!$A$1:$K$705,4,FALSE) ->  | D150: =VLOOKUP($F150,УЧАСТНИКИ!$A$1:$K$705,5,FALSE) ->  | E150: =VLOOKUP($F150,УЧАСТНИКИ!$A$1:$K$705,11,FALSE) ->  | J150: =VLOOKUP($F150,УЧАСТНИКИ!#REF!,9,FALSE) -> 
A151: 4 | B151: =VLOOKUP($F151,УЧАСТНИКИ!$A$1:$K$705,3,FALSE) ->  | C151: =VLOOKUP($F151,УЧАСТНИКИ!$A$1:$K$705,4,FALSE) ->  | D151: =VLOOKUP($F151,УЧАСТНИКИ!$A$1:$K$705,5,FALSE) ->  | E151: =VLOOKUP($F151,УЧАСТНИКИ!$A$1:$K$705,11,FALSE) ->  | J151: =VLOOKUP($F151,УЧАСТНИКИ!#REF!,9,FALSE) -> 
B152: 29 ЗАБЕГ
A153: 1 | B153: =VLOOKUP($F153,УЧАСТНИКИ!$A$1:$K$705,3,FALSE) ->  | C153: =VLOOKUP($F153,УЧАСТНИКИ!$A$1:$K$705,4,FALSE) ->  | D153: =VLOOKUP($F153,УЧАСТНИКИ!$A$1:$K$705,5,FALSE) ->  | E153: =VLOOKUP($F153,УЧАСТНИКИ!$A$1:$K$705,11,FALSE) ->  | J153: =VLOOKUP($F153,УЧАСТНИКИ!#REF!,9,FALSE) -> 
A154: 2 | B154: =VLOOKUP($F154,УЧАСТНИКИ!$A$1:$K$705,3,FALSE) ->  | C154: =VLOOKUP($F154,УЧАСТНИКИ!$A$1:$K$705,4,FALSE) ->  | D154: =VLOOKUP($F154,УЧАСТНИКИ!$A$1:$K$705,5,FALSE) ->  | E154: =VLOOKUP($F154,УЧАСТНИКИ!$A$1:$K$705,11,FALSE) ->  | J154: =VLOOKUP($F154,УЧАСТНИКИ!#REF!,9,FALSE) -> 
A155: 3 | B155: =VLOOKUP($F155,УЧАСТНИКИ!$A$1:$K$705,3,FALSE) ->  | C155: =VLOOKUP($F155,УЧАСТНИКИ!$A$1:$K$705,4,FALSE) ->  | D155: =VLOOKUP($F155,УЧАСТНИКИ!$A$1:$K$705,5,FALSE) ->  | E155: =VLOOKUP($F155,УЧАСТНИКИ!$A$1:$K$705,11,FALSE) ->  | J155: =VLOOKUP($F155,УЧАСТНИКИ!#REF!,9,FALSE) -> 
A156: 4 | B156: =VLOOKUP($F156,УЧАСТНИКИ!$A$1:$K$705,3,FALSE) ->  | C156: =VLOOKUP($F156,УЧАСТНИКИ!$A$1:$K$705,4,FALSE) ->  | D156: =VLOOKUP($F156,УЧАСТНИКИ!$A$1:$K$705,5,FALSE) ->  | E156: =VLOOKUP($F156,УЧАСТНИКИ!$A$1:$K$705,11,FALSE) ->  | J156: =VLOOKUP($F156,УЧАСТНИКИ!#REF!,9,FALSE) -> 
B157: 30 ЗАБЕГ
A158: 1 | B158: =VLOOKUP($F158,УЧАСТНИКИ!$A$1:$K$705,3,FALSE) ->  | C158: =VLOOKUP($F158,УЧАСТНИКИ!$A$1:$K$705,4,FALSE) ->  | D158: =VLOOKUP($F158,УЧАСТНИКИ!$A$1:$K$705,5,FALSE) ->  | E158: =VLOOKUP($F158,УЧАСТНИКИ!$A$1:$K$705,11,FALSE) ->  | J158: =VLOOKUP($F158,УЧАСТНИКИ!#REF!,9,FALSE) -> 
A159: 2 | B159: =VLOOKUP($F159,УЧАСТНИКИ!$A$1:$K$705,3,FALSE) ->  | C159: =VLOOKUP($F159,УЧАСТНИКИ!$A$1:$K$705,4,FALSE) ->  | D159: =VLOOKUP($F159,УЧАСТНИКИ!$A$1:$K$705,5,FALSE) ->  | E159: =VLOOKUP($F159,УЧАСТНИКИ!$A$1:$K$705,11,FALSE) ->  | J159: =VLOOKUP($F159,УЧАСТНИКИ!#REF!,9,FALSE) -> 
A160: 3 | B160: =VLOOKUP($F160,УЧАСТНИКИ!$A$1:$K$705,3,FALSE) ->  | C160: =VLOOKUP($F160,УЧАСТНИКИ!$A$1:$K$705,4,FALSE) ->  | D160: =VLOOKUP($F160,УЧАСТНИКИ!$A$1:$K$705,5,FALSE) ->  | E160: =VLOOKUP($F160,УЧАСТНИКИ!$A$1:$K$705,11,FALSE) ->  | J160: =VLOOKUP($F160,УЧАСТНИКИ!#REF!,9,FALSE) -> 
A161: 4 | B161: =VLOOKUP($F161,УЧАСТНИКИ!$A$1:$K$705,3,FALSE) ->  | C161: =VLOOKUP($F161,УЧАСТНИКИ!$A$1:$K$705,4,FALSE) ->  | D161: =VLOOKUP($F161,УЧАСТНИКИ!$A$1:$K$705,5,FALSE) ->  | E161: =VLOOKUP($F161,УЧАСТНИКИ!$A$1:$K$705,11,FALSE) ->  | J161: =VLOOKUP($F161,УЧАСТНИКИ!#REF!,9,FALSE) -> 
B162: 31 ЗАБЕГ
A163: 1 | B163: =VLOOKUP($F163,УЧАСТНИКИ!$A$1:$K$705,3,FALSE) ->  | C163: =VLOOKUP($F163,УЧАСТНИКИ!$A$1:$K$705,4,FALSE) ->  | D163: =VLOOKUP($F163,УЧАСТНИКИ!$A$1:$K$705,5,FALSE) ->  | E163: =VLOOKUP($F163,УЧАСТНИКИ!$A$1:$K$705,11,FALSE) ->  | J163: =VLOOKUP($F163,УЧАСТНИКИ!#REF!,9,FALSE) -> 
A164: 2 | B164: =VLOOKUP($F164,УЧАСТНИКИ!$A$1:$K$705,3,FALSE) ->  | C164: =VLOOKUP($F164,УЧАСТНИКИ!$A$1:$K$705,4,FALSE) ->  | D164: =VLOOKUP($F164,УЧАСТНИКИ!$A$1:$K$705,5,FALSE) ->  | E164: =VLOOKUP($F164,УЧАСТНИКИ!$A$1:$K$705,11,FALSE) ->  | J164: =VLOOKUP($F164,УЧАСТНИКИ!#REF!,9,FALSE) -> 
A165: 3 | B165: =VLOOKUP($F165,УЧАСТНИКИ!$A$1:$K$705,3,FALSE) ->  | C165: =VLOOKUP($F165,УЧАСТНИКИ!$A$1:$K$705,4,FALSE) ->  | D165: =VLOOKUP($F165,УЧАСТНИКИ!$A$1:$K$705,5,FALSE) ->  | E165: =VLOOKUP($F165,УЧАСТНИКИ!$A$1:$K$705,11,FALSE) ->  | J165: =VLOOKUP($F165,УЧАСТНИКИ!#REF!,9,FALSE) -> 
A166: 4 | B166: =VLOOKUP($F166,УЧАСТНИКИ!$A$1:$K$705,3,FALSE) ->  | C166: =VLOOKUP($F166,УЧАСТНИКИ!$A$1:$K$705,4,FALSE) ->  | D166: =VLOOKUP($F166,УЧАСТНИКИ!$A$1:$K$705,5,FALSE) ->  | E166: =VLOOKUP($F166,УЧАСТНИКИ!$A$1:$K$705,11,FALSE) ->  | J166: =VLOOKUP($F166,УЧАСТНИКИ!#REF!,9,FALSE) -> 
B167: 32 ЗАБЕГ
A168: 1 | B168: =VLOOKUP($F168,УЧАСТНИКИ!$A$1:$K$705,3,FALSE) ->  | C168: =VLOOKUP($F168,УЧАСТНИКИ!$A$1:$K$705,4,FALSE) ->  | D168: =VLOOKUP($F168,УЧАСТНИКИ!$A$1:$K$705,5,FALSE) ->  | E168: =VLOOKUP($F168,УЧАСТНИКИ!$A$1:$K$705,11,FALSE) ->  | J168: =VLOOKUP($F168,УЧАСТНИКИ!#REF!,9,FALSE) -> 
A169: 2 | B169: =VLOOKUP($F169,УЧАСТНИКИ!$A$1:$K$705,3,FALSE) ->  | C169: =VLOOKUP($F169,УЧАСТНИКИ!$A$1:$K$705,4,FALSE) ->  | D169: =VLOOKUP($F169,УЧАСТНИКИ!$A$1:$K$705,5,FALSE) ->  | E169: =VLOOKUP($F169,УЧАСТНИКИ!$A$1:$K$705,11,FALSE) ->  | J169: =VLOOKUP($F169,УЧАСТНИКИ!#REF!,9,FALSE) -> 
A170: 3 | B170: =VLOOKUP($F170,УЧАСТНИКИ!$A$1:$K$705,3,FALSE) ->  | C170: =VLOOKUP($F170,УЧАСТНИКИ!$A$1:$K$705,4,FALSE) ->  | D170: =VLOOKUP($F170,УЧАСТНИКИ!$A$1:$K$705,5,FALSE) ->  | E170: =VLOOKUP($F170,УЧАСТНИКИ!$A$1:$K$705,11,FALSE) ->  | J170: =VLOOKUP($F170,УЧАСТНИКИ!#REF!,9,FALSE) -> 
A171: 4 | B171: =VLOOKUP($F171,УЧАСТНИКИ!$A$1:$K$705,3,FALSE) ->  | C171: =VLOOKUP($F171,УЧАСТНИКИ!$A$1:$K$705,4,FALSE) ->  | D171: =VLOOKUP($F171,УЧАСТНИКИ!$A$1:$K$705,5,FALSE) ->  | E171: =VLOOKUP($F171,УЧАСТНИКИ!$A$1:$K$705,11,FALSE) ->  | J171: =VLOOKUP($F171,УЧАСТНИКИ!#REF!,9,FALSE) -> 
B172: 33 ЗАБЕГ
A173: 1 | B173: =VLOOKUP($F173,УЧАСТНИКИ!$A$1:$K$705,3,FALSE) ->  | C173: =VLOOKUP($F173,УЧАСТНИКИ!$A$1:$K$705,4,FALSE) ->  | D173: =VLOOKUP($F173,УЧАСТНИКИ!$A$1:$K$705,5,FALSE) ->  | E173: =VLOOKUP($F173,УЧАСТНИКИ!$A$1:$K$705,11,FALSE) ->  | J173: =VLOOKUP($F173,УЧАСТНИКИ!#REF!,9,FALSE) -> 
A174: 2 | B174: =VLOOKUP($F174,УЧАСТНИКИ!$A$1:$K$705,3,FALSE) ->  | C174: =VLOOKUP($F174,УЧАСТНИКИ!$A$1:$K$705,4,FALSE) ->  | D174: =VLOOKUP($F174,УЧАСТНИКИ!$A$1:$K$705,5,FALSE) ->  | E174: =VLOOKUP($F174,УЧАСТНИКИ!$A$1:$K$705,11,FALSE) ->  | J174: =VLOOKUP($F174,УЧАСТНИКИ!#REF!,9,FALSE) -> 
A175: 3 | B175: =VLOOKUP($F175,УЧАСТНИКИ!$A$1:$K$705,3,FALSE) ->  | C175: =VLOOKUP($F175,УЧАСТНИКИ!$A$1:$K$705,4,FALSE) ->  | D175: =VLOOKUP($F175,УЧАСТНИКИ!$A$1:$K$705,5,FALSE) ->  | E175: =VLOOKUP($F175,УЧАСТНИКИ!$A$1:$K$705,11,FALSE) ->  | J175: =VLOOKUP($F175,УЧАСТНИКИ!#REF!,9,FALSE) -> 
A176: 4 | B176: =VLOOKUP($F176,УЧАСТНИКИ!$A$1:$K$705,3,FALSE) ->  | C176: =VLOOKUP($F176,УЧАСТНИКИ!$A$1:$K$705,4,FALSE) ->  | D176: =VLOOKUP($F176,УЧАСТНИКИ!$A$1:$K$705,5,FALSE) ->  | E176: =VLOOKUP($F176,УЧАСТНИКИ!$A$1:$K$705,11,FALSE) ->  | J176: =VLOOKUP($F176,УЧАСТНИКИ!#REF!,9,FALSE) -> 
B177: 34 ЗАБЕГ
A178: 1 | B178: =VLOOKUP($F178,УЧАСТНИКИ!$A$1:$K$705,3,FALSE) ->  | C178: =VLOOKUP($F178,УЧАСТНИКИ!$A$1:$K$705,4,FALSE) ->  | D178: =VLOOKUP($F178,УЧАСТНИКИ!$A$1:$K$705,5,FALSE) ->  | E178: =VLOOKUP($F178,УЧАСТНИКИ!$A$1:$K$705,11,FALSE) ->  | J178: =VLOOKUP($F178,УЧАСТНИКИ!#REF!,9,FALSE) -> 
A179: 2 | B179: =VLOOKUP($F179,УЧАСТНИКИ!$A$1:$K$705,3,FALSE) ->  | C179: =VLOOKUP($F179,УЧАСТНИКИ!$A$1:$K$705,4,FALSE) ->  | D179: =VLOOKUP($F179,УЧАСТНИКИ!$A$1:$K$705,5,FALSE) ->  | E179: =VLOOKUP($F179,УЧАСТНИКИ!$A$1:$K$705,11,FALSE) ->  | J179: =VLOOKUP($F179,УЧАСТНИКИ!#REF!,9,FALSE) -> 
A180: 3 | B180: =VLOOKUP($F180,УЧАСТНИКИ!$A$1:$K$705,3,FALSE) ->  | C180: =VLOOKUP($F180,УЧАСТНИКИ!$A$1:$K$705,4,FALSE) ->  | D180: =VLOOKUP($F180,УЧАСТНИКИ!$A$1:$K$705,5,FALSE) ->  | E180: =VLOOKUP($F180,УЧАСТНИКИ!$A$1:$K$705,11,FALSE) ->  | J180: =VLOOKUP($F180,УЧАСТНИКИ!#REF!,9,FALSE) -> 
A181: 4 | B181: =VLOOKUP($F181,УЧАСТНИКИ!$A$1:$K$705,3,FALSE) ->  | C181: =VLOOKUP($F181,УЧАСТНИКИ!$A$1:$K$705,4,FALSE) ->  | D181: =VLOOKUP($F181,УЧАСТНИКИ!$A$1:$K$705,5,FALSE) ->  | E181: =VLOOKUP($F181,УЧАСТНИКИ!$A$1:$K$705,11,FALSE) ->  | J181: =VLOOKUP($F181,УЧАСТНИКИ!#REF!,9,FALSE) -> 
B182: 35 ЗАБЕГ
A183: 1 | B183: =VLOOKUP($F183,УЧАСТНИКИ!$A$1:$K$705,3,FALSE) ->  | C183: =VLOOKUP($F183,УЧАСТНИКИ!$A$1:$K$705,4,FALSE) ->  | D183: =VLOOKUP($F183,УЧАСТНИКИ!$A$1:$K$705,5,FALSE) ->  | E183: =VLOOKUP($F183,УЧАСТНИКИ!$A$1:$K$705,11,FALSE) ->  | J183: =VLOOKUP($F183,УЧАСТНИКИ!#REF!,9,FALSE) -> 
A184: 2 | B184: =VLOOKUP($F184,УЧАСТНИКИ!$A$1:$K$705,3,FALSE) ->  | C184: =VLOOKUP($F184,УЧАСТНИКИ!$A$1:$K$705,4,FALSE) ->  | D184: =VLOOKUP($F184,УЧАСТНИКИ!$A$1:$K$705,5,FALSE) ->  | E184: =VLOOKUP($F184,УЧАСТНИКИ!$A$1:$K$705,11,FALSE) ->  | J184: =VLOOKUP($F184,УЧАСТНИКИ!#REF!,9,FALSE) -> 
A185: 3 | B185: =VLOOKUP($F185,УЧАСТНИКИ!$A$1:$K$705,3,FALSE) ->  | C185: =VLOOKUP($F185,УЧАСТНИКИ!$A$1:$K$705,4,FALSE) ->  | D185: =VLOOKUP($F185,УЧАСТНИКИ!$A$1:$K$705,5,FALSE) ->  | E185: =VLOOKUP($F185,УЧАСТНИКИ!$A$1:$K$705,11,FALSE) ->  | J185: =VLOOKUP($F185,УЧАСТНИКИ!#REF!,9,FALSE) -> 
A186: 4 | B186: =VLOOKUP($F186,УЧАСТНИКИ!$A$1:$K$705,3,FALSE) ->  | C186: =VLOOKUP($F186,УЧАСТНИКИ!$A$1:$K$705,4,FALSE) ->  | D186: =VLOOKUP($F186,УЧАСТНИКИ!$A$1:$K$705,5,FALSE) ->  | E186: =VLOOKUP($F186,УЧАСТНИКИ!$A$1:$K$705,11,FALSE) ->  | J186: =VLOOKUP($F186,УЧАСТНИКИ!#REF!,9,FALSE) -> 
B187: =Name_7 -> МУЖЧИНЫ 2001г.р. и старше
B188: 36 ЗАБЕГ
A189: 1 | J189: =VLOOKUP($F189,УЧАСТНИКИ!#REF!,9,FALSE) -> 
A190: 2 | B190: =VLOOKUP($F190,УЧАСТНИКИ!$A$1:$K$705,3,FALSE) ->  | C190: =VLOOKUP($F190,УЧАСТНИКИ!$A$1:$K$705,4,FALSE) ->  | D190: =VLOOKUP($F190,УЧАСТНИКИ!$A$1:$K$705,5,FALSE) ->  | E190: =VLOOKUP($F190,УЧАСТНИКИ!$A$1:$K$705,11,FALSE) ->  | J190: =VLOOKUP($F190,УЧАСТНИКИ!#REF!,9,FALSE) -> 
A191: 3 | B191: =VLOOKUP($F191,УЧАСТНИКИ!$A$1:$K$705,3,FALSE) ->  | C191: =VLOOKUP($F191,УЧАСТНИКИ!$A$1:$K$705,4,FALSE) ->  | D191: =VLOOKUP($F191,УЧАСТНИКИ!$A$1:$K$705,5,FALSE) ->  | E191: =VLOOKUP($F191,УЧАСТНИКИ!$A$1:$K$705,11,FALSE) ->  | J191: =VLOOKUP($F191,УЧАСТНИКИ!#REF!,9,FALSE) -> 
A192: 4 | J192: =VLOOKUP($F192,УЧАСТНИКИ!#REF!,9,FALSE) -> 
B193: 37 ЗАБЕГ
A194: 1 | B194: =VLOOKUP($F194,УЧАСТНИКИ!$A$1:$K$705,3,FALSE) ->  | C194: =VLOOKUP($F194,УЧАСТНИКИ!$A$1:$K$705,4,FALSE) ->  | D194: =VLOOKUP($F194,УЧАСТНИКИ!$A$1:$K$705,5,FALSE) ->  | E194: =VLOOKUP($F194,УЧАСТНИКИ!$A$1:$K$705,11,FALSE) ->  | J194: =VLOOKUP($F194,УЧАСТНИКИ!#REF!,9,FALSE) -> 
A195: 2 | B195: =VLOOKUP($F195,УЧАСТНИКИ!$A$1:$K$705,3,FALSE) ->  | C195: =VLOOKUP($F195,УЧАСТНИКИ!$A$1:$K$705,4,FALSE) ->  | D195: =VLOOKUP($F195,УЧАСТНИКИ!$A$1:$K$705,5,FALSE) ->  | E195: =VLOOKUP($F195,УЧАСТНИКИ!$A$1:$K$705,11,FALSE) ->  | J195: =VLOOKUP($F195,УЧАСТНИКИ!#REF!,9,FALSE) -> 
A196: 3 | B196: =VLOOKUP($F196,УЧАСТНИКИ!$A$1:$K$705,3,FALSE) ->  | C196: =VLOOKUP($F196,УЧАСТНИКИ!$A$1:$K$705,4,FALSE) ->  | D196: =VLOOKUP($F196,УЧАСТНИКИ!$A$1:$K$705,5,FALSE) ->  | E196: =VLOOKUP($F196,УЧАСТНИКИ!$A$1:$K$705,11,FALSE) ->  | J196: =VLOOKUP($F196,УЧАСТНИКИ!#REF!,9,FALSE) -> 
A197: 4 | B197: =VLOOKUP($F197,УЧАСТНИКИ!$A$1:$K$705,3,FALSE) ->  | C197: =VLOOKUP($F197,УЧАСТНИКИ!$A$1:$K$705,4,FALSE) ->  | D197: =VLOOKUP($F197,УЧАСТНИКИ!$A$1:$K$705,5,FALSE) ->  | E197: =VLOOKUP($F197,УЧАСТНИКИ!$A$1:$K$705,11,FALSE) ->  | J197: =VLOOKUP($F197,УЧАСТНИКИ!#REF!,9,FALSE) -> 
B198: 38 ЗАБЕГ
A199: 1 | B199: =VLOOKUP($F199,УЧАСТНИКИ!$A$1:$K$705,3,FALSE) ->  | C199: =VLOOKUP($F199,УЧАСТНИКИ!$A$1:$K$705,4,FALSE) ->  | D199: =VLOOKUP($F199,УЧАСТНИКИ!$A$1:$K$705,5,FALSE) ->  | E199: =VLOOKUP($F199,УЧАСТНИКИ!$A$1:$K$705,11,FALSE) ->  | J199: =VLOOKUP($F199,УЧАСТНИКИ!#REF!,9,FALSE) -> 
A200: 2 | B200: =VLOOKUP($F200,УЧАСТНИКИ!$A$1:$K$705,3,FALSE) ->  | C200: =VLOOKUP($F200,УЧАСТНИКИ!$A$1:$K$705,4,FALSE) ->  | D200: =VLOOKUP($F200,УЧАСТНИКИ!$A$1:$K$705,5,FALSE) ->  | E200: =VLOOKUP($F200,УЧАСТНИКИ!$A$1:$K$705,11,FALSE) ->  | J200: =VLOOKUP($F200,УЧАСТНИКИ!#REF!,9,FALSE) -> 
A201: 3 | B201: =VLOOKUP($F201,УЧАСТНИКИ!$A$1:$K$705,3,FALSE) ->  | C201: =VLOOKUP($F201,УЧАСТНИКИ!$A$1:$K$705,4,FALSE) ->  | D201: =VLOOKUP($F201,УЧАСТНИКИ!$A$1:$K$705,5,FALSE) ->  | E201: =VLOOKUP($F201,УЧАСТНИКИ!$A$1:$K$705,11,FALSE) ->  | J201: =VLOOKUP($F201,УЧАСТНИКИ!#REF!,9,FALSE) -> 
... 43 more rows

Sheet И 400СБ
A1: =Name_2 -> ЦЕНТР СПОРТИВНОЙ ПОДГОТОВКИ РЕСПУБЛИКИ ТАТАРСТАН
A2: ='1'!A11:M11 -> 
A4: =Name_4 -> ЛИЧНО-КОМАНДНЫЙ ЧЕМПИОНАТ РЕСПУБЛИКИ ТАТАРСТАН ПО ЛЕГКОЙ АТЛЕТИКЕ
A6: ИТОГОВЫЙ ПРОТОКОЛ | AG6: ПРИВЕТ
A7: БАРЬЕРНЫЙ БЕГ 400 М
F8: фин.забеги | H8: =d_2 -> 07 ИЮЛЯ 2017г. | M8: =d_5 -> г. Казань, Футбольно-легкоатлетический манеж
A9: М | B9: Фамилия, имя | C9: № | D9: Дата рождения | E9: Заявл. разряд | F9: Организация | G9: Округ | H9: Город | I9: ФИН. ЗАБЕГИ | J9: Вып. разр. | K9: Зачет | L9: Очки | M9: Ф.И. О. тренера
B10: =Name_8 -> МУЖЧИНЫ 2001г.р. и старше
A11: 1 | B11: =VLOOKUP($N11,УЧАСТНИКИ!$A$1:$K$716,3,FALSE) -> РАЗИН АЛЕКСАНДР | C11: =N11 -> 3882 | D11: =VLOOKUP($N11,УЧАСТНИКИ!$A$1:$K$716,4,FALSE) -> 1999 | E11: =VLOOKUP($N11,УЧАСТНИКИ!$A$1:$K$716,8,FALSE) -> 2 | F11: =VLOOKUP($N11,УЧАСТНИКИ!$A$1:$K$716,5,FALSE) -> ТЕТЮШИ | G11: =VLOOKUP($N11,УЧАСТНИКИ!#REF!,7,FALSE) ->  | H11: =VLOOKUP($N11,УЧАСТНИКИ!$A$1:$K$716,11,FALSE) -> ДЮСШ | I11: 1.02,94 | J11: 3 | K11: =VLOOKUP($N11,УЧАСТНИКИ!$A$1:$K$716,9,FALSE) -> Л | M11: =VLOOKUP($N11,УЧАСТНИКИ!$A$1:$K$716,10,FALSE) -> ГАБДРАХМАНОВ РР | N11: 3882
A12: 2 | B12: =VLOOKUP($N12,УЧАСТНИКИ!$A$1:$K$716,3,FALSE) -> ШАГИДОВ РАДИФ | C12: =N12 -> 61 | D12: =VLOOKUP($N12,УЧАСТНИКИ!$A$1:$K$716,4,FALSE) -> 1995 | E12: =VLOOKUP($N12,УЧАСТНИКИ!$A$1:$K$716,8,FALSE) -> 2 | F12: =VLOOKUP($N12,УЧАСТНИКИ!$A$1:$K$716,5,FALSE) -> КАЗАНЬ | G12: =VLOOKUP($N12,УЧАСТНИКИ!#REF!,7,FALSE) ->  | H12: =VLOOKUP($N12,УЧАСТНИКИ!$A$1:$K$716,11,FALSE) -> КГАВМ | I12: 1.04,35 | J12: 3 | K12: =VLOOKUP($N12,УЧАСТНИКИ!$A$1:$K$716,9,FALSE) -> Л | M12: =VLOOKUP($N12,УЧАСТНИКИ!$A$1:$K$716,10,FALSE) -> АБДУЛЛИН ГХ | N12: 61
A13: 3 | B13: =VLOOKUP($N13,УЧАСТНИКИ!$A$1:$K$716,3,FALSE) -> ШАРИФУЛЛИН ИЛЬНАЗ | C13: =N13 -> 3731 | D13: =VLOOKUP($N13,УЧАСТНИКИ!$A$1:$K$716,4,FALSE) -> 1994 | E13: =VLOOKUP($N13,УЧАСТНИКИ!$A$1:$K$716,8,FALSE) -> 1 | F13: =VLOOKUP($N13,УЧАСТНИКИ!$A$1:$K$716,5,FALSE) -> КАЗАНЬ | G13: =VLOOKUP($N13,УЧАСТНИКИ!#REF!,7,FALSE) ->  | H13: =VLOOKUP($N13,УЧАСТНИКИ!$A$1:$K$716,11,FALSE) -> СДЮСШОР ЛА | I13: 1.10,43 | J13: БР | K13: =VLOOKUP($N13,УЧАСТНИКИ!$A$1:$K$716,9,FALSE) -> Л | M13: =VLOOKUP($N13,УЧАСТНИКИ!$A$1:$K$716,10,FALSE) -> ФАЙЗУЛЛИНА ГП | N13: 3731
A14: ВК | B14: =VLOOKUP($N14,УЧАСТНИКИ!$A$1:$K$716,3,FALSE) -> ГАЙНУТДИНОВ ДАМИР | C14: =N14 -> 3736 | D14: =VLOOKUP($N14,УЧАСТНИКИ!$A$1:$K$716,4,FALSE) -> 2001 | E14: =VLOOKUP($N14,УЧАСТНИКИ!$A$1:$K$716,8,FALSE) -> 2 | F14: =VLOOKUP($N14,УЧАСТНИКИ!$A$1:$K$716,5,FALSE) -> КАЗАНЬ | G14: =VLOOKUP($N14,УЧАСТНИКИ!#REF!,7,FALSE) ->  | H14: =VLOOKUP($N14,УЧАСТНИКИ!$A$1:$K$716,11,FALSE) -> СДЮСШОР ЛА | I14: 58.52 | J14: 1 | K14: ВК | M14: =VLOOKUP($N14,УЧАСТНИКИ!$A$1:$K$716,10,FALSE) -> ФАЙЗУЛЛИНА ГП | N14: 3736
A15: ВК | B15: =VLOOKUP($N15,УЧАСТНИКИ!$A$1:$K$716,3,FALSE) -> ФРОЛОВ НИКИТА | C15: =N15 -> 3568 | D15: =VLOOKUP($N15,УЧАСТНИКИ!$A$1:$K$716,4,FALSE) -> 2000ВК | E15: =VLOOKUP($N15,УЧАСТНИКИ!$A$1:$K$716,8,FALSE) -> 2 | F15: =VLOOKUP($N15,УЧАСТНИКИ!$A$1:$K$716,5,FALSE) -> КАНАШ | G15: =VLOOKUP($N15,УЧАСТНИКИ!#REF!,7,FALSE) ->  | H15: =VLOOKUP($N15,УЧАСТНИКИ!$A$1:$K$716,11,FALSE) -> ДЮСШ | I15: 1.00,03 | J15: 2 | K15: =VLOOKUP($N15,УЧАСТНИКИ!$A$1:$K$716,9,FALSE) -> ВК | M15: =VLOOKUP($N15,УЧАСТНИКИ!$A$1:$K$716,10,FALSE) -> МИРОНОВ КД | N15: 3568
A16: ВК | B16: =VLOOKUP($N16,УЧАСТНИКИ!$A$1:$K$716,3,FALSE) -> УСТИМОВ ВЛАДИМИР | C16: =N16 -> 3883 | D16: =VLOOKUP($N16,УЧАСТНИКИ!$A$1:$K$716,4,FALSE) -> 2002 | E16: =VLOOKUP($N16,УЧАСТНИКИ!$A$1:$K$716,8,FALSE) -> 3 | F16: =VLOOKUP($N16,УЧАСТНИКИ!$A$1:$K$716,5,FALSE) -> ТЕТЮШИ | G16: =VLOOKUP($N16,УЧАСТНИКИ!#REF!,7,FALSE) ->  | H16: =VLOOKUP($N16,УЧАСТНИКИ!$A$1:$K$716,11,FALSE) -> ДЮСШ | I16: 1.05,72 | J16: 3 | K16: ВК | M16: =VLOOKUP($N16,УЧАСТНИКИ!$A$1:$K$716,10,FALSE) -> ГАБДРАХМАНОВ РР | N16: 3883
A17: ВК | B17: =VLOOKUP($N17,УЧАСТНИКИ!$A$1:$K$716,3,FALSE) -> САФИУЛЛИН БУЛАТ | C17: =N17 -> 3739 | D17: =VLOOKUP($N17,УЧАСТНИКИ!$A$1:$K$716,4,FALSE) -> 2000 | E17: =VLOOKUP($N17,УЧАСТНИКИ!$A$1:$K$716,8,FALSE) -> 3 | F17: =VLOOKUP($N17,УЧАСТНИКИ!$A$1:$K$716,5,FALSE) -> КАЗАНЬ | G17: =VLOOKUP($N17,УЧАСТНИКИ!#REF!,7,FALSE) ->  | H17: =VLOOKUP($N17,УЧАСТНИКИ!$A$1:$K$716,11,FALSE) -> СДЮСШОР ЛА | I17: 1.09,35 | J17: 3 | K17: ВК | M17: =VLOOKUP($N17,УЧАСТНИКИ!$A$1:$K$716,10,FALSE) -> ФАЙЗУЛЛИНА ГП | N17: 3739
A18: 10 | B18: =VLOOKUP($N18,УЧАСТНИКИ!$A$1:$K$716,3,FALSE) ->  | C18: =N18 -> 0 | D18: =VLOOKUP($N18,УЧАСТНИКИ!$A$1:$K$716,4,FALSE) ->  | E18: =VLOOKUP($N18,УЧАСТНИКИ!$A$1:$K$716,8,FALSE) ->  | F18: =VLOOKUP($N18,УЧАСТНИКИ!$A$1:$K$716,5,FALSE) ->  | G18: =VLOOKUP($N18,УЧАСТНИКИ!#REF!,7,FALSE) ->  | H18: =VLOOKUP($N18,УЧАСТНИКИ!$A$1:$K$716,11,FALSE) ->  | K18: =VLOOKUP($N18,УЧАСТНИКИ!$A$1:$K$716,9,FALSE) ->  | M18: =VLOOKUP($N18,УЧАСТНИКИ!$A$1:$K$716,10,FALSE) -> 
A19: 11 | B19: =VLOOKUP($N19,УЧАСТНИКИ!$A$1:$K$716,3,FALSE) ->  | C19: 0 | D19: =VLOOKUP($N19,УЧАСТНИКИ!$A$1:$K$716,4,FALSE) ->  | E19: =VLOOKUP($N19,УЧАСТНИКИ!$A$1:$K$716,8,FALSE) ->  | F19: =VLOOKUP($N19,УЧАСТНИКИ!$A$1:$K$716,5,FALSE) ->  | G19: =VLOOKUP($N19,УЧАСТНИКИ!#REF!,7,FALSE) ->  | H19: =VLOOKUP($N19,УЧАСТНИКИ!$A$1:$K$716,11,FALSE) ->  | K19: =VLOOKUP($N19,УЧАСТНИКИ!$A$1:$K$716,9,FALSE) ->  | M19: =VLOOKUP($N19,УЧАСТНИКИ!$A$1:$K$716,10,FALSE) -> 
B20: =VLOOKUP($N20,УЧАСТНИКИ!$A$1:$K$716,3,FALSE) ->  | C20: 0 | D20: =VLOOKUP($N20,УЧАСТНИКИ!$A$1:$K$716,4,FALSE) ->  | E20: =VLOOKUP($N20,УЧАСТНИКИ!$A$1:$K$716,8,FALSE) ->  | F20: =VLOOKUP($N20,УЧАСТНИКИ!$A$1:$K$716,5,FALSE) ->  | G20: =VLOOKUP($N20,УЧАСТНИКИ!#REF!,7,FALSE) ->  | H20: =VLOOKUP($N20,УЧАСТНИКИ!$A$1:$K$716,11,FALSE) ->  | K20: =VLOOKUP($N20,УЧАСТНИКИ!$A$1:$K$716,9,FALSE) ->  | M20: =VLOOKUP($N20,УЧАСТНИКИ!$A$1:$K$716,10,FALSE) -> 
B21: =Name_9 -> МУЖЧИНЫ 2001г.р. и старше
A22: 1 | B22: =VLOOKUP($N22,УЧАСТНИКИ!$A$1:$K$716,3,FALSE) ->  | C22: =N22 -> 0 | D22: =VLOOKUP($N22,УЧАСТНИКИ!$A$1:$K$716,4,FALSE) ->  | E22: =VLOOKUP($N22,УЧАСТНИКИ!$A$1:$K$716,8,FALSE) ->  | F22: =VLOOKUP($N22,УЧАСТНИКИ!$A$1:$K$716,5,FALSE) ->  | G22: =VLOOKUP($N22,УЧАСТНИКИ!#REF!,7,FALSE) ->  | H22: =VLOOKUP($N22,УЧАСТНИКИ!$A$1:$K$716,11,FALSE) ->  | M22: =VLOOKUP($N22,УЧАСТНИКИ!$A$1:$K$716,10,FALSE) -> 
A23: 2 | B23: =VLOOKUP($N23,УЧАСТНИКИ!$A$1:$K$716,3,FALSE) ->  | C23: 0 | D23: =VLOOKUP($N23,УЧАСТНИКИ!$A$1:$K$716,4,FALSE) ->  | E23: =VLOOKUP($N23,УЧАСТНИКИ!$A$1:$K$716,8,FALSE) ->  | F23: =VLOOKUP($N23,УЧАСТНИКИ!$A$1:$K$716,5,FALSE) ->  | G23: =VLOOKUP($N23,УЧАСТНИКИ!#REF!,7,FALSE) ->  | H23: =VLOOKUP($N23,УЧАСТНИКИ!$A$1:$K$716,11,FALSE) ->  | M23: =VLOOKUP($N23,УЧАСТНИКИ!$A$1:$K$716,10,FALSE) -> 
A24: 3 | B24: =VLOOKUP($N24,УЧАСТНИКИ!$A$1:$K$716,3,FALSE) ->  | C24: 0 | D24: =VLOOKUP($N24,УЧАСТНИКИ!$A$1:$K$716,4,FALSE) ->  | E24: =VLOOKUP($N24,УЧАСТНИКИ!$A$1:$K$716,8,FALSE) ->  | F24: =VLOOKUP($N24,УЧАСТНИКИ!$A$1:$K$716,5,FALSE) ->  | G24: =VLOOKUP($N24,УЧАСТНИКИ!#REF!,7,FALSE) ->  | H24: =VLOOKUP($N24,УЧАСТНИКИ!$A$1:$K$716,11,FALSE) ->  | M24: =VLOOKUP($N24,УЧАСТНИКИ!$A$1:$K$716,10,FALSE) -> 
A25: 4 | B25: =VLOOKUP($N25,УЧАСТНИКИ!$A$1:$K$716,3,FALSE) ->  | C25: 0 | D25: =VLOOKUP($N25,УЧАСТНИКИ!$A$1:$K$716,4,FALSE) ->  | E25: =VLOOKUP($N25,УЧАСТНИКИ!$A$1:$K$716,8,FALSE) ->  | F25: =VLOOKUP($N25,УЧАСТНИКИ!$A$1:$K$716,5,FALSE) ->  | G25: =VLOOKUP($N25,УЧАСТНИКИ!#REF!,7,FALSE) ->  | H25: =VLOOKUP($N25,УЧАСТНИКИ!$A$1:$K$716,11,FALSE) ->  | M25: =VLOOKUP($N25,УЧАСТНИКИ!$A$1:$K$716,10,FALSE) -> 
A26: 5 | B26: =VLOOKUP($N26,УЧАСТНИКИ!$A$1:$K$716,3,FALSE) ->  | C26: 0 | D26: =VLOOKUP($N26,УЧАСТНИКИ!$A$1:$K$716,4,FALSE) ->  | E26: =VLOOKUP($N26,УЧАСТНИКИ!$A$1:$K$716,8,FALSE) ->  | F26: =VLOOKUP($N26,УЧАСТНИКИ!$A$1:$K$716,5,FALSE) ->  | G26: =VLOOKUP($N26,УЧАСТНИКИ!#REF!,7,FALSE) ->  | H26: =VLOOKUP($N26,УЧАСТНИКИ!$A$1:$K$716,11,FALSE) ->  | M26: =VLOOKUP($N26,УЧАСТНИКИ!$A$1:$K$716,10,FALSE) -> 
A27: 6 | B27: =VLOOKUP($N27,УЧАСТНИКИ!$A$1:$K$716,3,FALSE) ->  | C27: 0 | D27: =VLOOKUP($N27,УЧАСТНИКИ!$A$1:$K$716,4,FALSE) ->  | E27: =VLOOKUP($N27,УЧАСТНИКИ!$A$1:$K$716,8,FALSE) ->  | F27: =VLOOKUP($N27,УЧАСТНИКИ!$A$1:$K$716,5,FALSE) ->  | G27: =VLOOKUP($N27,УЧАСТНИКИ!#REF!,7,FALSE) ->  | H27: =VLOOKUP($N27,УЧАСТНИКИ!$A$1:$K$716,11,FALSE) ->  | M27: =VLOOKUP($N27,УЧАСТНИКИ!$A$1:$K$716,10,FALSE) -> 
A28: 7 | B28: =VLOOKUP($N28,УЧАСТНИКИ!$A$1:$K$716,3,FALSE) ->  | C28: 0 | D28: =VLOOKUP($N28,УЧАСТНИКИ!$A$1:$K$716,4,FALSE) ->  | E28: =VLOOKUP($N28,УЧАСТНИКИ!$A$1:$K$716,8,FALSE) ->  | F28: =VLOOKUP($N28,УЧАСТНИКИ!$A$1:$K$716,5,FALSE) ->  | G28: =VLOOKUP($N28,УЧАСТНИКИ!#REF!,7,FALSE) ->  | H28: =VLOOKUP($N28,УЧАСТНИКИ!$A$1:$K$716,11,FALSE) ->  | M28: =VLOOKUP($N28,УЧАСТНИКИ!$A$1:$K$716,10,FALSE) -> 
A29: 8 | B29: =VLOOKUP($N29,УЧАСТНИКИ!$A$1:$K$716,3,FALSE) ->  | C29: 0 | D29: =VLOOKUP($N29,УЧАСТНИКИ!$A$1:$K$716,4,FALSE) ->  | E29: =VLOOKUP($N29,УЧАСТНИКИ!$A$1:$K$716,8,FALSE) ->  | F29: =VLOOKUP($N29,УЧАСТНИКИ!$A$1:$K$716,5,FALSE) ->  | G29: =VLOOKUP($N29,УЧАСТНИКИ!#REF!,7,FALSE) ->  | H29: =VLOOKUP($N29,УЧАСТНИКИ!$A$1:$K$716,11,FALSE) ->  | M29: =VLOOKUP($N29,УЧАСТНИКИ!$A$1:$K$716,10,FALSE) -> 
A30: 9 | B30: =VLOOKUP($N30,УЧАСТНИКИ!$A$1:$K$716,3,FALSE) ->  | C30: 0 | D30: =VLOOKUP($N30,УЧАСТНИКИ!$A$1:$K$716,4,FALSE) ->  | E30: =VLOOKUP($N30,УЧАСТНИКИ!$A$1:$K$716,8,FALSE) ->  | F30: =VLOOKUP($N30,УЧАСТНИКИ!$A$1:$K$716,5,FALSE) ->  | G30: =VLOOKUP($N30,УЧАСТНИКИ!#REF!,7,FALSE) ->  | H30: =VLOOKUP($N30,УЧАСТНИКИ!$A$1:$K$716,11,FALSE) ->  | M30: =VLOOKUP($N30,УЧАСТНИКИ!$A$1:$K$716,10,FALSE) -> 
A31: 10 | B31: =VLOOKUP($N31,УЧАСТНИКИ!$A$1:$K$716,3,FALSE) ->  | C31: 0 | D31: =VLOOKUP($N31,УЧАСТНИКИ!$A$1:$K$716,4,FALSE) ->  | E31: =VLOOKUP($N31,УЧАСТНИКИ!$A$1:$K$716,8,FALSE) ->  | F31: =VLOOKUP($N31,УЧАСТНИКИ!$A$1:$K$716,5,FALSE) ->  | G31: =VLOOKUP($N31,УЧАСТНИКИ!#REF!,7,FALSE) ->  | H31: =VLOOKUP($N31,УЧАСТНИКИ!$A$1:$K$716,11,FALSE) ->  | M31: =VLOOKUP($N31,УЧАСТНИКИ!$A$1:$K$716,10,FALSE) -> 
A32: 11 | B32: =VLOOKUP($N32,УЧАСТНИКИ!$A$1:$K$716,3,FALSE) ->  | C32: 0 | D32: =VLOOKUP($N32,УЧАСТНИКИ!$A$1:$K$716,4,FALSE) ->  | E32: =VLOOKUP($N32,УЧАСТНИКИ!$A$1:$K$716,8,FALSE) ->  | F32: =VLOOKUP($N32,УЧАСТНИКИ!$A$1:$K$716,5,FALSE) ->  | G32: =VLOOKUP($N32,УЧАСТНИКИ!#REF!,7,FALSE) ->  | H32: =VLOOKUP($N32,УЧАСТНИКИ!$A$1:$K$716,11,FALSE) ->  | M32: =VLOOKUP($N32,УЧАСТНИКИ!$A$1:$K$716,10,FALSE) -> 
A33: 12 | B33: =VLOOKUP($N33,УЧАСТНИКИ!$A$1:$K$716,3,FALSE) ->  | C33: 0 | D33: =VLOOKUP($N33,УЧАСТНИКИ!$A$1:$K$716,4,FALSE) ->  | E33: =VLOOKUP($N33,УЧАСТНИКИ!$A$1:$K$716,8,FALSE) ->  | F33: =VLOOKUP($N33,УЧАСТНИКИ!$A$1:$K$716,5,FALSE) ->  | G33: =VLOOKUP($N33,УЧАСТНИКИ!#REF!,7,FALSE) ->  | H33: =VLOOKUP($N33,УЧАСТНИКИ!$A$1:$K$716,11,FALSE) ->  | M33: =VLOOKUP($N33,УЧАСТНИКИ!$A$1:$K$716,10,FALSE) -> 
A34: 13 | B34: =VLOOKUP($N34,УЧАСТНИКИ!$A$1:$K$716,3,FALSE) ->  | C34: 0 | D34: =VLOOKUP($N34,УЧАСТНИКИ!$A$1:$K$716,4,FALSE) ->  | E34: =VLOOKUP($N34,УЧАСТНИКИ!$A$1:$K$716,8,FALSE) ->  | F34: =VLOOKUP($N34,УЧАСТНИКИ!$A$1:$K$716,5,FALSE) ->  | G34: =VLOOKUP($N34,УЧАСТНИКИ!#REF!,7,FALSE) ->  | H34: =VLOOKUP($N34,УЧАСТНИКИ!$A$1:$K$716,11,FALSE) ->  | M34: =VLOOKUP($N34,УЧАСТНИКИ!$A$1:$K$716,10,FALSE) -> 
A35: 14 | B35: =VLOOKUP($N35,УЧАСТНИКИ!$A$1:$K$716,3,FALSE) ->  | C35: 0 | D35: =VLOOKUP($N35,УЧАСТНИКИ!$A$1:$K$716,4,FALSE) ->  | E35: =VLOOKUP($N35,УЧАСТНИКИ!$A$1:$K$716,8,FALSE) ->  | F35: =VLOOKUP($N35,УЧАСТНИКИ!$A$1:$K$716,5,FALSE) ->  | G35: =VLOOKUP($N35,УЧАСТНИКИ!#REF!,7,FALSE) ->  | H35: =VLOOKUP($N35,УЧАСТНИКИ!$A$1:$K$716,11,FALSE) ->  | M35: =VLOOKUP($N35,УЧАСТНИКИ!$A$1:$K$716,10,FALSE) -> 
A36: 15 | B36: =VLOOKUP($N36,УЧАСТНИКИ!$A$1:$K$716,3,FALSE) ->  | C36: 0 | D36: =VLOOKUP($N36,УЧАСТНИКИ!$A$1:$K$716,4,FALSE) ->  | E36: =VLOOKUP($N36,УЧАСТНИКИ!$A$1:$K$716,8,FALSE) ->  | F36: =VLOOKUP($N36,УЧАСТНИКИ!$A$1:$K$716,5,FALSE) ->  | G36: =VLOOKUP($N36,УЧАСТНИКИ!#REF!,7,FALSE) ->  | H36: =VLOOKUP($N36,УЧАСТНИКИ!$A$1:$K$716,11,FALSE) ->  | M36: =VLOOKUP($N36,УЧАСТНИКИ!$A$1:$K$716,10,FALSE) -> 
A37: 16 | B37: =VLOOKUP($N37,УЧАСТНИКИ!$A$1:$K$716,3,FALSE) ->  | C37: 0 | D37: =VLOOKUP($N37,УЧАСТНИКИ!$A$1:$K$716,4,FALSE) ->  | E37: =VLOOKUP($N37,УЧАСТНИКИ!$A$1:$K$716,8,FALSE) ->  | F37: =VLOOKUP($N37,УЧАСТНИКИ!$A$1:$K$716,5,FALSE) ->  | G37: =VLOOKUP($N37,УЧАСТНИКИ!#REF!,7,FALSE) ->  | H37: =VLOOKUP($N37,УЧАСТНИКИ!$A$1:$K$716,11,FALSE) ->  | M37: =VLOOKUP($N37,УЧАСТНИКИ!$A$1:$K$716,10,FALSE) -> 
A38: 55 | B38: =VLOOKUP($N38,УЧАСТНИКИ!$A$1:$K$716,3,FALSE) ->  | C38: 0 | D38: =VLOOKUP($N38,УЧАСТНИКИ!$A$1:$K$716,4,FALSE) ->  | E38: =VLOOKUP($N38,УЧАСТНИКИ!$A$1:$K$716,8,FALSE) ->  | F38: =VLOOKUP($N38,УЧАСТНИКИ!$A$1:$K$716,5,FALSE) ->  | G38: =VLOOKUP($N38,УЧАСТНИКИ!#REF!,7,FALSE) ->  | H38: =VLOOKUP($N38,УЧАСТНИКИ!$A$1:$K$716,11,FALSE) ->  | M38: =VLOOKUP($N38,УЧАСТНИКИ!$A$1:$K$716,10,FALSE) -> 
A39: 56 | B39: =VLOOKUP($N39,УЧАСТНИКИ!$A$1:$K$716,3,FALSE) ->  | C39: 0 | D39: =VLOOKUP($N39,УЧАСТНИКИ!$A$1:$K$716,4,FALSE) ->  | E39: =VLOOKUP($N39,УЧАСТНИКИ!$A$1:$K$716,8,FALSE) ->  | F39: =VLOOKUP($N39,УЧАСТНИКИ!$A$1:$K$716,5,FALSE) ->  | G39: =VLOOKUP($N39,УЧАСТНИКИ!#REF!,7,FALSE) ->  | H39: =VLOOKUP($N39,УЧАСТНИКИ!$A$1:$K$716,11,FALSE) ->  | M39: =VLOOKUP($N39,УЧАСТНИКИ!$A$1:$K$716,10,FALSE) -> 
A40: 57 | B40: =VLOOKUP($N40,УЧАСТНИКИ!$A$1:$K$716,3,FALSE) ->  | C40: 0 | D40: =VLOOKUP($N40,УЧАСТНИКИ!$A$1:$K$716,4,FALSE) ->  | E40: =VLOOKUP($N40,УЧАСТНИКИ!$A$1:$K$716,8,FALSE) ->  | F40: =VLOOKUP($N40,УЧАСТНИКИ!$A$1:$K$716,5,FALSE) ->  | G40: =VLOOKUP($N40,УЧАСТНИКИ!#REF!,7,FALSE) ->  | H40: =VLOOKUP($N40,УЧАСТНИКИ!$A$1:$K$716,11,FALSE) ->  | M40: =VLOOKUP($N40,УЧАСТНИКИ!$A$1:$K$716,10,FALSE) -> 
A41: 58 | B41: =VLOOKUP($N41,УЧАСТНИКИ!$A$1:$K$716,3,FALSE) ->  | C41: 0 | D41: =VLOOKUP($N41,УЧАСТНИКИ!$A$1:$K$716,4,FALSE) ->  | E41: =VLOOKUP($N41,УЧАСТНИКИ!$A$1:$K$716,8,FALSE) ->  | F41: =VLOOKUP($N41,УЧАСТНИКИ!$A$1:$K$716,5,FALSE) ->  | G41: =VLOOKUP($N41,УЧАСТНИКИ!#REF!,7,FALSE) ->  | H41: =VLOOKUP($N41,УЧАСТНИКИ!$A$1:$K$716,11,FALSE) ->  | M41: =VLOOKUP($N41,УЧАСТНИКИ!$A$1:$K$716,10,FALSE) -> 
A42: 59 | B42: =VLOOKUP($N42,УЧАСТНИКИ!$A$1:$K$716,3,FALSE) ->  | C42: 0 | D42: =VLOOKUP($N42,УЧАСТНИКИ!$A$1:$K$716,4,FALSE) ->  | E42: =VLOOKUP($N42,УЧАСТНИКИ!$A$1:$K$716,8,FALSE) ->  | F42: =VLOOKUP($N42,УЧАСТНИКИ!$A$1:$K$716,5,FALSE) ->  | G42: =VLOOKUP($N42,УЧАСТНИКИ!#REF!,7,FALSE) ->  | H42: =VLOOKUP($N42,УЧАСТНИКИ!$A$1:$K$716,11,FALSE) ->  | M42: =VLOOKUP($N42,УЧАСТНИКИ!$A$1:$K$716,10,FALSE) -> 
A43: 60 | B43: =VLOOKUP($N43,УЧАСТНИКИ!$A$1:$K$716,3,FALSE) ->  | C43: 0 | D43: =VLOOKUP($N43,УЧАСТНИКИ!$A$1:$K$716,4,FALSE) ->  | E43: =VLOOKUP($N43,УЧАСТНИКИ!$A$1:$K$716,8,FALSE) ->  | F43: =VLOOKUP($N43,УЧАСТНИКИ!$A$1:$K$716,5,FALSE) ->  | G43: =VLOOKUP($N43,УЧАСТНИКИ!#REF!,7,FALSE) ->  | H43: =VLOOKUP($N43,УЧАСТНИКИ!$A$1:$K$716,11,FALSE) ->  | M43: =VLOOKUP($N43,УЧАСТНИКИ!$A$1:$K$716,10,FALSE) -> 
A44: 61 | B44: =VLOOKUP($N44,УЧАСТНИКИ!$A$1:$K$716,3,FALSE) ->  | C44: 0 | D44: =VLOOKUP($N44,УЧАСТНИКИ!$A$1:$K$716,4,FALSE) ->  | E44: =VLOOKUP($N44,УЧАСТНИКИ!$A$1:$K$716,8,FALSE) ->  | F44: =VLOOKUP($N44,УЧАСТНИКИ!$A$1:$K$716,5,FALSE) ->  | G44: =VLOOKUP($N44,УЧАСТНИКИ!#REF!,7,FALSE) ->  | H44: =VLOOKUP($N44,УЧАСТНИКИ!$A$1:$K$716,11,FALSE) ->  | M44: =VLOOKUP($N44,УЧАСТНИКИ!$A$1:$K$716,10,FALSE) -> 
A45: 62 | B45: =VLOOKUP($N45,УЧАСТНИКИ!$A$1:$K$716,3,FALSE) ->  | C45: 0 | D45: =VLOOKUP($N45,УЧАСТНИКИ!$A$1:$K$716,4,FALSE) ->  | E45: =VLOOKUP($N45,УЧАСТНИКИ!$A$1:$K$716,8,FALSE) ->  | F45: =VLOOKUP($N45,УЧАСТНИКИ!$A$1:$K$716,5,FALSE) ->  | G45: =VLOOKUP($N45,УЧАСТНИКИ!#REF!,7,FALSE) ->  | H45: =VLOOKUP($N45,УЧАСТНИКИ!$A$1:$K$716,11,FALSE) ->  | M45: =VLOOKUP($N45,УЧАСТНИКИ!$A$1:$K$716,10,FALSE) -> 
A46: 63 | B46: =VLOOKUP($N46,УЧАСТНИКИ!$A$1:$K$716,3,FALSE) ->  | C46: 0 | D46: =VLOOKUP($N46,УЧАСТНИКИ!$A$1:$K$716,4,FALSE) ->  | E46: =VLOOKUP($N46,УЧАСТНИКИ!$A$1:$K$716,8,FALSE) ->  | F46: =VLOOKUP($N46,УЧАСТНИКИ!$A$1:$K$716,5,FALSE) ->  | G46: =VLOOKUP($N46,УЧАСТНИКИ!#REF!,7,FALSE) ->  | H46: =VLOOKUP($N46,УЧАСТНИКИ!$A$1:$K$716,11,FALSE) ->  | M46: =VLOOKUP($N46,УЧАСТНИКИ!$A$1:$K$716,10,FALSE) -> 
A47: 64 | B47: =VLOOKUP($N47,УЧАСТНИКИ!$A$1:$K$716,3,FALSE) ->  | C47: 0 | D47: =VLOOKUP($N47,УЧАСТНИКИ!$A$1:$K$716,4,FALSE) ->  | E47: =VLOOKUP($N47,УЧАСТНИКИ!$A$1:$K$716,8,FALSE) ->  | F47: =VLOOKUP($N47,УЧАСТНИКИ!$A$1:$K$716,5,FALSE) ->  | G47: =VLOOKUP($N47,УЧАСТНИКИ!#REF!,7,FALSE) ->  | H47: =VLOOKUP($N47,УЧАСТНИКИ!$A$1:$K$716,11,FALSE) ->  | M47: =VLOOKUP($N47,УЧАСТНИКИ!$A$1:$K$716,10,FALSE) -> 
A48: 65 | B48: =VLOOKUP($N48,УЧАСТНИКИ!$A$1:$K$716,3,FALSE) ->  | C48: 0 | D48: =VLOOKUP($N48,УЧАСТНИКИ!$A$1:$K$716,4,FALSE) ->  | E48: =VLOOKUP($N48,УЧАСТНИКИ!$A$1:$K$716,8,FALSE) ->  | F48: =VLOOKUP($N48,УЧАСТНИКИ!$A$1:$K$716,5,FALSE) ->  | G48: =VLOOKUP($N48,УЧАСТНИКИ!#REF!,7,FALSE) ->  | H48: =VLOOKUP($N48,УЧАСТНИКИ!$A$1:$K$716,11,FALSE) ->  | M48: =VLOOKUP($N48,УЧАСТНИКИ!$A$1:$K$716,10,FALSE) -> 
A49: 66 | B49: =VLOOKUP($N49,УЧАСТНИКИ!$A$1:$K$716,3,FALSE) ->  | C49: =N49 -> 0 | D49: =VLOOKUP($N49,УЧАСТНИКИ!$A$1:$K$716,4,FALSE) ->  | E49: =VLOOKUP($N49,УЧАСТНИКИ!$A$1:$K$716,8,FALSE) ->  | F49: =VLOOKUP($N49,УЧАСТНИКИ!$A$1:$K$716,5,FALSE) ->  | G49: =VLOOKUP($N49,УЧАСТНИКИ!#REF!,7,FALSE) ->  | H49: =VLOOKUP($N49,УЧАСТНИКИ!$A$1:$K$716,11,FALSE) ->  | M49: =VLOOKUP($N49,УЧАСТНИКИ!$A$1:$K$716,10,FALSE) -> 
B50: =Name_8 -> МУЖЧИНЫ 2001г.р. и старше
A51: 1 | B51: =VLOOKUP($N51,УЧАСТНИКИ!$A$1:$K$716,3,FALSE) ->  | C51: 0 | D51: =VLOOKUP($N51,УЧАСТНИКИ!$A$1:$K$716,4,FALSE) ->  | E51: =VLOOKUP($N51,УЧАСТНИКИ!$A$1:$K$716,8,FALSE) ->  | F51: =VLOOKUP($N51,УЧАСТНИКИ!$A$1:$K$716,5,FALSE) ->  | G51: =VLOOKUP($N51,УЧАСТНИКИ!#REF!,7,FALSE) ->  | H51: =VLOOKUP($N51,УЧАСТНИКИ!$A$1:$K$716,11,FALSE) ->  | M51: =VLOOKUP($N51,УЧАСТНИКИ!$A$1:$K$716,10,FALSE) -> 
A52: 2 | B52: =VLOOKUP($N52,УЧАСТНИКИ!$A$1:$K$716,3,FALSE) ->  | C52: 0 | D52: =VLOOKUP($N52,УЧАСТНИКИ!$A$1:$K$716,4,FALSE) ->  | E52: =VLOOKUP($N52,УЧАСТНИКИ!$A$1:$K$716,8,FALSE) ->  | F52: =VLOOKUP($N52,УЧАСТНИКИ!$A$1:$K$716,5,FALSE) ->  | G52: =VLOOKUP($N52,УЧАСТНИКИ!#REF!,7,FALSE) ->  | H52: =VLOOKUP($N52,УЧАСТНИКИ!$A$1:$K$716,11,FALSE) ->  | M52: =VLOOKUP($N52,УЧАСТНИКИ!$A$1:$K$716,10,FALSE) -> 
A53: 3 | B53: =VLOOKUP($N53,УЧАСТНИКИ!$A$1:$K$716,3,FALSE) ->  | C53: 0 | D53: =VLOOKUP($N53,УЧАСТНИКИ!$A$1:$K$716,4,FALSE) ->  | E53: =VLOOKUP($N53,УЧАСТНИКИ!$A$1:$K$716,8,FALSE) ->  | F53: =VLOOKUP($N53,УЧАСТНИКИ!$A$1:$K$716,5,FALSE) ->  | G53: =VLOOKUP($N53,УЧАСТНИКИ!#REF!,7,FALSE) ->  | H53: =VLOOKUP($N53,УЧАСТНИКИ!$A$1:$K$716,11,FALSE) ->  | M53: =VLOOKUP($N53,УЧАСТНИКИ!$A$1:$K$716,10,FALSE) -> 
A54: 4 | B54: =VLOOKUP($N54,УЧАСТНИКИ!$A$1:$K$716,3,FALSE) ->  | C54: 0 | D54: =VLOOKUP($N54,УЧАСТНИКИ!$A$1:$K$716,4,FALSE) ->  | E54: =VLOOKUP($N54,УЧАСТНИКИ!$A$1:$K$716,8,FALSE) ->  | F54: =VLOOKUP($N54,УЧАСТНИКИ!$A$1:$K$716,5,FALSE) ->  | G54: =VLOOKUP($N54,УЧАСТНИКИ!#REF!,7,FALSE) ->  | H54: =VLOOKUP($N54,УЧАСТНИКИ!$A$1:$K$716,11,FALSE) ->  | M54: =VLOOKUP($N54,УЧАСТНИКИ!$A$1:$K$716,10,FALSE) -> 
A55: 5 | B55: =VLOOKUP($N55,УЧАСТНИКИ!$A$1:$K$716,3,FALSE) ->  | C55: 0 | D55: =VLOOKUP($N55,УЧАСТНИКИ!$A$1:$K$716,4,FALSE) ->  | E55: =VLOOKUP($N55,УЧАСТНИКИ!$A$1:$K$716,8,FALSE) ->  | F55: =VLOOKUP($N55,УЧАСТНИКИ!$A$1:$K$716,5,FALSE) ->  | G55: =VLOOKUP($N55,УЧАСТНИКИ!#REF!,7,FALSE) ->  | H55: =VLOOKUP($N55,УЧАСТНИКИ!$A$1:$K$716,11,FALSE) ->  | M55: =VLOOKUP($N55,УЧАСТНИКИ!$A$1:$K$716,10,FALSE) -> 
A56: 6 | B56: =VLOOKUP($N56,УЧАСТНИКИ!$A$1:$K$716,3,FALSE) ->  | C56: 0 | D56: =VLOOKUP($N56,УЧАСТНИКИ!$A$1:$K$716,4,FALSE) ->  | E56: =VLOOKUP($N56,УЧАСТНИКИ!$A$1:$K$716,8,FALSE) ->  | F56: =VLOOKUP($N56,УЧАСТНИКИ!$A$1:$K$716,5,FALSE) ->  | G56: =VLOOKUP($N56,УЧАСТНИКИ!#REF!,7,FALSE) ->  | H56: =VLOOKUP($N56,УЧАСТНИКИ!$A$1:$K$716,11,FALSE) ->  | M56: =VLOOKUP($N56,УЧАСТНИКИ!$A$1:$K$716,10,FALSE) -> 
A57: 7 | B57: =VLOOKUP($N57,УЧАСТНИКИ!$A$1:$K$716,3,FALSE) ->  | C57: 0 | D57: =VLOOKUP($N57,УЧАСТНИКИ!$A$1:$K$716,4,FALSE) ->  | E57: =VLOOKUP($N57,УЧАСТНИКИ!$A$1:$K$716,8,FALSE) ->  | F57: =VLOOKUP($N57,УЧАСТНИКИ!$A$1:$K$716,5,FALSE) ->  | G57: =VLOOKUP($N57,УЧАСТНИКИ!#REF!,7,FALSE) ->  | H57: =VLOOKUP($N57,УЧАСТНИКИ!$A$1:$K$716,11,FALSE) ->  | M57: =VLOOKUP($N57,УЧАСТНИКИ!$A$1:$K$716,10,FALSE) -> 
A58: 8 | B58: =VLOOKUP($N58,УЧАСТНИКИ!$A$1:$K$716,3,FALSE) ->  | C58: 0 | D58: =VLOOKUP($N58,УЧАСТНИКИ!$A$1:$K$716,4,FALSE) ->  | E58: =VLOOKUP($N58,УЧАСТНИКИ!$A$1:$K$716,8,FALSE) ->  | F58: =VLOOKUP($N58,УЧАСТНИКИ!$A$1:$K$716,5,FALSE) ->  | G58: =VLOOKUP($N58,УЧАСТНИКИ!#REF!,7,FALSE) ->  | H58: =VLOOKUP($N58,УЧАСТНИКИ!$A$1:$K$716,11,FALSE) ->  | M58: =VLOOKUP($N58,УЧАСТНИКИ!$A$1:$K$716,10,FALSE) -> 
A59: 9 | B59: =VLOOKUP($N59,УЧАСТНИКИ!$A$1:$K$716,3,FALSE) ->  | C59: 0 | D59: =VLOOKUP($N59,УЧАСТНИКИ!$A$1:$K$716,4,FALSE) ->  | E59: =VLOOKUP($N59,УЧАСТНИКИ!$A$1:$K$716,8,FALSE) ->  | F59: =VLOOKUP($N59,УЧАСТНИКИ!$A$1:$K$716,5,FALSE) ->  | G59: =VLOOKUP($N59,УЧАСТНИКИ!#REF!,7,FALSE) ->  | H59: =VLOOKUP($N59,УЧАСТНИКИ!$A$1:$K$716,11,FALSE) ->  | M59: =VLOOKUP($N59,УЧАСТНИКИ!$A$1:$K$716,10,FALSE) -> 
A60: 10 | B60: =VLOOKUP($N60,УЧАСТНИКИ!$A$1:$K$716,3,FALSE) ->  | C60: 0 | D60: =VLOOKUP($N60,УЧАСТНИКИ!$A$1:$K$716,4,FALSE) ->  | E60: =VLOOKUP($N60,УЧАСТНИКИ!$A$1:$K$716,8,FALSE) ->  | F60: =VLOOKUP($N60,УЧАСТНИКИ!$A$1:$K$716,5,FALSE) ->  | G60: =VLOOKUP($N60,УЧАСТНИКИ!#REF!,7,FALSE) ->  | H60: =VLOOKUP($N60,УЧАСТНИКИ!$A$1:$K$716,11,FALSE) ->  | M60: =VLOOKUP($N60,УЧАСТНИКИ!$A$1:$K$716,10,FALSE) -> 
A61: 11 | B61: =VLOOKUP($N61,УЧАСТНИКИ!$A$1:$K$716,3,FALSE) ->  | C61: 0 | D61: =VLOOKUP($N61,УЧАСТНИКИ!$A$1:$K$716,4,FALSE) ->  | E61: =VLOOKUP($N61,УЧАСТНИКИ!$A$1:$K$716,8,FALSE) ->  | F61: =VLOOKUP($N61,УЧАСТНИКИ!$A$1:$K$716,5,FALSE) ->  | G61: =VLOOKUP($N61,УЧАСТНИКИ!#REF!,7,FALSE) ->  | H61: =VLOOKUP($N61,УЧАСТНИКИ!$A$1:$K$716,11,FALSE) ->  | M61: =VLOOKUP($N61,УЧАСТНИКИ!$A$1:$K$716,10,FALSE) -> 
A62: 12 | B62: =VLOOKUP($N62,УЧАСТНИКИ!$A$1:$K$716,3,FALSE) ->  | C62: 0 | D62: =VLOOKUP($N62,УЧАСТНИКИ!$A$1:$K$716,4,FALSE) ->  | E62: =VLOOKUP($N62,УЧАСТНИКИ!$A$1:$K$716,8,FALSE) ->  | F62: =VLOOKUP($N62,УЧАСТНИКИ!$A$1:$K$716,5,FALSE) ->  | G62: =VLOOKUP($N62,УЧАСТНИКИ!#REF!,7,FALSE) ->  | H62: =VLOOKUP($N62,УЧАСТНИКИ!$A$1:$K$716,11,FALSE) ->  | M62: =VLOOKUP($N62,УЧАСТНИКИ!$A$1:$K$716,10,FALSE) -> 
A63: 13 | B63: =VLOOKUP($N63,УЧАСТНИКИ!$A$1:$K$716,3,FALSE) ->  | C63: 0 | D63: =VLOOKUP($N63,УЧАСТНИКИ!$A$1:$K$716,4,FALSE) ->  | E63: =VLOOKUP($N63,УЧАСТНИКИ!$A$1:$K$716,8,FALSE) ->  | F63: =VLOOKUP($N63,УЧАСТНИКИ!$A$1:$K$716,5,FALSE) ->  | G63: =VLOOKUP($N63,УЧАСТНИКИ!#REF!,7,FALSE) ->  | H63: =VLOOKUP($N63,УЧАСТНИКИ!$A$1:$K$716,11,FALSE) ->  | M63: =VLOOKUP($N63,УЧАСТНИКИ!$A$1:$K$716,10,FALSE) -> 
A64: 14 | B64: =VLOOKUP($N64,УЧАСТНИКИ!$A$1:$K$716,3,FALSE) ->  | C64: 0 | D64: =VLOOKUP($N64,УЧАСТНИКИ!$A$1:$K$716,4,FALSE) ->  | E64: =VLOOKUP($N64,УЧАСТНИКИ!$A$1:$K$716,8,FALSE) ->  | F64: =VLOOKUP($N64,УЧАСТНИКИ!$A$1:$K$716,5,FALSE) ->  | G64: =VLOOKUP($N64,УЧАСТНИКИ!#REF!,7,FALSE) ->  | H64: =VLOOKUP($N64,УЧАСТНИКИ!$A$1:$K$716,11,FALSE) ->  | M64: =VLOOKUP($N64,УЧАСТНИКИ!$A$1:$K$716,10,FALSE) -> 
A65: 15 | B65: =VLOOKUP($N65,УЧАСТНИКИ!$A$1:$K$716,3,FALSE) ->  | C65: 0 | D65: =VLOOKUP($N65,УЧАСТНИКИ!$A$1:$K$716,4,FALSE) ->  | E65: =VLOOKUP($N65,УЧАСТНИКИ!$A$1:$K$716,8,FALSE) ->  | F65: =VLOOKUP($N65,УЧАСТНИКИ!$A$1:$K$716,5,FALSE) ->  | G65: =VLOOKUP($N65,УЧАСТНИКИ!#REF!,7,FALSE) ->  | H65: =VLOOKUP($N65,УЧАСТНИКИ!$A$1:$K$716,11,FALSE) ->  | M65: =VLOOKUP($N65,УЧАСТНИКИ!$A$1:$K$716,10,FALSE) -> 
A66: 16 | B66: =VLOOKUP($N66,УЧАСТНИКИ!$A$1:$K$716,3,FALSE) ->  | C66: 0 | D66: =VLOOKUP($N66,УЧАСТНИКИ!$A$1:$K$716,4,FALSE) ->  | E66: =VLOOKUP($N66,УЧАСТНИКИ!$A$1:$K$716,8,FALSE) ->  | F66: =VLOOKUP($N66,УЧАСТНИКИ!$A$1:$K$716,5,FALSE) ->  | G66: =VLOOKUP($N66,УЧАСТНИКИ!#REF!,7,FALSE) ->  | H66: =VLOOKUP($N66,УЧАСТНИКИ!$A$1:$K$716,11,FALSE) ->  | M66: =VLOOKUP($N66,УЧАСТНИКИ!$A$1:$K$716,10,FALSE) -> 
A67: 17 | B67: =VLOOKUP($N67,УЧАСТНИКИ!$A$1:$K$716,3,FALSE) ->  | C67: 0 | D67: =VLOOKUP($N67,УЧАСТНИКИ!$A$1:$K$716,4,FALSE) ->  | E67: =VLOOKUP($N67,УЧАСТНИКИ!$A$1:$K$716,8,FALSE) ->  | F67: =VLOOKUP($N67,УЧАСТНИКИ!$A$1:$K$716,5,FALSE) ->  | G67: =VLOOKUP($N67,УЧАСТНИКИ!#REF!,7,FALSE) ->  | H67: =VLOOKUP($N67,УЧАСТНИКИ!$A$1:$K$716,11,FALSE) ->  | M67: =VLOOKUP($N67,УЧАСТНИКИ!$A$1:$K$716,10,FALSE) -> 
A68: 18 | B68: =VLOOKUP($N68,УЧАСТНИКИ!$A$1:$K$716,3,FALSE) ->  | C68: =N68 -> 0 | D68: =VLOOKUP($N68,УЧАСТНИКИ!$A$1:$K$716,4,FALSE) ->  | E68: =VLOOKUP($N68,УЧАСТНИКИ!$A$1:$K$716,8,FALSE) ->  | F68: =VLOOKUP($N68,УЧАСТНИКИ!$A$1:$K$716,5,FALSE) ->  | G68: =VLOOKUP($N68,УЧАСТНИКИ!#REF!,7,FALSE) ->  | H68: =VLOOKUP($N68,УЧАСТНИКИ!$A$1:$K$716,11,FALSE) ->  | M68: =VLOOKUP($N68,УЧАСТНИКИ!$A$1:$K$716,10,FALSE) -> 
A69: 19 | B69: =VLOOKUP($N69,УЧАСТНИКИ!$A$1:$K$716,3,FALSE) ->  | C69: 0 | D69: =VLOOKUP($N69,УЧАСТНИКИ!$A$1:$K$716,4,FALSE) ->  | E69: =VLOOKUP($N69,УЧАСТНИКИ!$A$1:$K$716,8,FALSE) ->  | F69: =VLOOKUP($N69,УЧАСТНИКИ!$A$1:$K$716,5,FALSE) ->  | G69: =VLOOKUP($N69,УЧАСТНИКИ!#REF!,7,FALSE) ->  | H69: =VLOOKUP($N69,УЧАСТНИКИ!$A$1:$K$716,11,FALSE) ->  | M69: =VLOOKUP($N69,УЧАСТНИКИ!$A$1:$K$716,10,FALSE) -> 
A70: 20 | B70: =VLOOKUP($N70,УЧАСТНИКИ!$A$1:$K$716,3,FALSE) ->  | C70: 0 | D70: =VLOOKUP($N70,УЧАСТНИКИ!$A$1:$K$716,4,FALSE) ->  | E70: =VLOOKUP($N70,УЧАСТНИКИ!$A$1:$K$716,8,FALSE) ->  | F70: =VLOOKUP($N70,УЧАСТНИКИ!$A$1:$K$716,5,FALSE) ->  | G70: =VLOOKUP($N70,УЧАСТНИКИ!#REF!,7,FALSE) ->  | H70: =VLOOKUP($N70,УЧАСТНИКИ!$A$1:$K$716,11,FALSE) ->  | M70: =VLOOKUP($N70,УЧАСТНИКИ!$A$1:$K$716,10,FALSE) -> 
A71: 21 | B71: =VLOOKUP($N71,УЧАСТНИКИ!$A$1:$K$716,3,FALSE) ->  | C71: 0 | D71: =VLOOKUP($N71,УЧАСТНИКИ!$A$1:$K$716,4,FALSE) ->  | E71: =VLOOKUP($N71,УЧАСТНИКИ!$A$1:$K$716,8,FALSE) ->  | F71: =VLOOKUP($N71,УЧАСТНИКИ!$A$1:$K$716,5,FALSE) ->  | G71: =VLOOKUP($N71,УЧАСТНИКИ!#REF!,7,FALSE) ->  | H71: =VLOOKUP($N71,УЧАСТНИКИ!$A$1:$K$716,11,FALSE) ->  | M71: =VLOOKUP($N71,УЧАСТНИКИ!$A$1:$K$716,10,FALSE) -> 
A72: 22 | B72: =VLOOKUP($N72,УЧАСТНИКИ!$A$1:$K$716,3,FALSE) ->  | C72: 0 | D72: =VLOOKUP($N72,УЧАСТНИКИ!$A$1:$K$716,4,FALSE) ->  | E72: =VLOOKUP($N72,УЧАСТНИКИ!$A$1:$K$716,8,FALSE) ->  | F72: =VLOOKUP($N72,УЧАСТНИКИ!$A$1:$K$716,5,FALSE) ->  | G72: =VLOOKUP($N72,УЧАСТНИКИ!#REF!,7,FALSE) ->  | H72: =VLOOKUP($N72,УЧАСТНИКИ!$A$1:$K$716,11,FALSE) ->  | M72: =VLOOKUP($N72,УЧАСТНИКИ!$A$1:$K$716,10,FALSE) -> 
A73: 23 | B73: =VLOOKUP($N73,УЧАСТНИКИ!$A$1:$K$716,3,FALSE) ->  | C73: 0 | D73: =VLOOKUP($N73,УЧАСТНИКИ!$A$1:$K$716,4,FALSE) ->  | E73: =VLOOKUP($N73,УЧАСТНИКИ!$A$1:$K$716,8,FALSE) ->  | F73: =VLOOKUP($N73,УЧАСТНИКИ!$A$1:$K$716,5,FALSE) ->  | G73: =VLOOKUP($N73,УЧАСТНИКИ!#REF!,7,FALSE) ->  | H73: =VLOOKUP($N73,УЧАСТНИКИ!$A$1:$K$716,11,FALSE) ->  | M73: =VLOOKUP($N73,УЧАСТНИКИ!$A$1:$K$716,10,FALSE) -> 
A74: 24 | B74: =VLOOKUP($N74,УЧАСТНИКИ!$A$1:$K$716,3,FALSE) ->  | C74: 0 | D74: =VLOOKUP($N74,УЧАСТНИКИ!$A$1:$K$716,4,FALSE) ->  | E74: =VLOOKUP($N74,УЧАСТНИКИ!$A$1:$K$716,8,FALSE) ->  | F74: =VLOOKUP($N74,УЧАСТНИКИ!$A$1:$K$716,5,FALSE) ->  | G74: =VLOOKUP($N74,УЧАСТНИКИ!#REF!,7,FALSE) ->  | H74: =VLOOKUP($N74,УЧАСТНИКИ!$A$1:$K$716,11,FALSE) ->  | M74: =VLOOKUP($N74,УЧАСТНИКИ!$A$1:$K$716,10,FALSE) -> 
A75: 25 | B75: =VLOOKUP($N75,УЧАСТНИКИ!$A$1:$K$716,3,FALSE) ->  | C75: 0 | D75: =VLOOKUP($N75,УЧАСТНИКИ!$A$1:$K$716,4,FALSE) ->  | E75: =VLOOKUP($N75,УЧАСТНИКИ!$A$1:$K$716,8,FALSE) ->  | F75: =VLOOKUP($N75,УЧАСТНИКИ!$A$1:$K$716,5,FALSE) ->  | G75: =VLOOKUP($N75,УЧАСТНИКИ!#REF!,7,FALSE) ->  | H75: =VLOOKUP($N75,УЧАСТНИКИ!$A$1:$K$716,11,FALSE) ->  | M75: =VLOOKUP($N75,УЧАСТНИКИ!$A$1:$K$716,10,FALSE) -> 
A76: 26 | B76: =VLOOKUP($N76,УЧАСТНИКИ!$A$1:$K$716,3,FALSE) ->  | C76: 0 | D76: =VLOOKUP($N76,УЧАСТНИКИ!$A$1:$K$716,4,FALSE) ->  | E76: =VLOOKUP($N76,УЧАСТНИКИ!$A$1:$K$716,8,FALSE) ->  | F76: =VLOOKUP($N76,УЧАСТНИКИ!$A$1:$K$716,5,FALSE) ->  | G76: =VLOOKUP($N76,УЧАСТНИКИ!#REF!,7,FALSE) ->  | H76: =VLOOKUP($N76,УЧАСТНИКИ!$A$1:$K$716,11,FALSE) ->  | M76: =VLOOKUP($N76,УЧАСТНИКИ!$A$1:$K$716,10,FALSE) -> 
A77: 27 | B77: =VLOOKUP($N77,УЧАСТНИКИ!$A$1:$K$716,3,FALSE) ->  | C77: 0 | D77: =VLOOKUP($N77,УЧАСТНИКИ!$A$1:$K$716,4,FALSE) ->  | E77: =VLOOKUP($N77,УЧАСТНИКИ!$A$1:$K$716,8,FALSE) ->  | F77: =VLOOKUP($N77,УЧАСТНИКИ!$A$1:$K$716,5,FALSE) ->  | G77: =VLOOKUP($N77,УЧАСТНИКИ!#REF!,7,FALSE) ->  | H77: =VLOOKUP($N77,УЧАСТНИКИ!$A$1:$K$716,11,FALSE) ->  | M77: =VLOOKUP($N77,УЧАСТНИКИ!$A$1:$K$716,10,FALSE) -> 
A78: 28 | B78: =VLOOKUP($N78,УЧАСТНИКИ!$A$1:$K$716,3,FALSE) ->  | C78: 0 | D78: =VLOOKUP($N78,УЧАСТНИКИ!$A$1:$K$716,4,FALSE) ->  | E78: =VLOOKUP($N78,УЧАСТНИКИ!$A$1:$K$716,8,FALSE) ->  | F78: =VLOOKUP($N78,УЧАСТНИКИ!$A$1:$K$716,5,FALSE) ->  | G78: =VLOOKUP($N78,УЧАСТНИКИ!#REF!,7,FALSE) ->  | H78: =VLOOKUP($N78,УЧАСТНИКИ!$A$1:$K$716,11,FALSE) ->  | M78: =VLOOKUP($N78,УЧАСТНИКИ!$A$1:$K$716,10,FALSE) -> 
A79: 29 | B79: =VLOOKUP($N79,УЧАСТНИКИ!$A$1:$K$716,3,FALSE) ->  | C79: 0 | D79: =VLOOKUP($N79,УЧАСТНИКИ!$A$1:$K$716,4,FALSE) ->  | E79: =VLOOKUP($N79,УЧАСТНИКИ!$A$1:$K$716,8,FALSE) ->  | F79: =VLOOKUP($N79,УЧАСТНИКИ!$A$1:$K$716,5,FALSE) ->  | G79: =VLOOKUP($N79,УЧАСТНИКИ!#REF!,7,FALSE) ->  | H79: =VLOOKUP($N79,УЧАСТНИКИ!$A$1:$K$716,11,FALSE) ->  | M79: =VLOOKUP($N79,УЧАСТНИКИ!$A$1:$K$716,10,FALSE) -> 
A80: 30 | B80: =VLOOKUP($N80,УЧАСТНИКИ!$A$1:$K$716,3,FALSE) ->  | C80: 0 | D80: =VLOOKUP($N80,УЧАСТНИКИ!$A$1:$K$716,4,FALSE) ->  | E80: =VLOOKUP($N80,УЧАСТНИКИ!$A$1:$K$716,8,FALSE) ->  | F80: =VLOOKUP($N80,УЧАСТНИКИ!$A$1:$K$716,5,FALSE) ->  | G80: =VLOOKUP($N80,УЧАСТНИКИ!#REF!,7,FALSE) ->  | H80: =VLOOKUP($N80,УЧАСТНИКИ!$A$1:$K$716,11,FALSE) ->  | M80: =VLOOKUP($N80,УЧАСТНИКИ!$A$1:$K$716,10,FALSE) -> 
A81: 31 | B81: =VLOOKUP($N81,УЧАСТНИКИ!$A$1:$K$716,3,FALSE) ->  | C81: 0 | D81: =VLOOKUP($N81,УЧАСТНИКИ!$A$1:$K$716,4,FALSE) ->  | E81: =VLOOKUP($N81,УЧАСТНИКИ!$A$1:$K$716,8,FALSE) ->  | F81: =VLOOKUP($N81,УЧАСТНИКИ!$A$1:$K$716,5,FALSE) ->  | G81: =VLOOKUP($N81,УЧАСТНИКИ!#REF!,7,FALSE) ->  | H81: =VLOOKUP($N81,УЧАСТНИКИ!$A$1:$K$716,11,FALSE) ->  | M81: =VLOOKUP($N81,УЧАСТНИКИ!$A$1:$K$716,10,FALSE) -> 
A82: 32 | B82: =VLOOKUP($N82,УЧАСТНИКИ!$A$1:$K$716,3,FALSE) ->  | C82: 0 | D82: =VLOOKUP($N82,УЧАСТНИКИ!$A$1:$K$716,4,FALSE) ->  | E82: =VLOOKUP($N82,УЧАСТНИКИ!$A$1:$K$716,8,FALSE) ->  | F82: =VLOOKUP($N82,УЧАСТНИКИ!$A$1:$K$716,5,FALSE) ->  | G82: =VLOOKUP($N82,УЧАСТНИКИ!#REF!,7,FALSE) ->  | H82: =VLOOKUP($N82,УЧАСТНИКИ!$A$1:$K$716,11,FALSE) ->  | M82: =VLOOKUP($N82,УЧАСТНИКИ!$A$1:$K$716,10,FALSE) -> 
A83: 33 | B83: =VLOOKUP($N83,УЧАСТНИКИ!$A$1:$K$716,3,FALSE) ->  | C83: 0 | D83: =VLOOKUP($N83,УЧАСТНИКИ!$A$1:$K$716,4,FALSE) ->  | E83: =VLOOKUP($N83,УЧАСТНИКИ!$A$1:$K$716,8,FALSE) ->  | F83: =VLOOKUP($N83,УЧАСТНИКИ!$A$1:$K$716,5,FALSE) ->  | G83: =VLOOKUP($N83,УЧАСТНИКИ!#REF!,7,FALSE) ->  | H83: =VLOOKUP($N83,УЧАСТНИКИ!$A$1:$K$716,11,FALSE) ->  | M83: =VLOOKUP($N83,УЧАСТНИКИ!$A$1:$K$716,10,FALSE) -> 
A84: 34 | B84: =VLOOKUP($N84,УЧАСТНИКИ!$A$1:$K$716,3,FALSE) ->  | C84: 0 | D84: =VLOOKUP($N84,УЧАСТНИКИ!$A$1:$K$716,4,FALSE) ->  | E84: =VLOOKUP($N84,УЧАСТНИКИ!$A$1:$K$716,8,FALSE) ->  | F84: =VLOOKUP($N84,УЧАСТНИКИ!$A$1:$K$716,5,FALSE) ->  | G84: =VLOOKUP($N84,УЧАСТНИКИ!#REF!,7,FALSE) ->  | H84: =VLOOKUP($N84,УЧАСТНИКИ!$A$1:$K$716,11,FALSE) ->  | M84: =VLOOKUP($N84,УЧАСТНИКИ!$A$1:$K$716,10,FALSE) -> 
A85: 35 | B85: =VLOOKUP($N85,УЧАСТНИКИ!$A$1:$K$716,3,FALSE) ->  | C85: 0 | D85: =VLOOKUP($N85,УЧАСТНИКИ!$A$1:$K$716,4,FALSE) ->  | E85: =VLOOKUP($N85,УЧАСТНИКИ!$A$1:$K$716,8,FALSE) ->  | F85: =VLOOKUP($N85,УЧАСТНИКИ!$A$1:$K$716,5,FALSE) ->  | G85: =VLOOKUP($N85,УЧАСТНИКИ!#REF!,7,FALSE) ->  | H85: =VLOOKUP($N85,УЧАСТНИКИ!$A$1:$K$716,11,FALSE) ->  | M85: =VLOOKUP($N85,УЧАСТНИКИ!$A$1:$K$716,10,FALSE) -> 
A86: 36 | B86: =VLOOKUP($N86,УЧАСТНИКИ!$A$1:$K$716,3,FALSE) ->  | C86: 0 | D86: =VLOOKUP($N86,УЧАСТНИКИ!$A$1:$K$716,4,FALSE) ->  | E86: =VLOOKUP($N86,УЧАСТНИКИ!$A$1:$K$716,8,FALSE) ->  | F86: =VLOOKUP($N86,УЧАСТНИКИ!$A$1:$K$716,5,FALSE) ->  | G86: =VLOOKUP($N86,УЧАСТНИКИ!#REF!,7,FALSE) ->  | H86: =VLOOKUP($N86,УЧАСТНИКИ!$A$1:$K$716,11,FALSE) ->  | M86: =VLOOKUP($N86,УЧАСТНИКИ!$A$1:$K$716,10,FALSE) -> 
A87: 37 | B87: =VLOOKUP($N87,УЧАСТНИКИ!$A$1:$K$716,3,FALSE) ->  | C87: 0 | D87: =VLOOKUP($N87,УЧАСТНИКИ!$A$1:$K$716,4,FALSE) ->  | E87: =VLOOKUP($N87,УЧАСТНИКИ!$A$1:$K$716,8,FALSE) ->  | F87: =VLOOKUP($N87,УЧАСТНИКИ!$A$1:$K$716,5,FALSE) ->  | G87: =VLOOKUP($N87,УЧАСТНИКИ!#REF!,7,FALSE) ->  | H87: =VLOOKUP($N87,УЧАСТНИКИ!$A$1:$K$716,11,FALSE) ->  | M87: =VLOOKUP($N87,УЧАСТНИКИ!$A$1:$K$716,10,FALSE) -> 
A88: 38 | B88: =VLOOKUP($N88,УЧАСТНИКИ!$A$1:$K$716,3,FALSE) ->  | C88: 0 | D88: =VLOOKUP($N88,УЧАСТНИКИ!$A$1:$K$716,4,FALSE) ->  | E88: =VLOOKUP($N88,УЧАСТНИКИ!$A$1:$K$716,8,FALSE) ->  | F88: =VLOOKUP($N88,УЧАСТНИКИ!$A$1:$K$716,5,FALSE) ->  | G88: =VLOOKUP($N88,УЧАСТНИКИ!#REF!,7,FALSE) ->  | H88: =VLOOKUP($N88,УЧАСТНИКИ!$A$1:$K$716,11,FALSE) ->  | M88: =VLOOKUP($N88,УЧАСТНИКИ!$A$1:$K$716,10,FALSE) -> 
A89: 39 | B89: =VLOOKUP($N89,УЧАСТНИКИ!$A$1:$K$716,3,FALSE) ->  | C89: 0 | D89: =VLOOKUP($N89,УЧАСТНИКИ!$A$1:$K$716,4,FALSE) ->  | E89: =VLOOKUP($N89,УЧАСТНИКИ!$A$1:$K$716,8,FALSE) ->  | F89: =VLOOKUP($N89,УЧАСТНИКИ!$A$1:$K$716,5,FALSE) ->  | G89: =VLOOKUP($N89,УЧАСТНИКИ!#REF!,7,FALSE) ->  | H89: =VLOOKUP($N89,УЧАСТНИКИ!$A$1:$K$716,11,FALSE) ->  | M89: =VLOOKUP($N89,УЧАСТНИКИ!$A$1:$K$716,10,FALSE) -> 
A90: 40 | B90: =VLOOKUP($N90,УЧАСТНИКИ!$A$1:$K$716,3,FALSE) ->  | C90: 0 | D90: =VLOOKUP($N90,УЧАСТНИКИ!$A$1:$K$716,4,FALSE) ->  | E90: =VLOOKUP($N90,УЧАСТНИКИ!$A$1:$K$716,8,FALSE) ->  | F90: =VLOOKUP($N90,УЧАСТНИКИ!$A$1:$K$716,5,FALSE) ->  | G90: =VLOOKUP($N90,УЧАСТНИКИ!#REF!,7,FALSE) ->  | H90: =VLOOKUP($N90,УЧАСТНИКИ!$A$1:$K$716,11,FALSE) ->  | M90: =VLOOKUP($N90,УЧАСТНИКИ!$A$1:$K$716,10,FALSE) -> 
A91: 41 | B91: =VLOOKUP($N91,УЧАСТНИКИ!$A$1:$K$716,3,FALSE) ->  | C91: 0 | D91: =VLOOKUP($N91,УЧАСТНИКИ!$A$1:$K$716,4,FALSE) ->  | E91: =VLOOKUP($N91,УЧАСТНИКИ!$A$1:$K$716,8,FALSE) ->  | F91: =VLOOKUP($N91,УЧАСТНИКИ!$A$1:$K$716,5,FALSE) ->  | G91: =VLOOKUP($N91,УЧАСТНИКИ!#REF!,7,FALSE) ->  | H91: =VLOOKUP($N91,УЧАСТНИКИ!$A$1:$K$716,11,FALSE) ->  | M91: =VLOOKUP($N91,УЧАСТНИКИ!$A$1:$K$716,10,FALSE) -> 
A92: 42 | B92: =VLOOKUP($N92,УЧАСТНИКИ!$A$1:$K$716,3,FALSE) ->  | C92: 0 | D92: =VLOOKUP($N92,УЧАСТНИКИ!$A$1:$K$716,4,FALSE) ->  | E92: =VLOOKUP($N92,УЧАСТНИКИ!$A$1:$K$716,8,FALSE) ->  | F92: =VLOOKUP($N92,УЧАСТНИКИ!$A$1:$K$716,5,FALSE) ->  | G92: =VLOOKUP($N92,УЧАСТНИКИ!#REF!,7,FALSE) ->  | H92: =VLOOKUP($N92,УЧАСТНИКИ!$A$1:$K$716,11,FALSE) ->  | M92: =VLOOKUP($N92,УЧАСТНИКИ!$A$1:$K$716,10,FALSE) -> 
A93: 43 | B93: =VLOOKUP($N93,УЧАСТНИКИ!$A$1:$K$716,3,FALSE) ->  | C93: 0 | D93: =VLOOKUP($N93,УЧАСТНИКИ!$A$1:$K$716,4,FALSE) ->  | E93: =VLOOKUP($N93,УЧАСТНИКИ!$A$1:$K$716,8,FALSE) ->  | F93: =VLOOKUP($N93,УЧАСТНИКИ!$A$1:$K$716,5,FALSE) ->  | G93: =VLOOKUP($N93,УЧАСТНИКИ!#REF!,7,FALSE) ->  | H93: =VLOOKUP($N93,УЧАСТНИКИ!$A$1:$K$716,11,FALSE) ->  | M93: =VLOOKUP($N93,УЧАСТНИКИ!$A$1:$K$716,10,FALSE) -> 
A94: 44 | B94: =VLOOKUP($N94,УЧАСТНИКИ!$A$1:$K$716,3,FALSE) ->  | C94: 0 | D94: =VLOOKUP($N94,УЧАСТНИКИ!$A$1:$K$716,4,FALSE) ->  | E94: =VLOOKUP($N94,УЧАСТНИКИ!$A$1:$K$716,8,FALSE) ->  | F94: =VLOOKUP($N94,УЧАСТНИКИ!$A$1:$K$716,5,FALSE) ->  | G94: =VLOOKUP($N94,УЧАСТНИКИ!#REF!,7,FALSE) ->  | H94: =VLOOKUP($N94,УЧАСТНИКИ!$A$1:$K$716,11,FALSE) ->  | M94: =VLOOKUP($N94,УЧАСТНИКИ!$A$1:$K$716,10,FALSE) -> 
A95: 45 | B95: =VLOOKUP($N95,УЧАСТНИКИ!$A$1:$K$716,3,FALSE) ->  | C95: 0 | D95: =VLOOKUP($N95,УЧАСТНИКИ!$A$1:$K$716,4,FALSE) ->  | E95: =VLOOKUP($N95,УЧАСТНИКИ!$A$1:$K$716,8,FALSE) ->  | F95: =VLOOKUP($N95,УЧАСТНИКИ!$A$1:$K$716,5,FALSE) ->  | G95: =VLOOKUP($N95,УЧАСТНИКИ!#REF!,7,FALSE) ->  | H95: =VLOOKUP($N95,УЧАСТНИКИ!$A$1:$K$716,11,FALSE) ->  | M95: =VLOOKUP($N95,УЧАСТНИКИ!$A$1:$K$716,10,FALSE) -> 
A96: 46 | B96: =VLOOKUP($N96,УЧАСТНИКИ!$A$1:$K$716,3,FALSE) ->  | C96: 0 | D96: =VLOOKUP($N96,УЧАСТНИКИ!$A$1:$K$716,4,FALSE) ->  | E96: =VLOOKUP($N96,УЧАСТНИКИ!$A$1:$K$716,8,FALSE) ->  | F96: =VLOOKUP($N96,УЧАСТНИКИ!$A$1:$K$716,5,FALSE) ->  | G96: =VLOOKUP($N96,УЧАСТНИКИ!#REF!,7,FALSE) ->  | H96: =VLOOKUP($N96,УЧАСТНИКИ!$A$1:$K$716,11,FALSE) ->  | M96: =VLOOKUP($N96,УЧАСТНИКИ!$A$1:$K$716,10,FALSE) -> 
A97: 47 | B97: =VLOOKUP($N97,УЧАСТНИКИ!$A$1:$K$716,3,FALSE) ->  | C97: 0 | D97: =VLOOKUP($N97,УЧАСТНИКИ!$A$1:$K$716,4,FALSE) ->  | E97: =VLOOKUP($N97,УЧАСТНИКИ!$A$1:$K$716,8,FALSE) ->  | F97: =VLOOKUP($N97,УЧАСТНИКИ!$A$1:$K$716,5,FALSE) ->  | G97: =VLOOKUP($N97,УЧАСТНИКИ!#REF!,7,FALSE) ->  | H97: =VLOOKUP($N97,УЧАСТНИКИ!$A$1:$K$716,11,FALSE) ->  | M97: =VLOOKUP($N97,УЧАСТНИКИ!$A$1:$K$716,10,FALSE) -> 
A98: 48 | B98: =VLOOKUP($N98,УЧАСТНИКИ!$A$1:$K$716,3,FALSE) ->  | C98: 0 | D98: =VLOOKUP($N98,УЧАСТНИКИ!$A$1:$K$716,4,FALSE) ->  | E98: =VLOOKUP($N98,УЧАСТНИКИ!$A$1:$K$716,8,FALSE) ->  | F98: =VLOOKUP($N98,УЧАСТНИКИ!$A$1:$K$716,5,FALSE) ->  | G98: =VLOOKUP($N98,УЧАСТНИКИ!#REF!,7,FALSE) ->  | H98: =VLOOKUP($N98,УЧАСТНИКИ!$A$1:$K$716,11,FALSE) ->  | M98: =VLOOKUP($N98,УЧАСТНИКИ!$A$1:$K$716,10,FALSE) -> 
A99: 49 | B99: =VLOOKUP($N99,УЧАСТНИКИ!$A$1:$K$716,3,FALSE) ->  | C99: 0 | D99: =VLOOKUP($N99,УЧАСТНИКИ!$A$1:$K$716,4,FALSE) ->  | E99: =VLOOKUP($N99,УЧАСТНИКИ!$A$1:$K$716,8,FALSE) ->  | F99: =VLOOKUP($N99,УЧАСТНИКИ!$A$1:$K$716,5,FALSE) ->  | G99: =VLOOKUP($N99,УЧАСТНИКИ!#REF!,7,FALSE) ->  | H99: =VLOOKUP($N99,УЧАСТНИКИ!$A$1:$K$716,11,FALSE) ->  | M99: =VLOOKUP($N99,УЧАСТНИКИ!$A$1:$K$716,10,FALSE) -> 
A100: 50 | B100: =VLOOKUP($N100,УЧАСТНИКИ!$A$1:$K$716,3,FALSE) ->  | C100: 0 | D100: =VLOOKUP($N100,УЧАСТНИКИ!$A$1:$K$716,4,FALSE) ->  | E100: =VLOOKUP($N100,УЧАСТНИКИ!$A$1:$K$716,8,FALSE) ->  | F100: =VLOOKUP($N100,УЧАСТНИКИ!$A$1:$K$716,5,FALSE) ->  | G100: =VLOOKUP($N100,УЧАСТНИКИ!#REF!,7,FALSE) ->  | H100: =VLOOKUP($N100,УЧАСТНИКИ!$A$1:$K$716,11,FALSE) ->  | M100: =VLOOKUP($N100,УЧАСТНИКИ!$A$1:$K$716,10,FALSE) -> 
A101: 51 | B101: =VLOOKUP($N101,УЧАСТНИКИ!$A$1:$K$716,3,FALSE) ->  | C101: 0 | D101: =VLOOKUP($N101,УЧАСТНИКИ!$A$1:$K$716,4,FALSE) ->  | E101: =VLOOKUP($N101,УЧАСТНИКИ!$A$1:$K$716,8,FALSE) ->  | F101: =VLOOKUP($N101,УЧАСТНИКИ!$A$1:$K$716,5,FALSE) ->  | G101: =VLOOKUP($N101,УЧАСТНИКИ!#REF!,7,FALSE) ->  | H101: =VLOOKUP($N101,УЧАСТНИКИ!$A$1:$K$716,11,FALSE) ->  | M101: =VLOOKUP($N101,УЧАСТНИКИ!$A$1:$K$716,10,FALSE) -> 
A102: 52 | B102: =VLOOKUP($N102,УЧАСТНИКИ!$A$1:$K$716,3,FALSE) ->  | C102: 0 | D102: =VLOOKUP($N102,УЧАСТНИКИ!$A$1:$K$716,4,FALSE) ->  | E102: =VLOOKUP($N102,УЧАСТНИКИ!$A$1:$K$716,8,FALSE) ->  | F102: =VLOOKUP($N102,УЧАСТНИКИ!$A$1:$K$716,5,FALSE) ->  | G102: =VLOOKUP($N102,УЧАСТНИКИ!#REF!,7,FALSE) ->  | H102: =VLOOKUP($N102,УЧАСТНИКИ!$A$1:$K$716,11,FALSE) ->  | M102: =VLOOKUP($N102,УЧАСТНИКИ!$A$1:$K$716,10,FALSE) -> 
A103: 53 | B103: =VLOOKUP($N103,УЧАСТНИКИ!$A$1:$K$716,3,FALSE) ->  | C103: 0 | D103: =VLOOKUP($N103,УЧАСТНИКИ!$A$1:$K$716,4,FALSE) ->  | E103: =VLOOKUP($N103,УЧАСТНИКИ!$A$1:$K$716,8,FALSE) ->  | F103: =VLOOKUP($N103,УЧАСТНИКИ!$A$1:$K$716,5,FALSE) ->  | G103: =VLOOKUP($N103,УЧАСТНИКИ!#REF!,7,FALSE) ->  | H103: =VLOOKUP($N103,УЧАСТНИКИ!$A$1:$K$716,11,FALSE) ->  | M103: =VLOOKUP($N103,УЧАСТНИКИ!$A$1:$K$716,10,FALSE) -> 
A104: 54 | B104: =VLOOKUP($N104,УЧАСТНИКИ!$A$1:$K$716,3,FALSE) ->  | C104: 0 | D104: =VLOOKUP($N104,УЧАСТНИКИ!$A$1:$K$716,4,FALSE) ->  | E104: =VLOOKUP($N104,УЧАСТНИКИ!$A$1:$K$716,8,FALSE) ->  | F104: =VLOOKUP($N104,УЧАСТНИКИ!$A$1:$K$716,5,FALSE) ->  | G104: =VLOOKUP($N104,УЧАСТНИКИ!#REF!,7,FALSE) ->  | H104: =VLOOKUP($N104,УЧАСТНИКИ!$A$1:$K$716,11,FALSE) ->  | M104: =VLOOKUP($N104,УЧАСТНИКИ!$A$1:$K$716,10,FALSE) -> 
A105: 55 | B105: =VLOOKUP($N105,УЧАСТНИКИ!$A$1:$K$716,3,FALSE) ->  | C105: 0 | D105: =VLOOKUP($N105,УЧАСТНИКИ!$A$1:$K$716,4,FALSE) ->  | E105: =VLOOKUP($N105,УЧАСТНИКИ!$A$1:$K$716,8,FALSE) ->  | F105: =VLOOKUP($N105,УЧАСТНИКИ!$A$1:$K$716,5,FALSE) ->  | G105: =VLOOKUP($N105,УЧАСТНИКИ!#REF!,7,FALSE) ->  | H105: =VLOOKUP($N105,УЧАСТНИКИ!$A$1:$K$716,11,FALSE) ->  | M105: =VLOOKUP($N105,УЧАСТНИКИ!$A$1:$K$716,10,FALSE) -> 
A106: 56 | B106: =VLOOKUP($N106,УЧАСТНИКИ!$A$1:$K$716,3,FALSE) ->  | C106: 0 | D106: =VLOOKUP($N106,УЧАСТНИКИ!$A$1:$K$716,4,FALSE) ->  | E106: =VLOOKUP($N106,УЧАСТНИКИ!$A$1:$K$716,8,FALSE) ->  | F106: =VLOOKUP($N106,УЧАСТНИКИ!$A$1:$K$716,5,FALSE) ->  | G106: =VLOOKUP($N106,УЧАСТНИКИ!#REF!,7,FALSE) ->  | H106: =VLOOKUP($N106,УЧАСТНИКИ!$A$1:$K$716,11,FALSE) ->  | M106: =VLOOKUP($N106,УЧАСТНИКИ!$A$1:$K$716,10,FALSE) -> 
A107: 57 | B107: =VLOOKUP($N107,УЧАСТНИКИ!$A$1:$K$716,3,FALSE) ->  | C107: 0 | D107: =VLOOKUP($N107,УЧАСТНИКИ!$A$1:$K$716,4,FALSE) ->  | E107: =VLOOKUP($N107,УЧАСТНИКИ!$A$1:$K$716,8,FALSE) ->  | F107: =VLOOKUP($N107,УЧАСТНИКИ!$A$1:$K$716,5,FALSE) ->  | G107: =VLOOKUP($N107,УЧАСТНИКИ!#REF!,7,FALSE) ->  | H107: =VLOOKUP($N107,УЧАСТНИКИ!$A$1:$K$716,11,FALSE) ->  | M107: =VLOOKUP($N107,УЧАСТНИКИ!$A$1:$K$716,10,FALSE) -> 
A108: 58 | B108: =VLOOKUP($N108,УЧАСТНИКИ!$A$1:$K$716,3,FALSE) ->  | C108: 0 | D108: =VLOOKUP($N108,УЧАСТНИКИ!$A$1:$K$716,4,FALSE) ->  | E108: =VLOOKUP($N108,УЧАСТНИКИ!$A$1:$K$716,8,FALSE) ->  | F108: =VLOOKUP($N108,УЧАСТНИКИ!$A$1:$K$716,5,FALSE) ->  | G108: =VLOOKUP($N108,УЧАСТНИКИ!#REF!,7,FALSE) ->  | H108: =VLOOKUP($N108,УЧАСТНИКИ!$A$1:$K$716,11,FALSE) ->  | M108: =VLOOKUP($N108,УЧАСТНИКИ!$A$1:$K$716,10,FALSE) -> 
A109: 59 | B109: =VLOOKUP($N109,УЧАСТНИКИ!$A$1:$K$716,3,FALSE) ->  | C109: 0 | D109: =VLOOKUP($N109,УЧАСТНИКИ!$A$1:$K$716,4,FALSE) ->  | E109: =VLOOKUP($N109,УЧАСТНИКИ!$A$1:$K$716,8,FALSE) ->  | F109: =VLOOKUP($N109,УЧАСТНИКИ!$A$1:$K$716,5,FALSE) ->  | G109: =VLOOKUP($N109,УЧАСТНИКИ!#REF!,7,FALSE) ->  | H109: =VLOOKUP($N109,УЧАСТНИКИ!$A$1:$K$716,11,FALSE) ->  | M109: =VLOOKUP($N109,УЧАСТНИКИ!$A$1:$K$716,10,FALSE) -> 
A110: 60 | B110: =VLOOKUP($N110,УЧАСТНИКИ!$A$1:$K$716,3,FALSE) ->  | C110: 0 | D110: =VLOOKUP($N110,УЧАСТНИКИ!$A$1:$K$716,4,FALSE) ->  | E110: =VLOOKUP($N110,УЧАСТНИКИ!$A$1:$K$716,8,FALSE) ->  | F110: =VLOOKUP($N110,УЧАСТНИКИ!$A$1:$K$716,5,FALSE) ->  | G110: =VLOOKUP($N110,УЧАСТНИКИ!#REF!,7,FALSE) ->  | H110: =VLOOKUP($N110,УЧАСТНИКИ!$A$1:$K$716,11,FALSE) ->  | M110: =VLOOKUP($N110,УЧАСТНИКИ!$A$1:$K$716,10,FALSE) -> 
A111: 61 | B111: =VLOOKUP($N111,УЧАСТНИКИ!$A$1:$K$716,3,FALSE) ->  | C111: 0 | D111: =VLOOKUP($N111,УЧАСТНИКИ!$A$1:$K$716,4,FALSE) ->  | E111: =VLOOKUP($N111,УЧАСТНИКИ!$A$1:$K$716,8,FALSE) ->  | F111: =VLOOKUP($N111,УЧАСТНИКИ!$A$1:$K$716,5,FALSE) ->  | G111: =VLOOKUP($N111,УЧАСТНИКИ!#REF!,7,FALSE) ->  | H111: =VLOOKUP($N111,УЧАСТНИКИ!$A$1:$K$716,11,FALSE) ->  | M111: =VLOOKUP($N111,УЧАСТНИКИ!$A$1:$K$716,10,FALSE) -> 
A112: 62 | B112: =VLOOKUP($N112,УЧАСТНИКИ!$A$1:$K$716,3,FALSE) ->  | C112: =N112 -> 0 | D112: =VLOOKUP($N112,УЧАСТНИКИ!$A$1:$K$716,4,FALSE) ->  | E112: =VLOOKUP($N112,УЧАСТНИКИ!$A$1:$K$716,8,FALSE) ->  | F112: =VLOOKUP($N112,УЧАСТНИКИ!$A$1:$K$716,5,FALSE) ->  | G112: =VLOOKUP($N112,УЧАСТНИКИ!#REF!,7,FALSE) ->  | H112: =VLOOKUP($N112,УЧАСТНИКИ!$A$1:$K$716,11,FALSE) ->  | M112: =VLOOKUP($N112,УЧАСТНИКИ!$A$1:$K$716,10,FALSE) -> 
A113: 63 | B113: =VLOOKUP($N113,УЧАСТНИКИ!$A$1:$K$716,3,FALSE) ->  | C113: =N113 -> 0 | D113: =VLOOKUP($N113,УЧАСТНИКИ!$A$1:$K$716,4,FALSE) ->  | E113: =VLOOKUP($N113,УЧАСТНИКИ!$A$1:$K$716,8,FALSE) ->  | F113: =VLOOKUP($N113,УЧАСТНИКИ!$A$1:$K$716,5,FALSE) ->  | G113: =VLOOKUP($N113,УЧАСТНИКИ!#REF!,7,FALSE) ->  | H113: =VLOOKUP($N113,УЧАСТНИКИ!$A$1:$K$716,11,FALSE) ->  | M113: =VLOOKUP($N113,УЧАСТНИКИ!$A$1:$K$716,10,FALSE) -> 
A114: 64 | B114: =VLOOKUP($N114,УЧАСТНИКИ!$A$1:$K$716,3,FALSE) ->  | C114: 0 | D114: =VLOOKUP($N114,УЧАСТНИКИ!$A$1:$K$716,4,FALSE) ->  | E114: =VLOOKUP($N114,УЧАСТНИКИ!$A$1:$K$716,8,FALSE) ->  | F114: =VLOOKUP($N114,УЧАСТНИКИ!$A$1:$K$716,5,FALSE) ->  | G114: =VLOOKUP($N114,УЧАСТНИКИ!#REF!,7,FALSE) ->  | H114: =VLOOKUP($N114,УЧАСТНИКИ!$A$1:$K$716,11,FALSE) ->  | M114: =VLOOKUP($N114,УЧАСТНИКИ!$A$1:$K$716,10,FALSE) -> 
B115: =Name_7 -> МУЖЧИНЫ 2001г.р. и старше
A116: 1 | B116: =VLOOKUP($N116,УЧАСТНИКИ!$A$1:$K$716,3,FALSE) ->  | C116: 0 | D116: =VLOOKUP($N116,УЧАСТНИКИ!$A$1:$K$716,4,FALSE) ->  | E116: =VLOOKUP($N116,УЧАСТНИКИ!$A$1:$K$716,8,FALSE) ->  | F116: =VLOOKUP($N116,УЧАСТНИКИ!$A$1:$K$716,5,FALSE) ->  | G116: =VLOOKUP($N116,УЧАСТНИКИ!#REF!,7,FALSE) ->  | H116: =VLOOKUP($N116,УЧАСТНИКИ!$A$1:$K$716,11,FALSE) ->  | M116: =VLOOKUP($N116,УЧАСТНИКИ!$A$1:$K$716,10,FALSE) -> 
A117: 2 | B117: =VLOOKUP($N117,УЧАСТНИКИ!$A$1:$K$716,3,FALSE) ->  | C117: 0 | D117: =VLOOKUP($N117,УЧАСТНИКИ!$A$1:$K$716,4,FALSE) ->  | E117: =VLOOKUP($N117,УЧАСТНИКИ!$A$1:$K$716,8,FALSE) ->  | F117: =VLOOKUP($N117,УЧАСТНИКИ!$A$1:$K$716,5,FALSE) ->  | G117: =VLOOKUP($N117,УЧАСТНИКИ!#REF!,7,FALSE) ->  | H117: =VLOOKUP($N117,УЧАСТНИКИ!$A$1:$K$716,11,FALSE) ->  | M117: =VLOOKUP($N117,УЧАСТНИКИ!$A$1:$K$716,10,FALSE) -> 
A118: 3 | B118: =VLOOKUP($N118,УЧАСТНИКИ!$A$1:$K$716,3,FALSE) ->  | C118: 0 | D118: =VLOOKUP($N118,УЧАСТНИКИ!$A$1:$K$716,4,FALSE) ->  | E118: =VLOOKUP($N118,УЧАСТНИКИ!$A$1:$K$716,8,FALSE) ->  | F118: =VLOOKUP($N118,УЧАСТНИКИ!$A$1:$K$716,5,FALSE) ->  | G118: =VLOOKUP($N118,УЧАСТНИКИ!#REF!,7,FALSE) ->  | H118: =VLOOKUP($N118,УЧАСТНИКИ!$A$1:$K$716,11,FALSE) ->  | M118: =VLOOKUP($N118,УЧАСТНИКИ!$A$1:$K$716,10,FALSE) -> 
A119: 4 | B119: =VLOOKUP($N119,УЧАСТНИКИ!$A$1:$K$716,3,FALSE) ->  | C119: 0 | D119: =VLOOKUP($N119,УЧАСТНИКИ!$A$1:$K$716,4,FALSE) ->  | E119: =VLOOKUP($N119,УЧАСТНИКИ!$A$1:$K$716,8,FALSE) ->  | F119: =VLOOKUP($N119,УЧАСТНИКИ!$A$1:$K$716,5,FALSE) ->  | G119: =VLOOKUP($N119,УЧАСТНИКИ!#REF!,7,FALSE) ->  | H119: =VLOOKUP($N119,УЧАСТНИКИ!$A$1:$K$716,11,FALSE) ->  | M119: =VLOOKUP($N119,УЧАСТНИКИ!$A$1:$K$716,10,FALSE) -> 
A120: 5 | B120: =VLOOKUP($N120,УЧАСТНИКИ!$A$1:$K$716,3,FALSE) ->  | C120: 0 | D120: =VLOOKUP($N120,УЧАСТНИКИ!$A$1:$K$716,4,FALSE) ->  | E120: =VLOOKUP($N120,УЧАСТНИКИ!$A$1:$K$716,8,FALSE) ->  | F120: =VLOOKUP($N120,УЧАСТНИКИ!$A$1:$K$716,5,FALSE) ->  | G120: =VLOOKUP($N120,УЧАСТНИКИ!#REF!,7,FALSE) ->  | H120: =VLOOKUP($N120,УЧАСТНИКИ!$A$1:$K$716,11,FALSE) ->  | M120: =VLOOKUP($N120,УЧАСТНИКИ!$A$1:$K$716,10,FALSE) -> 
A121: 6 | B121: =VLOOKUP($N121,УЧАСТНИКИ!$A$1:$K$716,3,FALSE) ->  | C121: 0 | D121: =VLOOKUP($N121,УЧАСТНИКИ!$A$1:$K$716,4,FALSE) ->  | E121: =VLOOKUP($N121,УЧАСТНИКИ!$A$1:$K$716,8,FALSE) ->  | F121: =VLOOKUP($N121,УЧАСТНИКИ!$A$1:$K$716,5,FALSE) ->  | G121: =VLOOKUP($N121,УЧАСТНИКИ!#REF!,7,FALSE) ->  | H121: =VLOOKUP($N121,УЧАСТНИКИ!$A$1:$K$716,11,FALSE) ->  | M121: =VLOOKUP($N121,УЧАСТНИКИ!$A$1:$K$716,10,FALSE) -> 
A122: 7 | B122: =VLOOKUP($N122,УЧАСТНИКИ!$A$1:$K$716,3,FALSE) ->  | C122: 0 | D122: =VLOOKUP($N122,УЧАСТНИКИ!$A$1:$K$716,4,FALSE) ->  | E122: =VLOOKUP($N122,УЧАСТНИКИ!$A$1:$K$716,8,FALSE) ->  | F122: =VLOOKUP($N122,УЧАСТНИКИ!$A$1:$K$716,5,FALSE) ->  | G122: =VLOOKUP($N122,УЧАСТНИКИ!#REF!,7,FALSE) ->  | H122: =VLOOKUP($N122,УЧАСТНИКИ!$A$1:$K$716,11,FALSE) ->  | M122: =VLOOKUP($N122,УЧАСТНИКИ!$A$1:$K$716,10,FALSE) -> 
A123: 8 | B123: =VLOOKUP($N123,УЧАСТНИКИ!$A$1:$K$716,3,FALSE) ->  | C123: 0 | D123: =VLOOKUP($N123,УЧАСТНИКИ!$A$1:$K$716,4,FALSE) ->  | E123: =VLOOKUP($N123,УЧАСТНИКИ!$A$1:$K$716,8,FALSE) ->  | F123: =VLOOKUP($N123,УЧАСТНИКИ!$A$1:$K$716,5,FALSE) ->  | G123: =VLOOKUP($N123,УЧАСТНИКИ!#REF!,7,FALSE) ->  | H123: =VLOOKUP($N123,УЧАСТНИКИ!$A$1:$K$716,11,FALSE) ->  | M123: =VLOOKUP($N123,УЧАСТНИКИ!$A$1:$K$716,10,FALSE) -> 
A124: 9 | B124: =VLOOKUP($N124,УЧАСТНИКИ!$A$1:$K$716,3,FALSE) ->  | C124: 0 | D124: =VLOOKUP($N124,УЧАСТНИКИ!$A$1:$K$716,4,FALSE) ->  | E124: =VLOOKUP($N124,УЧАСТНИКИ!$A$1:$K$716,8,FALSE) ->  | F124: =VLOOKUP($N124,УЧАСТНИКИ!$A$1:$K$716,5,FALSE) ->  | G124: =VLOOKUP($N124,УЧАСТНИКИ!#REF!,7,FALSE) ->  | H124: =VLOOKUP($N124,УЧАСТНИКИ!$A$1:$K$716,11,FALSE) ->  | M124: =VLOOKUP($N124,УЧАСТНИКИ!$A$1:$K$716,10,FALSE) -> 
A125: 10 | B125: =VLOOKUP($N125,УЧАСТНИКИ!$A$1:$K$716,3,FALSE) ->  | C125: 0 | D125: =VLOOKUP($N125,УЧАСТНИКИ!$A$1:$K$716,4,FALSE) ->  | E125: =VLOOKUP($N125,УЧАСТНИКИ!$A$1:$K$716,8,FALSE) ->  | F125: =VLOOKUP($N125,УЧАСТНИКИ!$A$1:$K$716,5,FALSE) ->  | G125: =VLOOKUP($N125,УЧАСТНИКИ!#REF!,7,FALSE) ->  | H125: =VLOOKUP($N125,УЧАСТНИКИ!$A$1:$K$716,11,FALSE) ->  | M125: =VLOOKUP($N125,УЧАСТНИКИ!$A$1:$K$716,10,FALSE) -> 
A126: 11 | B126: =VLOOKUP($N126,УЧАСТНИКИ!$A$1:$K$716,3,FALSE) ->  | C126: 0 | D126: =VLOOKUP($N126,УЧАСТНИКИ!$A$1:$K$716,4,FALSE) ->  | E126: =VLOOKUP($N126,УЧАСТНИКИ!$A$1:$K$716,8,FALSE) ->  | F126: =VLOOKUP($N126,УЧАСТНИКИ!$A$1:$K$716,5,FALSE) ->  | G126: =VLOOKUP($N126,УЧАСТНИКИ!#REF!,7,FALSE) ->  | H126: =VLOOKUP($N126,УЧАСТНИКИ!$A$1:$K$716,11,FALSE) ->  | M126: =VLOOKUP($N126,УЧАСТНИКИ!$A$1:$K$716,10,FALSE) -> 
A127: 12 | B127: =VLOOKUP($N127,УЧАСТНИКИ!$A$1:$K$716,3,FALSE) ->  | C127: 0 | D127: =VLOOKUP($N127,УЧАСТНИКИ!$A$1:$K$716,4,FALSE) ->  | E127: =VLOOKUP($N127,УЧАСТНИКИ!$A$1:$K$716,8,FALSE) ->  | F127: =VLOOKUP($N127,УЧАСТНИКИ!$A$1:$K$716,5,FALSE) ->  | G127: =VLOOKUP($N127,УЧАСТНИКИ!#REF!,7,FALSE) ->  | H127: =VLOOKUP($N127,УЧАСТНИКИ!$A$1:$K$716,11,FALSE) ->  | M127: =VLOOKUP($N127,УЧАСТНИКИ!$A$1:$K$716,10,FALSE) -> 
A128: 13 | B128: =VLOOKUP($N128,УЧАСТНИКИ!$A$1:$K$716,3,FALSE) ->  | C128: 0 | D128: =VLOOKUP($N128,УЧАСТНИКИ!$A$1:$K$716,4,FALSE) ->  | E128: =VLOOKUP($N128,УЧАСТНИКИ!$A$1:$K$716,8,FALSE) ->  | F128: =VLOOKUP($N128,УЧАСТНИКИ!$A$1:$K$716,5,FALSE) ->  | G128: =VLOOKUP($N128,УЧАСТНИКИ!#REF!,7,FALSE) ->  | H128: =VLOOKUP($N128,УЧАСТНИКИ!$A$1:$K$716,11,FALSE) ->  | M128: =VLOOKUP($N128,УЧАСТНИКИ!$A$1:$K$716,10,FALSE) -> 
A129: 14 | B129: =VLOOKUP($N129,УЧАСТНИКИ!$A$1:$K$716,3,FALSE) ->  | C129: 0 | D129: =VLOOKUP($N129,УЧАСТНИКИ!$A$1:$K$716,4,FALSE) ->  | E129: =VLOOKUP($N129,УЧАСТНИКИ!$A$1:$K$716,8,FALSE) ->  | F129: =VLOOKUP($N129,УЧАСТНИКИ!$A$1:$K$716,5,FALSE) ->  | G129: =VLOOKUP($N129,УЧАСТНИКИ!#REF!,7,FALSE) ->  | H129: =VLOOKUP($N129,УЧАСТНИКИ!$A$1:$K$716,11,FALSE) ->  | M129: =VLOOKUP($N129,УЧАСТНИКИ!$A$1:$K$716,10,FALSE) -> 
